Workbook

Sheet 1. Liga
C1: Für Kurzbedienung die Maus links vom roten Pfeil positionieren | E1: =VLOOKUP(Index!G1,Index!$F$2:$G$19,2,FALSE) -> SV Werder Bremen | F1: X | H1: X | Q1: =COUNT(A5:A443) -> 34 | R1: =AK1 -> SV Werder Bremen | S1: =AL1 -> FC Bayern München | T1: VfB Stuttgart | U1: VfL Bochum 1848 | V1: Borussia Dortmund | W1: 1. FC Köln | X1: Eintracht Frankfurt | Y1: SV Darmstadt 98 | Z1: Bayer 04 Leverkusen | AA1: RB Leipzig | AB1: VfL Wolfsburg | AC1: 1. FC Heidenheim 1846 | AD1: 1. FC Union Berlin | AE1: 1. FSV Mainz 05 | AF1: FC Augsburg | AG1: Borussia Mönchengladbach | AH1: TSG Hoffenheim | AI1: Sport-Club Freiburg | AK1: =C6 -> SV Werder Bremen | AL1: =E6 -> FC Bayern München | AM1: =C7 -> VfB Stuttgart | AN1: =E7 -> VfL Bochum 1848 | AO1: =C8 -> Borussia Dortmund | AP1: =E8 -> 1. FC Köln | AQ1: =C9 -> Eintracht Frankfurt | AR1: =E9 -> SV Darmstadt 98 | AS1: =C10 -> Bayer 04 Leverkusen | AT1: =E10 -> RB Leipzig | AU1: =C11 -> VfL Wolfsburg | AV1: =E11 -> 1. FC Heidenheim 1846 | AW1: =C12 -> 1. FC Union Berlin | AX1: =E12 -> 1. FSV Mainz 05 | AY1: =C13 -> FC Augsburg | AZ1: =E13 -> Borussia Mönchengladbach | BA1: =C14 -> TSG Hoffenheim | BB1: =E14 -> Sport-Club Freiburg | BD1: =AK1 -> SV Werder Bremen | BE1: FC Bayern München | BF1: VfB Stuttgart | BG1: VfL Bochum 1848 | BH1: Borussia Dortmund | BI1: 1. FC Köln | BJ1: Eintracht Frankfurt | BK1: SV Darmstadt 98 | BL1: Bayer 04 Leverkusen | BM1: RB Leipzig | BN1: VfL Wolfsburg | BO1: 1. FC Heidenheim 1846 | BP1: 1. FC Union Berlin | BQ1: 1. FSV Mainz 05 | BR1: FC Augsburg | BS1: Borussia Mönchengladbach | BT1: TSG Hoffenheim | BU1: Sport-Club Freiburg | BW1: =BD1 -> SV Werder Bremen | BX1: FC Bayern München | BY1: VfB Stuttgart | BZ1: VfL Bochum 1848 | CA1: Borussia Dortmund | CB1: 1. FC Köln | CC1: Eintracht Frankfurt | CD1: SV Darmstadt 98 | CE1: Bayer 04 Leverkusen | CF1: RB Leipzig | CG1: VfL Wolfsburg | CH1: 1. FC Heidenheim 1846 | CI1: 1. FC Union Berlin | CJ1: 1. FSV Mainz 05 | CK1: FC Augsburg | CL1: Borussia Mönchengladbach | CM1: TSG Hoffenheim | CN1: Sport-Club Freiburg | CP1: =BW1 -> SV Werder Bremen | CQ1: FC Bayern München | CR1: VfB Stuttgart | CS1: VfL Bochum 1848 | CT1: Borussia Dortmund | CU1: 1. FC Köln | CV1: Eintracht Frankfurt | CW1: SV Darmstadt 98 | CX1: Bayer 04 Leverkusen | CY1: RB Leipzig | CZ1: VfL Wolfsburg | DA1: 1. FC Heidenheim 1846 | DB1: 1. FC Union Berlin | DC1: 1. FSV Mainz 05 | DD1: FC Augsburg | DE1: Borussia Mönchengladbach | DF1: TSG Hoffenheim | DG1: Sport-Club Freiburg | DH1: Direkter Vergleich (Alle 1.+2. BuLi-Spiele)
J2: Punkte | N2: Tore | R2: Berechnung Tabellenplatz | AK2: Berechnung Punkte | BD2: Berechnung Tordifferenz | BW2: Berechnung Anzahl Tore | CP2: =RANK(CP3,$CP3:$DG3,0) -> 6 | CQ2: =RANK(CQ3,$CP3:$DG3,0) -> 3 | CR2: 2 | CS2: 11 | CT2: 7 | CU2: 13 | CV2: 13 | CW2: 16 | CX2: 1 | CY2: 3 | CZ2: 9 | DA2: 9 | DB2: 15 | DC2: 3 | DD2: 16 | DE2: 16 | DF2: 7 | DG2: 12 | DL2: 0
R3: =R449 -> 9 | S3: 3 | T3: 2 | U3: 16 | V3: 5 | W3: 17 | X3: 6 | Y3: 18 | Z3: 1 | AA3: 4 | AB3: 12 | AC3: 8 | AD3: 15 | AE3: 13 | AF3: 11 | AG3: 14 | AH3: 7 | AI3: 10 | AK3: =AK448 -> 42 | AL3: 72 | AM3: 73 | AN3: 33 | AO3: 63 | AP3: 27 | AQ3: 47 | AR3: 17 | AS3: 90 | AT3: 65 | AU3: 37 | AV3: 42 | AW3: 33 | AX3: 35 | AY3: 39 | AZ3: 34 | BA3: 46 | BB3: 42 | BD3: =BD448 -> -6 | BE3: 49 | BF3: 39 | BG3: -32 | BH3: 25 | BI3: -32 | BJ3: 1 | BK3: -56 | BL3: 65 | BM3: 38 | BN3: -15 | BO3: -5 | BP3: -25 | BQ3: -12 | BR3: -10 | BS3: -11 | BT3: 0 | BU3: -13 | BW3: =BW448 -> 48 | BX3: 94 | BY3: 78 | BZ3: 42 | CA3: 68 | CB3: 28 | CC3: 51 | CD3: 30 | CE3: 89 | CF3: 77 | CG3: 41 | CH3: 50 | CI3: 33 | CJ3: 39 | CK3: 50 | CL3: 56 | CM3: 66 | CN3: 45 | CO3: 6 | CP3: =SUMIF($CO4:$CO444,"x",CP4:CP444) -> 11 | CQ3: 12 | CR3: 13 | CS3: 7 | CT3: 10 | CU3: 5 | CV3: 5 | CW3: 3 | CX3: 14 | CY3: 12 | CZ3: 9 | DA3: 9 | DB3: 4 | DC3: 12 | DD3: 3 | DE3: 3 | DF3: 10 | DG3: 6 | DH3: S | DI3: U | DJ3: N | DK3: Tore | DL3: Ø
C4: 1. Spieltag
A5: =IF(SUM(J6:L14)>0,1,"Z") -> 1 | C5: 18.-20.08.2023
B6: =C6&E6 -> SV Werder BremenFC Bayern München | C6: SV Werder Bremen | D6: - | E6: FC Bayern München | F6: 0 | G6: : | H6: 4 | J6: =IF(F6>H6,3,IF(F6<H6,0,IF(AND(H6<>"",F6=H6),1,0))) -> 0 | K6: : | L6: =IF(F6>H6,0,IF(F6<H6,3,IF(AND(H6<>"",F6=H6),1,0))) -> 3 | N6: =F6-H6 -> -4 | P6: =H6-F6 -> 4 | R6: =(AK6*10000+BD6*100+BW6) -> -400 | S6: =(AL6*10000+BE6*100+BX6) -> 30404 | T6: =(AM6*10000+BF6*100+BY6) -> 0 | U6: =(AN6*10000+BG6*100+BZ6) -> 0 | V6: =(AO6*10000+BH6*100+CA6) -> 0 | W6: =(AP6*10000+BI6*100+CB6) -> 0 | X6: =(AQ6*10000+BJ6*100+CC6) -> 0 | Y6: =(AR6*10000+BK6*100+CD6) -> 0 | Z6: =(AS6*10000+BL6*100+CE6) -> 0 | AA6: =(AT6*10000+BM6*100+CF6) -> 0 | AB6: =(AU6*10000+BN6*100+CG6) -> 0 | AC6: =(AV6*10000+BO6*100+CH6) -> 0 | AD6: =(AW6*10000+BP6*100+CI6) -> 0 | AE6: =(AX6*10000+BQ6*100+CJ6) -> 0 | AF6: =(AY6*10000+BR6*100+CK6) -> 0 | AG6: =(AZ6*10000+BS6*100+CL6) -> 0 | AH6: =(BA6*10000+BT6*100+CM6) -> 0 | AI6: =(BB6*10000+BU6*100+CN6) -> 0 | AK6: =IF($C6=AK$1,$J6,IF($E6=AK$1,$L6,0)) -> 0 | AL6: 3 | AM6: 0 | AN6: 0 | AO6: 0 | AP6: 0 | AQ6: 0 | AR6: 0 | AS6: 0 | AT6: 0 | AU6: =IF($C6=AU$1,$J6,IF($E6=AU$1,$L6,0)) -> 0 | AV6: 0 | AW6: 0 | AX6: 0 | AY6: 0 | AZ6: 0 | BA6: 0 | BB6: 0 | BD6: =IF($C6=BD$1,$F6-$H6,IF($E6=BD$1,$H6-$F6,0)) -> -4 | BE6: 4 | BF6: 0 | BG6: 0 | BH6: 0 | BI6: 0 | BJ6: 0 | BK6: 0 | BL6: 0 | BM6: 0 | BN6: =IF($C6=BN$1,$F6-$H6,IF($E6=BN$1,$H6-$F6,0)) -> 0 | BO6: 0 | BP6: 0 | BQ6: 0 | BR6: 0 | BS6: 0 | BT6: 0 | BU6: 0 | BW6: =IF($C6=BW$1,$F6,IF($E6=BW$1,$H6,0)) -> 0 | BX6: 4 | BY6: 0 | BZ6: 0 | CA6: 0 | CB6: 0 | CC6: 0 | CD6: 0 | CE6: 0 | CF6: 0 | CG6: =IF($C6=CG$1,$F6,IF($E6=CG$1,$H6,0)) -> 0 | CH6: 0 | CI6: 0 | CJ6: 0 | CK6: 0 | CL6: 0 | CM6: 0 | CN6: 0 | CP6: =IF($C6=CP$1,IF($F6<>"",1,0),IF($E6=CP$1,IF($H6<>"",2,0),0)) -> 1 | CQ6: 2 | CR6: 0 | CS6: 0 | CT6: 0 | CU6: 0 | CV6: 0 | CW6: 0 | CX6: 0 | CY6: 0 | CZ6: =IF($C6=CZ$1,IF($F6<>"",1,0),IF($E6=CZ$1,IF($H6<>"",2,0),0)) -> 0 | DA6: 0 | DB6: 0 | DC6: 0 | DD6: 0 | DE6: 0 | DF6: 0 | DG6: 0 | DH6: 26 | DI6: 26 | DJ6: 60 | DK6: 128:230 | DL6: =IFERROR(ROUND(MID(DK6,1,SEARCH(":",DK6,1)-1)/SUM(DH6:DJ6),$DL$2)&" : "&ROUND(MID(DK6,SEARCH(":",DK6,1)+1,99)/SUM(DH6:DJ6),$DL$2),"") -> 1 : 2
B7: VfB StuttgartVfL Bochum 1848 | C7: VfB Stuttgart | D7: - | E7: VfL Bochum 1848 | F7: 5 | G7: : | H7: 0 | J7: 3 | K7: : | L7: 0 | N7: =F7-H7 -> 5 | P7: =H7-F7 -> -5 | R7: 0 | S7: 0 | T7: 30505 | U7: -500 | V7: 0 | W7: 0 | X7: 0 | Y7: 0 | Z7: 0 | AA7: 0 | AB7: 0 | AC7: 0 | AD7: 0 | AE7: 0 | AF7: 0 | AG7: 0 | AH7: 0 | AI7: 0 | AK7: 0 | AL7: 0 | AM7: 3 | AN7: 0 | AO7: 0 | AP7: 0 | AQ7: 0 | AR7: 0 | AS7: 0 | AT7: 0 | AU7: 0 | AV7: 0 | AW7: 0 | AX7: 0 | AY7: 0 | AZ7: 0 | BA7: 0 | BB7: 0 | BD7: 0 | BE7: 0 | BF7: 5 | BG7: -5 | BH7: 0 | BI7: 0 | BJ7: 0 | BK7: 0 | BL7: 0 | BM7: 0 | BN7: 0 | BO7: 0 | BP7: 0 | BQ7: 0 | BR7: 0 | BS7: 0 | BT7: 0 | BU7: 0 | BW7: 0 | BX7: 0 | BY7: 5 | BZ7: 0 | CA7: 0 | CB7: 0 | CC7: 0 | CD7: 0 | CE7: 0 | CF7: 0 | CG7: 0 | CH7: 0 | CI7: 0 | CJ7: 0 | CK7: 0 | CL7: 0 | CM7: 0 | CN7: 0 | CP7: 0 | CQ7: 0 | CR7: 1 | CS7: 2 | CT7: 0 | CU7: 0 | CV7: 0 | CW7: 0 | CX7: 0 | CY7: 0 | CZ7: 0 | DA7: 0 | DB7: 0 | DC7: 0 | DD7: 0 | DE7: 0 | DF7: 0 | DG7: 0 | DH7: 37 | DI7: 20 | DJ7: 15 | DK7: 126:87 | DL7: =IFERROR(ROUND(MID(DK7,1,SEARCH(":",DK7,1)-1)/SUM(DH7:DJ7),$DL$2)&" : "&ROUND(MID(DK7,SEARCH(":",DK7,1)+1,99)/SUM(DH7:DJ7),$DL$2),"") -> 2 : 1
B8: Borussia Dortmund1. FC Köln | C8: Borussia Dortmund | D8: - | E8: 1. FC Köln | F8: 1 | G8: : | H8: 0 | J8: 3 | K8: : | L8: 0 | N8: 1 | P8: -1 | R8: 0 | S8: 0 | T8: 0 | U8: 0 | V8: 30101 | W8: -100 | X8: 0 | Y8: 0 | Z8: 0 | AA8: 0 | AB8: 0 | AC8: 0 | AD8: 0 | AE8: 0 | AF8: 0 | AG8: 0 | AH8: 0 | AI8: 0 | AK8: 0 | AL8: 0 | AM8: 0 | AN8: 0 | AO8: 3 | AP8: 0 | AQ8: 0 | AR8: 0 | AS8: 0 | AT8: 0 | AU8: 0 | AV8: 0 | AW8: 0 | AX8: 0 | AY8: 0 | AZ8: 0 | BA8: 0 | BB8: 0 | BD8: 0 | BE8: 0 | BF8: 0 | BG8: 0 | BH8: 1 | BI8: -1 | BJ8: 0 | BK8: 0 | BL8: 0 | BM8: 0 | BN8: 0 | BO8: 0 | BP8: 0 | BQ8: 0 | BR8: 0 | BS8: 0 | BT8: 0 | BU8: 0 | BW8: 0 | BX8: 0 | BY8: 0 | BZ8: 0 | CA8: 1 | CB8: 0 | CC8: 0 | CD8: 0 | CE8: 0 | CF8: 0 | CG8: 0 | CH8: 0 | CI8: 0 | CJ8: 0 | CK8: 0 | CL8: 0 | CM8: 0 | CN8: 0 | CP8: 0 | CQ8: 0 | CR8: 0 | CS8: 0 | CT8: 1 | CU8: 2 | CV8: 0 | CW8: 0 | CX8: 0 | CY8: 0 | CZ8: 0 | DA8: 0 | DB8: 0 | DC8: 0 | DD8: 0 | DE8: 0 | DF8: 0 | DG8: 0 | DH8: 40 | DI8: 25 | DJ8: 29 | DK8: 162:134 | DL8: 2 : 1
B9: Eintracht FrankfurtSV Darmstadt 98 | C9: Eintracht Frankfurt | D9: - | E9: SV Darmstadt 98 | F9: 1 | G9: : | H9: 0 | J9: 3 | K9: : | L9: 0 | N9: 1 | P9: -1 | R9: 0 | S9: 0 | T9: 0 | U9: 0 | V9: 0 | W9: 0 | X9: 30101 | Y9: -100 | Z9: 0 | AA9: 0 | AB9: 0 | AC9: 0 | AD9: 0 | AE9: 0 | AF9: 0 | AG9: 0 | AH9: 0 | AI9: 0 | AK9: 0 | AL9: 0 | AM9: 0 | AN9: 0 | AO9: 0 | AP9: 0 | AQ9: 3 | AR9: 0 | AS9: 0 | AT9: 0 | AU9: 0 | AV9: 0 | AW9: 0 | AX9: 0 | AY9: 0 | AZ9: 0 | BA9: 0 | BB9: 0 | BD9: 0 | BE9: 0 | BF9: 0 | BG9: 0 | BH9: 0 | BI9: 0 | BJ9: 1 | BK9: -1 | BL9: 0 | BM9: 0 | BN9: 0 | BO9: 0 | BP9: 0 | BQ9: 0 | BR9: 0 | BS9: 0 | BT9: 0 | BU9: 0 | BW9: 0 | BX9: 0 | BY9: 0 | BZ9: 0 | CA9: 0 | CB9: 0 | CC9: 1 | CD9: 0 | CE9: 0 | CF9: 0 | CG9: 0 | CH9: 0 | CI9: 0 | CJ9: 0 | CK9: 0 | CL9: 0 | CM9: 0 | CN9: 0 | CP9: 0 | CQ9: 0 | CR9: 0 | CS9: 0 | CT9: 0 | CU9: 0 | CV9: 1 | CW9: 2 | CX9: 0 | CY9: 0 | CZ9: 0 | DA9: 0 | DB9: 0 | DC9: 0 | DD9: 0 | DE9: 0 | DF9: 0 | DG9: 0 | DH9: 5 | DI9: 0 | DJ9: 3 | DK9: 12:7 | DL9: 2 : 1
B10: Bayer 04 LeverkusenRB Leipzig | C10: Bayer 04 Leverkusen | D10: - | E10: RB Leipzig | F10: 3 | G10: : | H10: 2 | J10: 3 | K10: : | L10: 0 | N10: 1 | P10: -1 | R10: 0 | S10: 0 | T10: 0 | U10: 0 | V10: 0 | W10: 0 | X10: 0 | Y10: 0 | Z10: 30103 | AA10: -98 | AB10: 0 | AC10: 0 | AD10: 0 | AE10: 0 | AF10: 0 | AG10: 0 | AH10: 0 | AI10: 0 | AK10: 0 | AL10: 0 | AM10: 0 | AN10: 0 | AO10: 0 | AP10: 0 | AQ10: 0 | AR10: 0 | AS10: 3 | AT10: 0 | AU10: 0 | AV10: 0 | AW10: 0 | AX10: 0 | AY10: 0 | AZ10: 0 | BA10: 0 | BB10: 0 | BD10: 0 | BE10: 0 | BF10: 0 | BG10: 0 | BH10: 0 | BI10: 0 | BJ10: 0 | BK10: 0 | BL10: 1 | BM10: -1 | BN10: 0 | BO10: 0 | BP10: 0 | BQ10: 0 | BR10: 0 | BS10: 0 | BT10: 0 | BU10: 0 | BW10: 0 | BX10: 0 | BY10: 0 | BZ10: 0 | CA10: 0 | CB10: 0 | CC10: 0 | CD10: 0 | CE10: 3 | CF10: 2 | CG10: 0 | CH10: 0 | CI10: 0 | CJ10: 0 | CK10: 0 | CL10: 0 | CM10: 0 | CN10: 0 | CP10: 0 | CQ10: 0 | CR10: 0 | CS10: 0 | CT10: 0 | CU10: 0 | CV10: 0 | CW10: 0 | CX10: 1 | CY10: 2 | CZ10: 0 | DA10: 0 | DB10: 0 | DC10: 0 | DD10: 0 | DE10: 0 | DF10: 0 | DG10: 0 | DH10: 3 | DI10: 4 | DJ10: 7 | DK10: 18:22 | DL10: 1 : 2
B11: VfL Wolfsburg1. FC Heidenheim 1846 | C11: VfL Wolfsburg | D11: - | E11: 1. FC Heidenheim 1846 | F11: 2 | G11: : | H11: 0 | J11: 3 | K11: : | L11: 0 | N11: 2 | P11: -2 | R11: 0 | S11: 0 | T11: 0 | U11: 0 | V11: 0 | W11: 0 | X11: 0 | Y11: 0 | Z11: 0 | AA11: 0 | AB11: 30202 | AC11: -200 | AD11: 0 | AE11: 0 | AF11: 0 | AG11: 0 | AH11: 0 | AI11: 0 | AK11: 0 | AL11: 0 | AM11: 0 | AN11: 0 | AO11: 0 | AP11: 0 | AQ11: 0 | AR11: 0 | AS11: 0 | AT11: 0 | AU11: 3 | AV11: 0 | AW11: 0 | AX11: 0 | AY11: 0 | AZ11: 0 | BA11: 0 | BB11: 0 | BD11: 0 | BE11: 0 | BF11: 0 | BG11: 0 | BH11: 0 | BI11: 0 | BJ11: 0 | BK11: 0 | BL11: 0 | BM11: 0 | BN11: 2 | BO11: -2 | BP11: 0 | BQ11: 0 | BR11: 0 | BS11: 0 | BT11: 0 | BU11: 0 | BW11: 0 | BX11: 0 | BY11: 0 | BZ11: 0 | CA11: 0 | CB11: 0 | CC11: 0 | CD11: 0 | CE11: 0 | CF11: 0 | CG11: 2 | CH11: 0 | CI11: 0 | CJ11: 0 | CK11: 0 | CL11: 0 | CM11: 0 | CN11: 0 | CP11: 0 | CQ11: 0 | CR11: 0 | CS11: 0 | CT11: 0 | CU11: 0 | CV11: 0 | CW11: 0 | CX11: 0 | CY11: 0 | CZ11: 1 | DA11: 2 | DB11: 0 | DC11: 0 | DD11: 0 | DE11: 0 | DF11: 0 | DG11: 0 | DH11: - | DI11: - | DJ11: - | DK11: -
B12: 1. FC Union Berlin1. FSV Mainz 05 | C12: 1. FC Union Berlin | D12: - | E12: 1. FSV Mainz 05 | F12: 4 | G12: : | H12: 1 | J12: 3 | K12: : | L12: 0 | N12: 3 | P12: -3 | R12: 0 | S12: 0 | T12: 0 | U12: 0 | V12: 0 | W12: 0 | X12: 0 | Y12: 0 | Z12: 0 | AA12: 0 | AB12: 0 | AC12: 0 | AD12: 30304 | AE12: -299 | AF12: 0 | AG12: 0 | AH12: 0 | AI12: 0 | AK12: 0 | AL12: 0 | AM12: 0 | AN12: 0 | AO12: 0 | AP12: 0 | AQ12: 0 | AR12: 0 | AS12: 0 | AT12: 0 | AU12: 0 | AV12: 0 | AW12: 3 | AX12: 0 | AY12: 0 | AZ12: 0 | BA12: 0 | BB12: 0 | BD12: 0 | BE12: 0 | BF12: 0 | BG12: 0 | BH12: 0 | BI12: 0 | BJ12: 0 | BK12: 0 | BL12: 0 | BM12: 0 | BN12: 0 | BO12: 0 | BP12: 3 | BQ12: -3 | BR12: 0 | BS12: 0 | BT12: 0 | BU12: 0 | BW12: 0 | BX12: 0 | BY12: 0 | BZ12: 0 | CA12: 0 | CB12: 0 | CC12: 0 | CD12: 0 | CE12: 0 | CF12: 0 | CG12: 0 | CH12: 0 | CI12: 4 | CJ12: 1 | CK12: 0 | CL12: 0 | CM12: 0 | CN12: 0 | CP12: 0 | CQ12: 0 | CR12: 0 | CS12: 0 | CT12: 0 | CU12: 0 | CV12: 0 | CW12: 0 | CX12: 0 | CY12: 0 | CZ12: 0 | DA12: 0 | DB12: 1 | DC12: 2 | DD12: 0 | DE12: 0 | DF12: 0 | DG12: 0 | DH12: 6 | DI12: 3 | DJ12: 5 | DK12: 20:15 | DL12: 1 : 1
B13: FC AugsburgBorussia Mönchengladbach | C13: FC Augsburg | D13: - | E13: Borussia Mönchengladbach | F13: 4 | G13: : | H13: 4 | J13: 1 | K13: : | L13: 1 | N13: 0 | P13: 0 | R13: 0 | S13: 0 | T13: 0 | U13: 0 | V13: 0 | W13: 0 | X13: 0 | Y13: 0 | Z13: 0 | AA13: 0 | AB13: 0 | AC13: 0 | AD13: 0 | AE13: 0 | AF13: 10004 | AG13: 10004 | AH13: 0 | AI13: 0 | AK13: 0 | AL13: 0 | AM13: 0 | AN13: 0 | AO13: 0 | AP13: 0 | AQ13: 0 | AR13: 0 | AS13: 0 | AT13: 0 | AU13: 0 | AV13: 0 | AW13: 0 | AX13: 0 | AY13: 1 | AZ13: 1 | BA13: 0 | BB13: 0 | BD13: 0 | BE13: 0 | BF13: 0 | BG13: 0 | BH13: 0 | BI13: 0 | BJ13: 0 | BK13: 0 | BL13: 0 | BM13: 0 | BN13: 0 | BO13: 0 | BP13: 0 | BQ13: 0 | BR13: 0 | BS13: 0 | BT13: 0 | BU13: 0 | BW13: 0 | BX13: 0 | BY13: 0 | BZ13: 0 | CA13: 0 | CB13: 0 | CC13: 0 | CD13: 0 | CE13: 0 | CF13: 0 | CG13: 0 | CH13: 0 | CI13: 0 | CJ13: 0 | CK13: 4 | CL13: 4 | CM13: 0 | CN13: 0 | CP13: 0 | CQ13: 0 | CR13: 0 | CS13: 0 | CT13: 0 | CU13: 0 | CV13: 0 | CW13: 0 | CX13: 0 | CY13: 0 | CZ13: 0 | DA13: 0 | DB13: 0 | DC13: 0 | DD13: 1 | DE13: 2 | DF13: 0 | DG13: 0 | DH13: 8 | DI13: 8 | DJ13: 10 | DK13: 33:42 | DL13: 1 : 2
B14: TSG HoffenheimSport-Club Freiburg | C14: TSG Hoffenheim | D14: - | E14: Sport-Club Freiburg | F14: 1 | G14: : | H14: 2 | J14: 0 | K14: : | L14: 3 | N14: -1 | P14: 1 | R14: 0 | S14: 0 | T14: 0 | U14: 0 | V14: 0 | W14: 0 | X14: 0 | Y14: 0 | Z14: 0 | AA14: 0 | AB14: 0 | AC14: 0 | AD14: 0 | AE14: 0 | AF14: 0 | AG14: 0 | AH14: -99 | AI14: 30102 | AK14: 0 | AL14: 0 | AM14: 0 | AN14: 0 | AO14: 0 | AP14: 0 | AQ14: 0 | AR14: 0 | AS14: 0 | AT14: 0 | AU14: 0 | AV14: 0 | AW14: 0 | AX14: 0 | AY14: 0 | AZ14: 0 | BA14: 0 | BB14: 3 | BD14: 0 | BE14: 0 | BF14: 0 | BG14: 0 | BH14: 0 | BI14: 0 | BJ14: 0 | BK14: 0 | BL14: 0 | BM14: 0 | BN14: 0 | BO14: 0 | BP14: 0 | BQ14: 0 | BR14: 0 | BS14: 0 | BT14: -1 | BU14: 1 | BW14: 0 | BX14: 0 | BY14: 0 | BZ14: 0 | CA14: 0 | CB14: 0 | CC14: 0 | CD14: 0 | CE14: 0 | CF14: 0 | CG14: 0 | CH14: 0 | CI14: 0 | CJ14: 0 | CK14: 0 | CL14: 0 | CM14: 1 | CN14: 2 | CP14: 0 | CQ14: 0 | CR14: 0 | CS14: 0 | CT14: 0 | CU14: 0 | CV14: 0 | CW14: 0 | CX14: 0 | CY14: 0 | CZ14: 0 | DA14: 0 | DB14: 0 | DC14: 0 | DD14: 0 | DE14: 0 | DF14: 1 | DG14: 2 | DH14: 7 | DI14: 11 | DJ14: 10 | DK14: 43:47 | DL14: 2 : 2
R15: =SUM(R6:R14) -> -400 | S15: =SUM(S6:S14) -> 30404 | T15: 30505 | U15: -500 | V15: 30101 | W15: -100 | X15: 30101 | Y15: -100 | Z15: 30103 | AA15: -98 | AB15: 30202 | AC15: -200 | AD15: 30304 | AE15: -299 | AF15: 10004 | AG15: 10004 | AH15: -99 | AI15: 30102 | AK15: =SUM(AK6:AK14) -> 0 | AL15: 3 | AM15: 3 | AN15: 0 | AO15: 3 | AP15: 0 | AQ15: 3 | AR15: 0 | AS15: 3 | AT15: 0 | AU15: 3 | AV15: 0 | AW15: 3 | AX15: 0 | AY15: 1 | AZ15: 1 | BA15: 0 | BB15: 3 | BD15: =SUM(BD6:BD14) -> -4 | BE15: 4 | BF15: 5 | BG15: -5 | BH15: 1 | BI15: -1 | BJ15: 1 | BK15: -1 | BL15: 1 | BM15: -1 | BN15: 2 | BO15: -2 | BP15: 3 | BQ15: -3 | BR15: 0 | BS15: 0 | BT15: -1 | BU15: 1 | BW15: =SUM(BW6:BW14) -> 0 | BX15: 4 | BY15: 5 | BZ15: 0 | CA15: 1 | CB15: 0 | CC15: 1 | CD15: 0 | CE15: 3 | CF15: 2 | CG15: 2 | CH15: 0 | CI15: 4 | CJ15: 1 | CK15: 4 | CL15: 4 | CM15: 1 | CN15: 2 | CO15: x | CP15: =IF(CP16<=$CO$3,SUMIF(CP6:CP14,1,$J6:$J14)+SUMIF(CP6:CP14,2,$L6:$L14),0) -> 0 | CQ15: 0 | CR15: 0 | CS15: 0 | CT15: 0 | CU15: 0 | CV15: 0 | CW15: 0 | CX15: 0 | CY15: 0 | CZ15: 0 | DA15: 0 | DB15: 0 | DC15: 0 | DD15: 0 | DE15: 0 | DF15: 0 | DG15: 0
R16: =RANK(R15,$R15:$AI15,0) -> 17 | S16: 2 | T16: 1 | U16: 18 | V16: 7 | W16: 13 | X16: 7 | Y16: 13 | Z16: 5 | AA16: 11 | AB16: 4 | AC16: 15 | AD16: 3 | AE16: 16 | AF16: 9 | AG16: 9 | AH16: 12 | AI16: 6 | CP16: =IF(SUM(CP6:CP14)>0,IF(CP29=0,1,CP29+1),IF(CP29<>0,CP29,0)) -> 34 | CQ16: 34 | CR16: 34 | CS16: 34 | CT16: 34 | CU16: 34 | CV16: 34 | CW16: 34 | CX16: 34 | CY16: 34 | CZ16: 34 | DA16: 34 | DB16: 34 | DC16: 34 | DD16: 34 | DE16: 34 | DF16: 34 | DG16: 34
C17: 2. Spieltag
A18: =IF(SUM(J19:L27)>0,1,"Z") -> 1 | C18: 25.-27.08.2023
B19: =C19&E19 -> FC Bayern MünchenFC Augsburg | C19: FC Bayern München | D19: - | E19: FC Augsburg | F19: 3 | G19: : | H19: 1 | J19: =IF(F19>H19,3,IF(F19<H19,0,IF(AND(H19<>"",F19=H19),1,0))) -> 3 | K19: : | L19: =IF(F19>H19,0,IF(F19<H19,3,IF(AND(H19<>"",F19=H19),1,0))) -> 0 | N19: =F19-H19 -> 2 | P19: =H19-F19 -> -2 | R19: =(AK19*10000+BD19*100+BW19) -> 0 | S19: =(AL19*10000+BE19*100+BX19) -> 30203 | T19: =(AM19*10000+BF19*100+BY19) -> 0 | U19: =(AN19*10000+BG19*100+BZ19) -> 0 | V19: =(AO19*10000+BH19*100+CA19) -> 0 | W19: =(AP19*10000+BI19*100+CB19) -> 0 | X19: =(AQ19*10000+BJ19*100+CC19) -> 0 | Y19: =(AR19*10000+BK19*100+CD19) -> 0 | Z19: =(AS19*10000+BL19*100+CE19) -> 0 | AA19: =(AT19*10000+BM19*100+CF19) -> 0 | AB19: =(AU19*10000+BN19*100+CG19) -> 0 | AC19: =(AV19*10000+BO19*100+CH19) -> 0 | AD19: =(AW19*10000+BP19*100+CI19) -> 0 | AE19: =(AX19*10000+BQ19*100+CJ19) -> 0 | AF19: =(AY19*10000+BR19*100+CK19) -> -199 | AG19: =(AZ19*10000+BS19*100+CL19) -> 0 | AH19: =(BA19*10000+BT19*100+CM19) -> 0 | AI19: =(BB19*10000+BU19*100+CN19) -> 0 | AK19: =IF($C19=AK$1,$J19,IF($E19=AK$1,$L19,0)) -> 0 | AL19: 3 | AM19: 0 | AN19: 0 | AO19: 0 | AP19: 0 | AQ19: 0 | AR19: 0 | AS19: 0 | AT19: 0 | AU19: =IF($C19=AU$1,$J19,IF($E19=AU$1,$L19,0)) -> 0 | AV19: 0 | AW19: 0 | AX19: 0 | AY19: 0 | AZ19: 0 | BA19: 0 | BB19: 0 | BD19: =IF($C19=BD$1,$F19-$H19,IF($E19=BD$1,$H19-$F19,0)) -> 0 | BE19: 2 | BF19: 0 | BG19: 0 | BH19: 0 | BI19: 0 | BJ19: 0 | BK19: 0 | BL19: 0 | BM19: 0 | BN19: =IF($C19=BN$1,$F19-$H19,IF($E19=BN$1,$H19-$F19,0)) -> 0 | BO19: 0 | BP19: 0 | BQ19: 0 | BR19: -2 | BS19: 0 | BT19: 0 | BU19: 0 | BW19: =IF($C19=BW$1,$F19,IF($E19=BW$1,$H19,0)) -> 0 | BX19: 3 | BY19: 0 | BZ19: 0 | CA19: 0 | CB19: 0 | CC19: 0 | CD19: 0 | CE19: 0 | CF19: 0 | CG19: =IF($C19=CG$1,$F19,IF($E19=CG$1,$H19,0)) -> 0 | CH19: 0 | CI19: 0 | CJ19: 0 | CK19: 1 | CL19: 0 | CM19: 0 | CN19: 0 | CP19: =IF($C19=CP$1,IF($F19<>"",1,0),IF($E19=CP$1,IF($H19<>"",2,0),0)) -> 0 | CQ19: 1 | CR19: 0 | CS19: 0 | CT19: 0 | CU19: 0 | CV19: 0 | CW19: 0 | CX19: 0 | CY19: 0 | CZ19: =IF($C19=CZ$1,IF($F19<>"",1,0),IF($E19=CZ$1,IF($H19<>"",2,0),0)) -> 0 | DA19: 0 | DB19: 0 | DC19: 0 | DD19: 2 | DE19: 0 | DF19: 0 | DG19: 0 | DH19: 18 | DI19: 2 | DJ19: 4 | DK19: 58:21 | DL19: =IFERROR(ROUND(MID(DK19,1,SEARCH(":",DK19,1)-1)/SUM(DH19:DJ19),$DL$2)&" : "&ROUND(MID(DK19,SEARCH(":",DK19,1)+1,99)/SUM(DH19:DJ19),$DL$2),"") -> 2 : 1
B20: Borussia MönchengladbachBayer 04 Leverkusen | C20: Borussia Mönchengladbach | D20: - | E20: Bayer 04 Leverkusen | F20: 0 | G20: : | H20: 3 | J20: 0 | K20: : | L20: 3 | N20: =F20-H20 -> -3 | P20: =H20-F20 -> 3 | R20: 0 | S20: 0 | T20: 0 | U20: 0 | V20: 0 | W20: 0 | X20: 0 | Y20: 0 | Z20: 30303 | AA20: 0 | AB20: 0 | AC20: 0 | AD20: 0 | AE20: 0 | AF20: 0 | AG20: -300 | AH20: 0 | AI20: 0 | AK20: 0 | AL20: 0 | AM20: 0 | AN20: 0 | AO20: 0 | AP20: 0 | AQ20: 0 | AR20: 0 | AS20: 3 | AT20: 0 | AU20: 0 | AV20: 0 | AW20: 0 | AX20: 0 | AY20: 0 | AZ20: 0 | BA20: 0 | BB20: 0 | BD20: 0 | BE20: 0 | BF20: 0 | BG20: 0 | BH20: 0 | BI20: 0 | BJ20: 0 | BK20: 0 | BL20: 3 | BM20: 0 | BN20: 0 | BO20: 0 | BP20: 0 | BQ20: 0 | BR20: 0 | BS20: -3 | BT20: 0 | BU20: 0 | BW20: 0 | BX20: 0 | BY20: 0 | BZ20: 0 | CA20: 0 | CB20: 0 | CC20: 0 | CD20: 0 | CE20: 3 | CF20: 0 | CG20: 0 | CH20: 0 | CI20: 0 | CJ20: 0 | CK20: 0 | CL20: 0 | CM20: 0 | CN20: 0 | CP20: 0 | CQ20: 0 | CR20: 0 | CS20: 0 | CT20: 0 | CU20: 0 | CV20: 0 | CW20: 0 | CX20: 2 | CY20: 0 | CZ20: 0 | DA20: 0 | DB20: 0 | DC20: 0 | DD20: 0 | DE20: 1 | DF20: 0 | DG20: 0 | DH20: 22 | DI20: 27 | DJ20: 33 | DK20: 120:157 | DL20: 1 : 2
B21: 1. FC KölnVfL Wolfsburg | C21: 1. FC Köln | D21: - | E21: VfL Wolfsburg | F21: 1 | G21: : | H21: 2 | J21: 0 | K21: : | L21: 3 | N21: -1 | P21: 1 | R21: 0 | S21: 0 | T21: 0 | U21: 0 | V21: 0 | W21: -99 | X21: 0 | Y21: 0 | Z21: 0 | AA21: 0 | AB21: 30102 | AC21: 0 | AD21: 0 | AE21: 0 | AF21: 0 | AG21: 0 | AH21: 0 | AI21: 0 | AK21: 0 | AL21: 0 | AM21: 0 | AN21: 0 | AO21: 0 | AP21: 0 | AQ21: 0 | AR21: 0 | AS21: 0 | AT21: 0 | AU21: 3 | AV21: 0 | AW21: 0 | AX21: 0 | AY21: 0 | AZ21: 0 | BA21: 0 | BB21: 0 | BD21: 0 | BE21: 0 | BF21: 0 | BG21: 0 | BH21: 0 | BI21: -1 | BJ21: 0 | BK21: 0 | BL21: 0 | BM21: 0 | BN21: 1 | BO21: 0 | BP21: 0 | BQ21: 0 | BR21: 0 | BS21: 0 | BT21: 0 | BU21: 0 | BW21: 0 | BX21: 0 | BY21: 0 | BZ21: 0 | CA21: 0 | CB21: 1 | CC21: 0 | CD21: 0 | CE21: 0 | CF21: 0 | CG21: 2 | CH21: 0 | CI21: 0 | CJ21: 0 | CK21: 0 | CL21: 0 | CM21: 0 | CN21: 0 | CP21: 0 | CQ21: 0 | CR21: 0 | CS21: 0 | CT21: 0 | CU21: 1 | CV21: 0 | CW21: 0 | CX21: 0 | CY21: 0 | CZ21: 2 | DA21: 0 | DB21: 0 | DC21: 0 | DD21: 0 | DE21: 0 | DF21: 0 | DG21: 0 | DH21: 8 | DI21: 10 | DJ21: 16 | DK21: 42:65 | DL21: 1 : 2
B22: VfL Bochum 1848Borussia Dortmund | C22: VfL Bochum 1848 | D22: - | E22: Borussia Dortmund | F22: 1 | G22: : | H22: 1 | J22: 1 | K22: : | L22: 1 | N22: 0 | P22: 0 | R22: 0 | S22: 0 | T22: 0 | U22: 10001 | V22: 10001 | W22: 0 | X22: 0 | Y22: 0 | Z22: 0 | AA22: 0 | AB22: 0 | AC22: 0 | AD22: 0 | AE22: 0 | AF22: 0 | AG22: 0 | AH22: 0 | AI22: 0 | AK22: 0 | AL22: 0 | AM22: 0 | AN22: 1 | AO22: 1 | AP22: 0 | AQ22: 0 | AR22: 0 | AS22: 0 | AT22: 0 | AU22: 0 | AV22: 0 | AW22: 0 | AX22: 0 | AY22: 0 | AZ22: 0 | BA22: 0 | BB22: 0 | BD22: 0 | BE22: 0 | BF22: 0 | BG22: 0 | BH22: 0 | BI22: 0 | BJ22: 0 | BK22: 0 | BL22: 0 | BM22: 0 | BN22: 0 | BO22: 0 | BP22: 0 | BQ22: 0 | BR22: 0 | BS22: 0 | BT22: 0 | BU22: 0 | BW22: 0 | BX22: 0 | BY22: 0 | BZ22: 1 | CA22: 1 | CB22: 0 | CC22: 0 | CD22: 0 | CE22: 0 | CF22: 0 | CG22: 0 | CH22: 0 | CI22: 0 | CJ22: 0 | CK22: 0 | CL22: 0 | CM22: 0 | CN22: 0 | CP22: 0 | CQ22: 0 | CR22: 0 | CS22: 1 | CT22: 2 | CU22: 0 | CV22: 0 | CW22: 0 | CX22: 0 | CY22: 0 | CZ22: 0 | DA22: 0 | DB22: 0 | DC22: 0 | DD22: 0 | DE22: 0 | DF22: 0 | DG22: 0 | DH22: 17 | DI22: 22 | DJ22: 25 | DK22: 91:108 | DL22: 1 : 2
B23: Sport-Club FreiburgSV Werder Bremen | C23: Sport-Club Freiburg | D23: - | E23: SV Werder Bremen | F23: 1 | G23: : | H23: 0 | J23: 3 | K23: : | L23: 0 | N23: 1 | P23: -1 | R23: -100 | S23: 0 | T23: 0 | U23: 0 | V23: 0 | W23: 0 | X23: 0 | Y23: 0 | Z23: 0 | AA23: 0 | AB23: 0 | AC23: 0 | AD23: 0 | AE23: 0 | AF23: 0 | AG23: 0 | AH23: 0 | AI23: 30101 | AK23: 0 | AL23: 0 | AM23: 0 | AN23: 0 | AO23: 0 | AP23: 0 | AQ23: 0 | AR23: 0 | AS23: 0 | AT23: 0 | AU23: 0 | AV23: 0 | AW23: 0 | AX23: 0 | AY23: 0 | AZ23: 0 | BA23: 0 | BB23: 3 | BD23: -1 | BE23: 0 | BF23: 0 | BG23: 0 | BH23: 0 | BI23: 0 | BJ23: 0 | BK23: 0 | BL23: 0 | BM23: 0 | BN23: 0 | BO23: 0 | BP23: 0 | BQ23: 0 | BR23: 0 | BS23: 0 | BT23: 0 | BU23: 1 | BW23: 0 | BX23: 0 | BY23: 0 | BZ23: 0 | CA23: 0 | CB23: 0 | CC23: 0 | CD23: 0 | CE23: 0 | CF23: 0 | CG23: 0 | CH23: 0 | CI23: 0 | CJ23: 0 | CK23: 0 | CL23: 0 | CM23: 0 | CN23: 1 | CP23: 2 | CQ23: 0 | CR23: 0 | CS23: 0 | CT23: 0 | CU23: 0 | CV23: 0 | CW23: 0 | CX23: 0 | CY23: 0 | CZ23: 0 | DA23: 0 | DB23: 0 | DC23: 0 | DD23: 0 | DE23: 0 | DF23: 0 | DG23: 1 | DH23: 11 | DI23: 10 | DJ23: 23 | DK23: 56:90 | DL23: 1 : 2
B24: 1. FSV Mainz 05Eintracht Frankfurt | C24: 1. FSV Mainz 05 | D24: - | E24: Eintracht Frankfurt | F24: 1 | G24: : | H24: 1 | J24: 1 | K24: : | L24: 1 | N24: 0 | P24: 0 | R24: 0 | S24: 0 | T24: 0 | U24: 0 | V24: 0 | W24: 0 | X24: 10001 | Y24: 0 | Z24: 0 | AA24: 0 | AB24: 0 | AC24: 0 | AD24: 0 | AE24: 10001 | AF24: 0 | AG24: 0 | AH24: 0 | AI24: 0 | AK24: 0 | AL24: 0 | AM24: 0 | AN24: 0 | AO24: 0 | AP24: 0 | AQ24: 1 | AR24: 0 | AS24: 0 | AT24: 0 | AU24: 0 | AV24: 0 | AW24: 0 | AX24: 1 | AY24: 0 | AZ24: 0 | BA24: 0 | BB24: 0 | BD24: 0 | BE24: 0 | BF24: 0 | BG24: 0 | BH24: 0 | BI24: 0 | BJ24: 0 | BK24: 0 | BL24: 0 | BM24: 0 | BN24: 0 | BO24: 0 | BP24: 0 | BQ24: 0 | BR24: 0 | BS24: 0 | BT24: 0 | BU24: 0 | BW24: 0 | BX24: 0 | BY24: 0 | BZ24: 0 | CA24: 0 | CB24: 0 | CC24: 1 | CD24: 0 | CE24: 0 | CF24: 0 | CG24: 0 | CH24: 0 | CI24: 0 | CJ24: 1 | CK24: 0 | CL24: 0 | CM24: 0 | CN24: 0 | CP24: 0 | CQ24: 0 | CR24: 0 | CS24: 0 | CT24: 0 | CU24: 0 | CV24: 2 | CW24: 0 | CX24: 0 | CY24: 0 | CZ24: 0 | DA24: 0 | DB24: 0 | DC24: 1 | DD24: 0 | DE24: 0 | DF24: 0 | DG24: 0 | DH24: 10 | DI24: 17 | DJ24: 11 | DK24: 48:51 | DL24: 1 : 1
B25: SV Darmstadt 981. FC Union Berlin | C25: SV Darmstadt 98 | D25: - | E25: 1. FC Union Berlin | F25: 1 | G25: : | H25: 4 | J25: 0 | K25: : | L25: 3 | N25: -3 | P25: 3 | R25: 0 | S25: 0 | T25: 0 | U25: 0 | V25: 0 | W25: 0 | X25: 0 | Y25: -299 | Z25: 0 | AA25: 0 | AB25: 0 | AC25: 0 | AD25: 30304 | AE25: 0 | AF25: 0 | AG25: 0 | AH25: 0 | AI25: 0 | AK25: 0 | AL25: 0 | AM25: 0 | AN25: 0 | AO25: 0 | AP25: 0 | AQ25: 0 | AR25: 0 | AS25: 0 | AT25: 0 | AU25: 0 | AV25: 0 | AW25: 3 | AX25: 0 | AY25: 0 | AZ25: 0 | BA25: 0 | BB25: 0 | BD25: 0 | BE25: 0 | BF25: 0 | BG25: 0 | BH25: 0 | BI25: 0 | BJ25: 0 | BK25: -3 | BL25: 0 | BM25: 0 | BN25: 0 | BO25: 0 | BP25: 3 | BQ25: 0 | BR25: 0 | BS25: 0 | BT25: 0 | BU25: 0 | BW25: 0 | BX25: 0 | BY25: 0 | BZ25: 0 | CA25: 0 | CB25: 0 | CC25: 0 | CD25: 1 | CE25: 0 | CF25: 0 | CG25: 0 | CH25: 0 | CI25: 4 | CJ25: 0 | CK25: 0 | CL25: 0 | CM25: 0 | CN25: 0 | CP25: 0 | CQ25: 0 | CR25: 0 | CS25: 0 | CT25: 0 | CU25: 0 | CV25: 0 | CW25: 1 | CX25: 0 | CY25: 0 | CZ25: 0 | DA25: 0 | DB25: 2 | DC25: 0 | DD25: 0 | DE25: 0 | DF25: 0 | DG25: 0 | DH25: 3 | DI25: 2 | DJ25: 1 | DK25: 15:9 | DL25: 3 : 2
B26: 1. FC Heidenheim 1846TSG Hoffenheim | C26: 1. FC Heidenheim 1846 | D26: - | E26: TSG Hoffenheim | F26: 2 | G26: : | H26: 3 | J26: 0 | K26: : | L26: 3 | N26: -1 | P26: 1 | R26: 0 | S26: 0 | T26: 0 | U26: 0 | V26: 0 | W26: 0 | X26: 0 | Y26: 0 | Z26: 0 | AA26: 0 | AB26: 0 | AC26: -98 | AD26: 0 | AE26: 0 | AF26: 0 | AG26: 0 | AH26: 30103 | AI26: 0 | AK26: 0 | AL26: 0 | AM26: 0 | AN26: 0 | AO26: 0 | AP26: 0 | AQ26: 0 | AR26: 0 | AS26: 0 | AT26: 0 | AU26: 0 | AV26: 0 | AW26: 0 | AX26: 0 | AY26: 0 | AZ26: 0 | BA26: 3 | BB26: 0 | BD26: 0 | BE26: 0 | BF26: 0 | BG26: 0 | BH26: 0 | BI26: 0 | BJ26: 0 | BK26: 0 | BL26: 0 | BM26: 0 | BN26: 0 | BO26: -1 | BP26: 0 | BQ26: 0 | BR26: 0 | BS26: 0 | BT26: 1 | BU26: 0 | BW26: 0 | BX26: 0 | BY26: 0 | BZ26: 0 | CA26: 0 | CB26: 0 | CC26: 0 | CD26: 0 | CE26: 0 | CF26: 0 | CG26: 0 | CH26: 2 | CI26: 0 | CJ26: 0 | CK26: 0 | CL26: 0 | CM26: 3 | CN26: 0 | CP26: 0 | CQ26: 0 | CR26: 0 | CS26: 0 | CT26: 0 | CU26: 0 | CV26: 0 | CW26: 0 | CX26: 0 | CY26: 0 | CZ26: 0 | DA26: 1 | DB26: 0 | DC26: 0 | DD26: 0 | DE26: 0 | DF26: 2 | DG26: 0 | DH26: - | DI26: - | DJ26: - | DK26: -
B27: RB LeipzigVfB Stuttgart | C27: RB Leipzig | D27: - | E27: VfB Stuttgart | F27: 5 | G27: : | H27: 1 | J27: 3 | K27: : | L27: 0 | N27: 4 | P27: -4 | R27: 0 | S27: 0 | T27: -399 | U27: 0 | V27: 0 | W27: 0 | X27: 0 | Y27: 0 | Z27: 0 | AA27: 30405 | AB27: 0 | AC27: 0 | AD27: 0 | AE27: 0 | AF27: 0 | AG27: 0 | AH27: 0 | AI27: 0 | AK27: 0 | AL27: 0 | AM27: 0 | AN27: 0 | AO27: 0 | AP27: 0 | AQ27: 0 | AR27: 0 | AS27: 0 | AT27: 3 | AU27: 0 | AV27: 0 | AW27: 0 | AX27: 0 | AY27: 0 | AZ27: 0 | BA27: 0 | BB27: 0 | BD27: 0 | BE27: 0 | BF27: -4 | BG27: 0 | BH27: 0 | BI27: 0 | BJ27: 0 | BK27: 0 | BL27: 0 | BM27: 4 | BN27: 0 | BO27: 0 | BP27: 0 | BQ27: 0 | BR27: 0 | BS27: 0 | BT27: 0 | BU27: 0 | BW27: 0 | BX27: 0 | BY27: 1 | BZ27: 0 | CA27: 0 | CB27: 0 | CC27: 0 | CD27: 0 | CE27: 0 | CF27: 5 | CG27: 0 | CH27: 0 | CI27: 0 | CJ27: 0 | CK27: 0 | CL27: 0 | CM27: 0 | CN27: 0 | CP27: 0 | CQ27: 0 | CR27: 2 | CS27: 0 | CT27: 0 | CU27: 0 | CV27: 0 | CW27: 0 | CX27: 0 | CY27: 1 | CZ27: 0 | DA27: 0 | DB27: 0 | DC27: 0 | DD27: 0 | DE27: 0 | DF27: 0 | DG27: 0 | DH27: 8 | DI27: 2 | DJ27: 0 | DK27: 18:3 | DL27: 2 : 0
R28: =SUM(R19:R27)+R15 -> -500 | S28: =SUM(S19:S27)+S15 -> 60607 | T28: 30106 | U28: 9501 | V28: 40102 | W28: -199 | X28: 40102 | Y28: -399 | Z28: 60406 | AA28: 30307 | AB28: 60304 | AC28: -298 | AD28: 60608 | AE28: 9702 | AF28: 9805 | AG28: 9704 | AH28: 30004 | AI28: 60203 | AK28: =SUM(AK19:AK27)+AK15 -> 0 | AL28: =SUM(AL19:AL27)+AL15 -> 6 | AM28: 3 | AN28: 1 | AO28: 4 | AP28: 0 | AQ28: 4 | AR28: 0 | AS28: 6 | AT28: 3 | AU28: 6 | AV28: 0 | AW28: 6 | AX28: 1 | AY28: 1 | AZ28: 1 | BA28: 3 | BB28: 6 | BD28: =SUM(BD19:BD27)+BD15 -> -5 | BE28: 6 | BF28: 1 | BG28: -5 | BH28: 1 | BI28: -2 | BJ28: 1 | BK28: -4 | BL28: 4 | BM28: 3 | BN28: 3 | BO28: -3 | BP28: 6 | BQ28: -3 | BR28: -2 | BS28: -3 | BT28: 0 | BU28: 2 | BW28: =SUM(BW19:BW27)+BW15 -> 0 | BX28: 7 | BY28: 6 | BZ28: 1 | CA28: 2 | CB28: 1 | CC28: 2 | CD28: 1 | CE28: 6 | CF28: 7 | CG28: 4 | CH28: 2 | CI28: 8 | CJ28: 2 | CK28: 5 | CL28: 4 | CM28: 4 | CN28: 3 | CO28: x | CP28: =IF(CP29<=$CO$3,SUMIF(CP19:CP27,1,$J19:$J27)+SUMIF(CP19:CP27,2,$L19:$L27),0) -> 0 | CQ28: 0 | CR28: 0 | CS28: 0 | CT28: 0 | CU28: 0 | CV28: 0 | CW28: 0 | CX28: 0 | CY28: 0 | CZ28: 0 | DA28: 0 | DB28: 0 | DC28: 0 | DD28: 0 | DE28: 0 | DF28: 0 | DG28: 0
A29: Bundesliga-Tipp 20221/2023 | R29: =RANK(R28,$R28:$AI28,0) -> 18 | S29: 2 | T29: 9 | U29: 14 | V29: 6 | W29: 15 | X29: 6 | Y29: 17 | Z29: 3 | AA29: 8 | AB29: 4 | AC29: 16 | AD29: 1 | AE29: 13 | AF29: 11 | AG29: 12 | AH29: 10 | AI29: 5 | CP29: =IF(SUM(CP19:CP27)>0,IF(CP42=0,1,CP42+1),IF(CP42<>0,CP42,0)) -> 33 | CQ29: 33 | CR29: 33 | CS29: 33 | CT29: 33 | CU29: 33 | CV29: 33 | CW29: 33 | CX29: 33 | CY29: 33 | CZ29: 33 | DA29: 33 | DB29: 33 | DC29: 33 | DD29: 33 | DE29: 33 | DF29: 33 | DG29: 33
C30: 3. Spieltag
A31: =IF(SUM(J32:L40)>0,1,"Z") -> 1 | C31: 01.-03.09.2023
B32: =C32&E32 -> SV Werder Bremen1. FSV Mainz 05 | C32: SV Werder Bremen | D32: - | E32: 1. FSV Mainz 05 | F32: 4 | G32: : | H32: 0 | J32: =IF(F32>H32,3,IF(F32<H32,0,IF(AND(H32<>"",F32=H32),1,0))) -> 3 | K32: : | L32: =IF(F32>H32,0,IF(F32<H32,3,IF(AND(H32<>"",F32=H32),1,0))) -> 0 | N32: =F32-H32 -> 4 | P32: =H32-F32 -> -4 | R32: =(AK32*10000+BD32*100+BW32) -> 30404 | S32: =(AL32*10000+BE32*100+BX32) -> 0 | T32: =(AM32*10000+BF32*100+BY32) -> 0 | U32: =(AN32*10000+BG32*100+BZ32) -> 0 | V32: =(AO32*10000+BH32*100+CA32) -> 0 | W32: =(AP32*10000+BI32*100+CB32) -> 0 | X32: =(AQ32*10000+BJ32*100+CC32) -> 0 | Y32: =(AR32*10000+BK32*100+CD32) -> 0 | Z32: =(AS32*10000+BL32*100+CE32) -> 0 | AA32: =(AT32*10000+BM32*100+CF32) -> 0 | AB32: =(AU32*10000+BN32*100+CG32) -> 0 | AC32: =(AV32*10000+BO32*100+CH32) -> 0 | AD32: =(AW32*10000+BP32*100+CI32) -> 0 | AE32: =(AX32*10000+BQ32*100+CJ32) -> -400 | AF32: =(AY32*10000+BR32*100+CK32) -> 0 | AG32: =(AZ32*10000+BS32*100+CL32) -> 0 | AH32: =(BA32*10000+BT32*100+CM32) -> 0 | AI32: =(BB32*10000+BU32*100+CN32) -> 0 | AK32: =IF($C32=AK$1,$J32,IF($E32=AK$1,$L32,0)) -> 3 | AL32: 0 | AM32: 0 | AN32: 0 | AO32: 0 | AP32: 0 | AQ32: 0 | AR32: 0 | AS32: 0 | AT32: 0 | AU32: =IF($C32=AU$1,$J32,IF($E32=AU$1,$L32,0)) -> 0 | AV32: 0 | AW32: 0 | AX32: 0 | AY32: 0 | AZ32: 0 | BA32: 0 | BB32: 0 | BD32: =IF($C32=BD$1,$F32-$H32,IF($E32=BD$1,$H32-$F32,0)) -> 4 | BE32: 0 | BF32: 0 | BG32: 0 | BH32: 0 | BI32: 0 | BJ32: 0 | BK32: 0 | BL32: 0 | BM32: 0 | BN32: =IF($C32=BN$1,$F32-$H32,IF($E32=BN$1,$H32-$F32,0)) -> 0 | BO32: 0 | BP32: 0 | BQ32: -4 | BR32: 0 | BS32: 0 | BT32: 0 | BU32: 0 | BW32: =IF($C32=BW$1,$F32,IF($E32=BW$1,$H32,0)) -> 4 | BX32: 0 | BY32: 0 | BZ32: 0 | CA32: 0 | CB32: 0 | CC32: 0 | CD32: 0 | CE32: 0 | CF32: 0 | CG32: =IF($C32=CG$1,$F32,IF($E32=CG$1,$H32,0)) -> 0 | CH32: 0 | CI32: 0 | CJ32: 0 | CK32: 0 | CL32: 0 | CM32: 0 | CN32: 0 | CP32: =IF($C32=CP$1,IF($F32<>"",1,0),IF($E32=CP$1,IF($H32<>"",2,0),0)) -> 1 | CQ32: 0 | CR32: 0 | CS32: 0 | CT32: 0 | CU32: 0 | CV32: 0 | CW32: 0 | CX32: 0 | CY32: 0 | CZ32: =IF($C32=CZ$1,IF($F32<>"",1,0),IF($E32=CZ$1,IF($H32<>"",2,0),0)) -> 0 | DA32: 0 | DB32: 0 | DC32: 2 | DD32: 0 | DE32: 0 | DF32: 0 | DG32: 0 | DH32: 14 | DI32: 7 | DJ32: 11 | DK32: 50:45 | DL32: =IFERROR(ROUND(MID(DK32,1,SEARCH(":",DK32,1)-1)/SUM(DH32:DJ32),$DL$2)&" : "&ROUND(MID(DK32,SEARCH(":",DK32,1)+1,99)/SUM(DH32:DJ32),$DL$2),"") -> 2 : 1
B33: VfB StuttgartSport-Club Freiburg | C33: VfB Stuttgart | D33: - | E33: Sport-Club Freiburg | F33: 5 | G33: : | H33: 0 | J33: 3 | K33: : | L33: 0 | N33: =F33-H33 -> 5 | P33: =H33-F33 -> -5 | R33: 0 | S33: 0 | T33: 30505 | U33: 0 | V33: 0 | W33: 0 | X33: 0 | Y33: 0 | Z33: 0 | AA33: 0 | AB33: 0 | AC33: 0 | AD33: 0 | AE33: 0 | AF33: 0 | AG33: 0 | AH33: 0 | AI33: -500 | AK33: 0 | AL33: 0 | AM33: 3 | AN33: 0 | AO33: 0 | AP33: 0 | AQ33: 0 | AR33: 0 | AS33: 0 | AT33: 0 | AU33: 0 | AV33: 0 | AW33: 0 | AX33: 0 | AY33: 0 | AZ33: 0 | BA33: 0 | BB33: 0 | BD33: 0 | BE33: 0 | BF33: 5 | BG33: 0 | BH33: 0 | BI33: 0 | BJ33: 0 | BK33: 0 | BL33: 0 | BM33: 0 | BN33: 0 | BO33: 0 | BP33: 0 | BQ33: 0 | BR33: 0 | BS33: 0 | BT33: 0 | BU33: -5 | BW33: 0 | BX33: 0 | BY33: 5 | BZ33: 0 | CA33: 0 | CB33: 0 | CC33: 0 | CD33: 0 | CE33: 0 | CF33: 0 | CG33: 0 | CH33: 0 | CI33: 0 | CJ33: 0 | CK33: 0 | CL33: 0 | CM33: 0 | CN33: 0 | CP33: 0 | CQ33: 0 | CR33: 1 | CS33: 0 | CT33: 0 | CU33: 0 | CV33: 0 | CW33: 0 | CX33: 0 | CY33: 0 | CZ33: 0 | DA33: 0 | DB33: 0 | DC33: 0 | DD33: 0 | DE33: 0 | DF33: 0 | DG33: 2 | DH33: 21 | DI33: 5 | DJ33: 16 | DK33: 69:58 | DL33: 2 : 1
B34: Borussia MönchengladbachFC Bayern München | C34: Borussia Mönchengladbach | D34: - | E34: FC Bayern München | F34: 1 | G34: : | H34: 2 | J34: 0 | K34: : | L34: 3 | N34: -1 | P34: 1 | R34: 0 | S34: 30102 | T34: 0 | U34: 0 | V34: 0 | W34: 0 | X34: 0 | Y34: 0 | Z34: 0 | AA34: 0 | AB34: 0 | AC34: 0 | AD34: 0 | AE34: 0 | AF34: 0 | AG34: -99 | AH34: 0 | AI34: 0 | AK34: 0 | AL34: 3 | AM34: 0 | AN34: 0 | AO34: 0 | AP34: 0 | AQ34: 0 | AR34: 0 | AS34: 0 | AT34: 0 | AU34: 0 | AV34: 0 | AW34: 0 | AX34: 0 | AY34: 0 | AZ34: 0 | BA34: 0 | BB34: 0 | BD34: 0 | BE34: 1 | BF34: 0 | BG34: 0 | BH34: 0 | BI34: 0 | BJ34: 0 | BK34: 0 | BL34: 0 | BM34: 0 | BN34: 0 | BO34: 0 | BP34: 0 | BQ34: 0 | BR34: 0 | BS34: -1 | BT34: 0 | BU34: 0 | BW34: 0 | BX34: 2 | BY34: 0 | BZ34: 0 | CA34: 0 | CB34: 0 | CC34: 0 | CD34: 0 | CE34: 0 | CF34: 0 | CG34: 0 | CH34: 0 | CI34: 0 | CJ34: 0 | CK34: 0 | CL34: 1 | CM34: 0 | CN34: 0 | CP34: 0 | CQ34: 2 | CR34: 0 | CS34: 0 | CT34: 0 | CU34: 0 | CV34: 0 | CW34: 0 | CX34: 0 | CY34: 0 | CZ34: 0 | DA34: 0 | DB34: 0 | DC34: 0 | DD34: 0 | DE34: 1 | DF34: 0 | DG34: 0 | DH34: 28 | DI34: 31 | DJ34: 51 | DK34: 141:211 | DL34: 1 : 2
B35: Borussia Dortmund1. FC Heidenheim 1846 | C35: Borussia Dortmund | D35: - | E35: 1. FC Heidenheim 1846 | F35: 2 | G35: : | H35: 2 | J35: 1 | K35: : | L35: 1 | N35: 0 | P35: 0 | R35: 0 | S35: 0 | T35: 0 | U35: 0 | V35: 10002 | W35: 0 | X35: 0 | Y35: 0 | Z35: 0 | AA35: 0 | AB35: 0 | AC35: 10002 | AD35: 0 | AE35: 0 | AF35: 0 | AG35: 0 | AH35: 0 | AI35: 0 | AK35: 0 | AL35: 0 | AM35: 0 | AN35: 0 | AO35: 1 | AP35: 0 | AQ35: 0 | AR35: 0 | AS35: 0 | AT35: 0 | AU35: 0 | AV35: 1 | AW35: 0 | AX35: 0 | AY35: 0 | AZ35: 0 | BA35: 0 | BB35: 0 | BD35: 0 | BE35: 0 | BF35: 0 | BG35: 0 | BH35: 0 | BI35: 0 | BJ35: 0 | BK35: 0 | BL35: 0 | BM35: 0 | BN35: 0 | BO35: 0 | BP35: 0 | BQ35: 0 | BR35: 0 | BS35: 0 | BT35: 0 | BU35: 0 | BW35: 0 | BX35: 0 | BY35: 0 | BZ35: 0 | CA35: 2 | CB35: 0 | CC35: 0 | CD35: 0 | CE35: 0 | CF35: 0 | CG35: 0 | CH35: 2 | CI35: 0 | CJ35: 0 | CK35: 0 | CL35: 0 | CM35: 0 | CN35: 0 | CP35: 0 | CQ35: 0 | CR35: 0 | CS35: 0 | CT35: 1 | CU35: 0 | CV35: 0 | CW35: 0 | CX35: 0 | CY35: 0 | CZ35: 0 | DA35: 2 | DB35: 0 | DC35: 0 | DD35: 0 | DE35: 0 | DF35: 0 | DG35: 0 | DH35: - | DI35: - | DJ35: - | DK35: -
B36: Eintracht Frankfurt1. FC Köln | C36: Eintracht Frankfurt | D36: - | E36: 1. FC Köln | F36: 1 | G36: : | H36: 1 | J36: 1 | K36: : | L36: 1 | N36: 0 | P36: 0 | R36: 0 | S36: 0 | T36: 0 | U36: 0 | V36: 0 | W36: 10001 | X36: 10001 | Y36: 0 | Z36: 0 | AA36: 0 | AB36: 0 | AC36: 0 | AD36: 0 | AE36: 0 | AF36: 0 | AG36: 0 | AH36: 0 | AI36: 0 | AK36: 0 | AL36: 0 | AM36: 0 | AN36: 0 | AO36: 0 | AP36: 1 | AQ36: 1 | AR36: 0 | AS36: 0 | AT36: 0 | AU36: 0 | AV36: 0 | AW36: 0 | AX36: 0 | AY36: 0 | AZ36: 0 | BA36: 0 | BB36: 0 | BD36: 0 | BE36: 0 | BF36: 0 | BG36: 0 | BH36: 0 | BI36: 0 | BJ36: 0 | BK36: 0 | BL36: 0 | BM36: 0 | BN36: 0 | BO36: 0 | BP36: 0 | BQ36: 0 | BR36: 0 | BS36: 0 | BT36: 0 | BU36: 0 | BW36: 0 | BX36: 0 | BY36: 0 | BZ36: 0 | CA36: 0 | CB36: 1 | CC36: 1 | CD36: 0 | CE36: 0 | CF36: 0 | CG36: 0 | CH36: 0 | CI36: 0 | CJ36: 0 | CK36: 0 | CL36: 0 | CM36: 0 | CN36: 0 | CP36: 0 | CQ36: 0 | CR36: 0 | CS36: 0 | CT36: 0 | CU36: 2 | CV36: 1 | CW36: 0 | CX36: 0 | CY36: 0 | CZ36: 0 | DA36: 0 | DB36: 0 | DC36: 0 | DD36: 0 | DE36: 0 | DF36: 0 | DG36: 0 | DH36: 32 | DI36: 30 | DJ36: 36 | DK36: 145:161 | DL36: 1 : 2
B37: Bayer 04 LeverkusenSV Darmstadt 98 | C37: Bayer 04 Leverkusen | D37: - | E37: SV Darmstadt 98 | F37: 5 | G37: : | H37: 1 | J37: 3 | K37: : | L37: 0 | N37: 4 | P37: -4 | R37: 0 | S37: 0 | T37: 0 | U37: 0 | V37: 0 | W37: 0 | X37: 0 | Y37: -399 | Z37: 30405 | AA37: 0 | AB37: 0 | AC37: 0 | AD37: 0 | AE37: 0 | AF37: 0 | AG37: 0 | AH37: 0 | AI37: 0 | AK37: 0 | AL37: 0 | AM37: 0 | AN37: 0 | AO37: 0 | AP37: 0 | AQ37: 0 | AR37: 0 | AS37: 3 | AT37: 0 | AU37: 0 | AV37: 0 | AW37: 0 | AX37: 0 | AY37: 0 | AZ37: 0 | BA37: 0 | BB37: 0 | BD37: 0 | BE37: 0 | BF37: 0 | BG37: 0 | BH37: 0 | BI37: 0 | BJ37: 0 | BK37: -4 | BL37: 4 | BM37: 0 | BN37: 0 | BO37: 0 | BP37: 0 | BQ37: 0 | BR37: 0 | BS37: 0 | BT37: 0 | BU37: 0 | BW37: 0 | BX37: 0 | BY37: 0 | BZ37: 0 | CA37: 0 | CB37: 0 | CC37: 0 | CD37: 1 | CE37: 5 | CF37: 0 | CG37: 0 | CH37: 0 | CI37: 0 | CJ37: 0 | CK37: 0 | CL37: 0 | CM37: 0 | CN37: 0 | CP37: 0 | CQ37: 0 | CR37: 0 | CS37: 0 | CT37: 0 | CU37: 0 | CV37: 0 | CW37: 2 | CX37: 1 | CY37: 0 | CZ37: 0 | DA37: 0 | DB37: 0 | DC37: 0 | DD37: 0 | DE37: 0 | DF37: 0 | DG37: 0 | DH37: 5 | DI37: 0 | DJ37: 1 | DK37: 13:7 | DL37: 2 : 1
B38: 1. FC Union BerlinRB Leipzig | C38: 1. FC Union Berlin | D38: - | E38: RB Leipzig | F38: 0 | G38: : | H38: 3 | J38: 0 | K38: : | L38: 3 | N38: -3 | P38: 3 | R38: 0 | S38: 0 | T38: 0 | U38: 0 | V38: 0 | W38: 0 | X38: 0 | Y38: 0 | Z38: 0 | AA38: 30303 | AB38: 0 | AC38: 0 | AD38: -300 | AE38: 0 | AF38: 0 | AG38: 0 | AH38: 0 | AI38: 0 | AK38: 0 | AL38: 0 | AM38: 0 | AN38: 0 | AO38: 0 | AP38: 0 | AQ38: 0 | AR38: 0 | AS38: 0 | AT38: 3 | AU38: 0 | AV38: 0 | AW38: 0 | AX38: 0 | AY38: 0 | AZ38: 0 | BA38: 0 | BB38: 0 | BD38: 0 | BE38: 0 | BF38: 0 | BG38: 0 | BH38: 0 | BI38: 0 | BJ38: 0 | BK38: 0 | BL38: 0 | BM38: 3 | BN38: 0 | BO38: 0 | BP38: -3 | BQ38: 0 | BR38: 0 | BS38: 0 | BT38: 0 | BU38: 0 | BW38: 0 | BX38: 0 | BY38: 0 | BZ38: 0 | CA38: 0 | CB38: 0 | CC38: 0 | CD38: 0 | CE38: 0 | CF38: 3 | CG38: 0 | CH38: 0 | CI38: 0 | CJ38: 0 | CK38: 0 | CL38: 0 | CM38: 0 | CN38: 0 | CP38: 0 | CQ38: 0 | CR38: 0 | CS38: 0 | CT38: 0 | CU38: 0 | CV38: 0 | CW38: 0 | CX38: 0 | CY38: 2 | CZ38: 0 | DA38: 0 | DB38: 1 | DC38: 0 | DD38: 0 | DE38: 0 | DF38: 0 | DG38: 0 | DH38: 6 | DI38: 1 | DJ38: 5 | DK38: 16:21 | DL38: 1 : 2
B39: FC AugsburgVfL Bochum 1848 | C39: FC Augsburg | D39: - | E39: VfL Bochum 1848 | F39: 2 | G39: : | H39: 2 | J39: 1 | K39: : | L39: 1 | N39: 0 | P39: 0 | R39: 0 | S39: 0 | T39: 0 | U39: 10002 | V39: 0 | W39: 0 | X39: 0 | Y39: 0 | Z39: 0 | AA39: 0 | AB39: 0 | AC39: 0 | AD39: 0 | AE39: 0 | AF39: 10002 | AG39: 0 | AH39: 0 | AI39: 0 | AK39: 0 | AL39: 0 | AM39: 0 | AN39: 1 | AO39: 0 | AP39: 0 | AQ39: 0 | AR39: 0 | AS39: 0 | AT39: 0 | AU39: 0 | AV39: 0 | AW39: 0 | AX39: 0 | AY39: 1 | AZ39: 0 | BA39: 0 | BB39: 0 | BD39: 0 | BE39: 0 | BF39: 0 | BG39: 0 | BH39: 0 | BI39: 0 | BJ39: 0 | BK39: 0 | BL39: 0 | BM39: 0 | BN39: 0 | BO39: 0 | BP39: 0 | BQ39: 0 | BR39: 0 | BS39: 0 | BT39: 0 | BU39: 0 | BW39: 0 | BX39: 0 | BY39: 0 | BZ39: 2 | CA39: 0 | CB39: 0 | CC39: 0 | CD39: 0 | CE39: 0 | CF39: 0 | CG39: 0 | CH39: 0 | CI39: 0 | CJ39: 0 | CK39: 2 | CL39: 0 | CM39: 0 | CN39: 0 | CP39: 0 | CQ39: 0 | CR39: 0 | CS39: 2 | CT39: 0 | CU39: 0 | CV39: 0 | CW39: 0 | CX39: 0 | CY39: 0 | CZ39: 0 | DA39: 0 | DB39: 0 | DC39: 0 | DD39: 1 | DE39: 0 | DF39: 0 | DG39: 0 | DH39: 2 | DI39: 0 | DJ39: 4 | DK39: 8:8 | DL39: 1 : 1
B40: TSG HoffenheimVfL Wolfsburg | C40: TSG Hoffenheim | D40: - | E40: VfL Wolfsburg | F40: 3 | G40: : | H40: 1 | J40: 3 | K40: : | L40: 0 | N40: 2 | P40: -2 | R40: 0 | S40: 0 | T40: 0 | U40: 0 | V40: 0 | W40: 0 | X40: 0 | Y40: 0 | Z40: 0 | AA40: 0 | AB40: -199 | AC40: 0 | AD40: 0 | AE40: 0 | AF40: 0 | AG40: 0 | AH40: 30203 | AI40: 0 | AK40: 0 | AL40: 0 | AM40: 0 | AN40: 0 | AO40: 0 | AP40: 0 | AQ40: 0 | AR40: 0 | AS40: 0 | AT40: 0 | AU40: 0 | AV40: 0 | AW40: 0 | AX40: 0 | AY40: 0 | AZ40: 0 | BA40: 3 | BB40: 0 | BD40: 0 | BE40: 0 | BF40: 0 | BG40: 0 | BH40: 0 | BI40: 0 | BJ40: 0 | BK40: 0 | BL40: 0 | BM40: 0 | BN40: -2 | BO40: 0 | BP40: 0 | BQ40: 0 | BR40: 0 | BS40: 0 | BT40: 2 | BU40: 0 | BW40: 0 | BX40: 0 | BY40: 0 | BZ40: 0 | CA40: 0 | CB40: 0 | CC40: 0 | CD40: 0 | CE40: 0 | CF40: 0 | CG40: 1 | CH40: 0 | CI40: 0 | CJ40: 0 | CK40: 0 | CL40: 0 | CM40: 3 | CN40: 0 | CP40: 0 | CQ40: 0 | CR40: 0 | CS40: 0 | CT40: 0 | CU40: 0 | CV40: 0 | CW40: 0 | CX40: 0 | CY40: 0 | CZ40: 2 | DA40: 0 | DB40: 0 | DC40: 0 | DD40: 0 | DE40: 0 | DF40: 1 | DG40: 0 | DH40: 9 | DI40: 7 | DJ40: 14 | DK40: 47:58 | DL40: 2 : 2
R41: =SUM(R32:R40)+R28 -> 29904 | S41: 90709 | T41: 60611 | U41: 19503 | V41: 50104 | W41: 9802 | X41: 50103 | Y41: -798 | Z41: 90811 | AA41: 60610 | AB41: 60105 | AC41: 9704 | AD41: 60308 | AE41: 9302 | AF41: 19807 | AG41: 9605 | AH41: 60207 | AI41: 59703 | AK41: =SUM(AK32:AK40)+AK28 -> 3 | AL41: 9 | AM41: 6 | AN41: 2 | AO41: 5 | AP41: 1 | AQ41: 5 | AR41: 0 | AS41: 9 | AT41: 6 | AU41: 6 | AV41: 1 | AW41: 6 | AX41: 1 | AY41: 2 | AZ41: 1 | BA41: 6 | BB41: 6 | BD41: =SUM(BD32:BD40)+BD28 -> -1 | BE41: 7 | BF41: 6 | BG41: -5 | BH41: 1 | BI41: -2 | BJ41: 1 | BK41: -8 | BL41: 8 | BM41: 6 | BN41: 1 | BO41: -3 | BP41: 3 | BQ41: -7 | BR41: -2 | BS41: -4 | BT41: 2 | BU41: -3 | BW41: =SUM(BW32:BW40)+BW28 -> 4 | BX41: 9 | BY41: 11 | BZ41: 3 | CA41: 4 | CB41: 2 | CC41: 3 | CD41: 2 | CE41: 11 | CF41: 10 | CG41: 5 | CH41: 4 | CI41: 8 | CJ41: 2 | CK41: 7 | CL41: 5 | CM41: 7 | CN41: 3 | CO41: x | CP41: =IF(CP42<=$CO$3,SUMIF(CP32:CP40,1,$J32:$J40)+SUMIF(CP32:CP40,2,$L32:$L40),0) -> 0 | CQ41: 0 | CR41: 0 | CS41: 0 | CT41: 0 | CU41: 0 | CV41: 0 | CW41: 0 | CX41: 0 | CY41: 0 | CZ41: 0 | DA41: 0 | DB41: 0 | DC41: 0 | DD41: 0 | DE41: 0 | DF41: 0 | DG41: 0
R42: =RANK(R41,$R41:$AI41,0) -> 11 | S42: 2 | T42: 3 | U42: 13 | V42: 9 | W42: 14 | X42: 10 | Y42: 18 | Z42: 1 | AA42: 4 | AB42: 7 | AC42: 15 | AD42: 5 | AE42: 17 | AF42: 12 | AG42: 16 | AH42: 6 | AI42: 8 | CP42: =IF(SUM(CP32:CP40)>0,IF(CP55=0,1,CP55+1),IF(CP55<>0,CP55,0)) -> 32 | CQ42: 32 | CR42: 32 | CS42: 32 | CT42: 32 | CU42: 32 | CV42: 32 | CW42: 32 | CX42: 32 | CY42: 32 | CZ42: 32 | DA42: 32 | DB42: 32 | DC42: 32 | DD42: 32 | DE42: 32 | DF42: 32 | DG42: 32
C43: 4. Spieltag
A44: =IF(SUM(J45:L53)>0,1,"Z") -> 1 | C44: 15.-17.09.2023
B45: =C45&E45 -> FC Bayern MünchenBayer 04 Leverkusen | C45: FC Bayern München | D45: - | E45: Bayer 04 Leverkusen | F45: 2 | G45: : | H45: 2 | J45: =IF(F45>H45,3,IF(F45<H45,0,IF(AND(H45<>"",F45=H45),1,0))) -> 1 | K45: : | L45: =IF(F45>H45,0,IF(F45<H45,3,IF(AND(H45<>"",F45=H45),1,0))) -> 1 | N45: =F45-H45 -> 0 | P45: =H45-F45 -> 0 | R45: =(AK45*10000+BD45*100+BW45) -> 0 | S45: =(AL45*10000+BE45*100+BX45) -> 10002 | T45: =(AM45*10000+BF45*100+BY45) -> 0 | U45: =(AN45*10000+BG45*100+BZ45) -> 0 | V45: =(AO45*10000+BH45*100+CA45) -> 0 | W45: =(AP45*10000+BI45*100+CB45) -> 0 | X45: =(AQ45*10000+BJ45*100+CC45) -> 0 | Y45: =(AR45*10000+BK45*100+CD45) -> 0 | Z45: =(AS45*10000+BL45*100+CE45) -> 10002 | AA45: =(AT45*10000+BM45*100+CF45) -> 0 | AB45: =(AU45*10000+BN45*100+CG45) -> 0 | AC45: =(AV45*10000+BO45*100+CH45) -> 0 | AD45: =(AW45*10000+BP45*100+CI45) -> 0 | AE45: =(AX45*10000+BQ45*100+CJ45) -> 0 | AF45: =(AY45*10000+BR45*100+CK45) -> 0 | AG45: =(AZ45*10000+BS45*100+CL45) -> 0 | AH45: =(BA45*10000+BT45*100+CM45) -> 0 | AI45: =(BB45*10000+BU45*100+CN45) -> 0 | AK45: =IF($C45=AK$1,$J45,IF($E45=AK$1,$L45,0)) -> 0 | AL45: 1 | AM45: 0 | AN45: 0 | AO45: 0 | AP45: 0 | AQ45: 0 | AR45: 0 | AS45: 1 | AT45: 0 | AU45: =IF($C45=AU$1,$J45,IF($E45=AU$1,$L45,0)) -> 0 | AV45: 0 | AW45: 0 | AX45: 0 | AY45: 0 | AZ45: 0 | BA45: 0 | BB45: 0 | BD45: =IF($C45=BD$1,$F45-$H45,IF($E45=BD$1,$H45-$F45,0)) -> 0 | BE45: 0 | BF45: 0 | BG45: 0 | BH45: 0 | BI45: 0 | BJ45: 0 | BK45: 0 | BL45: 0 | BM45: 0 | BN45: =IF($C45=BN$1,$F45-$H45,IF($E45=BN$1,$H45-$F45,0)) -> 0 | BO45: 0 | BP45: 0 | BQ45: 0 | BR45: 0 | BS45: 0 | BT45: 0 | BU45: 0 | BW45: =IF($C45=BW$1,$F45,IF($E45=BW$1,$H45,0)) -> 0 | BX45: 2 | BY45: 0 | BZ45: 0 | CA45: 0 | CB45: 0 | CC45: 0 | CD45: 0 | CE45: 2 | CF45: 0 | CG45: =IF($C45=CG$1,$F45,IF($E45=CG$1,$H45,0)) -> 0 | CH45: 0 | CI45: 0 | CJ45: 0 | CK45: 0 | CL45: 0 | CM45: 0 | CN45: 0 | CP45: =IF($C45=CP$1,IF($F45<>"",1,0),IF($E45=CP$1,IF($H45<>"",2,0),0)) -> 0 | CQ45: 1 | CR45: 0 | CS45: 0 | CT45: 0 | CU45: 0 | CV45: 0 | CW45: 0 | CX45: 2 | CY45: 0 | CZ45: =IF($C45=CZ$1,IF($F45<>"",1,0),IF($E45=CZ$1,IF($H45<>"",2,0),0)) -> 0 | DA45: 0 | DB45: 0 | DC45: 0 | DD45: 0 | DE45: 0 | DF45: 0 | DG45: 0 | DH45: 52 | DI45: 17 | DJ45: 19 | DK45: 171:103 | DL45: =IFERROR(ROUND(MID(DK45,1,SEARCH(":",DK45,1)-1)/SUM(DH45:DJ45),$DL$2)&" : "&ROUND(MID(DK45,SEARCH(":",DK45,1)+1,99)/SUM(DH45:DJ45),$DL$2),"") -> 2 : 1
B46: 1. FC KölnTSG Hoffenheim | C46: 1. FC Köln | D46: - | E46: TSG Hoffenheim | F46: 1 | G46: : | H46: 3 | J46: 0 | K46: : | L46: 3 | N46: =F46-H46 -> -2 | P46: =H46-F46 -> 2 | R46: 0 | S46: 0 | T46: 0 | U46: 0 | V46: 0 | W46: -199 | X46: 0 | Y46: 0 | Z46: 0 | AA46: 0 | AB46: 0 | AC46: 0 | AD46: 0 | AE46: 0 | AF46: 0 | AG46: 0 | AH46: 30203 | AI46: 0 | AK46: 0 | AL46: 0 | AM46: 0 | AN46: 0 | AO46: 0 | AP46: 0 | AQ46: 0 | AR46: 0 | AS46: 0 | AT46: 0 | AU46: 0 | AV46: 0 | AW46: 0 | AX46: 0 | AY46: 0 | AZ46: 0 | BA46: 3 | BB46: 0 | BD46: 0 | BE46: 0 | BF46: 0 | BG46: 0 | BH46: 0 | BI46: -2 | BJ46: 0 | BK46: 0 | BL46: 0 | BM46: 0 | BN46: 0 | BO46: 0 | BP46: 0 | BQ46: 0 | BR46: 0 | BS46: 0 | BT46: 2 | BU46: 0 | BW46: 0 | BX46: 0 | BY46: 0 | BZ46: 0 | CA46: 0 | CB46: 1 | CC46: 0 | CD46: 0 | CE46: 0 | CF46: 0 | CG46: 0 | CH46: 0 | CI46: 0 | CJ46: 0 | CK46: 0 | CL46: 0 | CM46: 3 | CN46: 0 | CP46: 0 | CQ46: 0 | CR46: 0 | CS46: 0 | CT46: 0 | CU46: 1 | CV46: 0 | CW46: 0 | CX46: 0 | CY46: 0 | CZ46: 0 | DA46: 0 | DB46: 0 | DC46: 0 | DD46: 0 | DE46: 0 | DF46: 2 | DG46: 0 | DH46: 7 | DI46: 7 | DJ46: 12 | DK46: 30:52 | DL46: 1 : 2
B47: VfL Bochum 1848Eintracht Frankfurt | C47: VfL Bochum 1848 | D47: - | E47: Eintracht Frankfurt | F47: 1 | G47: : | H47: 1 | J47: 1 | K47: : | L47: 1 | N47: 0 | P47: 0 | R47: 0 | S47: 0 | T47: 0 | U47: 10001 | V47: 0 | W47: 0 | X47: 10001 | Y47: 0 | Z47: 0 | AA47: 0 | AB47: 0 | AC47: 0 | AD47: 0 | AE47: 0 | AF47: 0 | AG47: 0 | AH47: 0 | AI47: 0 | AK47: 0 | AL47: 0 | AM47: 0 | AN47: 1 | AO47: 0 | AP47: 0 | AQ47: 1 | AR47: 0 | AS47: 0 | AT47: 0 | AU47: 0 | AV47: 0 | AW47: 0 | AX47: 0 | AY47: 0 | AZ47: 0 | BA47: 0 | BB47: 0 | BD47: 0 | BE47: 0 | BF47: 0 | BG47: 0 | BH47: 0 | BI47: 0 | BJ47: 0 | BK47: 0 | BL47: 0 | BM47: 0 | BN47: 0 | BO47: 0 | BP47: 0 | BQ47: 0 | BR47: 0 | BS47: 0 | BT47: 0 | BU47: 0 | BW47: 0 | BX47: 0 | BY47: 0 | BZ47: 1 | CA47: 0 | CB47: 0 | CC47: 1 | CD47: 0 | CE47: 0 | CF47: 0 | CG47: 0 | CH47: 0 | CI47: 0 | CJ47: 0 | CK47: 0 | CL47: 0 | CM47: 0 | CN47: 0 | CP47: 0 | CQ47: 0 | CR47: 0 | CS47: 1 | CT47: 0 | CU47: 0 | CV47: 2 | CW47: 0 | CX47: 0 | CY47: 0 | CZ47: 0 | DA47: 0 | DB47: 0 | DC47: 0 | DD47: 0 | DE47: 0 | DF47: 0 | DG47: 0 | DH47: 26 | DI47: 16 | DJ47: 26 | DK47: 92:101 | DL47: 1 : 1
B48: Sport-Club FreiburgBorussia Dortmund | C48: Sport-Club Freiburg | D48: - | E48: Borussia Dortmund | F48: 2 | G48: : | H48: 4 | J48: 0 | K48: : | L48: 3 | N48: -2 | P48: 2 | R48: 0 | S48: 0 | T48: 0 | U48: 0 | V48: 30204 | W48: 0 | X48: 0 | Y48: 0 | Z48: 0 | AA48: 0 | AB48: 0 | AC48: 0 | AD48: 0 | AE48: 0 | AF48: 0 | AG48: 0 | AH48: 0 | AI48: -198 | AK48: 0 | AL48: 0 | AM48: 0 | AN48: 0 | AO48: 3 | AP48: 0 | AQ48: 0 | AR48: 0 | AS48: 0 | AT48: 0 | AU48: 0 | AV48: 0 | AW48: 0 | AX48: 0 | AY48: 0 | AZ48: 0 | BA48: 0 | BB48: 0 | BD48: 0 | BE48: 0 | BF48: 0 | BG48: 0 | BH48: 2 | BI48: 0 | BJ48: 0 | BK48: 0 | BL48: 0 | BM48: 0 | BN48: 0 | BO48: 0 | BP48: 0 | BQ48: 0 | BR48: 0 | BS48: 0 | BT48: 0 | BU48: -2 | BW48: 0 | BX48: 0 | BY48: 0 | BZ48: 0 | CA48: 4 | CB48: 0 | CC48: 0 | CD48: 0 | CE48: 0 | CF48: 0 | CG48: 0 | CH48: 0 | CI48: 0 | CJ48: 0 | CK48: 0 | CL48: 0 | CM48: 0 | CN48: 2 | CP48: 0 | CQ48: 0 | CR48: 0 | CS48: 0 | CT48: 2 | CU48: 0 | CV48: 0 | CW48: 0 | CX48: 0 | CY48: 0 | CZ48: 0 | DA48: 0 | DB48: 0 | DC48: 0 | DD48: 0 | DE48: 0 | DF48: 0 | DG48: 1 | DH48: 5 | DI48: 11 | DJ48: 30 | DK48: 45:106 | DL48: 1 : 2
B49: VfL Wolfsburg1. FC Union Berlin | C49: VfL Wolfsburg | D49: - | E49: 1. FC Union Berlin | F49: 2 | G49: : | H49: 1 | J49: 3 | K49: : | L49: 0 | N49: 1 | P49: -1 | R49: 0 | S49: 0 | T49: 0 | U49: 0 | V49: 0 | W49: 0 | X49: 0 | Y49: 0 | Z49: 0 | AA49: 0 | AB49: 30102 | AC49: 0 | AD49: -99 | AE49: 0 | AF49: 0 | AG49: 0 | AH49: 0 | AI49: 0 | AK49: 0 | AL49: 0 | AM49: 0 | AN49: 0 | AO49: 0 | AP49: 0 | AQ49: 0 | AR49: 0 | AS49: 0 | AT49: 0 | AU49: 3 | AV49: 0 | AW49: 0 | AX49: 0 | AY49: 0 | AZ49: 0 | BA49: 0 | BB49: 0 | BD49: 0 | BE49: 0 | BF49: 0 | BG49: 0 | BH49: 0 | BI49: 0 | BJ49: 0 | BK49: 0 | BL49: 0 | BM49: 0 | BN49: 1 | BO49: 0 | BP49: -1 | BQ49: 0 | BR49: 0 | BS49: 0 | BT49: 0 | BU49: 0 | BW49: 0 | BX49: 0 | BY49: 0 | BZ49: 0 | CA49: 0 | CB49: 0 | CC49: 0 | CD49: 0 | CE49: 0 | CF49: 0 | CG49: 2 | CH49: 0 | CI49: 1 | CJ49: 0 | CK49: 0 | CL49: 0 | CM49: 0 | CN49: 0 | CP49: 0 | CQ49: 0 | CR49: 0 | CS49: 0 | CT49: 0 | CU49: 0 | CV49: 0 | CW49: 0 | CX49: 0 | CY49: 0 | CZ49: 1 | DA49: 0 | DB49: 2 | DC49: 0 | DD49: 0 | DE49: 0 | DF49: 0 | DG49: 0 | DH49: 3 | DI49: 3 | DJ49: 2 | DK49: 10:9 | DL49: 1 : 1
B50: 1. FSV Mainz 05VfB Stuttgart | C50: 1. FSV Mainz 05 | D50: - | E50: VfB Stuttgart | F50: 1 | G50: : | H50: 3 | J50: 0 | K50: : | L50: 3 | N50: -2 | P50: 2 | R50: 0 | S50: 0 | T50: 30203 | U50: 0 | V50: 0 | W50: 0 | X50: 0 | Y50: 0 | Z50: 0 | AA50: 0 | AB50: 0 | AC50: 0 | AD50: 0 | AE50: -199 | AF50: 0 | AG50: 0 | AH50: 0 | AI50: 0 | AK50: 0 | AL50: 0 | AM50: 3 | AN50: 0 | AO50: 0 | AP50: 0 | AQ50: 0 | AR50: 0 | AS50: 0 | AT50: 0 | AU50: 0 | AV50: 0 | AW50: 0 | AX50: 0 | AY50: 0 | AZ50: 0 | BA50: 0 | BB50: 0 | BD50: 0 | BE50: 0 | BF50: 2 | BG50: 0 | BH50: 0 | BI50: 0 | BJ50: 0 | BK50: 0 | BL50: 0 | BM50: 0 | BN50: 0 | BO50: 0 | BP50: 0 | BQ50: -2 | BR50: 0 | BS50: 0 | BT50: 0 | BU50: 0 | BW50: 0 | BX50: 0 | BY50: 3 | BZ50: 0 | CA50: 0 | CB50: 0 | CC50: 0 | CD50: 0 | CE50: 0 | CF50: 0 | CG50: 0 | CH50: 0 | CI50: 0 | CJ50: 1 | CK50: 0 | CL50: 0 | CM50: 0 | CN50: 0 | CP50: 0 | CQ50: 0 | CR50: 2 | CS50: 0 | CT50: 0 | CU50: 0 | CV50: 0 | CW50: 0 | CX50: 0 | CY50: 0 | CZ50: 0 | DA50: 0 | DB50: 0 | DC50: 1 | DD50: 0 | DE50: 0 | DF50: 0 | DG50: 0 | DH50: 11 | DI50: 8 | DJ50: 13 | DK50: 46:52 | DL50: 1 : 2
B51: SV Darmstadt 98Borussia Mönchengladbach | C51: SV Darmstadt 98 | D51: - | E51: Borussia Mönchengladbach | F51: 3 | G51: : | H51: 3 | J51: 1 | K51: : | L51: 1 | N51: 0 | P51: 0 | R51: 0 | S51: 0 | T51: 0 | U51: 0 | V51: 0 | W51: 0 | X51: 0 | Y51: 10003 | Z51: 0 | AA51: 0 | AB51: 0 | AC51: 0 | AD51: 0 | AE51: 0 | AF51: 0 | AG51: 10003 | AH51: 0 | AI51: 0 | AK51: 0 | AL51: 0 | AM51: 0 | AN51: 0 | AO51: 0 | AP51: 0 | AQ51: 0 | AR51: 1 | AS51: 0 | AT51: 0 | AU51: 0 | AV51: 0 | AW51: 0 | AX51: 0 | AY51: 0 | AZ51: 1 | BA51: 0 | BB51: 0 | BD51: 0 | BE51: 0 | BF51: 0 | BG51: 0 | BH51: 0 | BI51: 0 | BJ51: 0 | BK51: 0 | BL51: 0 | BM51: 0 | BN51: 0 | BO51: 0 | BP51: 0 | BQ51: 0 | BR51: 0 | BS51: 0 | BT51: 0 | BU51: 0 | BW51: 0 | BX51: 0 | BY51: 0 | BZ51: 0 | CA51: 0 | CB51: 0 | CC51: 0 | CD51: 3 | CE51: 0 | CF51: 0 | CG51: 0 | CH51: 0 | CI51: 0 | CJ51: 0 | CK51: 0 | CL51: 3 | CM51: 0 | CN51: 0 | CP51: 0 | CQ51: 0 | CR51: 0 | CS51: 0 | CT51: 0 | CU51: 0 | CV51: 0 | CW51: 1 | CX51: 0 | CY51: 0 | CZ51: 0 | DA51: 0 | DB51: 0 | DC51: 0 | DD51: 0 | DE51: 2 | DF51: 0 | DG51: 0 | DH51: 1 | DI51: 3 | DJ51: 4 | DK51: 9:17 | DL51: 1 : 2
B52: 1. FC Heidenheim 1846SV Werder Bremen | C52: 1. FC Heidenheim 1846 | D52: - | E52: SV Werder Bremen | F52: 4 | G52: : | H52: 2 | J52: 3 | K52: : | L52: 0 | N52: 2 | P52: -2 | R52: -198 | S52: 0 | T52: 0 | U52: 0 | V52: 0 | W52: 0 | X52: 0 | Y52: 0 | Z52: 0 | AA52: 0 | AB52: 0 | AC52: 30204 | AD52: 0 | AE52: 0 | AF52: 0 | AG52: 0 | AH52: 0 | AI52: 0 | AK52: 0 | AL52: 0 | AM52: 0 | AN52: 0 | AO52: 0 | AP52: 0 | AQ52: 0 | AR52: 0 | AS52: 0 | AT52: 0 | AU52: 0 | AV52: 3 | AW52: 0 | AX52: 0 | AY52: 0 | AZ52: 0 | BA52: 0 | BB52: 0 | BD52: -2 | BE52: 0 | BF52: 0 | BG52: 0 | BH52: 0 | BI52: 0 | BJ52: 0 | BK52: 0 | BL52: 0 | BM52: 0 | BN52: 0 | BO52: 2 | BP52: 0 | BQ52: 0 | BR52: 0 | BS52: 0 | BT52: 0 | BU52: 0 | BW52: 2 | BX52: 0 | BY52: 0 | BZ52: 0 | CA52: 0 | CB52: 0 | CC52: 0 | CD52: 0 | CE52: 0 | CF52: 0 | CG52: 0 | CH52: 4 | CI52: 0 | CJ52: 0 | CK52: 0 | CL52: 0 | CM52: 0 | CN52: 0 | CP52: 2 | CQ52: 0 | CR52: 0 | CS52: 0 | CT52: 0 | CU52: 0 | CV52: 0 | CW52: 0 | CX52: 0 | CY52: 0 | CZ52: 0 | DA52: 1 | DB52: 0 | DC52: 0 | DD52: 0 | DE52: 0 | DF52: 0 | DG52: 0 | DH52: 1 | DI52: 0 | DJ52: 1 | DK52: 2:4 | DL52: 1 : 2
B53: RB LeipzigFC Augsburg | C53: RB Leipzig | D53: - | E53: FC Augsburg | F53: 3 | G53: : | H53: 0 | J53: 3 | K53: : | L53: 0 | N53: 3 | P53: -3 | R53: 0 | S53: 0 | T53: 0 | U53: 0 | V53: 0 | W53: 0 | X53: 0 | Y53: 0 | Z53: 0 | AA53: 30303 | AB53: 0 | AC53: 0 | AD53: 0 | AE53: 0 | AF53: -300 | AG53: 0 | AH53: 0 | AI53: 0 | AK53: 0 | AL53: 0 | AM53: 0 | AN53: 0 | AO53: 0 | AP53: 0 | AQ53: 0 | AR53: 0 | AS53: 0 | AT53: 3 | AU53: 0 | AV53: 0 | AW53: 0 | AX53: 0 | AY53: 0 | AZ53: 0 | BA53: 0 | BB53: 0 | BD53: 0 | BE53: 0 | BF53: 0 | BG53: 0 | BH53: 0 | BI53: 0 | BJ53: 0 | BK53: 0 | BL53: 0 | BM53: 3 | BN53: 0 | BO53: 0 | BP53: 0 | BQ53: 0 | BR53: -3 | BS53: 0 | BT53: 0 | BU53: 0 | BW53: 0 | BX53: 0 | BY53: 0 | BZ53: 0 | CA53: 0 | CB53: 0 | CC53: 0 | CD53: 0 | CE53: 0 | CF53: 3 | CG53: 0 | CH53: 0 | CI53: 0 | CJ53: 0 | CK53: 0 | CL53: 0 | CM53: 0 | CN53: 0 | CP53: 0 | CQ53: 0 | CR53: 0 | CS53: 0 | CT53: 0 | CU53: 0 | CV53: 0 | CW53: 0 | CX53: 0 | CY53: 1 | CZ53: 0 | DA53: 0 | DB53: 0 | DC53: 0 | DD53: 2 | DE53: 0 | DF53: 0 | DG53: 0 | DH53: 8 | DI53: 5 | DJ53: 1 | DK53: 26:13 | DL53: 2 : 1
R54: =SUM(R45:R53)+R41 -> 29706 | S54: 100711 | T54: 90814 | U54: 29504 | V54: 80308 | W54: 9603 | X54: 60104 | Y54: 9205 | Z54: 100813 | AA54: 90913 | AB54: 90207 | AC54: 39908 | AD54: 60209 | AE54: 9103 | AF54: 19507 | AG54: 19608 | AH54: 90410 | AI54: =SUM(AI45:AI53)+AI41 -> 59505 | AK54: =SUM(AK45:AK53)+AK41 -> 3 | AL54: 10 | AM54: 9 | AN54: 3 | AO54: 8 | AP54: 1 | AQ54: 6 | AR54: 1 | AS54: 10 | AT54: 9 | AU54: 9 | AV54: 4 | AW54: 6 | AX54: 1 | AY54: 2 | AZ54: 2 | BA54: 9 | BB54: 6 | BD54: =SUM(BD45:BD53)+BD41 -> -3 | BE54: 7 | BF54: 8 | BG54: -5 | BH54: 3 | BI54: -4 | BJ54: 1 | BK54: -8 | BL54: 8 | BM54: 9 | BN54: 2 | BO54: -1 | BP54: 2 | BQ54: -9 | BR54: -5 | BS54: -4 | BT54: 4 | BU54: -5 | BW54: =SUM(BW45:BW53)+BW41 -> 6 | BX54: 11 | BY54: 14 | BZ54: 4 | CA54: 8 | CB54: 3 | CC54: 4 | CD54: 5 | CE54: 13 | CF54: 13 | CG54: 7 | CH54: 8 | CI54: 9 | CJ54: 3 | CK54: 7 | CL54: 8 | CM54: 10 | CN54: 5 | CO54: x | CP54: =IF(CP55<=$CO$3,SUMIF(CP45:CP53,1,$J45:$J53)+SUMIF(CP45:CP53,2,$L45:$L53),0) -> 0 | CQ54: 0 | CR54: 0 | CS54: 0 | CT54: 0 | CU54: 0 | CV54: 0 | CW54: 0 | CX54: 0 | CY54: 0 | CZ54: 0 | DA54: 0 | DB54: 0 | DC54: 0 | DD54: 0 | DE54: 0 | DF54: 0 | DG54: 0
R55: =RANK(R54,$R54:$AI54,0) -> 12 | S55: 2 | T55: 4 | U55: 13 | V55: 7 | W55: 16 | X55: 9 | Y55: 17 | Z55: 1 | AA55: 3 | AB55: 6 | AC55: 11 | AD55: 8 | AE55: 18 | AF55: 15 | AG55: 14 | AH55: 5 | AI55: 10 | CP55: =IF(SUM(CP45:CP53)>0,IF(CP68=0,1,CP68+1),IF(CP68<>0,CP68,0)) -> 31 | CQ55: 31 | CR55: 31 | CS55: 31 | CT55: 31 | CU55: 31 | CV55: 31 | CW55: 31 | CX55: 31 | CY55: 31 | CZ55: 31 | DA55: 31 | DB55: 31 | DC55: 31 | DD55: 31 | DE55: 31 | DF55: 31 | DG55: 31
C56: 5. Spieltag
A57: =IF(SUM(J58:L66)>0,1,"Z") -> 1 | C57: 22.-24.09.2023
B58: =C58&E58 -> SV Werder Bremen1. FC Köln | C58: SV Werder Bremen | D58: - | E58: 1. FC Köln | F58: 2 | G58: : | H58: 1 | J58: =IF(F58>H58,3,IF(F58<H58,0,IF(AND(H58<>"",F58=H58),1,0))) -> 3 | K58: : | L58: =IF(F58>H58,0,IF(F58<H58,3,IF(AND(H58<>"",F58=H58),1,0))) -> 0 | N58: =F58-H58 -> 1 | P58: =H58-F58 -> -1 | R58: =(AK58*10000+BD58*100+BW58) -> 30102 | S58: =(AL58*10000+BE58*100+BX58) -> 0 | T58: =(AM58*10000+BF58*100+BY58) -> 0 | U58: =(AN58*10000+BG58*100+BZ58) -> 0 | V58: =(AO58*10000+BH58*100+CA58) -> 0 | W58: =(AP58*10000+BI58*100+CB58) -> -99 | X58: =(AQ58*10000+BJ58*100+CC58) -> 0 | Y58: =(AR58*10000+BK58*100+CD58) -> 0 | Z58: =(AS58*10000+BL58*100+CE58) -> 0 | AA58: =(AT58*10000+BM58*100+CF58) -> 0 | AB58: =(AU58*10000+BN58*100+CG58) -> 0 | AC58: =(AV58*10000+BO58*100+CH58) -> 0 | AD58: =(AW58*10000+BP58*100+CI58) -> 0 | AE58: =(AX58*10000+BQ58*100+CJ58) -> 0 | AF58: =(AY58*10000+BR58*100+CK58) -> 0 | AG58: =(AZ58*10000+BS58*100+CL58) -> 0 | AH58: =(BA58*10000+BT58*100+CM58) -> 0 | AI58: =(BB58*10000+BU58*100+CN58) -> 0 | AK58: =IF($C58=AK$1,$J58,IF($E58=AK$1,$L58,0)) -> 3 | AL58: 0 | AM58: 0 | AN58: 0 | AO58: 0 | AP58: 0 | AQ58: 0 | AR58: 0 | AS58: 0 | AT58: 0 | AU58: =IF($C58=AU$1,$J58,IF($E58=AU$1,$L58,0)) -> 0 | AV58: 0 | AW58: 0 | AX58: 0 | AY58: 0 | AZ58: 0 | BA58: 0 | BB58: 0 | BD58: =IF($C58=BD$1,$F58-$H58,IF($E58=BD$1,$H58-$F58,0)) -> 1 | BE58: 0 | BF58: 0 | BG58: 0 | BH58: 0 | BI58: -1 | BJ58: 0 | BK58: 0 | BL58: 0 | BM58: 0 | BN58: =IF($C58=BN$1,$F58-$H58,IF($E58=BN$1,$H58-$F58,0)) -> 0 | BO58: 0 | BP58: 0 | BQ58: 0 | BR58: 0 | BS58: 0 | BT58: 0 | BU58: 0 | BW58: =IF($C58=BW$1,$F58,IF($E58=BW$1,$H58,0)) -> 2 | BX58: 0 | BY58: 0 | BZ58: 0 | CA58: 0 | CB58: 1 | CC58: 0 | CD58: 0 | CE58: 0 | CF58: 0 | CG58: =IF($C58=CG$1,$F58,IF($E58=CG$1,$H58,0)) -> 0 | CH58: 0 | CI58: 0 | CJ58: 0 | CK58: 0 | CL58: 0 | CM58: 0 | CN58: 0 | CP58: =IF($C58=CP$1,IF($F58<>"",1,0),IF($E58=CP$1,IF($H58<>"",2,0),0)) -> 1 | CQ58: 0 | CR58: 0 | CS58: 0 | CT58: 0 | CU58: 2 | CV58: 0 | CW58: 0 | CX58: 0 | CY58: 0 | CZ58: =IF($C58=CZ$1,IF($F58<>"",1,0),IF($E58=CZ$1,IF($H58<>"",2,0),0)) -> 0 | DA58: 0 | DB58: 0 | DC58: 0 | DD58: 0 | DE58: 0 | DF58: 0 | DG58: 0 | DH58: 35 | DI58: 27 | DJ58: 36 | DK58: 158:167 | DL58: =IFERROR(ROUND(MID(DK58,1,SEARCH(":",DK58,1)-1)/SUM(DH58:DJ58),$DL$2)&" : "&ROUND(MID(DK58,SEARCH(":",DK58,1)+1,99)/SUM(DH58:DJ58),$DL$2),"") -> 2 : 2
B59: FC Bayern MünchenVfL Bochum 1848 | C59: FC Bayern München | D59: - | E59: VfL Bochum 1848 | F59: 7 | G59: : | H59: 0 | J59: 3 | K59: : | L59: 0 | N59: =F59-H59 -> 7 | P59: =H59-F59 -> -7 | R59: 0 | S59: 30707 | T59: 0 | U59: -700 | V59: 0 | W59: 0 | X59: 0 | Y59: 0 | Z59: 0 | AA59: 0 | AB59: 0 | AC59: 0 | AD59: 0 | AE59: 0 | AF59: 0 | AG59: 0 | AH59: 0 | AI59: 0 | AK59: 0 | AL59: 3 | AM59: 0 | AN59: 0 | AO59: 0 | AP59: 0 | AQ59: 0 | AR59: 0 | AS59: 0 | AT59: 0 | AU59: 0 | AV59: 0 | AW59: 0 | AX59: 0 | AY59: 0 | AZ59: 0 | BA59: 0 | BB59: 0 | BD59: 0 | BE59: 7 | BF59: 0 | BG59: -7 | BH59: 0 | BI59: 0 | BJ59: 0 | BK59: 0 | BL59: 0 | BM59: 0 | BN59: 0 | BO59: 0 | BP59: 0 | BQ59: 0 | BR59: 0 | BS59: 0 | BT59: 0 | BU59: 0 | BW59: 0 | BX59: 7 | BY59: 0 | BZ59: 0 | CA59: 0 | CB59: 0 | CC59: 0 | CD59: 0 | CE59: 0 | CF59: 0 | CG59: 0 | CH59: 0 | CI59: 0 | CJ59: 0 | CK59: 0 | CL59: 0 | CM59: 0 | CN59: 0 | CP59: 0 | CQ59: 1 | CR59: 0 | CS59: 2 | CT59: 0 | CU59: 0 | CV59: 0 | CW59: 0 | CX59: 0 | CY59: 0 | CZ59: 0 | DA59: 0 | DB59: 0 | DC59: 0 | DD59: 0 | DE59: 0 | DF59: 0 | DG59: 0 | DH59: 48 | DI59: 15 | DJ59: 9 | DK59: 182:76 | DL59: 3 : 1
B60: VfB StuttgartSV Darmstadt 98 | C60: VfB Stuttgart | D60: - | E60: SV Darmstadt 98 | F60: 3 | G60: : | H60: 1 | J60: 3 | K60: : | L60: 0 | N60: 2 | P60: -2 | R60: 0 | S60: 0 | T60: 30203 | U60: 0 | V60: 0 | W60: 0 | X60: 0 | Y60: -199 | Z60: 0 | AA60: 0 | AB60: 0 | AC60: 0 | AD60: 0 | AE60: 0 | AF60: 0 | AG60: 0 | AH60: 0 | AI60: 0 | AK60: 0 | AL60: 0 | AM60: 3 | AN60: 0 | AO60: 0 | AP60: 0 | AQ60: 0 | AR60: 0 | AS60: 0 | AT60: 0 | AU60: 0 | AV60: 0 | AW60: 0 | AX60: 0 | AY60: 0 | AZ60: 0 | BA60: 0 | BB60: 0 | BD60: 0 | BE60: 0 | BF60: 2 | BG60: 0 | BH60: 0 | BI60: 0 | BJ60: 0 | BK60: -2 | BL60: 0 | BM60: 0 | BN60: 0 | BO60: 0 | BP60: 0 | BQ60: 0 | BR60: 0 | BS60: 0 | BT60: 0 | BU60: 0 | BW60: 0 | BX60: 0 | BY60: 3 | BZ60: 0 | CA60: 0 | CB60: 0 | CC60: 0 | CD60: 1 | CE60: 0 | CF60: 0 | CG60: 0 | CH60: 0 | CI60: 0 | CJ60: 0 | CK60: 0 | CL60: 0 | CM60: 0 | CN60: 0 | CP60: 0 | CQ60: 0 | CR60: 1 | CS60: 0 | CT60: 0 | CU60: 0 | CV60: 0 | CW60: 2 | CX60: 0 | CY60: 0 | CZ60: 0 | DA60: 0 | DB60: 0 | DC60: 0 | DD60: 0 | DE60: 0 | DF60: 0 | DG60: 0 | DH60: 5 | DI60: 4 | DJ60: 3 | DK60: 27:18 | DL60: 2 : 2
B61: Borussia MönchengladbachRB Leipzig | C61: Borussia Mönchengladbach | D61: - | E61: RB Leipzig | F61: 0 | G61: : | H61: 1 | J61: 0 | K61: : | L61: 3 | N61: -1 | P61: 1 | R61: 0 | S61: 0 | T61: 0 | U61: 0 | V61: 0 | W61: 0 | X61: 0 | Y61: 0 | Z61: 0 | AA61: 30101 | AB61: 0 | AC61: 0 | AD61: 0 | AE61: 0 | AF61: 0 | AG61: -100 | AH61: 0 | AI61: 0 | AK61: 0 | AL61: 0 | AM61: 0 | AN61: 0 | AO61: 0 | AP61: 0 | AQ61: 0 | AR61: 0 | AS61: 0 | AT61: 3 | AU61: 0 | AV61: 0 | AW61: 0 | AX61: 0 | AY61: 0 | AZ61: 0 | BA61: 0 | BB61: 0 | BD61: 0 | BE61: 0 | BF61: 0 | BG61: 0 | BH61: 0 | BI61: 0 | BJ61: 0 | BK61: 0 | BL61: 0 | BM61: 1 | BN61: 0 | BO61: 0 | BP61: 0 | BQ61: 0 | BR61: 0 | BS61: -1 | BT61: 0 | BU61: 0 | BW61: 0 | BX61: 0 | BY61: 0 | BZ61: 0 | CA61: 0 | CB61: 0 | CC61: 0 | CD61: 0 | CE61: 0 | CF61: 1 | CG61: 0 | CH61: 0 | CI61: 0 | CJ61: 0 | CK61: 0 | CL61: 0 | CM61: 0 | CN61: 0 | CP61: 0 | CQ61: 0 | CR61: 0 | CS61: 0 | CT61: 0 | CU61: 0 | CV61: 0 | CW61: 0 | CX61: 0 | CY61: 2 | CZ61: 0 | DA61: 0 | DB61: 0 | DC61: 0 | DD61: 0 | DE61: 1 | DF61: 0 | DG61: 0 | DH61: 3 | DI61: 3 | DJ61: 8 | DK61: 18:26 | DL61: 1 : 2
B62: Borussia DortmundVfL Wolfsburg | C62: Borussia Dortmund | D62: - | E62: VfL Wolfsburg | F62: 1 | G62: : | H62: 0 | J62: 3 | K62: : | L62: 0 | N62: 1 | P62: -1 | R62: 0 | S62: 0 | T62: 0 | U62: 0 | V62: 30101 | W62: 0 | X62: 0 | Y62: 0 | Z62: 0 | AA62: 0 | AB62: -100 | AC62: 0 | AD62: 0 | AE62: 0 | AF62: 0 | AG62: 0 | AH62: 0 | AI62: 0 | AK62: 0 | AL62: 0 | AM62: 0 | AN62: 0 | AO62: 3 | AP62: 0 | AQ62: 0 | AR62: 0 | AS62: 0 | AT62: 0 | AU62: 0 | AV62: 0 | AW62: 0 | AX62: 0 | AY62: 0 | AZ62: 0 | BA62: 0 | BB62: 0 | BD62: 0 | BE62: 0 | BF62: 0 | BG62: 0 | BH62: 1 | BI62: 0 | BJ62: 0 | BK62: 0 | BL62: 0 | BM62: 0 | BN62: -1 | BO62: 0 | BP62: 0 | BQ62: 0 | BR62: 0 | BS62: 0 | BT62: 0 | BU62: 0 | BW62: 0 | BX62: 0 | BY62: 0 | BZ62: 0 | CA62: 1 | CB62: 0 | CC62: 0 | CD62: 0 | CE62: 0 | CF62: 0 | CG62: 0 | CH62: 0 | CI62: 0 | CJ62: 0 | CK62: 0 | CL62: 0 | CM62: 0 | CN62: 0 | CP62: 0 | CQ62: 0 | CR62: 0 | CS62: 0 | CT62: 1 | CU62: 0 | CV62: 0 | CW62: 0 | CX62: 0 | CY62: 0 | CZ62: 2 | DA62: 0 | DB62: 0 | DC62: 0 | DD62: 0 | DE62: 0 | DF62: 0 | DG62: 0 | DH62: 32 | DI62: 12 | DJ62: 10 | DK62: 116:58 | DL62: 2 : 1
B63: Eintracht FrankfurtSport-Club Freiburg | C63: Eintracht Frankfurt | D63: - | E63: Sport-Club Freiburg | F63: 0 | G63: : | H63: 0 | J63: 1 | K63: : | L63: 1 | N63: 0 | P63: 0 | R63: 0 | S63: 0 | T63: 0 | U63: 0 | V63: 0 | W63: 0 | X63: 10000 | Y63: 0 | Z63: 0 | AA63: 0 | AB63: 0 | AC63: 0 | AD63: 0 | AE63: 0 | AF63: 0 | AG63: 0 | AH63: 0 | AI63: 10000 | AK63: 0 | AL63: 0 | AM63: 0 | AN63: 0 | AO63: 0 | AP63: 0 | AQ63: 1 | AR63: 0 | AS63: 0 | AT63: 0 | AU63: 0 | AV63: 0 | AW63: 0 | AX63: 0 | AY63: 0 | AZ63: 0 | BA63: 0 | BB63: 1 | BD63: 0 | BE63: 0 | BF63: 0 | BG63: 0 | BH63: 0 | BI63: 0 | BJ63: 0 | BK63: 0 | BL63: 0 | BM63: 0 | BN63: 0 | BO63: 0 | BP63: 0 | BQ63: 0 | BR63: 0 | BS63: 0 | BT63: 0 | BU63: 0 | BW63: 0 | BX63: 0 | BY63: 0 | BZ63: 0 | CA63: 0 | CB63: 0 | CC63: 0 | CD63: 0 | CE63: 0 | CF63: 0 | CG63: 0 | CH63: 0 | CI63: 0 | CJ63: 0 | CK63: 0 | CL63: 0 | CM63: 0 | CN63: 0 | CP63: 0 | CQ63: 0 | CR63: 0 | CS63: 0 | CT63: 0 | CU63: 0 | CV63: 1 | CW63: 0 | CX63: 0 | CY63: 0 | CZ63: 0 | DA63: 0 | DB63: 0 | DC63: 0 | DD63: 0 | DE63: 0 | DF63: 0 | DG63: 2 | DH63: 18 | DI63: 10 | DJ63: 14 | DK63: 59:48 | DL63: 1 : 1
B64: Bayer 04 Leverkusen1. FC Heidenheim 1846 | C64: Bayer 04 Leverkusen | D64: - | E64: 1. FC Heidenheim 1846 | F64: 4 | G64: : | H64: 1 | J64: 3 | K64: : | L64: 0 | N64: 3 | P64: -3 | R64: 0 | S64: 0 | T64: 0 | U64: 0 | V64: 0 | W64: 0 | X64: 0 | Y64: 0 | Z64: 30304 | AA64: 0 | AB64: 0 | AC64: -299 | AD64: 0 | AE64: 0 | AF64: 0 | AG64: 0 | AH64: 0 | AI64: 0 | AK64: 0 | AL64: 0 | AM64: 0 | AN64: 0 | AO64: 0 | AP64: 0 | AQ64: 0 | AR64: 0 | AS64: 3 | AT64: 0 | AU64: 0 | AV64: 0 | AW64: 0 | AX64: 0 | AY64: 0 | AZ64: 0 | BA64: 0 | BB64: 0 | BD64: 0 | BE64: 0 | BF64: 0 | BG64: 0 | BH64: 0 | BI64: 0 | BJ64: 0 | BK64: 0 | BL64: 3 | BM64: 0 | BN64: 0 | BO64: -3 | BP64: 0 | BQ64: 0 | BR64: 0 | BS64: 0 | BT64: 0 | BU64: 0 | BW64: 0 | BX64: 0 | BY64: 0 | BZ64: 0 | CA64: 0 | CB64: 0 | CC64: 0 | CD64: 0 | CE64: 4 | CF64: 0 | CG64: 0 | CH64: 1 | CI64: 0 | CJ64: 0 | CK64: 0 | CL64: 0 | CM64: 0 | CN64: 0 | CP64: 0 | CQ64: 0 | CR64: 0 | CS64: 0 | CT64: 0 | CU64: 0 | CV64: 0 | CW64: 0 | CX64: 1 | CY64: 0 | CZ64: 0 | DA64: 2 | DB64: 0 | DC64: 0 | DD64: 0 | DE64: 0 | DF64: 0 | DG64: 0 | DH64: - | DI64: - | DJ64: - | DK64: -
B65: 1. FC Union BerlinTSG Hoffenheim | C65: 1. FC Union Berlin | D65: - | E65: TSG Hoffenheim | F65: 0 | G65: : | H65: 2 | J65: 0 | K65: : | L65: 3 | N65: -2 | P65: 2 | R65: 0 | S65: 0 | T65: 0 | U65: 0 | V65: 0 | W65: 0 | X65: 0 | Y65: 0 | Z65: 0 | AA65: 0 | AB65: 0 | AC65: 0 | AD65: -200 | AE65: 0 | AF65: 0 | AG65: 0 | AH65: 30202 | AI65: 0 | AK65: 0 | AL65: 0 | AM65: 0 | AN65: 0 | AO65: 0 | AP65: 0 | AQ65: 0 | AR65: 0 | AS65: 0 | AT65: 0 | AU65: 0 | AV65: 0 | AW65: 0 | AX65: 0 | AY65: 0 | AZ65: 0 | BA65: 3 | BB65: 0 | BD65: 0 | BE65: 0 | BF65: 0 | BG65: 0 | BH65: 0 | BI65: 0 | BJ65: 0 | BK65: 0 | BL65: 0 | BM65: 0 | BN65: 0 | BO65: 0 | BP65: -2 | BQ65: 0 | BR65: 0 | BS65: 0 | BT65: 2 | BU65: 0 | BW65: 0 | BX65: 0 | BY65: 0 | BZ65: 0 | CA65: 0 | CB65: 0 | CC65: 0 | CD65: 0 | CE65: 0 | CF65: 0 | CG65: 0 | CH65: 0 | CI65: 0 | CJ65: 0 | CK65: 0 | CL65: 0 | CM65: 2 | CN65: 0 | CP65: 0 | CQ65: 0 | CR65: 0 | CS65: 0 | CT65: 0 | CU65: 0 | CV65: 0 | CW65: 0 | CX65: 0 | CY65: 0 | CZ65: 0 | DA65: 0 | DB65: 1 | DC65: 0 | DD65: 0 | DE65: 0 | DF65: 2 | DG65: 0 | DH65: 3 | DI65: 2 | DJ65: 3 | DK65: 13:16 | DL65: 2 : 2
B66: FC Augsburg1. FSV Mainz 05 | C66: FC Augsburg | D66: - | E66: 1. FSV Mainz 05 | F66: 2 | G66: : | H66: 1 | J66: 3 | K66: : | L66: 0 | N66: 1 | P66: -1 | R66: 0 | S66: 0 | T66: 0 | U66: 0 | V66: 0 | W66: 0 | X66: 0 | Y66: 0 | Z66: 0 | AA66: 0 | AB66: 0 | AC66: 0 | AD66: 0 | AE66: -99 | AF66: 30102 | AG66: 0 | AH66: 0 | AI66: 0 | AK66: 0 | AL66: 0 | AM66: 0 | AN66: 0 | AO66: 0 | AP66: 0 | AQ66: 0 | AR66: 0 | AS66: 0 | AT66: 0 | AU66: 0 | AV66: 0 | AW66: 0 | AX66: 0 | AY66: 3 | AZ66: 0 | BA66: 0 | BB66: 0 | BD66: 0 | BE66: 0 | BF66: 0 | BG66: 0 | BH66: 0 | BI66: 0 | BJ66: 0 | BK66: 0 | BL66: 0 | BM66: 0 | BN66: 0 | BO66: 0 | BP66: 0 | BQ66: -1 | BR66: 1 | BS66: 0 | BT66: 0 | BU66: 0 | BW66: 0 | BX66: 0 | BY66: 0 | BZ66: 0 | CA66: 0 | CB66: 0 | CC66: 0 | CD66: 0 | CE66: 0 | CF66: 0 | CG66: 0 | CH66: 0 | CI66: 0 | CJ66: 1 | CK66: 2 | CL66: 0 | CM66: 0 | CN66: 0 | CP66: 0 | CQ66: 0 | CR66: 0 | CS66: 0 | CT66: 0 | CU66: 0 | CV66: 0 | CW66: 0 | CX66: 0 | CY66: 0 | CZ66: 0 | DA66: 0 | DB66: 0 | DC66: 2 | DD66: 1 | DE66: 0 | DF66: 0 | DG66: 0 | DH66: 13 | DI66: 6 | DJ66: 13 | DK66: 44:49 | DL66: 1 : 2
R67: =SUM(R58:R66)+R54 -> 59808 | S67: 131418 | T67: 121017 | U67: 28804 | V67: 110409 | W67: 9504 | X67: 70104 | Y67: 9006 | Z67: 131117 | AA67: 121014 | AB67: 90107 | AC67: 39609 | AD67: 60009 | AE67: 9004 | AF67: 49609 | AG67: 19508 | AH67: 120612 | AI67: 69505 | AK67: =SUM(AK58:AK66)+AK54 -> 6 | AL67: 13 | AM67: 12 | AN67: 3 | AO67: 11 | AP67: 1 | AQ67: 7 | AR67: 1 | AS67: 13 | AT67: 12 | AU67: 9 | AV67: 4 | AW67: 6 | AX67: 1 | AY67: 5 | AZ67: 2 | BA67: 12 | BB67: 7 | BD67: =SUM(BD58:BD66)+BD54 -> -2 | BE67: 14 | BF67: 10 | BG67: -12 | BH67: 4 | BI67: -5 | BJ67: 1 | BK67: -10 | BL67: 11 | BM67: 10 | BN67: 1 | BO67: -4 | BP67: 0 | BQ67: -10 | BR67: -4 | BS67: -5 | BT67: 6 | BU67: -5 | BW67: =SUM(BW58:BW66)+BW54 -> 8 | BX67: 18 | BY67: 17 | BZ67: 4 | CA67: 9 | CB67: 4 | CC67: 4 | CD67: 6 | CE67: 17 | CF67: 14 | CG67: 7 | CH67: 9 | CI67: 9 | CJ67: 4 | CK67: 9 | CL67: 8 | CM67: 12 | CN67: 5 | CO67: x | CP67: =IF(CP68<=$CO$3,SUMIF(CP58:CP66,1,$J58:$J66)+SUMIF(CP58:CP66,2,$L58:$L66),0) -> 0 | CQ67: 0 | CR67: 0 | CS67: 0 | CT67: 0 | CU67: 0 | CV67: 0 | CW67: 0 | CX67: 0 | CY67: 0 | CZ67: 0 | DA67: 0 | DB67: 0 | DC67: 0 | DD67: 0 | DE67: 0 | DF67: 0 | DG67: 0
R68: =RANK(R67,$R67:$AI67,0) -> 11 | S68: 1 | T68: 3 | U68: 14 | V68: 6 | W68: 16 | X68: 8 | Y68: 17 | Z68: 2 | AA68: 4 | AB68: 7 | AC68: 13 | AD68: 10 | AE68: 18 | AF68: 12 | AG68: 15 | AH68: 5 | AI68: 9 | CP68: =IF(SUM(CP58:CP66)>0,IF(CP81=0,1,CP81+1),IF(CP81<>0,CP81,0)) -> 30 | CQ68: 30 | CR68: 30 | CS68: 30 | CT68: 30 | CU68: 30 | CV68: 30 | CW68: 30 | CX68: 30 | CY68: 30 | CZ68: 30 | DA68: 30 | DB68: 30 | DC68: 30 | DD68: 30 | DE68: 30 | DF68: 30 | DG68: 30
C69: 6. Spieltag
A70: =IF(SUM(J71:L79)>0,1,"Z") -> 1 | C70: 29.09.-01.10.2023
B71: =C71&E71 -> 1. FC KölnVfB Stuttgart | C71: 1. FC Köln | D71: - | E71: VfB Stuttgart | F71: 0 | G71: : | H71: 2 | J71: =IF(F71>H71,3,IF(F71<H71,0,IF(AND(H71<>"",F71=H71),1,0))) -> 0 | K71: : | L71: =IF(F71>H71,0,IF(F71<H71,3,IF(AND(H71<>"",F71=H71),1,0))) -> 3 | N71: =F71-H71 -> -2 | P71: =H71-F71 -> 2 | R71: =(AK71*10000+BD71*100+BW71) -> 0 | S71: =(AL71*10000+BE71*100+BX71) -> 0 | T71: =(AM71*10000+BF71*100+BY71) -> 30202 | U71: =(AN71*10000+BG71*100+BZ71) -> 0 | V71: =(AO71*10000+BH71*100+CA71) -> 0 | W71: =(AP71*10000+BI71*100+CB71) -> -200 | X71: =(AQ71*10000+BJ71*100+CC71) -> 0 | Y71: =(AR71*10000+BK71*100+CD71) -> 0 | Z71: =(AS71*10000+BL71*100+CE71) -> 0 | AA71: =(AT71*10000+BM71*100+CF71) -> 0 | AB71: =(AU71*10000+BN71*100+CG71) -> 0 | AC71: =(AV71*10000+BO71*100+CH71) -> 0 | AD71: =(AW71*10000+BP71*100+CI71) -> 0 | AE71: =(AX71*10000+BQ71*100+CJ71) -> 0 | AF71: =(AY71*10000+BR71*100+CK71) -> 0 | AG71: =(AZ71*10000+BS71*100+CL71) -> 0 | AH71: =(BA71*10000+BT71*100+CM71) -> 0 | AI71: =(BB71*10000+BU71*100+CN71) -> 0 | AK71: =IF($C71=AK$1,$J71,IF($E71=AK$1,$L71,0)) -> 0 | AL71: 0 | AM71: 3 | AN71: 0 | AO71: 0 | AP71: 0 | AQ71: 0 | AR71: 0 | AS71: 0 | AT71: 0 | AU71: =IF($C71=AU$1,$J71,IF($E71=AU$1,$L71,0)) -> 0 | AV71: 0 | AW71: 0 | AX71: 0 | AY71: 0 | AZ71: 0 | BA71: 0 | BB71: 0 | BD71: =IF($C71=BD$1,$F71-$H71,IF($E71=BD$1,$H71-$F71,0)) -> 0 | BE71: 0 | BF71: 2 | BG71: 0 | BH71: 0 | BI71: -2 | BJ71: 0 | BK71: 0 | BL71: 0 | BM71: 0 | BN71: =IF($C71=BN$1,$F71-$H71,IF($E71=BN$1,$H71-$F71,0)) -> 0 | BO71: 0 | BP71: 0 | BQ71: 0 | BR71: 0 | BS71: 0 | BT71: 0 | BU71: 0 | BW71: =IF($C71=BW$1,$F71,IF($E71=BW$1,$H71,0)) -> 0 | BX71: 0 | BY71: 2 | BZ71: 0 | CA71: 0 | CB71: 0 | CC71: 0 | CD71: 0 | CE71: 0 | CF71: 0 | CG71: =IF($C71=CG$1,$F71,IF($E71=CG$1,$H71,0)) -> 0 | CH71: 0 | CI71: 0 | CJ71: 0 | CK71: 0 | CL71: 0 | CM71: 0 | CN71: 0 | CP71: =IF($C71=CP$1,IF($F71<>"",1,0),IF($E71=CP$1,IF($H71<>"",2,0),0)) -> 0 | CQ71: 0 | CR71: 2 | CS71: 0 | CT71: 0 | CU71: 1 | CV71: 0 | CW71: 0 | CX71: 0 | CY71: 0 | CZ71: =IF($C71=CZ$1,IF($F71<>"",1,0),IF($E71=CZ$1,IF($H71<>"",2,0),0)) -> 0 | DA71: 0 | DB71: 0 | DC71: 0 | DD71: 0 | DE71: 0 | DF71: 0 | DG71: 0 | DH71: 36 | DI71: 26 | DJ71: 32 | DK71: 147:154 | DL71: =IFERROR(ROUND(MID(DK71,1,SEARCH(":",DK71,1)-1)/SUM(DH71:DJ71),$DL$2)&" : "&ROUND(MID(DK71,SEARCH(":",DK71,1)+1,99)/SUM(DH71:DJ71),$DL$2),"") -> 2 : 2
B72: VfL Bochum 1848Borussia Mönchengladbach | C72: VfL Bochum 1848 | D72: - | E72: Borussia Mönchengladbach | F72: 1 | G72: : | H72: 3 | J72: 0 | K72: : | L72: 3 | N72: =F72-H72 -> -2 | P72: =H72-F72 -> 2 | R72: 0 | S72: 0 | T72: 0 | U72: -199 | V72: 0 | W72: 0 | X72: 0 | Y72: 0 | Z72: 0 | AA72: 0 | AB72: 0 | AC72: 0 | AD72: 0 | AE72: 0 | AF72: 0 | AG72: 30203 | AH72: 0 | AI72: 0 | AK72: 0 | AL72: 0 | AM72: 0 | AN72: 0 | AO72: 0 | AP72: 0 | AQ72: 0 | AR72: 0 | AS72: 0 | AT72: 0 | AU72: 0 | AV72: 0 | AW72: 0 | AX72: 0 | AY72: 0 | AZ72: 3 | BA72: 0 | BB72: 0 | BD72: 0 | BE72: 0 | BF72: 0 | BG72: -2 | BH72: 0 | BI72: 0 | BJ72: 0 | BK72: 0 | BL72: 0 | BM72: 0 | BN72: 0 | BO72: 0 | BP72: 0 | BQ72: 0 | BR72: 0 | BS72: 2 | BT72: 0 | BU72: 0 | BW72: 0 | BX72: 0 | BY72: 0 | BZ72: 1 | CA72: 0 | CB72: 0 | CC72: 0 | CD72: 0 | CE72: 0 | CF72: 0 | CG72: 0 | CH72: 0 | CI72: 0 | CJ72: 0 | CK72: 0 | CL72: 3 | CM72: 0 | CN72: 0 | CP72: 0 | CQ72: 0 | CR72: 0 | CS72: 1 | CT72: 0 | CU72: 0 | CV72: 0 | CW72: 0 | CX72: 0 | CY72: 0 | CZ72: 0 | DA72: 0 | DB72: 0 | DC72: 0 | DD72: 0 | DE72: 2 | DF72: 0 | DG72: 0 | DH72: 21 | DI72: 22 | DJ72: 27 | DK72: 93:119 | DL72: 1 : 2
B73: Sport-Club FreiburgFC Augsburg | C73: Sport-Club Freiburg | D73: - | E73: FC Augsburg | F73: 2 | G73: : | H73: 0 | J73: 3 | K73: : | L73: 0 | N73: 2 | P73: -2 | R73: 0 | S73: 0 | T73: 0 | U73: 0 | V73: 0 | W73: 0 | X73: 0 | Y73: 0 | Z73: 0 | AA73: 0 | AB73: 0 | AC73: 0 | AD73: 0 | AE73: 0 | AF73: -200 | AG73: 0 | AH73: 0 | AI73: 30202 | AK73: 0 | AL73: 0 | AM73: 0 | AN73: 0 | AO73: 0 | AP73: 0 | AQ73: 0 | AR73: 0 | AS73: 0 | AT73: 0 | AU73: 0 | AV73: 0 | AW73: 0 | AX73: 0 | AY73: 0 | AZ73: 0 | BA73: 0 | BB73: 3 | BD73: 0 | BE73: 0 | BF73: 0 | BG73: 0 | BH73: 0 | BI73: 0 | BJ73: 0 | BK73: 0 | BL73: 0 | BM73: 0 | BN73: 0 | BO73: 0 | BP73: 0 | BQ73: 0 | BR73: -2 | BS73: 0 | BT73: 0 | BU73: 2 | BW73: 0 | BX73: 0 | BY73: 0 | BZ73: 0 | CA73: 0 | CB73: 0 | CC73: 0 | CD73: 0 | CE73: 0 | CF73: 0 | CG73: 0 | CH73: 0 | CI73: 0 | CJ73: 0 | CK73: 0 | CL73: 0 | CM73: 0 | CN73: 2 | CP73: 0 | CQ73: 0 | CR73: 0 | CS73: 0 | CT73: 0 | CU73: 0 | CV73: 0 | CW73: 0 | CX73: 0 | CY73: 0 | CZ73: 0 | DA73: 0 | DB73: 0 | DC73: 0 | DD73: 2 | DE73: 0 | DF73: 0 | DG73: 1 | DH73: 19 | DI73: 10 | DJ73: 5 | DK73: 60:33 | DL73: 2 : 1
B74: VfL WolfsburgEintracht Frankfurt | C74: VfL Wolfsburg | D74: - | E74: Eintracht Frankfurt | F74: 2 | G74: : | H74: 0 | J74: 3 | K74: : | L74: 0 | N74: 2 | P74: -2 | R74: 0 | S74: 0 | T74: 0 | U74: 0 | V74: 0 | W74: 0 | X74: -200 | Y74: 0 | Z74: 0 | AA74: 0 | AB74: 30202 | AC74: 0 | AD74: 0 | AE74: 0 | AF74: 0 | AG74: 0 | AH74: 0 | AI74: 0 | AK74: 0 | AL74: 0 | AM74: 0 | AN74: 0 | AO74: 0 | AP74: 0 | AQ74: 0 | AR74: 0 | AS74: 0 | AT74: 0 | AU74: 3 | AV74: 0 | AW74: 0 | AX74: 0 | AY74: 0 | AZ74: 0 | BA74: 0 | BB74: 0 | BD74: 0 | BE74: 0 | BF74: 0 | BG74: 0 | BH74: 0 | BI74: 0 | BJ74: -2 | BK74: 0 | BL74: 0 | BM74: 0 | BN74: 2 | BO74: 0 | BP74: 0 | BQ74: 0 | BR74: 0 | BS74: 0 | BT74: 0 | BU74: 0 | BW74: 0 | BX74: 0 | BY74: 0 | BZ74: 0 | CA74: 0 | CB74: 0 | CC74: 0 | CD74: 0 | CE74: 0 | CF74: 0 | CG74: 2 | CH74: 0 | CI74: 0 | CJ74: 0 | CK74: 0 | CL74: 0 | CM74: 0 | CN74: 0 | CP74: 0 | CQ74: 0 | CR74: 0 | CS74: 0 | CT74: 0 | CU74: 0 | CV74: 2 | CW74: 0 | CX74: 0 | CY74: 0 | CZ74: 1 | DA74: 0 | DB74: 0 | DC74: 0 | DD74: 0 | DE74: 0 | DF74: 0 | DG74: 0 | DH74: 22 | DI74: 14 | DJ74: 8 | DK74: 72:54 | DL74: 2 : 1
B75: 1. FSV Mainz 05Bayer 04 Leverkusen | C75: 1. FSV Mainz 05 | D75: - | E75: Bayer 04 Leverkusen | F75: 0 | G75: : | H75: 3 | J75: 0 | K75: : | L75: 3 | N75: -3 | P75: 3 | R75: 0 | S75: 0 | T75: 0 | U75: 0 | V75: 0 | W75: 0 | X75: 0 | Y75: 0 | Z75: 30303 | AA75: 0 | AB75: 0 | AC75: 0 | AD75: 0 | AE75: -300 | AF75: 0 | AG75: 0 | AH75: 0 | AI75: 0 | AK75: 0 | AL75: 0 | AM75: 0 | AN75: 0 | AO75: 0 | AP75: 0 | AQ75: 0 | AR75: 0 | AS75: 3 | AT75: 0 | AU75: 0 | AV75: 0 | AW75: 0 | AX75: 0 | AY75: 0 | AZ75: 0 | BA75: 0 | BB75: 0 | BD75: 0 | BE75: 0 | BF75: 0 | BG75: 0 | BH75: 0 | BI75: 0 | BJ75: 0 | BK75: 0 | BL75: 3 | BM75: 0 | BN75: 0 | BO75: 0 | BP75: 0 | BQ75: -3 | BR75: 0 | BS75: 0 | BT75: 0 | BU75: 0 | BW75: 0 | BX75: 0 | BY75: 0 | BZ75: 0 | CA75: 0 | CB75: 0 | CC75: 0 | CD75: 0 | CE75: 3 | CF75: 0 | CG75: 0 | CH75: 0 | CI75: 0 | CJ75: 0 | CK75: 0 | CL75: 0 | CM75: 0 | CN75: 0 | CP75: 0 | CQ75: 0 | CR75: 0 | CS75: 0 | CT75: 0 | CU75: 0 | CV75: 0 | CW75: 0 | CX75: 2 | CY75: 0 | CZ75: 0 | DA75: 0 | DB75: 0 | DC75: 1 | DD75: 0 | DE75: 0 | DF75: 0 | DG75: 0 | DH75: 12 | DI75: 5 | DJ75: 17 | DK75: 44:54 | DL75: 1 : 2
B76: SV Darmstadt 98SV Werder Bremen | C76: SV Darmstadt 98 | D76: - | E76: SV Werder Bremen | F76: 4 | G76: : | H76: 2 | J76: 3 | K76: : | L76: 0 | N76: 2 | P76: -2 | R76: -198 | S76: 0 | T76: 0 | U76: 0 | V76: 0 | W76: 0 | X76: 0 | Y76: 30204 | Z76: 0 | AA76: 0 | AB76: 0 | AC76: 0 | AD76: 0 | AE76: 0 | AF76: 0 | AG76: 0 | AH76: 0 | AI76: 0 | AK76: 0 | AL76: 0 | AM76: 0 | AN76: 0 | AO76: 0 | AP76: 0 | AQ76: 0 | AR76: 3 | AS76: 0 | AT76: 0 | AU76: 0 | AV76: 0 | AW76: 0 | AX76: 0 | AY76: 0 | AZ76: 0 | BA76: 0 | BB76: 0 | BD76: -2 | BE76: 0 | BF76: 0 | BG76: 0 | BH76: 0 | BI76: 0 | BJ76: 0 | BK76: 2 | BL76: 0 | BM76: 0 | BN76: 0 | BO76: 0 | BP76: 0 | BQ76: 0 | BR76: 0 | BS76: 0 | BT76: 0 | BU76: 0 | BW76: 2 | BX76: 0 | BY76: 0 | BZ76: 0 | CA76: 0 | CB76: 0 | CC76: 0 | CD76: 4 | CE76: 0 | CF76: 0 | CG76: 0 | CH76: 0 | CI76: 0 | CJ76: 0 | CK76: 0 | CL76: 0 | CM76: 0 | CN76: 0 | CP76: 2 | CQ76: 0 | CR76: 0 | CS76: 0 | CT76: 0 | CU76: 0 | CV76: 0 | CW76: 1 | CX76: 0 | CY76: 0 | CZ76: 0 | DA76: 0 | DB76: 0 | DC76: 0 | DD76: 0 | DE76: 0 | DF76: 0 | DG76: 0 | DH76: 3 | DI76: 4 | DJ76: 3 | DK76: 17:16 | DL76: 2 : 2
B77: TSG HoffenheimBorussia Dortmund | C77: TSG Hoffenheim | D77: - | E77: Borussia Dortmund | F77: 1 | G77: : | H77: 3 | J77: 0 | K77: : | L77: 3 | N77: -2 | P77: 2 | R77: 0 | S77: 0 | T77: 0 | U77: 0 | V77: 30203 | W77: 0 | X77: 0 | Y77: 0 | Z77: 0 | AA77: 0 | AB77: 0 | AC77: 0 | AD77: 0 | AE77: 0 | AF77: 0 | AG77: 0 | AH77: -199 | AI77: 0 | AK77: 0 | AL77: 0 | AM77: 0 | AN77: 0 | AO77: 3 | AP77: 0 | AQ77: 0 | AR77: 0 | AS77: 0 | AT77: 0 | AU77: 0 | AV77: 0 | AW77: 0 | AX77: 0 | AY77: 0 | AZ77: 0 | BA77: 0 | BB77: 0 | BD77: 0 | BE77: 0 | BF77: 0 | BG77: 0 | BH77: 2 | BI77: 0 | BJ77: 0 | BK77: 0 | BL77: 0 | BM77: 0 | BN77: 0 | BO77: 0 | BP77: 0 | BQ77: 0 | BR77: 0 | BS77: 0 | BT77: -2 | BU77: 0 | BW77: 0 | BX77: 0 | BY77: 0 | BZ77: 0 | CA77: 3 | CB77: 0 | CC77: 0 | CD77: 0 | CE77: 0 | CF77: 0 | CG77: 0 | CH77: 0 | CI77: 0 | CJ77: 0 | CK77: 0 | CL77: 0 | CM77: 1 | CN77: 0 | CP77: 0 | CQ77: 0 | CR77: 0 | CS77: 0 | CT77: 2 | CU77: 0 | CV77: 0 | CW77: 0 | CX77: 0 | CY77: 0 | CZ77: 0 | DA77: 0 | DB77: 0 | DC77: 0 | DD77: 0 | DE77: 0 | DF77: 1 | DG77: 0 | DH77: 7 | DI77: 10 | DJ77: 13 | DK77: 43:46 | DL77: 1 : 2
B78: 1. FC Heidenheim 18461. FC Union Berlin | C78: 1. FC Heidenheim 1846 | D78: - | E78: 1. FC Union Berlin | F78: 1 | G78: : | H78: 0 | J78: 3 | K78: : | L78: 0 | N78: 1 | P78: -1 | R78: 0 | S78: 0 | T78: 0 | U78: 0 | V78: 0 | W78: 0 | X78: 0 | Y78: 0 | Z78: 0 | AA78: 0 | AB78: 0 | AC78: 30101 | AD78: -100 | AE78: 0 | AF78: 0 | AG78: 0 | AH78: 0 | AI78: 0 | AK78: 0 | AL78: 0 | AM78: 0 | AN78: 0 | AO78: 0 | AP78: 0 | AQ78: 0 | AR78: 0 | AS78: 0 | AT78: 0 | AU78: 0 | AV78: 3 | AW78: 0 | AX78: 0 | AY78: 0 | AZ78: 0 | BA78: 0 | BB78: 0 | BD78: 0 | BE78: 0 | BF78: 0 | BG78: 0 | BH78: 0 | BI78: 0 | BJ78: 0 | BK78: 0 | BL78: 0 | BM78: 0 | BN78: 0 | BO78: 1 | BP78: -1 | BQ78: 0 | BR78: 0 | BS78: 0 | BT78: 0 | BU78: 0 | BW78: 0 | BX78: 0 | BY78: 0 | BZ78: 0 | CA78: 0 | CB78: 0 | CC78: 0 | CD78: 0 | CE78: 0 | CF78: 0 | CG78: 0 | CH78: 1 | CI78: 0 | CJ78: 0 | CK78: 0 | CL78: 0 | CM78: 0 | CN78: 0 | CP78: 0 | CQ78: 0 | CR78: 0 | CS78: 0 | CT78: 0 | CU78: 0 | CV78: 0 | CW78: 0 | CX78: 0 | CY78: 0 | CZ78: 0 | DA78: 1 | DB78: 2 | DC78: 0 | DD78: 0 | DE78: 0 | DF78: 0 | DG78: 0 | DH78: 5 | DI78: 2 | DJ78: 3 | DK78: 16:13 | DL78: 2 : 1
B79: RB LeipzigFC Bayern München | C79: RB Leipzig | D79: - | E79: FC Bayern München | F79: 2 | G79: : | H79: 2 | J79: 1 | K79: : | L79: 1 | N79: 0 | P79: 0 | R79: 0 | S79: 10002 | T79: 0 | U79: 0 | V79: 0 | W79: 0 | X79: 0 | Y79: 0 | Z79: 0 | AA79: 10002 | AB79: 0 | AC79: 0 | AD79: 0 | AE79: 0 | AF79: 0 | AG79: 0 | AH79: 0 | AI79: 0 | AK79: 0 | AL79: 1 | AM79: 0 | AN79: 0 | AO79: 0 | AP79: 0 | AQ79: 0 | AR79: 0 | AS79: 0 | AT79: 1 | AU79: 0 | AV79: 0 | AW79: 0 | AX79: 0 | AY79: 0 | AZ79: 0 | BA79: 0 | BB79: 0 | BD79: 0 | BE79: 0 | BF79: 0 | BG79: 0 | BH79: 0 | BI79: 0 | BJ79: 0 | BK79: 0 | BL79: 0 | BM79: 0 | BN79: 0 | BO79: 0 | BP79: 0 | BQ79: 0 | BR79: 0 | BS79: 0 | BT79: 0 | BU79: 0 | BW79: 0 | BX79: 2 | BY79: 0 | BZ79: 0 | CA79: 0 | CB79: 0 | CC79: 0 | CD79: 0 | CE79: 0 | CF79: 2 | CG79: 0 | CH79: 0 | CI79: 0 | CJ79: 0 | CK79: 0 | CL79: 0 | CM79: 0 | CN79: 0 | CP79: 0 | CQ79: 2 | CR79: 0 | CS79: 0 | CT79: 0 | CU79: 0 | CV79: 0 | CW79: 0 | CX79: 0 | CY79: 1 | CZ79: 0 | DA79: 0 | DB79: 0 | DC79: 0 | DD79: 0 | DE79: 0 | DF79: 0 | DG79: 0 | DH79: 2 | DI79: 5 | DJ79: 7 | DK79: 17:26 | DL79: 1 : 2
R80: =SUM(R71:R79)+R67 -> 59610 | S80: 141420 | T80: 151219 | U80: 28605 | V80: 140612 | W80: 9304 | X80: 69904 | Y80: 39210 | Z80: 161420 | AA80: 131016 | AB80: 120309 | AC80: 69710 | AD80: 59909 | AE80: 8704 | AF80: 49409 | AG80: 49711 | AH80: 120413 | AI80: 99707 | AK80: =SUM(AK71:AK79)+AK67 -> 6 | AL80: 14 | AM80: 15 | AN80: 3 | AO80: 14 | AP80: 1 | AQ80: 7 | AR80: 4 | AS80: 16 | AT80: 13 | AU80: 12 | AV80: 7 | AW80: 6 | AX80: 1 | AY80: 5 | AZ80: 5 | BA80: 12 | BB80: 10 | BD80: =SUM(BD71:BD79)+BD67 -> -4 | BE80: 14 | BF80: 12 | BG80: -14 | BH80: 6 | BI80: -7 | BJ80: -1 | BK80: -8 | BL80: 14 | BM80: 10 | BN80: 3 | BO80: -3 | BP80: -1 | BQ80: -13 | BR80: -6 | BS80: -3 | BT80: 4 | BU80: -3 | BW80: =SUM(BW71:BW79)+BW67 -> 10 | BX80: 20 | BY80: 19 | BZ80: 5 | CA80: 12 | CB80: 4 | CC80: 4 | CD80: 10 | CE80: 20 | CF80: 16 | CG80: 9 | CH80: 10 | CI80: 9 | CJ80: 4 | CK80: 9 | CL80: 11 | CM80: 13 | CN80: 7 | CO80: x | CP80: =IF(CP81<=$CO$3,SUMIF(CP71:CP79,1,$J71:$J79)+SUMIF(CP71:CP79,2,$L71:$L79),0) -> 0 | CQ80: 0 | CR80: 0 | CS80: 0 | CT80: 0 | CU80: 0 | CV80: 0 | CW80: 0 | CX80: 0 | CY80: 0 | CZ80: 0 | DA80: 0 | DB80: 0 | DC80: 0 | DD80: 0 | DE80: 0 | DF80: 0 | DG80: 0
R81: =RANK(R80,$R80:$AI80,0) -> 12 | S81: 3 | T81: 2 | U81: 16 | V81: 4 | W81: 17 | X81: 9 | Y81: 15 | Z81: 1 | AA81: 5 | AB81: 7 | AC81: 10 | AD81: 11 | AE81: 18 | AF81: 14 | AG81: 13 | AH81: 6 | AI81: 8 | CP81: =IF(SUM(CP71:CP79)>0,IF(CP94=0,1,CP94+1),IF(CP94<>0,CP94,0)) -> 29 | CQ81: 29 | CR81: 29 | CS81: 29 | CT81: 29 | CU81: 29 | CV81: 29 | CW81: 29 | CX81: 29 | CY81: 29 | CZ81: 29 | DA81: 29 | DB81: 29 | DC81: 29 | DD81: 29 | DE81: 29 | DF81: 29 | DG81: 29
C82: 7. Spieltag
A83: =IF(SUM(J84:L92)>0,1,"Z") -> 1 | C83: 06.-08.10.2023
B84: =C84&E84 -> SV Werder BremenTSG Hoffenheim | C84: SV Werder Bremen | D84: - | E84: TSG Hoffenheim | F84: 2 | G84: : | H84: 3 | J84: =IF(F84>H84,3,IF(F84<H84,0,IF(AND(H84<>"",F84=H84),1,0))) -> 0 | K84: : | L84: =IF(F84>H84,0,IF(F84<H84,3,IF(AND(H84<>"",F84=H84),1,0))) -> 3 | N84: =F84-H84 -> -1 | P84: =H84-F84 -> 1 | R84: =(AK84*10000+BD84*100+BW84) -> -98 | S84: =(AL84*10000+BE84*100+BX84) -> 0 | T84: =(AM84*10000+BF84*100+BY84) -> 0 | U84: =(AN84*10000+BG84*100+BZ84) -> 0 | V84: =(AO84*10000+BH84*100+CA84) -> 0 | W84: =(AP84*10000+BI84*100+CB84) -> 0 | X84: =(AQ84*10000+BJ84*100+CC84) -> 0 | Y84: =(AR84*10000+BK84*100+CD84) -> 0 | Z84: =(AS84*10000+BL84*100+CE84) -> 0 | AA84: =(AT84*10000+BM84*100+CF84) -> 0 | AB84: =(AU84*10000+BN84*100+CG84) -> 0 | AC84: =(AV84*10000+BO84*100+CH84) -> 0 | AD84: =(AW84*10000+BP84*100+CI84) -> 0 | AE84: =(AX84*10000+BQ84*100+CJ84) -> 0 | AF84: =(AY84*10000+BR84*100+CK84) -> 0 | AG84: =(AZ84*10000+BS84*100+CL84) -> 0 | AH84: =(BA84*10000+BT84*100+CM84) -> 30103 | AI84: =(BB84*10000+BU84*100+CN84) -> 0 | AK84: =IF($C84=AK$1,$J84,IF($E84=AK$1,$L84,0)) -> 0 | AL84: 0 | AM84: 0 | AN84: 0 | AO84: 0 | AP84: 0 | AQ84: 0 | AR84: 0 | AS84: 0 | AT84: 0 | AU84: =IF($C84=AU$1,$J84,IF($E84=AU$1,$L84,0)) -> 0 | AV84: 0 | AW84: 0 | AX84: 0 | AY84: 0 | AZ84: 0 | BA84: 3 | BB84: 0 | BD84: =IF($C84=BD$1,$F84-$H84,IF($E84=BD$1,$H84-$F84,0)) -> -1 | BE84: 0 | BF84: 0 | BG84: 0 | BH84: 0 | BI84: 0 | BJ84: 0 | BK84: 0 | BL84: 0 | BM84: 0 | BN84: =IF($C84=BN$1,$F84-$H84,IF($E84=BN$1,$H84-$F84,0)) -> 0 | BO84: 0 | BP84: 0 | BQ84: 0 | BR84: 0 | BS84: 0 | BT84: 1 | BU84: 0 | BW84: =IF($C84=BW$1,$F84,IF($E84=BW$1,$H84,0)) -> 2 | BX84: 0 | BY84: 0 | BZ84: 0 | CA84: 0 | CB84: 0 | CC84: 0 | CD84: 0 | CE84: 0 | CF84: 0 | CG84: =IF($C84=CG$1,$F84,IF($E84=CG$1,$H84,0)) -> 0 | CH84: 0 | CI84: 0 | CJ84: 0 | CK84: 0 | CL84: 0 | CM84: 3 | CN84: 0 | CP84: =IF($C84=CP$1,IF($F84<>"",1,0),IF($E84=CP$1,IF($H84<>"",2,0),0)) -> 1 | CQ84: 0 | CR84: 0 | CS84: 0 | CT84: 0 | CU84: 0 | CV84: 0 | CW84: 0 | CX84: 0 | CY84: 0 | CZ84: =IF($C84=CZ$1,IF($F84<>"",1,0),IF($E84=CZ$1,IF($H84<>"",2,0),0)) -> 0 | DA84: 0 | DB84: 0 | DC84: 0 | DD84: 0 | DE84: 0 | DF84: 2 | DG84: 0 | DH84: 11 | DI84: 10 | DJ84: 7 | DK84: 47:46 | DL84: =IFERROR(ROUND(MID(DK84,1,SEARCH(":",DK84,1)-1)/SUM(DH84:DJ84),$DL$2)&" : "&ROUND(MID(DK84,SEARCH(":",DK84,1)+1,99)/SUM(DH84:DJ84),$DL$2),"") -> 2 : 2
B85: FC Bayern MünchenSport-Club Freiburg | C85: FC Bayern München | D85: - | E85: Sport-Club Freiburg | F85: 3 | G85: : | H85: 0 | J85: 3 | K85: : | L85: 0 | N85: =F85-H85 -> 3 | P85: =H85-F85 -> -3 | R85: 0 | S85: 30303 | T85: 0 | U85: 0 | V85: 0 | W85: 0 | X85: 0 | Y85: 0 | Z85: 0 | AA85: 0 | AB85: 0 | AC85: 0 | AD85: 0 | AE85: 0 | AF85: 0 | AG85: 0 | AH85: 0 | AI85: -300 | AK85: 0 | AL85: 3 | AM85: 0 | AN85: 0 | AO85: 0 | AP85: 0 | AQ85: 0 | AR85: 0 | AS85: 0 | AT85: 0 | AU85: 0 | AV85: 0 | AW85: 0 | AX85: 0 | AY85: 0 | AZ85: 0 | BA85: 0 | BB85: 0 | BD85: 0 | BE85: 3 | BF85: 0 | BG85: 0 | BH85: 0 | BI85: 0 | BJ85: 0 | BK85: 0 | BL85: 0 | BM85: 0 | BN85: 0 | BO85: 0 | BP85: 0 | BQ85: 0 | BR85: 0 | BS85: 0 | BT85: 0 | BU85: -3 | BW85: 0 | BX85: 3 | BY85: 0 | BZ85: 0 | CA85: 0 | CB85: 0 | CC85: 0 | CD85: 0 | CE85: 0 | CF85: 0 | CG85: 0 | CH85: 0 | CI85: 0 | CJ85: 0 | CK85: 0 | CL85: 0 | CM85: 0 | CN85: 0 | CP85: 0 | CQ85: 1 | CR85: 0 | CS85: 0 | CT85: 0 | CU85: 0 | CV85: 0 | CW85: 0 | CX85: 0 | CY85: 0 | CZ85: 0 | DA85: 0 | DB85: 0 | DC85: 0 | DD85: 0 | DE85: 0 | DF85: 0 | DG85: 2 | DH85: 33 | DI85: 9 | DJ85: 4 | DK85: 106:37 | DL85: 2 : 1
B86: VfB StuttgartVfL Wolfsburg | C86: VfB Stuttgart | D86: - | E86: VfL Wolfsburg | F86: 3 | G86: : | H86: 1 | J86: 3 | K86: : | L86: 0 | N86: 2 | P86: -2 | R86: 0 | S86: 0 | T86: 30203 | U86: 0 | V86: 0 | W86: 0 | X86: 0 | Y86: 0 | Z86: 0 | AA86: 0 | AB86: -199 | AC86: 0 | AD86: 0 | AE86: 0 | AF86: 0 | AG86: 0 | AH86: 0 | AI86: 0 | AK86: 0 | AL86: 0 | AM86: 3 | AN86: 0 | AO86: 0 | AP86: 0 | AQ86: 0 | AR86: 0 | AS86: 0 | AT86: 0 | AU86: 0 | AV86: 0 | AW86: 0 | AX86: 0 | AY86: 0 | AZ86: 0 | BA86: 0 | BB86: 0 | BD86: 0 | BE86: 0 | BF86: 2 | BG86: 0 | BH86: 0 | BI86: 0 | BJ86: 0 | BK86: 0 | BL86: 0 | BM86: 0 | BN86: -2 | BO86: 0 | BP86: 0 | BQ86: 0 | BR86: 0 | BS86: 0 | BT86: 0 | BU86: 0 | BW86: 0 | BX86: 0 | BY86: 3 | BZ86: 0 | CA86: 0 | CB86: 0 | CC86: 0 | CD86: 0 | CE86: 0 | CF86: 0 | CG86: 1 | CH86: 0 | CI86: 0 | CJ86: 0 | CK86: 0 | CL86: 0 | CM86: 0 | CN86: 0 | CP86: 0 | CQ86: 0 | CR86: 1 | CS86: 0 | CT86: 0 | CU86: 0 | CV86: 0 | CW86: 0 | CX86: 0 | CY86: 0 | CZ86: 2 | DA86: 0 | DB86: 0 | DC86: 0 | DD86: 0 | DE86: 0 | DF86: 0 | DG86: 0 | DH86: 19 | DI86: 7 | DJ86: 22 | DK86: 64:73 | DL86: 1 : 2
B87: Borussia Mönchengladbach1. FSV Mainz 05 | C87: Borussia Mönchengladbach | D87: - | E87: 1. FSV Mainz 05 | F87: 2 | G87: : | H87: 2 | J87: 1 | K87: : | L87: 1 | N87: 0 | P87: 0 | R87: 0 | S87: 0 | T87: 0 | U87: 0 | V87: 0 | W87: 0 | X87: 0 | Y87: 0 | Z87: 0 | AA87: 0 | AB87: 0 | AC87: 0 | AD87: 0 | AE87: 10002 | AF87: 0 | AG87: 10002 | AH87: 0 | AI87: 0 | AK87: 0 | AL87: 0 | AM87: 0 | AN87: 0 | AO87: 0 | AP87: 0 | AQ87: 0 | AR87: 0 | AS87: 0 | AT87: 0 | AU87: 0 | AV87: 0 | AW87: 0 | AX87: 1 | AY87: 0 | AZ87: 1 | BA87: 0 | BB87: 0 | BD87: 0 | BE87: 0 | BF87: 0 | BG87: 0 | BH87: 0 | BI87: 0 | BJ87: 0 | BK87: 0 | BL87: 0 | BM87: 0 | BN87: 0 | BO87: 0 | BP87: 0 | BQ87: 0 | BR87: 0 | BS87: 0 | BT87: 0 | BU87: 0 | BW87: 0 | BX87: 0 | BY87: 0 | BZ87: 0 | CA87: 0 | CB87: 0 | CC87: 0 | CD87: 0 | CE87: 0 | CF87: 0 | CG87: 0 | CH87: 0 | CI87: 0 | CJ87: 2 | CK87: 0 | CL87: 2 | CM87: 0 | CN87: 0 | CP87: 0 | CQ87: 0 | CR87: 0 | CS87: 0 | CT87: 0 | CU87: 0 | CV87: 0 | CW87: 0 | CX87: 0 | CY87: 0 | CZ87: 0 | DA87: 0 | DB87: 0 | DC87: 2 | DD87: 0 | DE87: 1 | DF87: 0 | DG87: 0 | DH87: 16 | DI87: 12 | DJ87: 12 | DK87: 55:45 | DL87: 1 : 1
B88: Borussia Dortmund1. FC Union Berlin | C88: Borussia Dortmund | D88: - | E88: 1. FC Union Berlin | F88: 4 | G88: : | H88: 2 | J88: 3 | K88: : | L88: 0 | N88: 2 | P88: -2 | R88: 0 | S88: 0 | T88: 0 | U88: 0 | V88: 30204 | W88: 0 | X88: 0 | Y88: 0 | Z88: 0 | AA88: 0 | AB88: 0 | AC88: 0 | AD88: -198 | AE88: 0 | AF88: 0 | AG88: 0 | AH88: 0 | AI88: 0 | AK88: 0 | AL88: 0 | AM88: 0 | AN88: 0 | AO88: 3 | AP88: 0 | AQ88: 0 | AR88: 0 | AS88: 0 | AT88: 0 | AU88: 0 | AV88: 0 | AW88: 0 | AX88: 0 | AY88: 0 | AZ88: 0 | BA88: 0 | BB88: 0 | BD88: 0 | BE88: 0 | BF88: 0 | BG88: 0 | BH88: 2 | BI88: 0 | BJ88: 0 | BK88: 0 | BL88: 0 | BM88: 0 | BN88: 0 | BO88: 0 | BP88: -2 | BQ88: 0 | BR88: 0 | BS88: 0 | BT88: 0 | BU88: 0 | BW88: 0 | BX88: 0 | BY88: 0 | BZ88: 0 | CA88: 4 | CB88: 0 | CC88: 0 | CD88: 0 | CE88: 0 | CF88: 0 | CG88: 0 | CH88: 0 | CI88: 2 | CJ88: 0 | CK88: 0 | CL88: 0 | CM88: 0 | CN88: 0 | CP88: 0 | CQ88: 0 | CR88: 0 | CS88: 0 | CT88: 1 | CU88: 0 | CV88: 0 | CW88: 0 | CX88: 0 | CY88: 0 | CZ88: 0 | DA88: 0 | DB88: 2 | DC88: 0 | DD88: 0 | DE88: 0 | DF88: 0 | DG88: 0 | DH88: 5 | DI88: 0 | DJ88: 3 | DK88: 18:10 | DL88: 2 : 1
B89: Eintracht Frankfurt1. FC Heidenheim 1846 | C89: Eintracht Frankfurt | D89: - | E89: 1. FC Heidenheim 1846 | F89: 2 | G89: : | H89: 0 | J89: 3 | K89: : | L89: 0 | N89: 2 | P89: -2 | R89: 0 | S89: 0 | T89: 0 | U89: 0 | V89: 0 | W89: 0 | X89: 30202 | Y89: 0 | Z89: 0 | AA89: 0 | AB89: 0 | AC89: -200 | AD89: 0 | AE89: 0 | AF89: 0 | AG89: 0 | AH89: 0 | AI89: 0 | AK89: 0 | AL89: 0 | AM89: 0 | AN89: 0 | AO89: 0 | AP89: 0 | AQ89: 3 | AR89: 0 | AS89: 0 | AT89: 0 | AU89: 0 | AV89: 0 | AW89: 0 | AX89: 0 | AY89: 0 | AZ89: 0 | BA89: 0 | BB89: 0 | BD89: 0 | BE89: 0 | BF89: 0 | BG89: 0 | BH89: 0 | BI89: 0 | BJ89: 2 | BK89: 0 | BL89: 0 | BM89: 0 | BN89: 0 | BO89: -2 | BP89: 0 | BQ89: 0 | BR89: 0 | BS89: 0 | BT89: 0 | BU89: 0 | BW89: 0 | BX89: 0 | BY89: 0 | BZ89: 0 | CA89: 0 | CB89: 0 | CC89: 2 | CD89: 0 | CE89: 0 | CF89: 0 | CG89: 0 | CH89: 0 | CI89: 0 | CJ89: 0 | CK89: 0 | CL89: 0 | CM89: 0 | CN89: 0 | CP89: 0 | CQ89: 0 | CR89: 0 | CS89: 0 | CT89: 0 | CU89: 0 | CV89: 1 | CW89: 0 | CX89: 0 | CY89: 0 | CZ89: 0 | DA89: 2 | DB89: 0 | DC89: 0 | DD89: 0 | DE89: 0 | DF89: 0 | DG89: 0 | DH89: - | DI89: - | DJ89: - | DK89: -
B90: Bayer 04 Leverkusen1. FC Köln | C90: Bayer 04 Leverkusen | D90: - | E90: 1. FC Köln | F90: 3 | G90: : | H90: 0 | J90: 3 | K90: : | L90: 0 | N90: 3 | P90: -3 | R90: 0 | S90: 0 | T90: 0 | U90: 0 | V90: 0 | W90: -300 | X90: 0 | Y90: 0 | Z90: 30303 | AA90: 0 | AB90: 0 | AC90: 0 | AD90: 0 | AE90: 0 | AF90: 0 | AG90: 0 | AH90: 0 | AI90: 0 | AK90: 0 | AL90: 0 | AM90: 0 | AN90: 0 | AO90: 0 | AP90: 0 | AQ90: 0 | AR90: 0 | AS90: 3 | AT90: 0 | AU90: 0 | AV90: 0 | AW90: 0 | AX90: 0 | AY90: 0 | AZ90: 0 | BA90: 0 | BB90: 0 | BD90: 0 | BE90: 0 | BF90: 0 | BG90: 0 | BH90: 0 | BI90: -3 | BJ90: 0 | BK90: 0 | BL90: 3 | BM90: 0 | BN90: 0 | BO90: 0 | BP90: 0 | BQ90: 0 | BR90: 0 | BS90: 0 | BT90: 0 | BU90: 0 | BW90: 0 | BX90: 0 | BY90: 0 | BZ90: 0 | CA90: 0 | CB90: 0 | CC90: 0 | CD90: 0 | CE90: 3 | CF90: 0 | CG90: 0 | CH90: 0 | CI90: 0 | CJ90: 0 | CK90: 0 | CL90: 0 | CM90: 0 | CN90: 0 | CP90: 0 | CQ90: 0 | CR90: 0 | CS90: 0 | CT90: 0 | CU90: 2 | CV90: 0 | CW90: 0 | CX90: 1 | CY90: 0 | CZ90: 0 | DA90: 0 | DB90: 0 | DC90: 0 | DD90: 0 | DE90: 0 | DF90: 0 | DG90: 0 | DH90: 27 | DI90: 25 | DJ90: 18 | DK90: 110:92 | DL90: 2 : 1
B91: FC AugsburgSV Darmstadt 98 | C91: FC Augsburg | D91: - | E91: SV Darmstadt 98 | F91: 1 | G91: : | H91: 2 | J91: 0 | K91: : | L91: 3 | N91: -1 | P91: 1 | R91: 0 | S91: 0 | T91: 0 | U91: 0 | V91: 0 | W91: 0 | X91: 0 | Y91: 30102 | Z91: 0 | AA91: 0 | AB91: 0 | AC91: 0 | AD91: 0 | AE91: 0 | AF91: -99 | AG91: 0 | AH91: 0 | AI91: 0 | AK91: 0 | AL91: 0 | AM91: 0 | AN91: 0 | AO91: 0 | AP91: 0 | AQ91: 0 | AR91: 3 | AS91: 0 | AT91: 0 | AU91: 0 | AV91: 0 | AW91: 0 | AX91: 0 | AY91: 0 | AZ91: 0 | BA91: 0 | BB91: 0 | BD91: 0 | BE91: 0 | BF91: 0 | BG91: 0 | BH91: 0 | BI91: 0 | BJ91: 0 | BK91: 1 | BL91: 0 | BM91: 0 | BN91: 0 | BO91: 0 | BP91: 0 | BQ91: 0 | BR91: -1 | BS91: 0 | BT91: 0 | BU91: 0 | BW91: 0 | BX91: 0 | BY91: 0 | BZ91: 0 | CA91: 0 | CB91: 0 | CC91: 0 | CD91: 2 | CE91: 0 | CF91: 0 | CG91: 0 | CH91: 0 | CI91: 0 | CJ91: 0 | CK91: 1 | CL91: 0 | CM91: 0 | CN91: 0 | CP91: 0 | CQ91: 0 | CR91: 0 | CS91: 0 | CT91: 0 | CU91: 0 | CV91: 0 | CW91: 2 | CX91: 0 | CY91: 0 | CZ91: 0 | DA91: 0 | DB91: 0 | DC91: 0 | DD91: 1 | DE91: 0 | DF91: 0 | DG91: 0 | DH91: 5 | DI91: 3 | DJ91: 8 | DK91: 20:26 | DL91: 1 : 2
B92: RB LeipzigVfL Bochum 1848 | C92: RB Leipzig | D92: - | E92: VfL Bochum 1848 | F92: 0 | G92: : | H92: 0 | J92: 1 | K92: : | L92: 1 | N92: 0 | P92: 0 | R92: 0 | S92: 0 | T92: 0 | U92: 10000 | V92: 0 | W92: 0 | X92: 0 | Y92: 0 | Z92: 0 | AA92: 10000 | AB92: 0 | AC92: 0 | AD92: 0 | AE92: 0 | AF92: 0 | AG92: 0 | AH92: 0 | AI92: 0 | AK92: 0 | AL92: 0 | AM92: 0 | AN92: 1 | AO92: 0 | AP92: 0 | AQ92: 0 | AR92: 0 | AS92: 0 | AT92: 1 | AU92: 0 | AV92: 0 | AW92: 0 | AX92: 0 | AY92: 0 | AZ92: 0 | BA92: 0 | BB92: 0 | BD92: 0 | BE92: 0 | BF92: 0 | BG92: 0 | BH92: 0 | BI92: 0 | BJ92: 0 | BK92: 0 | BL92: 0 | BM92: 0 | BN92: 0 | BO92: 0 | BP92: 0 | BQ92: 0 | BR92: 0 | BS92: 0 | BT92: 0 | BU92: 0 | BW92: 0 | BX92: 0 | BY92: 0 | BZ92: 0 | CA92: 0 | CB92: 0 | CC92: 0 | CD92: 0 | CE92: 0 | CF92: 0 | CG92: 0 | CH92: 0 | CI92: 0 | CJ92: 0 | CK92: 0 | CL92: 0 | CM92: 0 | CN92: 0 | CP92: 0 | CQ92: 0 | CR92: 0 | CS92: 2 | CT92: 0 | CU92: 0 | CV92: 0 | CW92: 0 | CX92: 0 | CY92: 1 | CZ92: 0 | DA92: 0 | DB92: 0 | DC92: 0 | DD92: 0 | DE92: 0 | DF92: 0 | DG92: 0 | DH92: 7 | DI92: 0 | DJ92: 1 | DK92: 16:3 | DL92: 2 : 0
R93: =SUM(R84:R92)+R80 -> 59512 | S93: 171723 | T93: 181422 | U93: 38605 | V93: 170816 | W93: 9004 | X93: 100106 | Y93: 69312 | Z93: 191723 | AA93: 141016 | AB93: 120110 | AC93: 69510 | AD93: 59711 | AE93: 18706 | AF93: 49310 | AG93: 59713 | AH93: 150516 | AI93: 99407 | AK93: =SUM(AK84:AK92)+AK80 -> 6 | AL93: 17 | AM93: 18 | AN93: 4 | AO93: 17 | AP93: 1 | AQ93: 10 | AR93: 7 | AS93: 19 | AT93: 14 | AU93: 12 | AV93: 7 | AW93: 6 | AX93: 2 | AY93: 5 | AZ93: 6 | BA93: 15 | BB93: 10 | BD93: =SUM(BD84:BD92)+BD80 -> -5 | BE93: 17 | BF93: 14 | BG93: -14 | BH93: 8 | BI93: -10 | BJ93: 1 | BK93: -7 | BL93: 17 | BM93: 10 | BN93: 1 | BO93: -5 | BP93: -3 | BQ93: -13 | BR93: -7 | BS93: -3 | BT93: 5 | BU93: -6 | BW93: =SUM(BW84:BW92)+BW80 -> 12 | BX93: 23 | BY93: 22 | BZ93: 5 | CA93: 16 | CB93: 4 | CC93: 6 | CD93: 12 | CE93: 23 | CF93: 16 | CG93: 10 | CH93: 10 | CI93: 11 | CJ93: 6 | CK93: 10 | CL93: 13 | CM93: 16 | CN93: 7 | CO93: x | CP93: =IF(CP94<=$CO$3,SUMIF(CP84:CP92,1,$J84:$J92)+SUMIF(CP84:CP92,2,$L84:$L92),0) -> 0 | CQ93: 0 | CR93: 0 | CS93: 0 | CT93: 0 | CU93: 0 | CV93: 0 | CW93: 0 | CX93: 0 | CY93: 0 | CZ93: 0 | DA93: 0 | DB93: 0 | DC93: 0 | DD93: 0 | DE93: 0 | DF93: 0 | DG93: 0
R94: =RANK(R93,$R93:$AI93,0) -> 14 | S94: 3 | T94: 2 | U94: 16 | V94: 4 | W94: 18 | X94: 8 | Y94: 11 | Z94: 1 | AA94: 6 | AB94: 7 | AC94: 10 | AD94: 13 | AE94: 17 | AF94: 15 | AG94: 12 | AH94: 5 | AI94: 9 | CP94: =IF(SUM(CP84:CP92)>0,IF(CP107=0,1,CP107+1),IF(CP107<>0,CP107,0)) -> 28 | CQ94: 28 | CR94: 28 | CS94: 28 | CT94: 28 | CU94: 28 | CV94: 28 | CW94: 28 | CX94: 28 | CY94: 28 | CZ94: 28 | DA94: 28 | DB94: 28 | DC94: 28 | DD94: 28 | DE94: 28 | DF94: 28 | DG94: 28
C95: 8. Spieltag
A96: =IF(SUM(J97:L105)>0,1,"Z") -> 1 | C96: 20.-22.10.2023
B97: =C97&E97 -> 1. FC KölnBorussia Mönchengladbach | C97: 1. FC Köln | D97: - | E97: Borussia Mönchengladbach | F97: 3 | G97: : | H97: 1 | J97: =IF(F97>H97,3,IF(F97<H97,0,IF(AND(H97<>"",F97=H97),1,0))) -> 3 | K97: : | L97: =IF(F97>H97,0,IF(F97<H97,3,IF(AND(H97<>"",F97=H97),1,0))) -> 0 | N97: =F97-H97 -> 2 | P97: =H97-F97 -> -2 | R97: =(AK97*10000+BD97*100+BW97) -> 0 | S97: =(AL97*10000+BE97*100+BX97) -> 0 | T97: =(AM97*10000+BF97*100+BY97) -> 0 | U97: =(AN97*10000+BG97*100+BZ97) -> 0 | V97: =(AO97*10000+BH97*100+CA97) -> 0 | W97: =(AP97*10000+BI97*100+CB97) -> 30203 | X97: =(AQ97*10000+BJ97*100+CC97) -> 0 | Y97: =(AR97*10000+BK97*100+CD97) -> 0 | Z97: =(AS97*10000+BL97*100+CE97) -> 0 | AA97: =(AT97*10000+BM97*100+CF97) -> 0 | AB97: =(AU97*10000+BN97*100+CG97) -> 0 | AC97: =(AV97*10000+BO97*100+CH97) -> 0 | AD97: =(AW97*10000+BP97*100+CI97) -> 0 | AE97: =(AX97*10000+BQ97*100+CJ97) -> 0 | AF97: =(AY97*10000+BR97*100+CK97) -> 0 | AG97: =(AZ97*10000+BS97*100+CL97) -> -199 | AH97: =(BA97*10000+BT97*100+CM97) -> 0 | AI97: =(BB97*10000+BU97*100+CN97) -> 0 | AK97: =IF($C97=AK$1,$J97,IF($E97=AK$1,$L97,0)) -> 0 | AL97: 0 | AM97: 0 | AN97: 0 | AO97: 0 | AP97: 3 | AQ97: 0 | AR97: 0 | AS97: 0 | AT97: 0 | AU97: =IF($C97=AU$1,$J97,IF($E97=AU$1,$L97,0)) -> 0 | AV97: 0 | AW97: 0 | AX97: 0 | AY97: 0 | AZ97: 0 | BA97: 0 | BB97: 0 | BD97: =IF($C97=BD$1,$F97-$H97,IF($E97=BD$1,$H97-$F97,0)) -> 0 | BE97: 0 | BF97: 0 | BG97: 0 | BH97: 0 | BI97: 2 | BJ97: 0 | BK97: 0 | BL97: 0 | BM97: 0 | BN97: =IF($C97=BN$1,$F97-$H97,IF($E97=BN$1,$H97-$F97,0)) -> 0 | BO97: 0 | BP97: 0 | BQ97: 0 | BR97: 0 | BS97: -2 | BT97: 0 | BU97: 0 | BW97: =IF($C97=BW$1,$F97,IF($E97=BW$1,$H97,0)) -> 0 | BX97: 0 | BY97: 0 | BZ97: 0 | CA97: 0 | CB97: 3 | CC97: 0 | CD97: 0 | CE97: 0 | CF97: 0 | CG97: =IF($C97=CG$1,$F97,IF($E97=CG$1,$H97,0)) -> 0 | CH97: 0 | CI97: 0 | CJ97: 0 | CK97: 0 | CL97: 1 | CM97: 0 | CN97: 0 | CP97: =IF($C97=CP$1,IF($F97<>"",1,0),IF($E97=CP$1,IF($H97<>"",2,0),0)) -> 0 | CQ97: 0 | CR97: 0 | CS97: 0 | CT97: 0 | CU97: 1 | CV97: 0 | CW97: 0 | CX97: 0 | CY97: 0 | CZ97: =IF($C97=CZ$1,IF($F97<>"",1,0),IF($E97=CZ$1,IF($H97<>"",2,0),0)) -> 0 | DA97: 0 | DB97: 0 | DC97: 0 | DD97: 0 | DE97: 2 | DF97: 0 | DG97: 0 | DH97: 27 | DI97: 20 | DJ97: 53 | DK97: 133:195 | DL97: =IFERROR(ROUND(MID(DK97,1,SEARCH(":",DK97,1)-1)/SUM(DH97:DJ97),$DL$2)&" : "&ROUND(MID(DK97,SEARCH(":",DK97,1)+1,99)/SUM(DH97:DJ97),$DL$2),"") -> 1 : 2
B98: Borussia DortmundSV Werder Bremen | C98: Borussia Dortmund | D98: - | E98: SV Werder Bremen | F98: 1 | G98: : | H98: 0 | J98: 3 | K98: : | L98: 0 | N98: =F98-H98 -> 1 | P98: =H98-F98 -> -1 | R98: -100 | S98: 0 | T98: 0 | U98: 0 | V98: 30101 | W98: 0 | X98: 0 | Y98: 0 | Z98: 0 | AA98: 0 | AB98: 0 | AC98: 0 | AD98: 0 | AE98: 0 | AF98: 0 | AG98: 0 | AH98: 0 | AI98: 0 | AK98: 0 | AL98: 0 | AM98: 0 | AN98: 0 | AO98: 3 | AP98: 0 | AQ98: 0 | AR98: 0 | AS98: 0 | AT98: 0 | AU98: 0 | AV98: 0 | AW98: 0 | AX98: 0 | AY98: 0 | AZ98: 0 | BA98: 0 | BB98: 0 | BD98: -1 | BE98: 0 | BF98: 0 | BG98: 0 | BH98: 1 | BI98: 0 | BJ98: 0 | BK98: 0 | BL98: 0 | BM98: 0 | BN98: 0 | BO98: 0 | BP98: 0 | BQ98: 0 | BR98: 0 | BS98: 0 | BT98: 0 | BU98: 0 | BW98: 0 | BX98: 0 | BY98: 0 | BZ98: 0 | CA98: 1 | CB98: 0 | CC98: 0 | CD98: 0 | CE98: 0 | CF98: 0 | CG98: 0 | CH98: 0 | CI98: 0 | CJ98: 0 | CK98: 0 | CL98: 0 | CM98: 0 | CN98: 0 | CP98: 2 | CQ98: 0 | CR98: 0 | CS98: 0 | CT98: 1 | CU98: 0 | CV98: 0 | CW98: 0 | CX98: 0 | CY98: 0 | CZ98: 0 | DA98: 0 | DB98: 0 | DC98: 0 | DD98: 0 | DE98: 0 | DF98: 0 | DG98: 0 | DH98: 47 | DI98: 19 | DJ98: 42 | DK98: 177:175 | DL98: 2 : 2
B99: Sport-Club FreiburgVfL Bochum 1848 | C99: Sport-Club Freiburg | D99: - | E99: VfL Bochum 1848 | F99: 2 | G99: : | H99: 1 | J99: 3 | K99: : | L99: 0 | N99: 1 | P99: -1 | R99: 0 | S99: 0 | T99: 0 | U99: -99 | V99: 0 | W99: 0 | X99: 0 | Y99: 0 | Z99: 0 | AA99: 0 | AB99: 0 | AC99: 0 | AD99: 0 | AE99: 0 | AF99: 0 | AG99: 0 | AH99: 0 | AI99: 30102 | AK99: 0 | AL99: 0 | AM99: 0 | AN99: 0 | AO99: 0 | AP99: 0 | AQ99: 0 | AR99: 0 | AS99: 0 | AT99: 0 | AU99: 0 | AV99: 0 | AW99: 0 | AX99: 0 | AY99: 0 | AZ99: 0 | BA99: 0 | BB99: 3 | BD99: 0 | BE99: 0 | BF99: 0 | BG99: -1 | BH99: 0 | BI99: 0 | BJ99: 0 | BK99: 0 | BL99: 0 | BM99: 0 | BN99: 0 | BO99: 0 | BP99: 0 | BQ99: 0 | BR99: 0 | BS99: 0 | BT99: 0 | BU99: 1 | BW99: 0 | BX99: 0 | BY99: 0 | BZ99: 1 | CA99: 0 | CB99: 0 | CC99: 0 | CD99: 0 | CE99: 0 | CF99: 0 | CG99: 0 | CH99: 0 | CI99: 0 | CJ99: 0 | CK99: 0 | CL99: 0 | CM99: 0 | CN99: 2 | CP99: 0 | CQ99: 0 | CR99: 0 | CS99: 2 | CT99: 0 | CU99: 0 | CV99: 0 | CW99: 0 | CX99: 0 | CY99: 0 | CZ99: 0 | DA99: 0 | DB99: 0 | DC99: 0 | DD99: 0 | DE99: 0 | DF99: 0 | DG99: 1 | DH99: 9 | DI99: 4 | DJ99: 9 | DK99: 34:32 | DL99: 2 : 1
B100: VfL WolfsburgBayer 04 Leverkusen | C100: VfL Wolfsburg | D100: - | E100: Bayer 04 Leverkusen | F100: 1 | G100: : | H100: 2 | J100: 0 | K100: : | L100: 3 | N100: -1 | P100: 1 | R100: 0 | S100: 0 | T100: 0 | U100: 0 | V100: 0 | W100: 0 | X100: 0 | Y100: 0 | Z100: 30102 | AA100: 0 | AB100: -99 | AC100: 0 | AD100: 0 | AE100: 0 | AF100: 0 | AG100: 0 | AH100: 0 | AI100: 0 | AK100: 0 | AL100: 0 | AM100: 0 | AN100: 0 | AO100: 0 | AP100: 0 | AQ100: 0 | AR100: 0 | AS100: 3 | AT100: 0 | AU100: 0 | AV100: 0 | AW100: 0 | AX100: 0 | AY100: 0 | AZ100: 0 | BA100: 0 | BB100: 0 | BD100: 0 | BE100: 0 | BF100: 0 | BG100: 0 | BH100: 0 | BI100: 0 | BJ100: 0 | BK100: 0 | BL100: 1 | BM100: 0 | BN100: -1 | BO100: 0 | BP100: 0 | BQ100: 0 | BR100: 0 | BS100: 0 | BT100: 0 | BU100: 0 | BW100: 0 | BX100: 0 | BY100: 0 | BZ100: 0 | CA100: 0 | CB100: 0 | CC100: 0 | CD100: 0 | CE100: 2 | CF100: 0 | CG100: 1 | CH100: 0 | CI100: 0 | CJ100: 0 | CK100: 0 | CL100: 0 | CM100: 0 | CN100: 0 | CP100: 0 | CQ100: 0 | CR100: 0 | CS100: 0 | CT100: 0 | CU100: 0 | CV100: 0 | CW100: 0 | CX100: 2 | CY100: 0 | CZ100: 1 | DA100: 0 | DB100: 0 | DC100: 0 | DD100: 0 | DE100: 0 | DF100: 0 | DG100: 0 | DH100: 20 | DI100: 10 | DJ100: 24 | DK100: 81:93 | DL100: 2 : 2
B101: 1. FSV Mainz 05FC Bayern München | C101: 1. FSV Mainz 05 | D101: - | E101: FC Bayern München | F101: 1 | G101: : | H101: 3 | J101: 0 | K101: : | L101: 3 | N101: -2 | P101: 2 | R101: 0 | S101: 30203 | T101: 0 | U101: 0 | V101: 0 | W101: 0 | X101: 0 | Y101: 0 | Z101: 0 | AA101: 0 | AB101: 0 | AC101: 0 | AD101: 0 | AE101: -199 | AF101: 0 | AG101: 0 | AH101: 0 | AI101: 0 | AK101: 0 | AL101: 3 | AM101: 0 | AN101: 0 | AO101: 0 | AP101: 0 | AQ101: 0 | AR101: 0 | AS101: 0 | AT101: 0 | AU101: 0 | AV101: 0 | AW101: 0 | AX101: 0 | AY101: 0 | AZ101: 0 | BA101: 0 | BB101: 0 | BD101: 0 | BE101: 2 | BF101: 0 | BG101: 0 | BH101: 0 | BI101: 0 | BJ101: 0 | BK101: 0 | BL101: 0 | BM101: 0 | BN101: 0 | BO101: 0 | BP101: 0 | BQ101: -2 | BR101: 0 | BS101: 0 | BT101: 0 | BU101: 0 | BW101: 0 | BX101: 3 | BY101: 0 | BZ101: 0 | CA101: 0 | CB101: 0 | CC101: 0 | CD101: 0 | CE101: 0 | CF101: 0 | CG101: 0 | CH101: 0 | CI101: 0 | CJ101: 1 | CK101: 0 | CL101: 0 | CM101: 0 | CN101: 0 | CP101: 0 | CQ101: 2 | CR101: 0 | CS101: 0 | CT101: 0 | CU101: 0 | CV101: 0 | CW101: 0 | CX101: 0 | CY101: 0 | CZ101: 0 | DA101: 0 | DB101: 0 | DC101: 1 | DD101: 0 | DE101: 0 | DF101: 0 | DG101: 0 | DH101: 7 | DI101: 3 | DJ101: 24 | DK101: 41:95 | DL101: 1 : 3
B102: SV Darmstadt 98RB Leipzig | C102: SV Darmstadt 98 | D102: - | E102: RB Leipzig | F102: 1 | G102: : | H102: 3 | J102: 0 | K102: : | L102: 3 | N102: -2 | P102: 2 | R102: 0 | S102: 0 | T102: 0 | U102: 0 | V102: 0 | W102: 0 | X102: 0 | Y102: -199 | Z102: 0 | AA102: 30203 | AB102: 0 | AC102: 0 | AD102: 0 | AE102: 0 | AF102: 0 | AG102: 0 | AH102: 0 | AI102: 0 | AK102: 0 | AL102: 0 | AM102: 0 | AN102: 0 | AO102: 0 | AP102: 0 | AQ102: 0 | AR102: 0 | AS102: 0 | AT102: 3 | AU102: 0 | AV102: 0 | AW102: 0 | AX102: 0 | AY102: 0 | AZ102: 0 | BA102: 0 | BB102: 0 | BD102: 0 | BE102: 0 | BF102: 0 | BG102: 0 | BH102: 0 | BI102: 0 | BJ102: 0 | BK102: -2 | BL102: 0 | BM102: 2 | BN102: 0 | BO102: 0 | BP102: 0 | BQ102: 0 | BR102: 0 | BS102: 0 | BT102: 0 | BU102: 0 | BW102: 0 | BX102: 0 | BY102: 0 | BZ102: 0 | CA102: 0 | CB102: 0 | CC102: 0 | CD102: 1 | CE102: 0 | CF102: 3 | CG102: 0 | CH102: 0 | CI102: 0 | CJ102: 0 | CK102: 0 | CL102: 0 | CM102: 0 | CN102: 0 | CP102: 0 | CQ102: 0 | CR102: 0 | CS102: 0 | CT102: 0 | CU102: 0 | CV102: 0 | CW102: 1 | CX102: 0 | CY102: 2 | CZ102: 0 | DA102: 0 | DB102: 0 | DC102: 0 | DD102: 0 | DE102: 0 | DF102: 0 | DG102: 0 | DH102: 1 | DI102: 0 | DJ102: 3 | DK102: 2:8 | DL102: 1 : 2
B103: 1. FC Union BerlinVfB Stuttgart | C103: 1. FC Union Berlin | D103: - | E103: VfB Stuttgart | F103: 0 | G103: : | H103: 3 | J103: 0 | K103: : | L103: 3 | N103: -3 | P103: 3 | R103: 0 | S103: 0 | T103: 30303 | U103: 0 | V103: 0 | W103: 0 | X103: 0 | Y103: 0 | Z103: 0 | AA103: 0 | AB103: 0 | AC103: 0 | AD103: -300 | AE103: 0 | AF103: 0 | AG103: 0 | AH103: 0 | AI103: 0 | AK103: 0 | AL103: 0 | AM103: 3 | AN103: 0 | AO103: 0 | AP103: 0 | AQ103: 0 | AR103: 0 | AS103: 0 | AT103: 0 | AU103: 0 | AV103: 0 | AW103: 0 | AX103: 0 | AY103: 0 | AZ103: 0 | BA103: 0 | BB103: 0 | BD103: 0 | BE103: 0 | BF103: 3 | BG103: 0 | BH103: 0 | BI103: 0 | BJ103: 0 | BK103: 0 | BL103: 0 | BM103: 0 | BN103: 0 | BO103: 0 | BP103: -3 | BQ103: 0 | BR103: 0 | BS103: 0 | BT103: 0 | BU103: 0 | BW103: 0 | BX103: 0 | BY103: 3 | BZ103: 0 | CA103: 0 | CB103: 0 | CC103: 0 | CD103: 0 | CE103: 0 | CF103: 0 | CG103: 0 | CH103: 0 | CI103: 0 | CJ103: 0 | CK103: 0 | CL103: 0 | CM103: 0 | CN103: 0 | CP103: 0 | CQ103: 0 | CR103: 2 | CS103: 0 | CT103: 0 | CU103: 0 | CV103: 0 | CW103: 0 | CX103: 0 | CY103: 0 | CZ103: 0 | DA103: 0 | DB103: 1 | DC103: 0 | DD103: 0 | DE103: 0 | DF103: 0 | DG103: 0 | DH103: 3 | DI103: 4 | DJ103: 1 | DK103: 12:9 | DL103: 2 : 1
B104: TSG HoffenheimEintracht Frankfurt | C104: TSG Hoffenheim | D104: - | E104: Eintracht Frankfurt | F104: 1 | G104: : | H104: 3 | J104: 0 | K104: : | L104: 3 | N104: -2 | P104: 2 | R104: 0 | S104: 0 | T104: 0 | U104: 0 | V104: 0 | W104: 0 | X104: 30203 | Y104: 0 | Z104: 0 | AA104: 0 | AB104: 0 | AC104: 0 | AD104: 0 | AE104: 0 | AF104: 0 | AG104: 0 | AH104: -199 | AI104: 0 | AK104: 0 | AL104: 0 | AM104: 0 | AN104: 0 | AO104: 0 | AP104: 0 | AQ104: 3 | AR104: 0 | AS104: 0 | AT104: 0 | AU104: 0 | AV104: 0 | AW104: 0 | AX104: 0 | AY104: 0 | AZ104: 0 | BA104: 0 | BB104: 0 | BD104: 0 | BE104: 0 | BF104: 0 | BG104: 0 | BH104: 0 | BI104: 0 | BJ104: 2 | BK104: 0 | BL104: 0 | BM104: 0 | BN104: 0 | BO104: 0 | BP104: 0 | BQ104: 0 | BR104: 0 | BS104: 0 | BT104: -2 | BU104: 0 | BW104: 0 | BX104: 0 | BY104: 0 | BZ104: 0 | CA104: 0 | CB104: 0 | CC104: 3 | CD104: 0 | CE104: 0 | CF104: 0 | CG104: 0 | CH104: 0 | CI104: 0 | CJ104: 0 | CK104: 0 | CL104: 0 | CM104: 1 | CN104: 0 | CP104: 0 | CQ104: 0 | CR104: 0 | CS104: 0 | CT104: 0 | CU104: 0 | CV104: 2 | CW104: 0 | CX104: 0 | CY104: 0 | CZ104: 0 | DA104: 0 | DB104: 0 | DC104: 0 | DD104: 0 | DE104: 0 | DF104: 1 | DG104: 0 | DH104: 10 | DI104: 8 | DJ104: 10 | DK104: 39:40 | DL104: 1 : 1
B105: 1. FC Heidenheim 1846FC Augsburg | C105: 1. FC Heidenheim 1846 | D105: - | E105: FC Augsburg | F105: 2 | G105: : | H105: 5 | J105: 0 | K105: : | L105: 3 | N105: -3 | P105: 3 | R105: 0 | S105: 0 | T105: 0 | U105: 0 | V105: 0 | W105: 0 | X105: 0 | Y105: 0 | Z105: 0 | AA105: 0 | AB105: 0 | AC105: -298 | AD105: 0 | AE105: 0 | AF105: 30305 | AG105: 0 | AH105: 0 | AI105: 0 | AK105: 0 | AL105: 0 | AM105: 0 | AN105: 0 | AO105: 0 | AP105: 0 | AQ105: 0 | AR105: 0 | AS105: 0 | AT105: 0 | AU105: 0 | AV105: 0 | AW105: 0 | AX105: 0 | AY105: 3 | AZ105: 0 | BA105: 0 | BB105: 0 | BD105: 0 | BE105: 0 | BF105: 0 | BG105: 0 | BH105: 0 | BI105: 0 | BJ105: 0 | BK105: 0 | BL105: 0 | BM105: 0 | BN105: 0 | BO105: -3 | BP105: 0 | BQ105: 0 | BR105: 3 | BS105: 0 | BT105: 0 | BU105: 0 | BW105: 0 | BX105: 0 | BY105: 0 | BZ105: 0 | CA105: 0 | CB105: 0 | CC105: 0 | CD105: 0 | CE105: 0 | CF105: 0 | CG105: 0 | CH105: 2 | CI105: 0 | CJ105: 0 | CK105: 5 | CL105: 0 | CM105: 0 | CN105: 0 | CP105: 0 | CQ105: 0 | CR105: 0 | CS105: 0 | CT105: 0 | CU105: 0 | CV105: 0 | CW105: 0 | CX105: 0 | CY105: 0 | CZ105: 0 | DA105: 1 | DB105: 0 | DC105: 0 | DD105: 2 | DE105: 0 | DF105: 0 | DG105: 0 | DH105: - | DI105: - | DJ105: - | DK105: -
R106: =SUM(R97:R105)+R93 -> 59412 | S106: 201926 | T106: 211725 | U106: 38506 | V106: 200917 | W106: 39207 | X106: 130309 | Y106: 69113 | Z106: 221825 | AA106: 171219 | AB106: 120011 | AC106: 69212 | AD106: 59411 | AE106: 18507 | AF106: 79615 | AG106: 59514 | AH106: 150317 | AI106: 129509 | AK106: =SUM(AK97:AK105)+AK93 -> 6 | AL106: 20 | AM106: 21 | AN106: 4 | AO106: 20 | AP106: 4 | AQ106: 13 | AR106: 7 | AS106: 22 | AT106: 17 | AU106: 12 | AV106: 7 | AW106: 6 | AX106: 2 | AY106: 8 | AZ106: 6 | BA106: 15 | BB106: 13 | BD106: =SUM(BD97:BD105)+BD93 -> -6 | BE106: 19 | BF106: 17 | BG106: -15 | BH106: 9 | BI106: -8 | BJ106: 3 | BK106: -9 | BL106: 18 | BM106: 12 | BN106: 0 | BO106: -8 | BP106: -6 | BQ106: -15 | BR106: -4 | BS106: -5 | BT106: 3 | BU106: -5 | BW106: =SUM(BW97:BW105)+BW93 -> 12 | BX106: 26 | BY106: 25 | BZ106: 6 | CA106: 17 | CB106: 7 | CC106: 9 | CD106: 13 | CE106: 25 | CF106: 19 | CG106: 11 | CH106: 12 | CI106: 11 | CJ106: 7 | CK106: 15 | CL106: 14 | CM106: 17 | CN106: 9 | CO106: x | CP106: =IF(CP107<=$CO$3,SUMIF(CP97:CP105,1,$J97:$J105)+SUMIF(CP97:CP105,2,$L97:$L105),0) -> 0 | CQ106: 0 | CR106: 0 | CS106: 0 | CT106: 0 | CU106: 0 | CV106: 0 | CW106: 0 | CX106: 0 | CY106: 0 | CZ106: 0 | DA106: 0 | DB106: 0 | DC106: 0 | DD106: 0 | DE106: 0 | DF106: 0 | DG106: 0
R107: =RANK(R106,$R106:$AI106,0) -> 14 | S107: 3 | T107: 2 | U107: 17 | V107: 4 | W107: 16 | X107: 7 | Y107: 12 | Z107: 1 | AA107: 5 | AB107: 9 | AC107: 11 | AD107: 15 | AE107: 18 | AF107: 10 | AG107: 13 | AH107: 6 | AI107: 8 | CP107: =IF(SUM(CP97:CP105)>0,IF(CP120=0,1,CP120+1),IF(CP120<>0,CP120,0)) -> 27 | CQ107: 27 | CR107: 27 | CS107: 27 | CT107: 27 | CU107: 27 | CV107: 27 | CW107: 27 | CX107: 27 | CY107: 27 | CZ107: 27 | DA107: 27 | DB107: 27 | DC107: 27 | DD107: 27 | DE107: 27 | DF107: 27 | DG107: 27
C108: 9. Spieltag
A109: =IF(SUM(J110:L118)>0,1,"Z") -> 1 | C109: 27.-29.10.2023
B110: =C110&E110 -> SV Werder Bremen1. FC Union Berlin | C110: SV Werder Bremen | D110: - | E110: 1. FC Union Berlin | F110: 2 | G110: : | H110: 0 | J110: =IF(F110>H110,3,IF(F110<H110,0,IF(AND(H110<>"",F110=H110),1,0))) -> 3 | K110: : | L110: =IF(F110>H110,0,IF(F110<H110,3,IF(AND(H110<>"",F110=H110),1,0))) -> 0 | N110: =F110-H110 -> 2 | P110: =H110-F110 -> -2 | R110: =(AK110*10000+BD110*100+BW110) -> 30202 | S110: =(AL110*10000+BE110*100+BX110) -> 0 | T110: =(AM110*10000+BF110*100+BY110) -> 0 | U110: =(AN110*10000+BG110*100+BZ110) -> 0 | V110: =(AO110*10000+BH110*100+CA110) -> 0 | W110: =(AP110*10000+BI110*100+CB110) -> 0 | X110: =(AQ110*10000+BJ110*100+CC110) -> 0 | Y110: =(AR110*10000+BK110*100+CD110) -> 0 | Z110: =(AS110*10000+BL110*100+CE110) -> 0 | AA110: =(AT110*10000+BM110*100+CF110) -> 0 | AB110: =(AU110*10000+BN110*100+CG110) -> 0 | AC110: =(AV110*10000+BO110*100+CH110) -> 0 | AD110: =(AW110*10000+BP110*100+CI110) -> -200 | AE110: =(AX110*10000+BQ110*100+CJ110) -> 0 | AF110: =(AY110*10000+BR110*100+CK110) -> 0 | AG110: =(AZ110*10000+BS110*100+CL110) -> 0 | AH110: =(BA110*10000+BT110*100+CM110) -> 0 | AI110: =(BB110*10000+BU110*100+CN110) -> 0 | AK110: =IF($C110=AK$1,$J110,IF($E110=AK$1,$L110,0)) -> 3 | AL110: 0 | AM110: 0 | AN110: 0 | AO110: 0 | AP110: 0 | AQ110: 0 | AR110: 0 | AS110: 0 | AT110: 0 | AU110: =IF($C110=AU$1,$J110,IF($E110=AU$1,$L110,0)) -> 0 | AV110: 0 | AW110: 0 | AX110: 0 | AY110: 0 | AZ110: 0 | BA110: 0 | BB110: 0 | BD110: =IF($C110=BD$1,$F110-$H110,IF($E110=BD$1,$H110-$F110,0)) -> 2 | BE110: 0 | BF110: 0 | BG110: 0 | BH110: 0 | BI110: 0 | BJ110: 0 | BK110: 0 | BL110: 0 | BM110: 0 | BN110: =IF($C110=BN$1,$F110-$H110,IF($E110=BN$1,$H110-$F110,0)) -> 0 | BO110: 0 | BP110: -2 | BQ110: 0 | BR110: 0 | BS110: 0 | BT110: 0 | BU110: 0 | BW110: =IF($C110=BW$1,$F110,IF($E110=BW$1,$H110,0)) -> 2 | BX110: 0 | BY110: 0 | BZ110: 0 | CA110: 0 | CB110: 0 | CC110: 0 | CD110: 0 | CE110: 0 | CF110: 0 | CG110: =IF($C110=CG$1,$F110,IF($E110=CG$1,$H110,0)) -> 0 | CH110: 0 | CI110: 0 | CJ110: 0 | CK110: 0 | CL110: 0 | CM110: 0 | CN110: 0 | CP110: =IF($C110=CP$1,IF($F110<>"",1,0),IF($E110=CP$1,IF($H110<>"",2,0),0)) -> 1 | CQ110: 0 | CR110: 0 | CS110: 0 | CT110: 0 | CU110: 0 | CV110: 0 | CW110: 0 | CX110: 0 | CY110: 0 | CZ110: =IF($C110=CZ$1,IF($F110<>"",1,0),IF($E110=CZ$1,IF($H110<>"",2,0),0)) -> 0 | DA110: 0 | DB110: 2 | DC110: 0 | DD110: 0 | DE110: 0 | DF110: 0 | DG110: 0 | DH110: 1 | DI110: 0 | DJ110: 5 | DK110: 4:11 | DL110: =IFERROR(ROUND(MID(DK110,1,SEARCH(":",DK110,1)-1)/SUM(DH110:DJ110),$DL$2)&" : "&ROUND(MID(DK110,SEARCH(":",DK110,1)+1,99)/SUM(DH110:DJ110),$DL$2),"") -> 1 : 2
B111: FC Bayern MünchenSV Darmstadt 98 | C111: FC Bayern München | D111: - | E111: SV Darmstadt 98 | F111: 8 | G111: : | H111: 0 | J111: 3 | K111: : | L111: 0 | N111: =F111-H111 -> 8 | P111: =H111-F111 -> -8 | R111: 0 | S111: 30808 | T111: 0 | U111: 0 | V111: 0 | W111: 0 | X111: 0 | Y111: -800 | Z111: 0 | AA111: 0 | AB111: 0 | AC111: 0 | AD111: 0 | AE111: 0 | AF111: 0 | AG111: 0 | AH111: 0 | AI111: 0 | AK111: 0 | AL111: 3 | AM111: 0 | AN111: 0 | AO111: 0 | AP111: 0 | AQ111: 0 | AR111: 0 | AS111: 0 | AT111: 0 | AU111: 0 | AV111: 0 | AW111: 0 | AX111: 0 | AY111: 0 | AZ111: 0 | BA111: 0 | BB111: 0 | BD111: 0 | BE111: 8 | BF111: 0 | BG111: 0 | BH111: 0 | BI111: 0 | BJ111: 0 | BK111: -8 | BL111: 0 | BM111: 0 | BN111: 0 | BO111: 0 | BP111: 0 | BQ111: 0 | BR111: 0 | BS111: 0 | BT111: 0 | BU111: 0 | BW111: 0 | BX111: 8 | BY111: 0 | BZ111: 0 | CA111: 0 | CB111: 0 | CC111: 0 | CD111: 0 | CE111: 0 | CF111: 0 | CG111: 0 | CH111: 0 | CI111: 0 | CJ111: 0 | CK111: 0 | CL111: 0 | CM111: 0 | CN111: 0 | CP111: 0 | CQ111: 1 | CR111: 0 | CS111: 0 | CT111: 0 | CU111: 0 | CV111: 0 | CW111: 2 | CX111: 0 | CY111: 0 | CZ111: 0 | DA111: 0 | DB111: 0 | DC111: 0 | DD111: 0 | DE111: 0 | DF111: 0 | DG111: 0 | DH111: 7 | DI111: 1 | DJ111: 0 | DK111: 18:5 | DL111: 2 : 1
B112: VfB StuttgartTSG Hoffenheim | C112: VfB Stuttgart | D112: - | E112: TSG Hoffenheim | F112: 2 | G112: : | H112: 3 | J112: 0 | K112: : | L112: 3 | N112: -1 | P112: 1 | R112: 0 | S112: 0 | T112: -98 | U112: 0 | V112: 0 | W112: 0 | X112: 0 | Y112: 0 | Z112: 0 | AA112: 0 | AB112: 0 | AC112: 0 | AD112: 0 | AE112: 0 | AF112: 0 | AG112: 0 | AH112: 30103 | AI112: 0 | AK112: 0 | AL112: 0 | AM112: 0 | AN112: 0 | AO112: 0 | AP112: 0 | AQ112: 0 | AR112: 0 | AS112: 0 | AT112: 0 | AU112: 0 | AV112: 0 | AW112: 0 | AX112: 0 | AY112: 0 | AZ112: 0 | BA112: 3 | BB112: 0 | BD112: 0 | BE112: 0 | BF112: -1 | BG112: 0 | BH112: 0 | BI112: 0 | BJ112: 0 | BK112: 0 | BL112: 0 | BM112: 0 | BN112: 0 | BO112: 0 | BP112: 0 | BQ112: 0 | BR112: 0 | BS112: 0 | BT112: 1 | BU112: 0 | BW112: 0 | BX112: 0 | BY112: 2 | BZ112: 0 | CA112: 0 | CB112: 0 | CC112: 0 | CD112: 0 | CE112: 0 | CF112: 0 | CG112: 0 | CH112: 0 | CI112: 0 | CJ112: 0 | CK112: 0 | CL112: 0 | CM112: 3 | CN112: 0 | CP112: 0 | CQ112: 0 | CR112: 1 | CS112: 0 | CT112: 0 | CU112: 0 | CV112: 0 | CW112: 0 | CX112: 0 | CY112: 0 | CZ112: 0 | DA112: 0 | DB112: 0 | DC112: 0 | DD112: 0 | DE112: 0 | DF112: 2 | DG112: 0 | DH112: 10 | DI112: 9 | DJ112: 7 | DK112: 45:39 | DL112: 2 : 2
B113: Borussia Mönchengladbach1. FC Heidenheim 1846 | C113: Borussia Mönchengladbach | D113: - | E113: 1. FC Heidenheim 1846 | F113: 2 | G113: : | H113: 1 | J113: 3 | K113: : | L113: 0 | N113: 1 | P113: -1 | R113: 0 | S113: 0 | T113: 0 | U113: 0 | V113: 0 | W113: 0 | X113: 0 | Y113: 0 | Z113: 0 | AA113: 0 | AB113: 0 | AC113: -99 | AD113: 0 | AE113: 0 | AF113: 0 | AG113: 30102 | AH113: 0 | AI113: 0 | AK113: 0 | AL113: 0 | AM113: 0 | AN113: 0 | AO113: 0 | AP113: 0 | AQ113: 0 | AR113: 0 | AS113: 0 | AT113: 0 | AU113: 0 | AV113: 0 | AW113: 0 | AX113: 0 | AY113: 0 | AZ113: 3 | BA113: 0 | BB113: 0 | BD113: 0 | BE113: 0 | BF113: 0 | BG113: 0 | BH113: 0 | BI113: 0 | BJ113: 0 | BK113: 0 | BL113: 0 | BM113: 0 | BN113: 0 | BO113: -1 | BP113: 0 | BQ113: 0 | BR113: 0 | BS113: 1 | BT113: 0 | BU113: 0 | BW113: 0 | BX113: 0 | BY113: 0 | BZ113: 0 | CA113: 0 | CB113: 0 | CC113: 0 | CD113: 0 | CE113: 0 | CF113: 0 | CG113: 0 | CH113: 1 | CI113: 0 | CJ113: 0 | CK113: 0 | CL113: 2 | CM113: 0 | CN113: 0 | CP113: 0 | CQ113: 0 | CR113: 0 | CS113: 0 | CT113: 0 | CU113: 0 | CV113: 0 | CW113: 0 | CX113: 0 | CY113: 0 | CZ113: 0 | DA113: 2 | DB113: 0 | DC113: 0 | DD113: 0 | DE113: 1 | DF113: 0 | DG113: 0 | DH113: - | DI113: - | DJ113: - | DK113: -
B114: Eintracht FrankfurtBorussia Dortmund | C114: Eintracht Frankfurt | D114: - | E114: Borussia Dortmund | F114: 3 | G114: : | H114: 3 | J114: 1 | K114: : | L114: 1 | N114: 0 | P114: 0 | R114: 0 | S114: 0 | T114: 0 | U114: 0 | V114: 10003 | W114: 0 | X114: 10003 | Y114: 0 | Z114: 0 | AA114: 0 | AB114: 0 | AC114: 0 | AD114: 0 | AE114: 0 | AF114: 0 | AG114: 0 | AH114: 0 | AI114: 0 | AK114: 0 | AL114: 0 | AM114: 0 | AN114: 0 | AO114: 1 | AP114: 0 | AQ114: 1 | AR114: 0 | AS114: 0 | AT114: 0 | AU114: 0 | AV114: 0 | AW114: 0 | AX114: 0 | AY114: 0 | AZ114: 0 | BA114: 0 | BB114: 0 | BD114: 0 | BE114: 0 | BF114: 0 | BG114: 0 | BH114: 0 | BI114: 0 | BJ114: 0 | BK114: 0 | BL114: 0 | BM114: 0 | BN114: 0 | BO114: 0 | BP114: 0 | BQ114: 0 | BR114: 0 | BS114: 0 | BT114: 0 | BU114: 0 | BW114: 0 | BX114: 0 | BY114: 0 | BZ114: 0 | CA114: 3 | CB114: 0 | CC114: 3 | CD114: 0 | CE114: 0 | CF114: 0 | CG114: 0 | CH114: 0 | CI114: 0 | CJ114: 0 | CK114: 0 | CL114: 0 | CM114: 0 | CN114: 0 | CP114: 0 | CQ114: 0 | CR114: 0 | CS114: 0 | CT114: 2 | CU114: 0 | CV114: 1 | CW114: 0 | CX114: 0 | CY114: 0 | CZ114: 0 | DA114: 0 | DB114: 0 | DC114: 0 | DD114: 0 | DE114: 0 | DF114: 0 | DG114: 0 | DH114: 31 | DI114: 20 | DJ114: 49 | DK114: 133:194 | DL114: 1 : 2
B115: VfL Bochum 18481. FSV Mainz 05 | C115: VfL Bochum 1848 | D115: - | E115: 1. FSV Mainz 05 | F115: 2 | G115: : | H115: 2 | J115: 1 | K115: : | L115: 1 | N115: 0 | P115: 0 | R115: 0 | S115: 0 | T115: 0 | U115: 10002 | V115: 0 | W115: 0 | X115: 0 | Y115: 0 | Z115: 0 | AA115: 0 | AB115: 0 | AC115: 0 | AD115: 0 | AE115: 10002 | AF115: 0 | AG115: 0 | AH115: 0 | AI115: 0 | AK115: 0 | AL115: 0 | AM115: 0 | AN115: 1 | AO115: 0 | AP115: 0 | AQ115: 0 | AR115: 0 | AS115: 0 | AT115: 0 | AU115: 0 | AV115: 0 | AW115: 0 | AX115: 1 | AY115: 0 | AZ115: 0 | BA115: 0 | BB115: 0 | BD115: 0 | BE115: 0 | BF115: 0 | BG115: 0 | BH115: 0 | BI115: 0 | BJ115: 0 | BK115: 0 | BL115: 0 | BM115: 0 | BN115: 0 | BO115: 0 | BP115: 0 | BQ115: 0 | BR115: 0 | BS115: 0 | BT115: 0 | BU115: 0 | BW115: 0 | BX115: 0 | BY115: 0 | BZ115: 2 | CA115: 0 | CB115: 0 | CC115: 0 | CD115: 0 | CE115: 0 | CF115: 0 | CG115: 0 | CH115: 0 | CI115: 0 | CJ115: 2 | CK115: 0 | CL115: 0 | CM115: 0 | CN115: 0 | CP115: 0 | CQ115: 0 | CR115: 0 | CS115: 1 | CT115: 0 | CU115: 0 | CV115: 0 | CW115: 0 | CX115: 0 | CY115: 0 | CZ115: 0 | DA115: 0 | DB115: 0 | DC115: 2 | DD115: 0 | DE115: 0 | DF115: 0 | DG115: 0 | DH115: 5 | DI115: 2 | DJ115: 11 | DK115: 21:28 | DL115: 1 : 2
B116: Bayer 04 LeverkusenSport-Club Freiburg | C116: Bayer 04 Leverkusen | D116: - | E116: Sport-Club Freiburg | F116: 2 | G116: : | H116: 1 | J116: 3 | K116: : | L116: 0 | N116: 1 | P116: -1 | R116: 0 | S116: 0 | T116: 0 | U116: 0 | V116: 0 | W116: 0 | X116: 0 | Y116: 0 | Z116: 30102 | AA116: 0 | AB116: 0 | AC116: 0 | AD116: 0 | AE116: 0 | AF116: 0 | AG116: 0 | AH116: 0 | AI116: -99 | AK116: 0 | AL116: 0 | AM116: 0 | AN116: 0 | AO116: 0 | AP116: 0 | AQ116: 0 | AR116: 0 | AS116: 3 | AT116: 0 | AU116: 0 | AV116: 0 | AW116: 0 | AX116: 0 | AY116: 0 | AZ116: 0 | BA116: 0 | BB116: 0 | BD116: 0 | BE116: 0 | BF116: 0 | BG116: 0 | BH116: 0 | BI116: 0 | BJ116: 0 | BK116: 0 | BL116: 1 | BM116: 0 | BN116: 0 | BO116: 0 | BP116: 0 | BQ116: 0 | BR116: 0 | BS116: 0 | BT116: 0 | BU116: -1 | BW116: 0 | BX116: 0 | BY116: 0 | BZ116: 0 | CA116: 0 | CB116: 0 | CC116: 0 | CD116: 0 | CE116: 2 | CF116: 0 | CG116: 0 | CH116: 0 | CI116: 0 | CJ116: 0 | CK116: 0 | CL116: 0 | CM116: 0 | CN116: 1 | CP116: 0 | CQ116: 0 | CR116: 0 | CS116: 0 | CT116: 0 | CU116: 0 | CV116: 0 | CW116: 0 | CX116: 1 | CY116: 0 | CZ116: 0 | DA116: 0 | DB116: 0 | DC116: 0 | DD116: 0 | DE116: 0 | DF116: 0 | DG116: 2 | DH116: 20 | DI116: 14 | DJ116: 12 | DK116: 76:51 | DL116: 2 : 1
B117: FC AugsburgVfL Wolfsburg | C117: FC Augsburg | D117: - | E117: VfL Wolfsburg | F117: 3 | G117: : | H117: 2 | J117: 3 | K117: : | L117: 0 | N117: 1 | P117: -1 | R117: 0 | S117: 0 | T117: 0 | U117: 0 | V117: 0 | W117: 0 | X117: 0 | Y117: 0 | Z117: 0 | AA117: 0 | AB117: -98 | AC117: 0 | AD117: 0 | AE117: 0 | AF117: 30103 | AG117: 0 | AH117: 0 | AI117: 0 | AK117: 0 | AL117: 0 | AM117: 0 | AN117: 0 | AO117: 0 | AP117: 0 | AQ117: 0 | AR117: 0 | AS117: 0 | AT117: 0 | AU117: 0 | AV117: 0 | AW117: 0 | AX117: 0 | AY117: 3 | AZ117: 0 | BA117: 0 | BB117: 0 | BD117: 0 | BE117: 0 | BF117: 0 | BG117: 0 | BH117: 0 | BI117: 0 | BJ117: 0 | BK117: 0 | BL117: 0 | BM117: 0 | BN117: -1 | BO117: 0 | BP117: 0 | BQ117: 0 | BR117: 1 | BS117: 0 | BT117: 0 | BU117: 0 | BW117: 0 | BX117: 0 | BY117: 0 | BZ117: 0 | CA117: 0 | CB117: 0 | CC117: 0 | CD117: 0 | CE117: 0 | CF117: 0 | CG117: 2 | CH117: 0 | CI117: 0 | CJ117: 0 | CK117: 3 | CL117: 0 | CM117: 0 | CN117: 0 | CP117: 0 | CQ117: 0 | CR117: 0 | CS117: 0 | CT117: 0 | CU117: 0 | CV117: 0 | CW117: 0 | CX117: 0 | CY117: 0 | CZ117: 2 | DA117: 0 | DB117: 0 | DC117: 0 | DD117: 1 | DE117: 0 | DF117: 0 | DG117: 0 | DH117: 7 | DI117: 9 | DJ117: 8 | DK117: 24:29 | DL117: 1 : 1
B118: RB Leipzig1. FC Köln | C118: RB Leipzig | D118: - | E118: 1. FC Köln | F118: 6 | G118: : | H118: 0 | J118: 3 | K118: : | L118: 0 | N118: 6 | P118: -6 | R118: 0 | S118: 0 | T118: 0 | U118: 0 | V118: 0 | W118: -600 | X118: 0 | Y118: 0 | Z118: 0 | AA118: 30606 | AB118: 0 | AC118: 0 | AD118: 0 | AE118: 0 | AF118: 0 | AG118: 0 | AH118: 0 | AI118: 0 | AK118: 0 | AL118: 0 | AM118: 0 | AN118: 0 | AO118: 0 | AP118: 0 | AQ118: 0 | AR118: 0 | AS118: 0 | AT118: 3 | AU118: 0 | AV118: 0 | AW118: 0 | AX118: 0 | AY118: 0 | AZ118: 0 | BA118: 0 | BB118: 0 | BD118: 0 | BE118: 0 | BF118: 0 | BG118: 0 | BH118: 0 | BI118: -6 | BJ118: 0 | BK118: 0 | BL118: 0 | BM118: 6 | BN118: 0 | BO118: 0 | BP118: 0 | BQ118: 0 | BR118: 0 | BS118: 0 | BT118: 0 | BU118: 0 | BW118: 0 | BX118: 0 | BY118: 0 | BZ118: 0 | CA118: 0 | CB118: 0 | CC118: 0 | CD118: 0 | CE118: 0 | CF118: 6 | CG118: 0 | CH118: 0 | CI118: 0 | CJ118: 0 | CK118: 0 | CL118: 0 | CM118: 0 | CN118: 0 | CP118: 0 | CQ118: 0 | CR118: 0 | CS118: 0 | CT118: 0 | CU118: 2 | CV118: 0 | CW118: 0 | CX118: 0 | CY118: 1 | CZ118: 0 | DA118: 0 | DB118: 0 | DC118: 0 | DD118: 0 | DE118: 0 | DF118: 0 | DG118: 0 | DH118: 5 | DI118: 5 | DJ118: 2 | DK118: 22:14 | DL118: 2 : 1
R119: =SUM(R110:R118)+R106 -> 89614 | S119: 232734 | T119: 211627 | U119: 48508 | V119: 210920 | W119: 38607 | X119: 140312 | Y119: 68313 | Z119: 251927 | AA119: 201825 | AB119: 119913 | AC119: 69113 | AD119: 59211 | AE119: 28509 | AF119: 109718 | AG119: 89616 | AH119: 180420 | AI119: 129410 | AK119: =SUM(AK110:AK118)+AK106 -> 9 | AL119: 23 | AM119: 21 | AN119: 5 | AO119: 21 | AP119: 4 | AQ119: 14 | AR119: 7 | AS119: 25 | AT119: 20 | AU119: 12 | AV119: 7 | AW119: 6 | AX119: 3 | AY119: 11 | AZ119: 9 | BA119: 18 | BB119: 13 | BD119: =SUM(BD110:BD118)+BD106 -> -4 | BE119: 27 | BF119: 16 | BG119: -15 | BH119: 9 | BI119: -14 | BJ119: 3 | BK119: -17 | BL119: 19 | BM119: 18 | BN119: -1 | BO119: -9 | BP119: -8 | BQ119: -15 | BR119: -3 | BS119: -4 | BT119: 4 | BU119: -6 | BW119: =SUM(BW110:BW118)+BW106 -> 14 | BX119: 34 | BY119: 27 | BZ119: 8 | CA119: 20 | CB119: 7 | CC119: 12 | CD119: 13 | CE119: 27 | CF119: 25 | CG119: 13 | CH119: 13 | CI119: 11 | CJ119: 9 | CK119: 18 | CL119: 16 | CM119: 20 | CN119: 10 | CO119: x | CP119: =IF(CP120<=$CO$3,SUMIF(CP110:CP118,1,$J110:$J118)+SUMIF(CP110:CP118,2,$L110:$L118),0) -> 0 | CQ119: 0 | CR119: 0 | CS119: 0 | CT119: 0 | CU119: 0 | CV119: 0 | CW119: 0 | CX119: 0 | CY119: 0 | CZ119: 0 | DA119: 0 | DB119: 0 | DC119: 0 | DD119: 0 | DE119: 0 | DF119: 0 | DG119: 0
R120: =RANK(R119,$R119:$AI119,0) -> 12 | S120: 2 | T120: 3 | U120: 16 | V120: 4 | W120: 17 | X120: 7 | Y120: 14 | Z120: 1 | AA120: 5 | AB120: 9 | AC120: 13 | AD120: 15 | AE120: 18 | AF120: 10 | AG120: 11 | AH120: 6 | AI120: 8 | CP120: =IF(SUM(CP110:CP118)>0,IF(CP133=0,1,CP133+1),IF(CP133<>0,CP133,0)) -> 26 | CQ120: 26 | CR120: 26 | CS120: 26 | CT120: 26 | CU120: 26 | CV120: 26 | CW120: 26 | CX120: 26 | CY120: 26 | CZ120: 26 | DA120: 26 | DB120: 26 | DC120: 26 | DD120: 26 | DE120: 26 | DF120: 26 | DG120: 26
C121: 10. Spieltag
A122: =IF(SUM(J123:L131)>0,1,"Z") -> 1 | C122: 03.-05.11.2023
B123: =C123&E123 -> 1. FC KölnFC Augsburg | C123: 1. FC Köln | D123: - | E123: FC Augsburg | F123: 1 | G123: : | H123: 1 | J123: =IF(F123>H123,3,IF(F123<H123,0,IF(AND(H123<>"",F123=H123),1,0))) -> 1 | K123: : | L123: =IF(F123>H123,0,IF(F123<H123,3,IF(AND(H123<>"",F123=H123),1,0))) -> 1 | N123: =F123-H123 -> 0 | P123: =H123-F123 -> 0 | R123: =(AK123*10000+BD123*100+BW123) -> 0 | S123: =(AL123*10000+BE123*100+BX123) -> 0 | T123: =(AM123*10000+BF123*100+BY123) -> 0 | U123: =(AN123*10000+BG123*100+BZ123) -> 0 | V123: =(AO123*10000+BH123*100+CA123) -> 0 | W123: =(AP123*10000+BI123*100+CB123) -> 10001 | X123: =(AQ123*10000+BJ123*100+CC123) -> 0 | Y123: =(AR123*10000+BK123*100+CD123) -> 0 | Z123: =(AS123*10000+BL123*100+CE123) -> 0 | AA123: =(AT123*10000+BM123*100+CF123) -> 0 | AB123: =(AU123*10000+BN123*100+CG123) -> 0 | AC123: =(AV123*10000+BO123*100+CH123) -> 0 | AD123: =(AW123*10000+BP123*100+CI123) -> 0 | AE123: =(AX123*10000+BQ123*100+CJ123) -> 0 | AF123: =(AY123*10000+BR123*100+CK123) -> 10001 | AG123: =(AZ123*10000+BS123*100+CL123) -> 0 | AH123: =(BA123*10000+BT123*100+CM123) -> 0 | AI123: =(BB123*10000+BU123*100+CN123) -> 0 | AK123: =IF($C123=AK$1,$J123,IF($E123=AK$1,$L123,0)) -> 0 | AL123: 0 | AM123: 0 | AN123: 0 | AO123: 0 | AP123: 1 | AQ123: 0 | AR123: 0 | AS123: 0 | AT123: 0 | AU123: =IF($C123=AU$1,$J123,IF($E123=AU$1,$L123,0)) -> 0 | AV123: 0 | AW123: 0 | AX123: 0 | AY123: 1 | AZ123: 0 | BA123: 0 | BB123: 0 | BD123: =IF($C123=BD$1,$F123-$H123,IF($E123=BD$1,$H123-$F123,0)) -> 0 | BE123: 0 | BF123: 0 | BG123: 0 | BH123: 0 | BI123: 0 | BJ123: 0 | BK123: 0 | BL123: 0 | BM123: 0 | BN123: =IF($C123=BN$1,$F123-$H123,IF($E123=BN$1,$H123-$F123,0)) -> 0 | BO123: 0 | BP123: 0 | BQ123: 0 | BR123: 0 | BS123: 0 | BT123: 0 | BU123: 0 | BW123: =IF($C123=BW$1,$F123,IF($E123=BW$1,$H123,0)) -> 0 | BX123: 0 | BY123: 0 | BZ123: 0 | CA123: 0 | CB123: 1 | CC123: 0 | CD123: 0 | CE123: 0 | CF123: 0 | CG123: =IF($C123=CG$1,$F123,IF($E123=CG$1,$H123,0)) -> 0 | CH123: 0 | CI123: 0 | CJ123: 0 | CK123: 1 | CL123: 0 | CM123: 0 | CN123: 0 | CP123: =IF($C123=CP$1,IF($F123<>"",1,0),IF($E123=CP$1,IF($H123<>"",2,0),0)) -> 0 | CQ123: 0 | CR123: 0 | CS123: 0 | CT123: 0 | CU123: 1 | CV123: 0 | CW123: 0 | CX123: 0 | CY123: 0 | CZ123: =IF($C123=CZ$1,IF($F123<>"",1,0),IF($E123=CZ$1,IF($H123<>"",2,0),0)) -> 0 | DA123: 0 | DB123: 0 | DC123: 0 | DD123: 2 | DE123: 0 | DF123: 0 | DG123: 0 | DH123: 8 | DI123: 7 | DJ123: 7 | DK123: 31:24 | DL123: =IFERROR(ROUND(MID(DK123,1,SEARCH(":",DK123,1)-1)/SUM(DH123:DJ123),$DL$2)&" : "&ROUND(MID(DK123,SEARCH(":",DK123,1)+1,99)/SUM(DH123:DJ123),$DL$2),"") -> 1 : 1
B124: Borussia DortmundFC Bayern München | C124: Borussia Dortmund | D124: - | E124: FC Bayern München | F124: 0 | G124: : | H124: 4 | J124: 0 | K124: : | L124: 3 | N124: =F124-H124 -> -4 | P124: =H124-F124 -> 4 | R124: 0 | S124: 30404 | T124: 0 | U124: 0 | V124: -400 | W124: 0 | X124: 0 | Y124: 0 | Z124: 0 | AA124: 0 | AB124: 0 | AC124: 0 | AD124: 0 | AE124: 0 | AF124: 0 | AG124: 0 | AH124: 0 | AI124: 0 | AK124: 0 | AL124: 3 | AM124: 0 | AN124: 0 | AO124: 0 | AP124: 0 | AQ124: 0 | AR124: 0 | AS124: 0 | AT124: 0 | AU124: 0 | AV124: 0 | AW124: 0 | AX124: 0 | AY124: 0 | AZ124: 0 | BA124: 0 | BB124: 0 | BD124: 0 | BE124: 4 | BF124: 0 | BG124: 0 | BH124: -4 | BI124: 0 | BJ124: 0 | BK124: 0 | BL124: 0 | BM124: 0 | BN124: 0 | BO124: 0 | BP124: 0 | BQ124: 0 | BR124: 0 | BS124: 0 | BT124: 0 | BU124: 0 | BW124: 0 | BX124: 4 | BY124: 0 | BZ124: 0 | CA124: 0 | CB124: 0 | CC124: 0 | CD124: 0 | CE124: 0 | CF124: 0 | CG124: 0 | CH124: 0 | CI124: 0 | CJ124: 0 | CK124: 0 | CL124: 0 | CM124: 0 | CN124: 0 | CP124: 0 | CQ124: 2 | CR124: 0 | CS124: 0 | CT124: 1 | CU124: 0 | CV124: 0 | CW124: 0 | CX124: 0 | CY124: 0 | CZ124: 0 | DA124: 0 | DB124: 0 | DC124: 0 | DD124: 0 | DE124: 0 | DF124: 0 | DG124: 0 | DH124: 25 | DI124: 30 | DJ124: 53 | DK124: 133:219 | DL124: 1 : 2
B125: Sport-Club FreiburgBorussia Mönchengladbach | C125: Sport-Club Freiburg | D125: - | E125: Borussia Mönchengladbach | F125: 3 | G125: : | H125: 3 | J125: 1 | K125: : | L125: 1 | N125: 0 | P125: 0 | R125: 0 | S125: 0 | T125: 0 | U125: 0 | V125: 0 | W125: 0 | X125: 0 | Y125: 0 | Z125: 0 | AA125: 0 | AB125: 0 | AC125: 0 | AD125: 0 | AE125: 0 | AF125: 0 | AG125: 10003 | AH125: 0 | AI125: 10003 | AK125: 0 | AL125: 0 | AM125: 0 | AN125: 0 | AO125: 0 | AP125: 0 | AQ125: 0 | AR125: 0 | AS125: 0 | AT125: 0 | AU125: 0 | AV125: 0 | AW125: 0 | AX125: 0 | AY125: 0 | AZ125: 1 | BA125: 0 | BB125: 1 | BD125: 0 | BE125: 0 | BF125: 0 | BG125: 0 | BH125: 0 | BI125: 0 | BJ125: 0 | BK125: 0 | BL125: 0 | BM125: 0 | BN125: 0 | BO125: 0 | BP125: 0 | BQ125: 0 | BR125: 0 | BS125: 0 | BT125: 0 | BU125: 0 | BW125: 0 | BX125: 0 | BY125: 0 | BZ125: 0 | CA125: 0 | CB125: 0 | CC125: 0 | CD125: 0 | CE125: 0 | CF125: 0 | CG125: 0 | CH125: 0 | CI125: 0 | CJ125: 0 | CK125: 0 | CL125: 3 | CM125: 0 | CN125: 3 | CP125: 0 | CQ125: 0 | CR125: 0 | CS125: 0 | CT125: 0 | CU125: 0 | CV125: 0 | CW125: 0 | CX125: 0 | CY125: 0 | CZ125: 0 | DA125: 0 | DB125: 0 | DC125: 0 | DD125: 0 | DE125: 2 | DF125: 0 | DG125: 1 | DH125: 15 | DI125: 16 | DJ125: 13 | DK125: 68:58 | DL125: 2 : 1
B126: VfL WolfsburgSV Werder Bremen | C126: VfL Wolfsburg | D126: - | E126: SV Werder Bremen | F126: 2 | G126: : | H126: 2 | J126: 1 | K126: : | L126: 1 | N126: 0 | P126: 0 | R126: 10002 | S126: 0 | T126: 0 | U126: 0 | V126: 0 | W126: 0 | X126: 0 | Y126: 0 | Z126: 0 | AA126: 0 | AB126: 10002 | AC126: 0 | AD126: 0 | AE126: 0 | AF126: 0 | AG126: 0 | AH126: 0 | AI126: 0 | AK126: 1 | AL126: 0 | AM126: 0 | AN126: 0 | AO126: 0 | AP126: 0 | AQ126: 0 | AR126: 0 | AS126: 0 | AT126: 0 | AU126: 1 | AV126: 0 | AW126: 0 | AX126: 0 | AY126: 0 | AZ126: 0 | BA126: 0 | BB126: 0 | BD126: 0 | BE126: 0 | BF126: 0 | BG126: 0 | BH126: 0 | BI126: 0 | BJ126: 0 | BK126: 0 | BL126: 0 | BM126: 0 | BN126: 0 | BO126: 0 | BP126: 0 | BQ126: 0 | BR126: 0 | BS126: 0 | BT126: 0 | BU126: 0 | BW126: 2 | BX126: 0 | BY126: 0 | BZ126: 0 | CA126: 0 | CB126: 0 | CC126: 0 | CD126: 0 | CE126: 0 | CF126: 0 | CG126: 2 | CH126: 0 | CI126: 0 | CJ126: 0 | CK126: 0 | CL126: 0 | CM126: 0 | CN126: 0 | CP126: 2 | CQ126: 0 | CR126: 0 | CS126: 0 | CT126: 0 | CU126: 0 | CV126: 0 | CW126: 0 | CX126: 0 | CY126: 0 | CZ126: 1 | DA126: 0 | DB126: 0 | DC126: 0 | DD126: 0 | DE126: 0 | DF126: 0 | DG126: 0 | DH126: 20 | DI126: 10 | DJ126: 20 | DK126: 89:89 | DL126: 2 : 2
B127: 1. FSV Mainz 05RB Leipzig | C127: 1. FSV Mainz 05 | D127: - | E127: RB Leipzig | F127: 2 | G127: : | H127: 0 | J127: 3 | K127: : | L127: 0 | N127: 2 | P127: -2 | R127: 0 | S127: 0 | T127: 0 | U127: 0 | V127: 0 | W127: 0 | X127: 0 | Y127: 0 | Z127: 0 | AA127: -200 | AB127: 0 | AC127: 0 | AD127: 0 | AE127: 30202 | AF127: 0 | AG127: 0 | AH127: 0 | AI127: 0 | AK127: 0 | AL127: 0 | AM127: 0 | AN127: 0 | AO127: 0 | AP127: 0 | AQ127: 0 | AR127: 0 | AS127: 0 | AT127: 0 | AU127: 0 | AV127: 0 | AW127: 0 | AX127: 3 | AY127: 0 | AZ127: 0 | BA127: 0 | BB127: 0 | BD127: 0 | BE127: 0 | BF127: 0 | BG127: 0 | BH127: 0 | BI127: 0 | BJ127: 0 | BK127: 0 | BL127: 0 | BM127: -2 | BN127: 0 | BO127: 0 | BP127: 0 | BQ127: 2 | BR127: 0 | BS127: 0 | BT127: 0 | BU127: 0 | BW127: 0 | BX127: 0 | BY127: 0 | BZ127: 0 | CA127: 0 | CB127: 0 | CC127: 0 | CD127: 0 | CE127: 0 | CF127: 0 | CG127: 0 | CH127: 0 | CI127: 0 | CJ127: 2 | CK127: 0 | CL127: 0 | CM127: 0 | CN127: 0 | CP127: 0 | CQ127: 0 | CR127: 0 | CS127: 0 | CT127: 0 | CU127: 0 | CV127: 0 | CW127: 0 | CX127: 0 | CY127: 2 | CZ127: 0 | DA127: 0 | DB127: 0 | DC127: 1 | DD127: 0 | DE127: 0 | DF127: 0 | DG127: 0 | DH127: 4 | DI127: 3 | DJ127: 7 | DK127: 22:38 | DL127: 2 : 3
B128: SV Darmstadt 98VfL Bochum 1848 | C128: SV Darmstadt 98 | D128: - | E128: VfL Bochum 1848 | F128: 1 | G128: : | H128: 2 | J128: 0 | K128: : | L128: 3 | N128: -1 | P128: 1 | R128: 0 | S128: 0 | T128: 0 | U128: 30102 | V128: 0 | W128: 0 | X128: 0 | Y128: -99 | Z128: 0 | AA128: 0 | AB128: 0 | AC128: 0 | AD128: 0 | AE128: 0 | AF128: 0 | AG128: 0 | AH128: 0 | AI128: 0 | AK128: 0 | AL128: 0 | AM128: 0 | AN128: 3 | AO128: 0 | AP128: 0 | AQ128: 0 | AR128: 0 | AS128: 0 | AT128: 0 | AU128: 0 | AV128: 0 | AW128: 0 | AX128: 0 | AY128: 0 | AZ128: 0 | BA128: 0 | BB128: 0 | BD128: 0 | BE128: 0 | BF128: 0 | BG128: 1 | BH128: 0 | BI128: 0 | BJ128: 0 | BK128: -1 | BL128: 0 | BM128: 0 | BN128: 0 | BO128: 0 | BP128: 0 | BQ128: 0 | BR128: 0 | BS128: 0 | BT128: 0 | BU128: 0 | BW128: 0 | BX128: 0 | BY128: 0 | BZ128: 2 | CA128: 0 | CB128: 0 | CC128: 0 | CD128: 1 | CE128: 0 | CF128: 0 | CG128: 0 | CH128: 0 | CI128: 0 | CJ128: 0 | CK128: 0 | CL128: 0 | CM128: 0 | CN128: 0 | CP128: 0 | CQ128: 0 | CR128: 0 | CS128: 2 | CT128: 0 | CU128: 0 | CV128: 0 | CW128: 1 | CX128: 0 | CY128: 0 | CZ128: 0 | DA128: 0 | DB128: 0 | DC128: 0 | DD128: 0 | DE128: 0 | DF128: 0 | DG128: 0 | DH128: 5 | DI128: 4 | DJ128: 5 | DK128: 18:14 | DL128: 1 : 1
B129: 1. FC Union BerlinEintracht Frankfurt | C129: 1. FC Union Berlin | D129: - | E129: Eintracht Frankfurt | F129: 0 | G129: : | H129: 3 | J129: 0 | K129: : | L129: 3 | N129: -3 | P129: 3 | R129: 0 | S129: 0 | T129: 0 | U129: 0 | V129: 0 | W129: 0 | X129: 30303 | Y129: 0 | Z129: 0 | AA129: 0 | AB129: 0 | AC129: 0 | AD129: -300 | AE129: 0 | AF129: 0 | AG129: 0 | AH129: 0 | AI129: 0 | AK129: 0 | AL129: 0 | AM129: 0 | AN129: 0 | AO129: 0 | AP129: 0 | AQ129: 3 | AR129: 0 | AS129: 0 | AT129: 0 | AU129: 0 | AV129: 0 | AW129: 0 | AX129: 0 | AY129: 0 | AZ129: 0 | BA129: 0 | BB129: 0 | BD129: 0 | BE129: 0 | BF129: 0 | BG129: 0 | BH129: 0 | BI129: 0 | BJ129: 3 | BK129: 0 | BL129: 0 | BM129: 0 | BN129: 0 | BO129: 0 | BP129: -3 | BQ129: 0 | BR129: 0 | BS129: 0 | BT129: 0 | BU129: 0 | BW129: 0 | BX129: 0 | BY129: 0 | BZ129: 0 | CA129: 0 | CB129: 0 | CC129: 3 | CD129: 0 | CE129: 0 | CF129: 0 | CG129: 0 | CH129: 0 | CI129: 0 | CJ129: 0 | CK129: 0 | CL129: 0 | CM129: 0 | CN129: 0 | CP129: 0 | CQ129: 0 | CR129: 0 | CS129: 0 | CT129: 0 | CU129: 0 | CV129: 2 | CW129: 0 | CX129: 0 | CY129: 0 | CZ129: 0 | DA129: 0 | DB129: 1 | DC129: 0 | DD129: 0 | DE129: 0 | DF129: 0 | DG129: 0 | DH129: 3 | DI129: 4 | DJ129: 7 | DK129: 17:29 | DL129: 1 : 2
B130: TSG HoffenheimBayer 04 Leverkusen | C130: TSG Hoffenheim | D130: - | E130: Bayer 04 Leverkusen | F130: 2 | G130: : | H130: 3 | J130: 0 | K130: : | L130: 3 | N130: -1 | P130: 1 | R130: 0 | S130: 0 | T130: 0 | U130: 0 | V130: 0 | W130: 0 | X130: 0 | Y130: 0 | Z130: 30103 | AA130: 0 | AB130: 0 | AC130: 0 | AD130: 0 | AE130: 0 | AF130: 0 | AG130: 0 | AH130: -98 | AI130: 0 | AK130: 0 | AL130: 0 | AM130: 0 | AN130: 0 | AO130: 0 | AP130: 0 | AQ130: 0 | AR130: 0 | AS130: 3 | AT130: 0 | AU130: 0 | AV130: 0 | AW130: 0 | AX130: 0 | AY130: 0 | AZ130: 0 | BA130: 0 | BB130: 0 | BD130: 0 | BE130: 0 | BF130: 0 | BG130: 0 | BH130: 0 | BI130: 0 | BJ130: 0 | BK130: 0 | BL130: 1 | BM130: 0 | BN130: 0 | BO130: 0 | BP130: 0 | BQ130: 0 | BR130: 0 | BS130: 0 | BT130: -1 | BU130: 0 | BW130: 0 | BX130: 0 | BY130: 0 | BZ130: 0 | CA130: 0 | CB130: 0 | CC130: 0 | CD130: 0 | CE130: 3 | CF130: 0 | CG130: 0 | CH130: 0 | CI130: 0 | CJ130: 0 | CK130: 0 | CL130: 0 | CM130: 2 | CN130: 0 | CP130: 0 | CQ130: 0 | CR130: 0 | CS130: 0 | CT130: 0 | CU130: 0 | CV130: 0 | CW130: 0 | CX130: 2 | CY130: 0 | CZ130: 0 | DA130: 0 | DB130: 0 | DC130: 0 | DD130: 0 | DE130: 0 | DF130: 1 | DG130: 0 | DH130: 7 | DI130: 6 | DJ130: 17 | DK130: 39:59 | DL130: 1 : 2
B131: 1. FC Heidenheim 1846VfB Stuttgart | C131: 1. FC Heidenheim 1846 | D131: - | E131: VfB Stuttgart | F131: 2 | G131: : | H131: 0 | J131: 3 | K131: : | L131: 0 | N131: 2 | P131: -2 | R131: 0 | S131: 0 | T131: -200 | U131: 0 | V131: 0 | W131: 0 | X131: 0 | Y131: 0 | Z131: 0 | AA131: 0 | AB131: 0 | AC131: 30202 | AD131: 0 | AE131: 0 | AF131: 0 | AG131: 0 | AH131: 0 | AI131: 0 | AK131: 0 | AL131: 0 | AM131: 0 | AN131: 0 | AO131: 0 | AP131: 0 | AQ131: 0 | AR131: 0 | AS131: 0 | AT131: 0 | AU131: 0 | AV131: 3 | AW131: 0 | AX131: 0 | AY131: 0 | AZ131: 0 | BA131: 0 | BB131: 0 | BD131: 0 | BE131: 0 | BF131: -2 | BG131: 0 | BH131: 0 | BI131: 0 | BJ131: 0 | BK131: 0 | BL131: 0 | BM131: 0 | BN131: 0 | BO131: 2 | BP131: 0 | BQ131: 0 | BR131: 0 | BS131: 0 | BT131: 0 | BU131: 0 | BW131: 0 | BX131: 0 | BY131: 0 | BZ131: 0 | CA131: 0 | CB131: 0 | CC131: 0 | CD131: 0 | CE131: 0 | CF131: 0 | CG131: 0 | CH131: 2 | CI131: 0 | CJ131: 0 | CK131: 0 | CL131: 0 | CM131: 0 | CN131: 0 | CP131: 0 | CQ131: 0 | CR131: 2 | CS131: 0 | CT131: 0 | CU131: 0 | CV131: 0 | CW131: 0 | CX131: 0 | CY131: 0 | CZ131: 0 | DA131: 1 | DB131: 0 | DC131: 0 | DD131: 0 | DE131: 0 | DF131: 0 | DG131: 0 | DH131: 1 | DI131: 1 | DJ131: 2 | DK131: 5:8 | DL131: 1 : 2
R132: =SUM(R123:R131)+R119 -> 99616 | S132: 263138 | T132: 211427 | U132: 78610 | V132: 210520 | W132: 48608 | X132: 170615 | Y132: 68214 | Z132: 282030 | AA132: 201625 | AB132: 129915 | AC132: 99315 | AD132: 58911 | AE132: 58711 | AF132: 119719 | AG132: 99619 | AH132: 180322 | AI132: 139413 | AK132: =SUM(AK123:AK131)+AK119 -> 10 | AL132: 26 | AM132: 21 | AN132: 8 | AO132: 21 | AP132: 5 | AQ132: 17 | AR132: 7 | AS132: 28 | AT132: 20 | AU132: 13 | AV132: 10 | AW132: 6 | AX132: 6 | AY132: 12 | AZ132: 10 | BA132: 18 | BB132: 14 | BD132: =SUM(BD123:BD131)+BD119 -> -4 | BE132: 31 | BF132: 14 | BG132: -14 | BH132: 5 | BI132: -14 | BJ132: 6 | BK132: -18 | BL132: 20 | BM132: 16 | BN132: -1 | BO132: -7 | BP132: -11 | BQ132: -13 | BR132: -3 | BS132: -4 | BT132: 3 | BU132: -6 | BW132: =SUM(BW123:BW131)+BW119 -> 16 | BX132: 38 | BY132: 27 | BZ132: 10 | CA132: 20 | CB132: 8 | CC132: 15 | CD132: 14 | CE132: 30 | CF132: 25 | CG132: 15 | CH132: 15 | CI132: 11 | CJ132: 11 | CK132: 19 | CL132: 19 | CM132: 22 | CN132: 13 | CO132: x | CP132: =IF(CP133<=$CO$3,SUMIF(CP123:CP131,1,$J123:$J131)+SUMIF(CP123:CP131,2,$L123:$L131),0) -> 0 | CQ132: 0 | CR132: 0 | CS132: 0 | CT132: 0 | CU132: 0 | CV132: 0 | CW132: 0 | CX132: 0 | CY132: 0 | CZ132: 0 | DA132: 0 | DB132: 0 | DC132: 0 | DD132: 0 | DE132: 0 | DF132: 0 | DG132: 0
R133: =RANK(R132,$R132:$AI132,0) -> 12 | S133: 2 | T133: 3 | U133: 14 | V133: 4 | W133: 18 | X133: 7 | Y133: 15 | Z133: 1 | AA133: 5 | AB133: 9 | AC133: 13 | AD133: 16 | AE133: 17 | AF133: 10 | AG133: 11 | AH133: 6 | AI133: 8 | CP133: =IF(SUM(CP123:CP131)>0,IF(CP146=0,1,CP146+1),IF(CP146<>0,CP146,0)) -> 25 | CQ133: 25 | CR133: 25 | CS133: 25 | CT133: 25 | CU133: 25 | CV133: 25 | CW133: 25 | CX133: 25 | CY133: 25 | CZ133: 25 | DA133: 25 | DB133: 25 | DC133: 25 | DD133: 25 | DE133: 25 | DF133: 25 | DG133: 25
C134: 11. Spieltag
A135: =IF(SUM(J136:L144)>0,1,"Z") -> 1 | C135: 10.-12.11.2023
B136: =C136&E136 -> SV Werder BremenEintracht Frankfurt | C136: SV Werder Bremen | D136: - | E136: Eintracht Frankfurt | F136: 2 | G136: : | H136: 2 | J136: =IF(F136>H136,3,IF(F136<H136,0,IF(AND(H136<>"",F136=H136),1,0))) -> 1 | K136: : | L136: =IF(F136>H136,0,IF(F136<H136,3,IF(AND(H136<>"",F136=H136),1,0))) -> 1 | N136: =F136-H136 -> 0 | P136: =H136-F136 -> 0 | R136: =(AK136*10000+BD136*100+BW136) -> 10002 | S136: =(AL136*10000+BE136*100+BX136) -> 0 | T136: =(AM136*10000+BF136*100+BY136) -> 0 | U136: =(AN136*10000+BG136*100+BZ136) -> 0 | V136: =(AO136*10000+BH136*100+CA136) -> 0 | W136: =(AP136*10000+BI136*100+CB136) -> 0 | X136: =(AQ136*10000+BJ136*100+CC136) -> 10002 | Y136: =(AR136*10000+BK136*100+CD136) -> 0 | Z136: =(AS136*10000+BL136*100+CE136) -> 0 | AA136: =(AT136*10000+BM136*100+CF136) -> 0 | AB136: =(AU136*10000+BN136*100+CG136) -> 0 | AC136: =(AV136*10000+BO136*100+CH136) -> 0 | AD136: =(AW136*10000+BP136*100+CI136) -> 0 | AE136: =(AX136*10000+BQ136*100+CJ136) -> 0 | AF136: =(AY136*10000+BR136*100+CK136) -> 0 | AG136: =(AZ136*10000+BS136*100+CL136) -> 0 | AH136: =(BA136*10000+BT136*100+CM136) -> 0 | AI136: =(BB136*10000+BU136*100+CN136) -> 0 | AK136: =IF($C136=AK$1,$J136,IF($E136=AK$1,$L136,0)) -> 1 | AL136: 0 | AM136: 0 | AN136: 0 | AO136: 0 | AP136: 0 | AQ136: 1 | AR136: 0 | AS136: 0 | AT136: 0 | AU136: =IF($C136=AU$1,$J136,IF($E136=AU$1,$L136,0)) -> 0 | AV136: 0 | AW136: 0 | AX136: 0 | AY136: 0 | AZ136: 0 | BA136: 0 | BB136: 0 | BD136: =IF($C136=BD$1,$F136-$H136,IF($E136=BD$1,$H136-$F136,0)) -> 0 | BE136: 0 | BF136: 0 | BG136: 0 | BH136: 0 | BI136: 0 | BJ136: 0 | BK136: 0 | BL136: 0 | BM136: 0 | BN136: =IF($C136=BN$1,$F136-$H136,IF($E136=BN$1,$H136-$F136,0)) -> 0 | BO136: 0 | BP136: 0 | BQ136: 0 | BR136: 0 | BS136: 0 | BT136: 0 | BU136: 0 | BW136: =IF($C136=BW$1,$F136,IF($E136=BW$1,$H136,0)) -> 2 | BX136: 0 | BY136: 0 | BZ136: 0 | CA136: 0 | CB136: 0 | CC136: 2 | CD136: 0 | CE136: 0 | CF136: 0 | CG136: =IF($C136=CG$1,$F136,IF($E136=CG$1,$H136,0)) -> 0 | CH136: 0 | CI136: 0 | CJ136: 0 | CK136: 0 | CL136: 0 | CM136: 0 | CN136: 0 | CP136: =IF($C136=CP$1,IF($F136<>"",1,0),IF($E136=CP$1,IF($H136<>"",2,0),0)) -> 1 | CQ136: 0 | CR136: 0 | CS136: 0 | CT136: 0 | CU136: 0 | CV136: 2 | CW136: 0 | CX136: 0 | CY136: 0 | CZ136: =IF($C136=CZ$1,IF($F136<>"",1,0),IF($E136=CZ$1,IF($H136<>"",2,0),0)) -> 0 | DA136: 0 | DB136: 0 | DC136: 0 | DD136: 0 | DE136: 0 | DF136: 0 | DG136: 0 | DH136: 43 | DI136: 23 | DJ136: 38 | DK136: 163:156 | DL136: =IFERROR(ROUND(MID(DK136,1,SEARCH(":",DK136,1)-1)/SUM(DH136:DJ136),$DL$2)&" : "&ROUND(MID(DK136,SEARCH(":",DK136,1)+1,99)/SUM(DH136:DJ136),$DL$2),"") -> 2 : 2
B137: FC Bayern München1. FC Heidenheim 1846 | C137: FC Bayern München | D137: - | E137: 1. FC Heidenheim 1846 | F137: 4 | G137: : | H137: 2 | J137: 3 | K137: : | L137: 0 | N137: =F137-H137 -> 2 | P137: =H137-F137 -> -2 | R137: 0 | S137: 30204 | T137: 0 | U137: 0 | V137: 0 | W137: 0 | X137: 0 | Y137: 0 | Z137: 0 | AA137: 0 | AB137: 0 | AC137: -198 | AD137: 0 | AE137: 0 | AF137: 0 | AG137: 0 | AH137: 0 | AI137: 0 | AK137: 0 | AL137: 3 | AM137: 0 | AN137: 0 | AO137: 0 | AP137: 0 | AQ137: 0 | AR137: 0 | AS137: 0 | AT137: 0 | AU137: 0 | AV137: 0 | AW137: 0 | AX137: 0 | AY137: 0 | AZ137: 0 | BA137: 0 | BB137: 0 | BD137: 0 | BE137: 2 | BF137: 0 | BG137: 0 | BH137: 0 | BI137: 0 | BJ137: 0 | BK137: 0 | BL137: 0 | BM137: 0 | BN137: 0 | BO137: -2 | BP137: 0 | BQ137: 0 | BR137: 0 | BS137: 0 | BT137: 0 | BU137: 0 | BW137: 0 | BX137: 4 | BY137: 0 | BZ137: 0 | CA137: 0 | CB137: 0 | CC137: 0 | CD137: 0 | CE137: 0 | CF137: 0 | CG137: 0 | CH137: 2 | CI137: 0 | CJ137: 0 | CK137: 0 | CL137: 0 | CM137: 0 | CN137: 0 | CP137: 0 | CQ137: 1 | CR137: 0 | CS137: 0 | CT137: 0 | CU137: 0 | CV137: 0 | CW137: 0 | CX137: 0 | CY137: 0 | CZ137: 0 | DA137: 2 | DB137: 0 | DC137: 0 | DD137: 0 | DE137: 0 | DF137: 0 | DG137: 0 | DH137: - | DI137: - | DJ137: - | DK137: -
B138: VfB StuttgartBorussia Dortmund | C138: VfB Stuttgart | D138: - | E138: Borussia Dortmund | F138: 2 | G138: : | H138: 1 | J138: 3 | K138: : | L138: 0 | N138: 1 | P138: -1 | R138: 0 | S138: 0 | T138: 30102 | U138: 0 | V138: -99 | W138: 0 | X138: 0 | Y138: 0 | Z138: 0 | AA138: 0 | AB138: 0 | AC138: 0 | AD138: 0 | AE138: 0 | AF138: 0 | AG138: 0 | AH138: 0 | AI138: 0 | AK138: 0 | AL138: 0 | AM138: 3 | AN138: 0 | AO138: 0 | AP138: 0 | AQ138: 0 | AR138: 0 | AS138: 0 | AT138: 0 | AU138: 0 | AV138: 0 | AW138: 0 | AX138: 0 | AY138: 0 | AZ138: 0 | BA138: 0 | BB138: 0 | BD138: 0 | BE138: 0 | BF138: 1 | BG138: 0 | BH138: -1 | BI138: 0 | BJ138: 0 | BK138: 0 | BL138: 0 | BM138: 0 | BN138: 0 | BO138: 0 | BP138: 0 | BQ138: 0 | BR138: 0 | BS138: 0 | BT138: 0 | BU138: 0 | BW138: 0 | BX138: 0 | BY138: 2 | BZ138: 0 | CA138: 1 | CB138: 0 | CC138: 0 | CD138: 0 | CE138: 0 | CF138: 0 | CG138: 0 | CH138: 0 | CI138: 0 | CJ138: 0 | CK138: 0 | CL138: 0 | CM138: 0 | CN138: 0 | CP138: 0 | CQ138: 0 | CR138: 1 | CS138: 0 | CT138: 2 | CU138: 0 | CV138: 0 | CW138: 0 | CX138: 0 | CY138: 0 | CZ138: 0 | DA138: 0 | DB138: 0 | DC138: 0 | DD138: 0 | DE138: 0 | DF138: 0 | DG138: 0 | DH138: 40 | DI138: 25 | DJ138: 41 | DK138: 175:185 | DL138: 2 : 2
B139: Borussia MönchengladbachVfL Wolfsburg | C139: Borussia Mönchengladbach | D139: - | E139: VfL Wolfsburg | F139: 4 | G139: : | H139: 0 | J139: 3 | K139: : | L139: 0 | N139: 4 | P139: -4 | R139: 0 | S139: 0 | T139: 0 | U139: 0 | V139: 0 | W139: 0 | X139: 0 | Y139: 0 | Z139: 0 | AA139: 0 | AB139: -400 | AC139: 0 | AD139: 0 | AE139: 0 | AF139: 0 | AG139: 30404 | AH139: 0 | AI139: 0 | AK139: 0 | AL139: 0 | AM139: 0 | AN139: 0 | AO139: 0 | AP139: 0 | AQ139: 0 | AR139: 0 | AS139: 0 | AT139: 0 | AU139: 0 | AV139: 0 | AW139: 0 | AX139: 0 | AY139: 0 | AZ139: 3 | BA139: 0 | BB139: 0 | BD139: 0 | BE139: 0 | BF139: 0 | BG139: 0 | BH139: 0 | BI139: 0 | BJ139: 0 | BK139: 0 | BL139: 0 | BM139: 0 | BN139: -4 | BO139: 0 | BP139: 0 | BQ139: 0 | BR139: 0 | BS139: 4 | BT139: 0 | BU139: 0 | BW139: 0 | BX139: 0 | BY139: 0 | BZ139: 0 | CA139: 0 | CB139: 0 | CC139: 0 | CD139: 0 | CE139: 0 | CF139: 0 | CG139: 0 | CH139: 0 | CI139: 0 | CJ139: 0 | CK139: 0 | CL139: 4 | CM139: 0 | CN139: 0 | CP139: 0 | CQ139: 0 | CR139: 0 | CS139: 0 | CT139: 0 | CU139: 0 | CV139: 0 | CW139: 0 | CX139: 0 | CY139: 0 | CZ139: 2 | DA139: 0 | DB139: 0 | DC139: 0 | DD139: 0 | DE139: 1 | DF139: 0 | DG139: 0 | DH139: 14 | DI139: 10 | DJ139: 22 | DK139: 59:72 | DL139: 1 : 2
B140: VfL Bochum 18481. FC Köln | C140: VfL Bochum 1848 | D140: - | E140: 1. FC Köln | F140: 1 | G140: : | H140: 1 | J140: 1 | K140: : | L140: 1 | N140: 0 | P140: 0 | R140: 0 | S140: 0 | T140: 0 | U140: 10001 | V140: 0 | W140: 10001 | X140: 0 | Y140: 0 | Z140: 0 | AA140: 0 | AB140: 0 | AC140: 0 | AD140: 0 | AE140: 0 | AF140: 0 | AG140: 0 | AH140: 0 | AI140: 0 | AK140: 0 | AL140: 0 | AM140: 0 | AN140: 1 | AO140: 0 | AP140: 1 | AQ140: 0 | AR140: 0 | AS140: 0 | AT140: 0 | AU140: 0 | AV140: 0 | AW140: 0 | AX140: 0 | AY140: 0 | AZ140: 0 | BA140: 0 | BB140: 0 | BD140: 0 | BE140: 0 | BF140: 0 | BG140: 0 | BH140: 0 | BI140: 0 | BJ140: 0 | BK140: 0 | BL140: 0 | BM140: 0 | BN140: 0 | BO140: 0 | BP140: 0 | BQ140: 0 | BR140: 0 | BS140: 0 | BT140: 0 | BU140: 0 | BW140: 0 | BX140: 0 | BY140: 0 | BZ140: 1 | CA140: 0 | CB140: 1 | CC140: 0 | CD140: 0 | CE140: 0 | CF140: 0 | CG140: 0 | CH140: 0 | CI140: 0 | CJ140: 0 | CK140: 0 | CL140: 0 | CM140: 0 | CN140: 0 | CP140: 0 | CQ140: 0 | CR140: 0 | CS140: 1 | CT140: 0 | CU140: 2 | CV140: 0 | CW140: 0 | CX140: 0 | CY140: 0 | CZ140: 0 | DA140: 0 | DB140: 0 | DC140: 0 | DD140: 0 | DE140: 0 | DF140: 0 | DG140: 0 | DH140: 15 | DI140: 17 | DJ140: 38 | DK140: 76:121 | DL140: 1 : 2
B141: Bayer 04 Leverkusen1. FC Union Berlin | C141: Bayer 04 Leverkusen | D141: - | E141: 1. FC Union Berlin | F141: 4 | G141: : | H141: 0 | J141: 3 | K141: : | L141: 0 | N141: 4 | P141: -4 | R141: 0 | S141: 0 | T141: 0 | U141: 0 | V141: 0 | W141: 0 | X141: 0 | Y141: 0 | Z141: 30404 | AA141: 0 | AB141: 0 | AC141: 0 | AD141: -400 | AE141: 0 | AF141: 0 | AG141: 0 | AH141: 0 | AI141: 0 | AK141: 0 | AL141: 0 | AM141: 0 | AN141: 0 | AO141: 0 | AP141: 0 | AQ141: 0 | AR141: 0 | AS141: 3 | AT141: 0 | AU141: 0 | AV141: 0 | AW141: 0 | AX141: 0 | AY141: 0 | AZ141: 0 | BA141: 0 | BB141: 0 | BD141: 0 | BE141: 0 | BF141: 0 | BG141: 0 | BH141: 0 | BI141: 0 | BJ141: 0 | BK141: 0 | BL141: 4 | BM141: 0 | BN141: 0 | BO141: 0 | BP141: -4 | BQ141: 0 | BR141: 0 | BS141: 0 | BT141: 0 | BU141: 0 | BW141: 0 | BX141: 0 | BY141: 0 | BZ141: 0 | CA141: 0 | CB141: 0 | CC141: 0 | CD141: 0 | CE141: 4 | CF141: 0 | CG141: 0 | CH141: 0 | CI141: 0 | CJ141: 0 | CK141: 0 | CL141: 0 | CM141: 0 | CN141: 0 | CP141: 0 | CQ141: 0 | CR141: 0 | CS141: 0 | CT141: 0 | CU141: 0 | CV141: 0 | CW141: 0 | CX141: 1 | CY141: 0 | CZ141: 0 | DA141: 0 | DB141: 2 | DC141: 0 | DD141: 0 | DE141: 0 | DF141: 0 | DG141: 0 | DH141: 3 | DI141: 4 | DJ141: 1 | DK141: 14:7 | DL141: 2 : 1
B142: SV Darmstadt 981. FSV Mainz 05 | C142: SV Darmstadt 98 | D142: - | E142: 1. FSV Mainz 05 | F142: 0 | G142: : | H142: 0 | J142: 1 | K142: : | L142: 1 | N142: 0 | P142: 0 | R142: 0 | S142: 0 | T142: 0 | U142: 0 | V142: 0 | W142: 0 | X142: 0 | Y142: 10000 | Z142: 0 | AA142: 0 | AB142: 0 | AC142: 0 | AD142: 0 | AE142: 10000 | AF142: 0 | AG142: 0 | AH142: 0 | AI142: 0 | AK142: 0 | AL142: 0 | AM142: 0 | AN142: 0 | AO142: 0 | AP142: 0 | AQ142: 0 | AR142: 1 | AS142: 0 | AT142: 0 | AU142: 0 | AV142: 0 | AW142: 0 | AX142: 1 | AY142: 0 | AZ142: 0 | BA142: 0 | BB142: 0 | BD142: 0 | BE142: 0 | BF142: 0 | BG142: 0 | BH142: 0 | BI142: 0 | BJ142: 0 | BK142: 0 | BL142: 0 | BM142: 0 | BN142: 0 | BO142: 0 | BP142: 0 | BQ142: 0 | BR142: 0 | BS142: 0 | BT142: 0 | BU142: 0 | BW142: 0 | BX142: 0 | BY142: 0 | BZ142: 0 | CA142: 0 | CB142: 0 | CC142: 0 | CD142: 0 | CE142: 0 | CF142: 0 | CG142: 0 | CH142: 0 | CI142: 0 | CJ142: 0 | CK142: 0 | CL142: 0 | CM142: 0 | CN142: 0 | CP142: 0 | CQ142: 0 | CR142: 0 | CS142: 0 | CT142: 0 | CU142: 0 | CV142: 0 | CW142: 1 | CX142: 0 | CY142: 0 | CZ142: 0 | DA142: 0 | DB142: 0 | DC142: 2 | DD142: 0 | DE142: 0 | DF142: 0 | DG142: 0 | DH142: 6 | DI142: 2 | DJ142: 10 | DK142: 28:29 | DL142: 2 : 2
B143: FC AugsburgTSG Hoffenheim | C143: FC Augsburg | D143: - | E143: TSG Hoffenheim | F143: 1 | G143: : | H143: 1 | J143: 1 | K143: : | L143: 1 | N143: 0 | P143: 0 | R143: 0 | S143: 0 | T143: 0 | U143: 0 | V143: 0 | W143: 0 | X143: 0 | Y143: 0 | Z143: 0 | AA143: 0 | AB143: 0 | AC143: 0 | AD143: 0 | AE143: 0 | AF143: 10001 | AG143: 0 | AH143: 10001 | AI143: 0 | AK143: 0 | AL143: 0 | AM143: 0 | AN143: 0 | AO143: 0 | AP143: 0 | AQ143: 0 | AR143: 0 | AS143: 0 | AT143: 0 | AU143: 0 | AV143: 0 | AW143: 0 | AX143: 0 | AY143: 1 | AZ143: 0 | BA143: 1 | BB143: 0 | BD143: 0 | BE143: 0 | BF143: 0 | BG143: 0 | BH143: 0 | BI143: 0 | BJ143: 0 | BK143: 0 | BL143: 0 | BM143: 0 | BN143: 0 | BO143: 0 | BP143: 0 | BQ143: 0 | BR143: 0 | BS143: 0 | BT143: 0 | BU143: 0 | BW143: 0 | BX143: 0 | BY143: 0 | BZ143: 0 | CA143: 0 | CB143: 0 | CC143: 0 | CD143: 0 | CE143: 0 | CF143: 0 | CG143: 0 | CH143: 0 | CI143: 0 | CJ143: 0 | CK143: 1 | CL143: 0 | CM143: 1 | CN143: 0 | CP143: 0 | CQ143: 0 | CR143: 0 | CS143: 0 | CT143: 0 | CU143: 0 | CV143: 0 | CW143: 0 | CX143: 0 | CY143: 0 | CZ143: 0 | DA143: 0 | DB143: 0 | DC143: 0 | DD143: 1 | DE143: 0 | DF143: 2 | DG143: 0 | DH143: 6 | DI143: 5 | DJ143: 15 | DK143: 26:48 | DL143: 1 : 2
B144: RB LeipzigSport-Club Freiburg | C144: RB Leipzig | D144: - | E144: Sport-Club Freiburg | F144: 3 | G144: : | H144: 1 | J144: 3 | K144: : | L144: 0 | N144: 2 | P144: -2 | R144: 0 | S144: 0 | T144: 0 | U144: 0 | V144: 0 | W144: 0 | X144: 0 | Y144: 0 | Z144: 0 | AA144: 30203 | AB144: 0 | AC144: 0 | AD144: 0 | AE144: 0 | AF144: 0 | AG144: 0 | AH144: 0 | AI144: -199 | AK144: 0 | AL144: 0 | AM144: 0 | AN144: 0 | AO144: 0 | AP144: 0 | AQ144: 0 | AR144: 0 | AS144: 0 | AT144: 3 | AU144: 0 | AV144: 0 | AW144: 0 | AX144: 0 | AY144: 0 | AZ144: 0 | BA144: 0 | BB144: 0 | BD144: 0 | BE144: 0 | BF144: 0 | BG144: 0 | BH144: 0 | BI144: 0 | BJ144: 0 | BK144: 0 | BL144: 0 | BM144: 2 | BN144: 0 | BO144: 0 | BP144: 0 | BQ144: 0 | BR144: 0 | BS144: 0 | BT144: 0 | BU144: -2 | BW144: 0 | BX144: 0 | BY144: 0 | BZ144: 0 | CA144: 0 | CB144: 0 | CC144: 0 | CD144: 0 | CE144: 0 | CF144: 3 | CG144: 0 | CH144: 0 | CI144: 0 | CJ144: 0 | CK144: 0 | CL144: 0 | CM144: 0 | CN144: 1 | CP144: 0 | CQ144: 0 | CR144: 0 | CS144: 0 | CT144: 0 | CU144: 0 | CV144: 0 | CW144: 0 | CX144: 0 | CY144: 1 | CZ144: 0 | DA144: 0 | DB144: 0 | DC144: 0 | DD144: 0 | DE144: 0 | DF144: 0 | DG144: 2 | DH144: 8 | DI144: 4 | DJ144: 4 | DK144: 31:17 | DL144: 2 : 1
R145: =SUM(R136:R144)+R132 -> 109618 | S145: 293342 | T145: 241529 | U145: 88611 | V145: 210421 | W145: 58609 | X145: 180617 | Y145: 78214 | Z145: 312434 | AA145: 231828 | AB145: 129515 | AC145: 99117 | AD145: 58511 | AE145: 68711 | AF145: 129720 | AG145: 130023 | AH145: 190323 | AI145: 139214 | AK145: =SUM(AK136:AK144)+AK132 -> 11 | AL145: 29 | AM145: 24 | AN145: 9 | AO145: 21 | AP145: 6 | AQ145: 18 | AR145: 8 | AS145: 31 | AT145: 23 | AU145: 13 | AV145: 10 | AW145: 6 | AX145: 7 | AY145: 13 | AZ145: 13 | BA145: 19 | BB145: 14 | BD145: =SUM(BD136:BD144)+BD132 -> -4 | BE145: 33 | BF145: 15 | BG145: -14 | BH145: 4 | BI145: -14 | BJ145: 6 | BK145: -18 | BL145: 24 | BM145: 18 | BN145: -5 | BO145: -9 | BP145: -15 | BQ145: -13 | BR145: -3 | BS145: 0 | BT145: 3 | BU145: -8 | BW145: =SUM(BW136:BW144)+BW132 -> 18 | BX145: 42 | BY145: 29 | BZ145: 11 | CA145: 21 | CB145: 9 | CC145: 17 | CD145: 14 | CE145: 34 | CF145: 28 | CG145: 15 | CH145: 17 | CI145: 11 | CJ145: 11 | CK145: 20 | CL145: 23 | CM145: 23 | CN145: 14 | CO145: x | CP145: =IF(CP146<=$CO$3,SUMIF(CP136:CP144,1,$J136:$J144)+SUMIF(CP136:CP144,2,$L136:$L144),0) -> 0 | CQ145: 0 | CR145: 0 | CS145: 0 | CT145: 0 | CU145: 0 | CV145: 0 | CW145: 0 | CX145: 0 | CY145: 0 | CZ145: 0 | DA145: 0 | DB145: 0 | DC145: 0 | DD145: 0 | DE145: 0 | DF145: 0 | DG145: 0
R146: =RANK(R145,$R145:$AI145,0) -> 12 | S146: 2 | T146: 3 | U146: 14 | V146: 5 | W146: 17 | X146: 7 | Y146: 15 | Z146: 1 | AA146: 4 | AB146: 11 | AC146: 13 | AD146: 18 | AE146: 16 | AF146: 10 | AG146: 9 | AH146: 6 | AI146: 8 | CP146: =IF(SUM(CP136:CP144)>0,IF(CP159=0,1,CP159+1),IF(CP159<>0,CP159,0)) -> 24 | CQ146: 24 | CR146: 24 | CS146: 24 | CT146: 24 | CU146: 24 | CV146: 24 | CW146: 24 | CX146: 24 | CY146: 24 | CZ146: 24 | DA146: 24 | DB146: 24 | DC146: 24 | DD146: 24 | DE146: 24 | DF146: 24 | DG146: 24
C147: 12. Spieltag
A148: =IF(SUM(J149:L157)>0,1,"Z") -> 1 | C148: 24.-26.11.2023
B149: =C149&E149 -> SV Werder BremenBayer 04 Leverkusen | C149: SV Werder Bremen | D149: - | E149: Bayer 04 Leverkusen | F149: 0 | G149: : | H149: 3 | J149: =IF(F149>H149,3,IF(F149<H149,0,IF(AND(H149<>"",F149=H149),1,0))) -> 0 | K149: : | L149: =IF(F149>H149,0,IF(F149<H149,3,IF(AND(H149<>"",F149=H149),1,0))) -> 3 | N149: =F149-H149 -> -3 | P149: =H149-F149 -> 3 | R149: =(AK149*10000+BD149*100+BW149) -> -300 | S149: =(AL149*10000+BE149*100+BX149) -> 0 | T149: =(AM149*10000+BF149*100+BY149) -> 0 | U149: =(AN149*10000+BG149*100+BZ149) -> 0 | V149: =(AO149*10000+BH149*100+CA149) -> 0 | W149: =(AP149*10000+BI149*100+CB149) -> 0 | X149: =(AQ149*10000+BJ149*100+CC149) -> 0 | Y149: =(AR149*10000+BK149*100+CD149) -> 0 | Z149: =(AS149*10000+BL149*100+CE149) -> 30303 | AA149: =(AT149*10000+BM149*100+CF149) -> 0 | AB149: =(AU149*10000+BN149*100+CG149) -> 0 | AC149: =(AV149*10000+BO149*100+CH149) -> 0 | AD149: =(AW149*10000+BP149*100+CI149) -> 0 | AE149: =(AX149*10000+BQ149*100+CJ149) -> 0 | AF149: =(AY149*10000+BR149*100+CK149) -> 0 | AG149: =(AZ149*10000+BS149*100+CL149) -> 0 | AH149: =(BA149*10000+BT149*100+CM149) -> 0 | AI149: =(BB149*10000+BU149*100+CN149) -> 0 | AK149: =IF($C149=AK$1,$J149,IF($E149=AK$1,$L149,0)) -> 0 | AL149: 0 | AM149: 0 | AN149: 0 | AO149: 0 | AP149: 0 | AQ149: 0 | AR149: 0 | AS149: 3 | AT149: 0 | AU149: =IF($C149=AU$1,$J149,IF($E149=AU$1,$L149,0)) -> 0 | AV149: 0 | AW149: 0 | AX149: 0 | AY149: 0 | AZ149: 0 | BA149: 0 | BB149: 0 | BD149: =IF($C149=BD$1,$F149-$H149,IF($E149=BD$1,$H149-$F149,0)) -> -3 | BE149: 0 | BF149: 0 | BG149: 0 | BH149: 0 | BI149: 0 | BJ149: 0 | BK149: 0 | BL149: 3 | BM149: 0 | BN149: =IF($C149=BN$1,$F149-$H149,IF($E149=BN$1,$H149-$F149,0)) -> 0 | BO149: 0 | BP149: 0 | BQ149: 0 | BR149: 0 | BS149: 0 | BT149: 0 | BU149: 0 | BW149: =IF($C149=BW$1,$F149,IF($E149=BW$1,$H149,0)) -> 0 | BX149: 0 | BY149: 0 | BZ149: 0 | CA149: 0 | CB149: 0 | CC149: 0 | CD149: 0 | CE149: 3 | CF149: 0 | CG149: =IF($C149=CG$1,$F149,IF($E149=CG$1,$H149,0)) -> 0 | CH149: 0 | CI149: 0 | CJ149: 0 | CK149: 0 | CL149: 0 | CM149: 0 | CN149: 0 | CP149: =IF($C149=CP$1,IF($F149<>"",1,0),IF($E149=CP$1,IF($H149<>"",2,0),0)) -> 1 | CQ149: 0 | CR149: 0 | CS149: 0 | CT149: 0 | CU149: 0 | CV149: 0 | CW149: 0 | CX149: 2 | CY149: 0 | CZ149: =IF($C149=CZ$1,IF($F149<>"",1,0),IF($E149=CZ$1,IF($H149<>"",2,0),0)) -> 0 | DA149: 0 | DB149: 0 | DC149: 0 | DD149: 0 | DE149: 0 | DF149: 0 | DG149: 0 | DH149: 27 | DI149: 34 | DJ149: 23 | DK149: 127:134 | DL149: =IFERROR(ROUND(MID(DK149,1,SEARCH(":",DK149,1)-1)/SUM(DH149:DJ149),$DL$2)&" : "&ROUND(MID(DK149,SEARCH(":",DK149,1)+1,99)/SUM(DH149:DJ149),$DL$2),"") -> 2 : 2
B150: 1. FC KölnFC Bayern München | C150: 1. FC Köln | D150: - | E150: FC Bayern München | F150: 0 | G150: : | H150: 1 | J150: 0 | K150: : | L150: 3 | N150: =F150-H150 -> -1 | P150: =H150-F150 -> 1 | R150: 0 | S150: 30101 | T150: 0 | U150: 0 | V150: 0 | W150: -100 | X150: 0 | Y150: 0 | Z150: 0 | AA150: 0 | AB150: 0 | AC150: 0 | AD150: 0 | AE150: 0 | AF150: 0 | AG150: 0 | AH150: 0 | AI150: 0 | AK150: 0 | AL150: 3 | AM150: 0 | AN150: 0 | AO150: 0 | AP150: 0 | AQ150: 0 | AR150: 0 | AS150: 0 | AT150: 0 | AU150: 0 | AV150: 0 | AW150: 0 | AX150: 0 | AY150: 0 | AZ150: 0 | BA150: 0 | BB150: 0 | BD150: 0 | BE150: 1 | BF150: 0 | BG150: 0 | BH150: 0 | BI150: -1 | BJ150: 0 | BK150: 0 | BL150: 0 | BM150: 0 | BN150: 0 | BO150: 0 | BP150: 0 | BQ150: 0 | BR150: 0 | BS150: 0 | BT150: 0 | BU150: 0 | BW150: 0 | BX150: 1 | BY150: 0 | BZ150: 0 | CA150: 0 | CB150: 0 | CC150: 0 | CD150: 0 | CE150: 0 | CF150: 0 | CG150: 0 | CH150: 0 | CI150: 0 | CJ150: 0 | CK150: 0 | CL150: 0 | CM150: 0 | CN150: 0 | CP150: 0 | CQ150: 2 | CR150: 0 | CS150: 0 | CT150: 0 | CU150: 1 | CV150: 0 | CW150: 0 | CX150: 0 | CY150: 0 | CZ150: 0 | DA150: 0 | DB150: 0 | DC150: 0 | DD150: 0 | DE150: 0 | DF150: 0 | DG150: 0 | DH150: 23 | DI150: 24 | DJ150: 51 | DK150: 124:201 | DL150: 1 : 2
B151: Borussia DortmundBorussia Mönchengladbach | C151: Borussia Dortmund | D151: - | E151: Borussia Mönchengladbach | F151: 4 | G151: : | H151: 2 | J151: 3 | K151: : | L151: 0 | N151: 2 | P151: -2 | R151: 0 | S151: 0 | T151: 0 | U151: 0 | V151: 30204 | W151: 0 | X151: 0 | Y151: 0 | Z151: 0 | AA151: 0 | AB151: 0 | AC151: 0 | AD151: 0 | AE151: 0 | AF151: 0 | AG151: -198 | AH151: 0 | AI151: 0 | AK151: 0 | AL151: 0 | AM151: 0 | AN151: 0 | AO151: 3 | AP151: 0 | AQ151: 0 | AR151: 0 | AS151: 0 | AT151: 0 | AU151: 0 | AV151: 0 | AW151: 0 | AX151: 0 | AY151: 0 | AZ151: 0 | BA151: 0 | BB151: 0 | BD151: 0 | BE151: 0 | BF151: 0 | BG151: 0 | BH151: 2 | BI151: 0 | BJ151: 0 | BK151: 0 | BL151: 0 | BM151: 0 | BN151: 0 | BO151: 0 | BP151: 0 | BQ151: 0 | BR151: 0 | BS151: -2 | BT151: 0 | BU151: 0 | BW151: 0 | BX151: 0 | BY151: 0 | BZ151: 0 | CA151: 4 | CB151: 0 | CC151: 0 | CD151: 0 | CE151: 0 | CF151: 0 | CG151: 0 | CH151: 0 | CI151: 0 | CJ151: 0 | CK151: 0 | CL151: 2 | CM151: 0 | CN151: 0 | CP151: 0 | CQ151: 0 | CR151: 0 | CS151: 0 | CT151: 1 | CU151: 0 | CV151: 0 | CW151: 0 | CX151: 0 | CY151: 0 | CZ151: 0 | DA151: 0 | DB151: 0 | DC151: 0 | DD151: 0 | DE151: 2 | DF151: 0 | DG151: 0 | DH151: 42 | DI151: 28 | DJ151: 32 | DK151: 185:162 | DL151: 2 : 2
B152: Eintracht FrankfurtVfB Stuttgart | C152: Eintracht Frankfurt | D152: - | E152: VfB Stuttgart | F152: 1 | G152: : | H152: 2 | J152: 0 | K152: : | L152: 3 | N152: -1 | P152: 1 | R152: 0 | S152: 0 | T152: 30102 | U152: 0 | V152: 0 | W152: 0 | X152: -99 | Y152: 0 | Z152: 0 | AA152: 0 | AB152: 0 | AC152: 0 | AD152: 0 | AE152: 0 | AF152: 0 | AG152: 0 | AH152: 0 | AI152: 0 | AK152: 0 | AL152: 0 | AM152: 3 | AN152: 0 | AO152: 0 | AP152: 0 | AQ152: 0 | AR152: 0 | AS152: 0 | AT152: 0 | AU152: 0 | AV152: 0 | AW152: 0 | AX152: 0 | AY152: 0 | AZ152: 0 | BA152: 0 | BB152: 0 | BD152: 0 | BE152: 0 | BF152: 1 | BG152: 0 | BH152: 0 | BI152: 0 | BJ152: -1 | BK152: 0 | BL152: 0 | BM152: 0 | BN152: 0 | BO152: 0 | BP152: 0 | BQ152: 0 | BR152: 0 | BS152: 0 | BT152: 0 | BU152: 0 | BW152: 0 | BX152: 0 | BY152: 2 | BZ152: 0 | CA152: 0 | CB152: 0 | CC152: 1 | CD152: 0 | CE152: 0 | CF152: 0 | CG152: 0 | CH152: 0 | CI152: 0 | CJ152: 0 | CK152: 0 | CL152: 0 | CM152: 0 | CN152: 0 | CP152: 0 | CQ152: 0 | CR152: 2 | CS152: 0 | CT152: 0 | CU152: 0 | CV152: 1 | CW152: 0 | CX152: 0 | CY152: 0 | CZ152: 0 | DA152: 0 | DB152: 0 | DC152: 0 | DD152: 0 | DE152: 0 | DF152: 0 | DG152: 0 | DH152: 35 | DI152: 23 | DJ152: 42 | DK152: 171:181 | DL152: 2 : 2
B153: Sport-Club FreiburgSV Darmstadt 98 | C153: Sport-Club Freiburg | D153: - | E153: SV Darmstadt 98 | F153: 1 | G153: : | H153: 1 | J153: 1 | K153: : | L153: 1 | N153: 0 | P153: 0 | R153: 0 | S153: 0 | T153: 0 | U153: 0 | V153: 0 | W153: 0 | X153: 0 | Y153: 10001 | Z153: 0 | AA153: 0 | AB153: 0 | AC153: 0 | AD153: 0 | AE153: 0 | AF153: 0 | AG153: 0 | AH153: 0 | AI153: 10001 | AK153: 0 | AL153: 0 | AM153: 0 | AN153: 0 | AO153: 0 | AP153: 0 | AQ153: 0 | AR153: 1 | AS153: 0 | AT153: 0 | AU153: 0 | AV153: 0 | AW153: 0 | AX153: 0 | AY153: 0 | AZ153: 0 | BA153: 0 | BB153: 1 | BD153: 0 | BE153: 0 | BF153: 0 | BG153: 0 | BH153: 0 | BI153: 0 | BJ153: 0 | BK153: 0 | BL153: 0 | BM153: 0 | BN153: 0 | BO153: 0 | BP153: 0 | BQ153: 0 | BR153: 0 | BS153: 0 | BT153: 0 | BU153: 0 | BW153: 0 | BX153: 0 | BY153: 0 | BZ153: 0 | CA153: 0 | CB153: 0 | CC153: 0 | CD153: 1 | CE153: 0 | CF153: 0 | CG153: 0 | CH153: 0 | CI153: 0 | CJ153: 0 | CK153: 0 | CL153: 0 | CM153: 0 | CN153: 1 | CP153: 0 | CQ153: 0 | CR153: 0 | CS153: 0 | CT153: 0 | CU153: 0 | CV153: 0 | CW153: 2 | CX153: 0 | CY153: 0 | CZ153: 0 | DA153: 0 | DB153: 0 | DC153: 0 | DD153: 0 | DE153: 0 | DF153: 0 | DG153: 1 | DH153: 11 | DI153: 8 | DJ153: 9 | DK153: 38:34 | DL153: 1 : 1
B154: VfL WolfsburgRB Leipzig | C154: VfL Wolfsburg | D154: - | E154: RB Leipzig | F154: 2 | G154: : | H154: 1 | J154: 3 | K154: : | L154: 0 | N154: 1 | P154: -1 | R154: 0 | S154: 0 | T154: 0 | U154: 0 | V154: 0 | W154: 0 | X154: 0 | Y154: 0 | Z154: 0 | AA154: -99 | AB154: 30102 | AC154: 0 | AD154: 0 | AE154: 0 | AF154: 0 | AG154: 0 | AH154: 0 | AI154: 0 | AK154: 0 | AL154: 0 | AM154: 0 | AN154: 0 | AO154: 0 | AP154: 0 | AQ154: 0 | AR154: 0 | AS154: 0 | AT154: 0 | AU154: 3 | AV154: 0 | AW154: 0 | AX154: 0 | AY154: 0 | AZ154: 0 | BA154: 0 | BB154: 0 | BD154: 0 | BE154: 0 | BF154: 0 | BG154: 0 | BH154: 0 | BI154: 0 | BJ154: 0 | BK154: 0 | BL154: 0 | BM154: -1 | BN154: 1 | BO154: 0 | BP154: 0 | BQ154: 0 | BR154: 0 | BS154: 0 | BT154: 0 | BU154: 0 | BW154: 0 | BX154: 0 | BY154: 0 | BZ154: 0 | CA154: 0 | CB154: 0 | CC154: 0 | CD154: 0 | CE154: 0 | CF154: 1 | CG154: 2 | CH154: 0 | CI154: 0 | CJ154: 0 | CK154: 0 | CL154: 0 | CM154: 0 | CN154: 0 | CP154: 0 | CQ154: 0 | CR154: 0 | CS154: 0 | CT154: 0 | CU154: 0 | CV154: 0 | CW154: 0 | CX154: 0 | CY154: 2 | CZ154: 1 | DA154: 0 | DB154: 0 | DC154: 0 | DD154: 0 | DE154: 0 | DF154: 0 | DG154: 0 | DH154: 3 | DI154: 5 | DJ154: 6 | DK154: 10:20 | DL154: 1 : 1
B155: 1. FC Union BerlinFC Augsburg | C155: 1. FC Union Berlin | D155: - | E155: FC Augsburg | F155: 1 | G155: : | H155: 1 | J155: 1 | K155: : | L155: 1 | N155: 0 | P155: 0 | R155: 0 | S155: 0 | T155: 0 | U155: 0 | V155: 0 | W155: 0 | X155: 0 | Y155: 0 | Z155: 0 | AA155: 0 | AB155: 0 | AC155: 0 | AD155: 10001 | AE155: 0 | AF155: 10001 | AG155: 0 | AH155: 0 | AI155: 0 | AK155: 0 | AL155: 0 | AM155: 0 | AN155: 0 | AO155: 0 | AP155: 0 | AQ155: 0 | AR155: 0 | AS155: 0 | AT155: 0 | AU155: 0 | AV155: 0 | AW155: 1 | AX155: 0 | AY155: 1 | AZ155: 0 | BA155: 0 | BB155: 0 | BD155: 0 | BE155: 0 | BF155: 0 | BG155: 0 | BH155: 0 | BI155: 0 | BJ155: 0 | BK155: 0 | BL155: 0 | BM155: 0 | BN155: 0 | BO155: 0 | BP155: 0 | BQ155: 0 | BR155: 0 | BS155: 0 | BT155: 0 | BU155: 0 | BW155: 0 | BX155: 0 | BY155: 0 | BZ155: 0 | CA155: 0 | CB155: 0 | CC155: 0 | CD155: 0 | CE155: 0 | CF155: 0 | CG155: 0 | CH155: 0 | CI155: 1 | CJ155: 0 | CK155: 1 | CL155: 0 | CM155: 0 | CN155: 0 | CP155: 0 | CQ155: 0 | CR155: 0 | CS155: 0 | CT155: 0 | CU155: 0 | CV155: 0 | CW155: 0 | CX155: 0 | CY155: 0 | CZ155: 0 | DA155: 0 | DB155: 1 | DC155: 0 | DD155: 2 | DE155: 0 | DF155: 0 | DG155: 0 | DH155: 1 | DI155: 6 | DJ155: 5 | DK155: 9:14 | DL155: 1 : 1
B156: TSG Hoffenheim1. FSV Mainz 05 | C156: TSG Hoffenheim | D156: - | E156: 1. FSV Mainz 05 | F156: 1 | G156: : | H156: 1 | J156: 1 | K156: : | L156: 1 | N156: 0 | P156: 0 | R156: 0 | S156: 0 | T156: 0 | U156: 0 | V156: 0 | W156: 0 | X156: 0 | Y156: 0 | Z156: 0 | AA156: 0 | AB156: 0 | AC156: 0 | AD156: 0 | AE156: 10001 | AF156: 0 | AG156: 0 | AH156: 10001 | AI156: 0 | AK156: 0 | AL156: 0 | AM156: 0 | AN156: 0 | AO156: 0 | AP156: 0 | AQ156: 0 | AR156: 0 | AS156: 0 | AT156: 0 | AU156: 0 | AV156: 0 | AW156: 0 | AX156: 1 | AY156: 0 | AZ156: 0 | BA156: 1 | BB156: 0 | BD156: 0 | BE156: 0 | BF156: 0 | BG156: 0 | BH156: 0 | BI156: 0 | BJ156: 0 | BK156: 0 | BL156: 0 | BM156: 0 | BN156: 0 | BO156: 0 | BP156: 0 | BQ156: 0 | BR156: 0 | BS156: 0 | BT156: 0 | BU156: 0 | BW156: 0 | BX156: 0 | BY156: 0 | BZ156: 0 | CA156: 0 | CB156: 0 | CC156: 0 | CD156: 0 | CE156: 0 | CF156: 0 | CG156: 0 | CH156: 0 | CI156: 0 | CJ156: 1 | CK156: 0 | CL156: 0 | CM156: 1 | CN156: 0 | CP156: 0 | CQ156: 0 | CR156: 0 | CS156: 0 | CT156: 0 | CU156: 0 | CV156: 0 | CW156: 0 | CX156: 0 | CY156: 0 | CZ156: 0 | DA156: 0 | DB156: 0 | DC156: 2 | DD156: 0 | DE156: 0 | DF156: 1 | DG156: 0 | DH156: 9 | DI156: 8 | DJ156: 13 | DK156: 47:52 | DL156: 2 : 2
B157: 1. FC Heidenheim 1846VfL Bochum 1848 | C157: 1. FC Heidenheim 1846 | D157: - | E157: VfL Bochum 1848 | F157: 0 | G157: : | H157: 0 | J157: 1 | K157: : | L157: 1 | N157: 0 | P157: 0 | R157: 0 | S157: 0 | T157: 0 | U157: 10000 | V157: 0 | W157: 0 | X157: 0 | Y157: 0 | Z157: 0 | AA157: 0 | AB157: 0 | AC157: 10000 | AD157: 0 | AE157: 0 | AF157: 0 | AG157: 0 | AH157: 0 | AI157: 0 | AK157: 0 | AL157: 0 | AM157: 0 | AN157: 1 | AO157: 0 | AP157: 0 | AQ157: 0 | AR157: 0 | AS157: 0 | AT157: 0 | AU157: 0 | AV157: 1 | AW157: 0 | AX157: 0 | AY157: 0 | AZ157: 0 | BA157: 0 | BB157: 0 | BD157: 0 | BE157: 0 | BF157: 0 | BG157: 0 | BH157: 0 | BI157: 0 | BJ157: 0 | BK157: 0 | BL157: 0 | BM157: 0 | BN157: 0 | BO157: 0 | BP157: 0 | BQ157: 0 | BR157: 0 | BS157: 0 | BT157: 0 | BU157: 0 | BW157: 0 | BX157: 0 | BY157: 0 | BZ157: 0 | CA157: 0 | CB157: 0 | CC157: 0 | CD157: 0 | CE157: 0 | CF157: 0 | CG157: 0 | CH157: 0 | CI157: 0 | CJ157: 0 | CK157: 0 | CL157: 0 | CM157: 0 | CN157: 0 | CP157: 0 | CQ157: 0 | CR157: 0 | CS157: 2 | CT157: 0 | CU157: 0 | CV157: 0 | CW157: 0 | CX157: 0 | CY157: 0 | CZ157: 0 | DA157: 1 | DB157: 0 | DC157: 0 | DD157: 0 | DE157: 0 | DF157: 0 | DG157: 0 | DH157: 4 | DI157: 2 | DJ157: 8 | DK157: 18:26 | DL157: 1 : 2
R158: =SUM(R149:R157)+R145 -> 109318 | S158: 323443 | T158: 271631 | U158: 98611 | V158: 240625 | W158: 58509 | X158: 180518 | Y158: 88215 | Z158: 342737 | AA158: 231729 | AB158: 159617 | AC158: 109117 | AD158: 68512 | AE158: 78712 | AF158: 139721 | AG158: 129825 | AH158: 200324 | AI158: 149215 | AK158: =SUM(AK149:AK157)+AK145 -> 11 | AL158: 32 | AM158: 27 | AN158: 10 | AO158: 24 | AP158: 6 | AQ158: 18 | AR158: 9 | AS158: 34 | AT158: 23 | AU158: 16 | AV158: 11 | AW158: 7 | AX158: 8 | AY158: 14 | AZ158: 13 | BA158: 20 | BB158: 15 | BD158: =SUM(BD149:BD157)+BD145 -> -7 | BE158: 34 | BF158: 16 | BG158: -14 | BH158: 6 | BI158: -15 | BJ158: 5 | BK158: -18 | BL158: 27 | BM158: 17 | BN158: -4 | BO158: -9 | BP158: -15 | BQ158: -13 | BR158: -3 | BS158: -2 | BT158: 3 | BU158: -8 | BW158: =SUM(BW149:BW157)+BW145 -> 18 | BX158: 43 | BY158: 31 | BZ158: 11 | CA158: 25 | CB158: 9 | CC158: 18 | CD158: 15 | CE158: 37 | CF158: 29 | CG158: 17 | CH158: 17 | CI158: 12 | CJ158: 12 | CK158: 21 | CL158: 25 | CM158: 24 | CN158: 15 | CO158: x | CP158: =IF(CP159<=$CO$3,SUMIF(CP149:CP157,1,$J149:$J157)+SUMIF(CP149:CP157,2,$L149:$L157),0) -> 0 | CQ158: 0 | CR158: 0 | CS158: 0 | CT158: 0 | CU158: 0 | CV158: 0 | CW158: 0 | CX158: 0 | CY158: 0 | CZ158: 0 | DA158: 0 | DB158: 0 | DC158: 0 | DD158: 0 | DE158: 0 | DF158: 0 | DG158: 0
R159: =RANK(R158,$R158:$AI158,0) -> 12 | S159: 2 | T159: 3 | U159: 14 | V159: 4 | W159: 18 | X159: 7 | Y159: 15 | Z159: 1 | AA159: 5 | AB159: 8 | AC159: 13 | AD159: 17 | AE159: 16 | AF159: 10 | AG159: 11 | AH159: 6 | AI159: 9 | CP159: =IF(SUM(CP149:CP157)>0,IF(CP172=0,1,CP172+1),IF(CP172<>0,CP172,0)) -> 23 | CQ159: 23 | CR159: 23 | CS159: 23 | CT159: 23 | CU159: 23 | CV159: 23 | CW159: 23 | CX159: 23 | CY159: 23 | CZ159: 23 | DA159: 23 | DB159: 23 | DC159: 23 | DD159: 23 | DE159: 23 | DF159: 23 | DG159: 23
C160: 13. Spieltag
A161: =IF(SUM(J162:L170)>0,1,"Z") -> 1 | C161: 01.-03.12.2023
B162: =C162&E162 -> FC Bayern München1. FC Union Berlin | C162: FC Bayern München | D162: - | E162: 1. FC Union Berlin | F162: 1 | G162: : | H162: 0 | J162: =IF(F162>H162,3,IF(F162<H162,0,IF(AND(H162<>"",F162=H162),1,0))) -> 3 | K162: : | L162: =IF(F162>H162,0,IF(F162<H162,3,IF(AND(H162<>"",F162=H162),1,0))) -> 0 | N162: =F162-H162 -> 1 | P162: =H162-F162 -> -1 | R162: =(AK162*10000+BD162*100+BW162) -> 0 | S162: =(AL162*10000+BE162*100+BX162) -> 30101 | T162: =(AM162*10000+BF162*100+BY162) -> 0 | U162: =(AN162*10000+BG162*100+BZ162) -> 0 | V162: =(AO162*10000+BH162*100+CA162) -> 0 | W162: =(AP162*10000+BI162*100+CB162) -> 0 | X162: =(AQ162*10000+BJ162*100+CC162) -> 0 | Y162: =(AR162*10000+BK162*100+CD162) -> 0 | Z162: =(AS162*10000+BL162*100+CE162) -> 0 | AA162: =(AT162*10000+BM162*100+CF162) -> 0 | AB162: =(AU162*10000+BN162*100+CG162) -> 0 | AC162: =(AV162*10000+BO162*100+CH162) -> 0 | AD162: =(AW162*10000+BP162*100+CI162) -> -100 | AE162: =(AX162*10000+BQ162*100+CJ162) -> 0 | AF162: =(AY162*10000+BR162*100+CK162) -> 0 | AG162: =(AZ162*10000+BS162*100+CL162) -> 0 | AH162: =(BA162*10000+BT162*100+CM162) -> 0 | AI162: =(BB162*10000+BU162*100+CN162) -> 0 | AK162: =IF($C162=AK$1,$J162,IF($E162=AK$1,$L162,0)) -> 0 | AL162: 3 | AM162: 0 | AN162: 0 | AO162: 0 | AP162: 0 | AQ162: 0 | AR162: 0 | AS162: 0 | AT162: 0 | AU162: =IF($C162=AU$1,$J162,IF($E162=AU$1,$L162,0)) -> 0 | AV162: 0 | AW162: 0 | AX162: 0 | AY162: 0 | AZ162: 0 | BA162: 0 | BB162: 0 | BD162: =IF($C162=BD$1,$F162-$H162,IF($E162=BD$1,$H162-$F162,0)) -> 0 | BE162: 1 | BF162: 0 | BG162: 0 | BH162: 0 | BI162: 0 | BJ162: 0 | BK162: 0 | BL162: 0 | BM162: 0 | BN162: =IF($C162=BN$1,$F162-$H162,IF($E162=BN$1,$H162-$F162,0)) -> 0 | BO162: 0 | BP162: -1 | BQ162: 0 | BR162: 0 | BS162: 0 | BT162: 0 | BU162: 0 | BW162: =IF($C162=BW$1,$F162,IF($E162=BW$1,$H162,0)) -> 0 | BX162: 1 | BY162: 0 | BZ162: 0 | CA162: 0 | CB162: 0 | CC162: 0 | CD162: 0 | CE162: 0 | CF162: 0 | CG162: =IF($C162=CG$1,$F162,IF($E162=CG$1,$H162,0)) -> 0 | CH162: 0 | CI162: 0 | CJ162: 0 | CK162: 0 | CL162: 0 | CM162: 0 | CN162: 0 | CP162: =IF($C162=CP$1,IF($F162<>"",1,0),IF($E162=CP$1,IF($H162<>"",2,0),0)) -> 0 | CQ162: 1 | CR162: 0 | CS162: 0 | CT162: 0 | CU162: 0 | CV162: 0 | CW162: 0 | CX162: 0 | CY162: 0 | CZ162: =IF($C162=CZ$1,IF($F162<>"",1,0),IF($E162=CZ$1,IF($H162<>"",2,0),0)) -> 0 | DA162: 0 | DB162: 2 | DC162: 0 | DD162: 0 | DE162: 0 | DF162: 0 | DG162: 0 | DH162: 5 | DI162: 3 | DJ162: 0 | DK162: 19:6 | DL162: =IFERROR(ROUND(MID(DK162,1,SEARCH(":",DK162,1)-1)/SUM(DH162:DJ162),$DL$2)&" : "&ROUND(MID(DK162,SEARCH(":",DK162,1)+1,99)/SUM(DH162:DJ162),$DL$2),"") -> 2 : 1
B163: VfB StuttgartSV Werder Bremen | C163: VfB Stuttgart | D163: - | E163: SV Werder Bremen | F163: 2 | G163: : | H163: 0 | J163: 3 | K163: : | L163: 0 | N163: =F163-H163 -> 2 | P163: =H163-F163 -> -2 | R163: -200 | S163: 0 | T163: 30202 | U163: 0 | V163: 0 | W163: 0 | X163: 0 | Y163: 0 | Z163: 0 | AA163: 0 | AB163: 0 | AC163: 0 | AD163: 0 | AE163: 0 | AF163: 0 | AG163: 0 | AH163: 0 | AI163: 0 | AK163: 0 | AL163: 0 | AM163: 3 | AN163: 0 | AO163: 0 | AP163: 0 | AQ163: 0 | AR163: 0 | AS163: 0 | AT163: 0 | AU163: 0 | AV163: 0 | AW163: 0 | AX163: 0 | AY163: 0 | AZ163: 0 | BA163: 0 | BB163: 0 | BD163: -2 | BE163: 0 | BF163: 2 | BG163: 0 | BH163: 0 | BI163: 0 | BJ163: 0 | BK163: 0 | BL163: 0 | BM163: 0 | BN163: 0 | BO163: 0 | BP163: 0 | BQ163: 0 | BR163: 0 | BS163: 0 | BT163: 0 | BU163: 0 | BW163: 0 | BX163: 0 | BY163: 2 | BZ163: 0 | CA163: 0 | CB163: 0 | CC163: 0 | CD163: 0 | CE163: 0 | CF163: 0 | CG163: 0 | CH163: 0 | CI163: 0 | CJ163: 0 | CK163: 0 | CL163: 0 | CM163: 0 | CN163: 0 | CP163: 2 | CQ163: 0 | CR163: 1 | CS163: 0 | CT163: 0 | CU163: 0 | CV163: 0 | CW163: 0 | CX163: 0 | CY163: 0 | CZ163: 0 | DA163: 0 | DB163: 0 | DC163: 0 | DD163: 0 | DE163: 0 | DF163: 0 | DG163: 0 | DH163: 38 | DI163: 34 | DJ163: 36 | DK163: 167:183 | DL163: 2 : 2
B164: Borussia MönchengladbachTSG Hoffenheim | C164: Borussia Mönchengladbach | D164: - | E164: TSG Hoffenheim | F164: 2 | G164: : | H164: 1 | J164: 3 | K164: : | L164: 0 | N164: 1 | P164: -1 | R164: 0 | S164: 0 | T164: 0 | U164: 0 | V164: 0 | W164: 0 | X164: 0 | Y164: 0 | Z164: 0 | AA164: 0 | AB164: 0 | AC164: 0 | AD164: 0 | AE164: 0 | AF164: 0 | AG164: 30102 | AH164: -99 | AI164: 0 | AK164: 0 | AL164: 0 | AM164: 0 | AN164: 0 | AO164: 0 | AP164: 0 | AQ164: 0 | AR164: 0 | AS164: 0 | AT164: 0 | AU164: 0 | AV164: 0 | AW164: 0 | AX164: 0 | AY164: 0 | AZ164: 3 | BA164: 0 | BB164: 0 | BD164: 0 | BE164: 0 | BF164: 0 | BG164: 0 | BH164: 0 | BI164: 0 | BJ164: 0 | BK164: 0 | BL164: 0 | BM164: 0 | BN164: 0 | BO164: 0 | BP164: 0 | BQ164: 0 | BR164: 0 | BS164: 1 | BT164: -1 | BU164: 0 | BW164: 0 | BX164: 0 | BY164: 0 | BZ164: 0 | CA164: 0 | CB164: 0 | CC164: 0 | CD164: 0 | CE164: 0 | CF164: 0 | CG164: 0 | CH164: 0 | CI164: 0 | CJ164: 0 | CK164: 0 | CL164: 2 | CM164: 1 | CN164: 0 | CP164: 0 | CQ164: 0 | CR164: 0 | CS164: 0 | CT164: 0 | CU164: 0 | CV164: 0 | CW164: 0 | CX164: 0 | CY164: 0 | CZ164: 0 | DA164: 0 | DB164: 0 | DC164: 0 | DD164: 0 | DE164: 1 | DF164: 2 | DG164: 0 | DH164: 10 | DI164: 12 | DJ164: 10 | DK164: 62:51 | DL164: 2 : 2
B165: VfL Bochum 1848VfL Wolfsburg | C165: VfL Bochum 1848 | D165: - | E165: VfL Wolfsburg | F165: 3 | G165: : | H165: 1 | J165: 3 | K165: : | L165: 0 | N165: 2 | P165: -2 | R165: 0 | S165: 0 | T165: 0 | U165: 30203 | V165: 0 | W165: 0 | X165: 0 | Y165: 0 | Z165: 0 | AA165: 0 | AB165: -199 | AC165: 0 | AD165: 0 | AE165: 0 | AF165: 0 | AG165: 0 | AH165: 0 | AI165: 0 | AK165: 0 | AL165: 0 | AM165: 0 | AN165: 3 | AO165: 0 | AP165: 0 | AQ165: 0 | AR165: 0 | AS165: 0 | AT165: 0 | AU165: 0 | AV165: 0 | AW165: 0 | AX165: 0 | AY165: 0 | AZ165: 0 | BA165: 0 | BB165: 0 | BD165: 0 | BE165: 0 | BF165: 0 | BG165: 2 | BH165: 0 | BI165: 0 | BJ165: 0 | BK165: 0 | BL165: 0 | BM165: 0 | BN165: -2 | BO165: 0 | BP165: 0 | BQ165: 0 | BR165: 0 | BS165: 0 | BT165: 0 | BU165: 0 | BW165: 0 | BX165: 0 | BY165: 0 | BZ165: 3 | CA165: 0 | CB165: 0 | CC165: 0 | CD165: 0 | CE165: 0 | CF165: 0 | CG165: 1 | CH165: 0 | CI165: 0 | CJ165: 0 | CK165: 0 | CL165: 0 | CM165: 0 | CN165: 0 | CP165: 0 | CQ165: 0 | CR165: 0 | CS165: 1 | CT165: 0 | CU165: 0 | CV165: 0 | CW165: 0 | CX165: 0 | CY165: 0 | CZ165: 2 | DA165: 0 | DB165: 0 | DC165: 0 | DD165: 0 | DE165: 0 | DF165: 0 | DG165: 0 | DH165: 12 | DI165: 4 | DJ165: 12 | DK165: 40:45 | DL165: 1 : 2
B166: Bayer 04 LeverkusenBorussia Dortmund | C166: Bayer 04 Leverkusen | D166: - | E166: Borussia Dortmund | F166: 1 | G166: : | H166: 1 | J166: 1 | K166: : | L166: 1 | N166: 0 | P166: 0 | R166: 0 | S166: 0 | T166: 0 | U166: 0 | V166: 10001 | W166: 0 | X166: 0 | Y166: 0 | Z166: 10001 | AA166: 0 | AB166: 0 | AC166: 0 | AD166: 0 | AE166: 0 | AF166: 0 | AG166: 0 | AH166: 0 | AI166: 0 | AK166: 0 | AL166: 0 | AM166: 0 | AN166: 0 | AO166: 1 | AP166: 0 | AQ166: 0 | AR166: 0 | AS166: 1 | AT166: 0 | AU166: 0 | AV166: 0 | AW166: 0 | AX166: 0 | AY166: 0 | AZ166: 0 | BA166: 0 | BB166: 0 | BD166: 0 | BE166: 0 | BF166: 0 | BG166: 0 | BH166: 0 | BI166: 0 | BJ166: 0 | BK166: 0 | BL166: 0 | BM166: 0 | BN166: 0 | BO166: 0 | BP166: 0 | BQ166: 0 | BR166: 0 | BS166: 0 | BT166: 0 | BU166: 0 | BW166: 0 | BX166: 0 | BY166: 0 | BZ166: 0 | CA166: 1 | CB166: 0 | CC166: 0 | CD166: 0 | CE166: 1 | CF166: 0 | CG166: 0 | CH166: 0 | CI166: 0 | CJ166: 0 | CK166: 0 | CL166: 0 | CM166: 0 | CN166: 0 | CP166: 0 | CQ166: 0 | CR166: 0 | CS166: 0 | CT166: 2 | CU166: 0 | CV166: 0 | CW166: 0 | CX166: 1 | CY166: 0 | CZ166: 0 | DA166: 0 | DB166: 0 | DC166: 0 | DD166: 0 | DE166: 0 | DF166: 0 | DG166: 0 | DH166: 30 | DI166: 22 | DJ166: 38 | DK166: 132:154 | DL166: 1 : 2
B167: 1. FSV Mainz 05Sport-Club Freiburg | C167: 1. FSV Mainz 05 | D167: - | E167: Sport-Club Freiburg | F167: 0 | G167: : | H167: 1 | J167: 0 | K167: : | L167: 3 | N167: -1 | P167: 1 | R167: 0 | S167: 0 | T167: 0 | U167: 0 | V167: 0 | W167: 0 | X167: 0 | Y167: 0 | Z167: 0 | AA167: 0 | AB167: 0 | AC167: 0 | AD167: 0 | AE167: -100 | AF167: 0 | AG167: 0 | AH167: 0 | AI167: 30101 | AK167: 0 | AL167: 0 | AM167: 0 | AN167: 0 | AO167: 0 | AP167: 0 | AQ167: 0 | AR167: 0 | AS167: 0 | AT167: 0 | AU167: 0 | AV167: 0 | AW167: 0 | AX167: 0 | AY167: 0 | AZ167: 0 | BA167: 0 | BB167: 3 | BD167: 0 | BE167: 0 | BF167: 0 | BG167: 0 | BH167: 0 | BI167: 0 | BJ167: 0 | BK167: 0 | BL167: 0 | BM167: 0 | BN167: 0 | BO167: 0 | BP167: 0 | BQ167: -1 | BR167: 0 | BS167: 0 | BT167: 0 | BU167: 1 | BW167: 0 | BX167: 0 | BY167: 0 | BZ167: 0 | CA167: 0 | CB167: 0 | CC167: 0 | CD167: 0 | CE167: 0 | CF167: 0 | CG167: 0 | CH167: 0 | CI167: 0 | CJ167: 0 | CK167: 0 | CL167: 0 | CM167: 0 | CN167: 1 | CP167: 0 | CQ167: 0 | CR167: 0 | CS167: 0 | CT167: 0 | CU167: 0 | CV167: 0 | CW167: 0 | CX167: 0 | CY167: 0 | CZ167: 0 | DA167: 0 | DB167: 0 | DC167: 1 | DD167: 0 | DE167: 0 | DF167: 0 | DG167: 2 | DH167: 16 | DI167: 14 | DJ167: 14 | DK167: 58:44 | DL167: 1 : 1
B168: SV Darmstadt 981. FC Köln | C168: SV Darmstadt 98 | D168: - | E168: 1. FC Köln | F168: 0 | G168: : | H168: 1 | J168: 0 | K168: : | L168: 3 | N168: -1 | P168: 1 | R168: 0 | S168: 0 | T168: 0 | U168: 0 | V168: 0 | W168: 30101 | X168: 0 | Y168: -100 | Z168: 0 | AA168: 0 | AB168: 0 | AC168: 0 | AD168: 0 | AE168: 0 | AF168: 0 | AG168: 0 | AH168: 0 | AI168: 0 | AK168: 0 | AL168: 0 | AM168: 0 | AN168: 0 | AO168: 0 | AP168: 3 | AQ168: 0 | AR168: 0 | AS168: 0 | AT168: 0 | AU168: 0 | AV168: 0 | AW168: 0 | AX168: 0 | AY168: 0 | AZ168: 0 | BA168: 0 | BB168: 0 | BD168: 0 | BE168: 0 | BF168: 0 | BG168: 0 | BH168: 0 | BI168: 1 | BJ168: 0 | BK168: -1 | BL168: 0 | BM168: 0 | BN168: 0 | BO168: 0 | BP168: 0 | BQ168: 0 | BR168: 0 | BS168: 0 | BT168: 0 | BU168: 0 | BW168: 0 | BX168: 0 | BY168: 0 | BZ168: 0 | CA168: 0 | CB168: 1 | CC168: 0 | CD168: 0 | CE168: 0 | CF168: 0 | CG168: 0 | CH168: 0 | CI168: 0 | CJ168: 0 | CK168: 0 | CL168: 0 | CM168: 0 | CN168: 0 | CP168: 0 | CQ168: 0 | CR168: 0 | CS168: 0 | CT168: 0 | CU168: 2 | CV168: 0 | CW168: 1 | CX168: 0 | CY168: 0 | CZ168: 0 | DA168: 0 | DB168: 0 | DC168: 0 | DD168: 0 | DE168: 0 | DF168: 0 | DG168: 0 | DH168: 1 | DI168: 2 | DJ168: 7 | DK168: 8:24 | DL168: 1 : 2
B169: FC AugsburgEintracht Frankfurt | C169: FC Augsburg | D169: - | E169: Eintracht Frankfurt | F169: 2 | G169: : | H169: 1 | J169: 3 | K169: : | L169: 0 | N169: 1 | P169: -1 | R169: 0 | S169: 0 | T169: 0 | U169: 0 | V169: 0 | W169: 0 | X169: -99 | Y169: 0 | Z169: 0 | AA169: 0 | AB169: 0 | AC169: 0 | AD169: 0 | AE169: 0 | AF169: 30102 | AG169: 0 | AH169: 0 | AI169: 0 | AK169: 0 | AL169: 0 | AM169: 0 | AN169: 0 | AO169: 0 | AP169: 0 | AQ169: 0 | AR169: 0 | AS169: 0 | AT169: 0 | AU169: 0 | AV169: 0 | AW169: 0 | AX169: 0 | AY169: 3 | AZ169: 0 | BA169: 0 | BB169: 0 | BD169: 0 | BE169: 0 | BF169: 0 | BG169: 0 | BH169: 0 | BI169: 0 | BJ169: -1 | BK169: 0 | BL169: 0 | BM169: 0 | BN169: 0 | BO169: 0 | BP169: 0 | BQ169: 0 | BR169: 1 | BS169: 0 | BT169: 0 | BU169: 0 | BW169: 0 | BX169: 0 | BY169: 0 | BZ169: 0 | CA169: 0 | CB169: 0 | CC169: 1 | CD169: 0 | CE169: 0 | CF169: 0 | CG169: 0 | CH169: 0 | CI169: 0 | CJ169: 0 | CK169: 2 | CL169: 0 | CM169: 0 | CN169: 0 | CP169: 0 | CQ169: 0 | CR169: 0 | CS169: 0 | CT169: 0 | CU169: 0 | CV169: 2 | CW169: 0 | CX169: 0 | CY169: 0 | CZ169: 0 | DA169: 0 | DB169: 0 | DC169: 0 | DD169: 1 | DE169: 0 | DF169: 0 | DG169: 0 | DH169: 7 | DI169: 8 | DJ169: 7 | DK169: 27:32 | DL169: 1 : 1
B170: RB Leipzig1. FC Heidenheim 1846 | C170: RB Leipzig | D170: - | E170: 1. FC Heidenheim 1846 | F170: 2 | G170: : | H170: 1 | J170: 3 | K170: : | L170: 0 | N170: 1 | P170: -1 | R170: 0 | S170: 0 | T170: 0 | U170: 0 | V170: 0 | W170: 0 | X170: 0 | Y170: 0 | Z170: 0 | AA170: 30102 | AB170: 0 | AC170: -99 | AD170: 0 | AE170: 0 | AF170: 0 | AG170: 0 | AH170: 0 | AI170: 0 | AK170: 0 | AL170: 0 | AM170: 0 | AN170: 0 | AO170: 0 | AP170: 0 | AQ170: 0 | AR170: 0 | AS170: 0 | AT170: 3 | AU170: 0 | AV170: 0 | AW170: 0 | AX170: 0 | AY170: 0 | AZ170: 0 | BA170: 0 | BB170: 0 | BD170: 0 | BE170: 0 | BF170: 0 | BG170: 0 | BH170: 0 | BI170: 0 | BJ170: 0 | BK170: 0 | BL170: 0 | BM170: 1 | BN170: 0 | BO170: -1 | BP170: 0 | BQ170: 0 | BR170: 0 | BS170: 0 | BT170: 0 | BU170: 0 | BW170: 0 | BX170: 0 | BY170: 0 | BZ170: 0 | CA170: 0 | CB170: 0 | CC170: 0 | CD170: 0 | CE170: 0 | CF170: 2 | CG170: 0 | CH170: 1 | CI170: 0 | CJ170: 0 | CK170: 0 | CL170: 0 | CM170: 0 | CN170: 0 | CP170: 0 | CQ170: 0 | CR170: 0 | CS170: 0 | CT170: 0 | CU170: 0 | CV170: 0 | CW170: 0 | CX170: 0 | CY170: 1 | CZ170: 0 | DA170: 2 | DB170: 0 | DC170: 0 | DD170: 0 | DE170: 0 | DF170: 0 | DG170: 0 | DH170: 1 | DI170: 2 | DJ170: 1 | DK170: 5:4 | DL170: 1 : 1
R171: =SUM(R162:R170)+R158 -> 109118 | S171: 353544 | T171: 301833 | U171: 128814 | V171: 250626 | W171: 88610 | X171: 180419 | Y171: 88115 | Z171: 352738 | AA171: 261831 | AB171: 159418 | AC171: 109018 | AD171: 68412 | AE171: 78612 | AF171: 169823 | AG171: 159927 | AH171: 200225 | AI171: 179316 | AK171: =SUM(AK162:AK170)+AK158 -> 11 | AL171: 35 | AM171: 30 | AN171: 13 | AO171: 25 | AP171: 9 | AQ171: 18 | AR171: 9 | AS171: 35 | AT171: 26 | AU171: 16 | AV171: 11 | AW171: 7 | AX171: 8 | AY171: 17 | AZ171: 16 | BA171: 20 | BB171: 18 | BD171: =SUM(BD162:BD170)+BD158 -> -9 | BE171: 35 | BF171: 18 | BG171: -12 | BH171: 6 | BI171: -14 | BJ171: 4 | BK171: -19 | BL171: 27 | BM171: 18 | BN171: -6 | BO171: -10 | BP171: -16 | BQ171: -14 | BR171: -2 | BS171: -1 | BT171: 2 | BU171: -7 | BW171: =SUM(BW162:BW170)+BW158 -> 18 | BX171: 44 | BY171: 33 | BZ171: 14 | CA171: 26 | CB171: 10 | CC171: 19 | CD171: 15 | CE171: 38 | CF171: 31 | CG171: 18 | CH171: 18 | CI171: 12 | CJ171: 12 | CK171: 23 | CL171: 27 | CM171: 25 | CN171: 16 | CO171: x | CP171: =IF(CP172<=$CO$3,SUMIF(CP162:CP170,1,$J162:$J170)+SUMIF(CP162:CP170,2,$L162:$L170),0) -> 0 | CQ171: 0 | CR171: 0 | CS171: 0 | CT171: 0 | CU171: 0 | CV171: 0 | CW171: 0 | CX171: 0 | CY171: 0 | CZ171: 0 | DA171: 0 | DB171: 0 | DC171: 0 | DD171: 0 | DE171: 0 | DF171: 0 | DG171: 0
R172: =RANK(R171,$R171:$AI171,0) -> 13 | S172: 1 | T172: 3 | U172: 12 | V172: 5 | W172: 15 | X172: 7 | Y172: 16 | Z172: 2 | AA172: 4 | AB172: 11 | AC172: 14 | AD172: 18 | AE172: 17 | AF172: 9 | AG172: 10 | AH172: 6 | AI172: 8 | CP172: =IF(SUM(CP162:CP170)>0,IF(CP185=0,1,CP185+1),IF(CP185<>0,CP185,0)) -> 22 | CQ172: 22 | CR172: 22 | CS172: 22 | CT172: 22 | CU172: 22 | CV172: 22 | CW172: 22 | CX172: 22 | CY172: 22 | CZ172: 22 | DA172: 22 | DB172: 22 | DC172: 22 | DD172: 22 | DE172: 22 | DF172: 22 | DG172: 22
C173: 14. Spieltag
A174: =IF(SUM(J175:L183)>0,1,"Z") -> 1 | C174: 08.-10.12.2023
B175: =C175&E175 -> SV Werder BremenFC Augsburg | C175: SV Werder Bremen | D175: - | E175: FC Augsburg | F175: 2 | G175: : | H175: 0 | J175: =IF(F175>H175,3,IF(F175<H175,0,IF(AND(H175<>"",F175=H175),1,0))) -> 3 | K175: : | L175: =IF(F175>H175,0,IF(F175<H175,3,IF(AND(H175<>"",F175=H175),1,0))) -> 0 | N175: =F175-H175 -> 2 | P175: =H175-F175 -> -2 | R175: =(AK175*10000+BD175*100+BW175) -> 30202 | S175: =(AL175*10000+BE175*100+BX175) -> 0 | T175: =(AM175*10000+BF175*100+BY175) -> 0 | U175: =(AN175*10000+BG175*100+BZ175) -> 0 | V175: =(AO175*10000+BH175*100+CA175) -> 0 | W175: =(AP175*10000+BI175*100+CB175) -> 0 | X175: =(AQ175*10000+BJ175*100+CC175) -> 0 | Y175: =(AR175*10000+BK175*100+CD175) -> 0 | Z175: =(AS175*10000+BL175*100+CE175) -> 0 | AA175: =(AT175*10000+BM175*100+CF175) -> 0 | AB175: =(AU175*10000+BN175*100+CG175) -> 0 | AC175: =(AV175*10000+BO175*100+CH175) -> 0 | AD175: =(AW175*10000+BP175*100+CI175) -> 0 | AE175: =(AX175*10000+BQ175*100+CJ175) -> 0 | AF175: =(AY175*10000+BR175*100+CK175) -> -200 | AG175: =(AZ175*10000+BS175*100+CL175) -> 0 | AH175: =(BA175*10000+BT175*100+CM175) -> 0 | AI175: =(BB175*10000+BU175*100+CN175) -> 0 | AK175: =IF($C175=AK$1,$J175,IF($E175=AK$1,$L175,0)) -> 3 | AL175: 0 | AM175: 0 | AN175: 0 | AO175: 0 | AP175: 0 | AQ175: 0 | AR175: 0 | AS175: 0 | AT175: 0 | AU175: =IF($C175=AU$1,$J175,IF($E175=AU$1,$L175,0)) -> 0 | AV175: 0 | AW175: 0 | AX175: 0 | AY175: 0 | AZ175: 0 | BA175: 0 | BB175: 0 | BD175: =IF($C175=BD$1,$F175-$H175,IF($E175=BD$1,$H175-$F175,0)) -> 2 | BE175: 0 | BF175: 0 | BG175: 0 | BH175: 0 | BI175: 0 | BJ175: 0 | BK175: 0 | BL175: 0 | BM175: 0 | BN175: =IF($C175=BN$1,$F175-$H175,IF($E175=BN$1,$H175-$F175,0)) -> 0 | BO175: 0 | BP175: 0 | BQ175: 0 | BR175: -2 | BS175: 0 | BT175: 0 | BU175: 0 | BW175: =IF($C175=BW$1,$F175,IF($E175=BW$1,$H175,0)) -> 2 | BX175: 0 | BY175: 0 | BZ175: 0 | CA175: 0 | CB175: 0 | CC175: 0 | CD175: 0 | CE175: 0 | CF175: 0 | CG175: =IF($C175=CG$1,$F175,IF($E175=CG$1,$H175,0)) -> 0 | CH175: 0 | CI175: 0 | CJ175: 0 | CK175: 0 | CL175: 0 | CM175: 0 | CN175: 0 | CP175: =IF($C175=CP$1,IF($F175<>"",1,0),IF($E175=CP$1,IF($H175<>"",2,0),0)) -> 1 | CQ175: 0 | CR175: 0 | CS175: 0 | CT175: 0 | CU175: 0 | CV175: 0 | CW175: 0 | CX175: 0 | CY175: 0 | CZ175: =IF($C175=CZ$1,IF($F175<>"",1,0),IF($E175=CZ$1,IF($H175<>"",2,0),0)) -> 0 | DA175: 0 | DB175: 0 | DC175: 0 | DD175: 2 | DE175: 0 | DF175: 0 | DG175: 0 | DH175: 8 | DI175: 2 | DJ175: 12 | DK175: 33:38 | DL175: =IFERROR(ROUND(MID(DK175,1,SEARCH(":",DK175,1)-1)/SUM(DH175:DJ175),$DL$2)&" : "&ROUND(MID(DK175,SEARCH(":",DK175,1)+1,99)/SUM(DH175:DJ175),$DL$2),"") -> 2 : 2
B176: VfB StuttgartBayer 04 Leverkusen | C176: VfB Stuttgart | D176: - | E176: Bayer 04 Leverkusen | F176: 1 | G176: : | H176: 1 | J176: 1 | K176: : | L176: 1 | N176: =F176-H176 -> 0 | P176: =H176-F176 -> 0 | R176: 0 | S176: 0 | T176: 10001 | U176: 0 | V176: 0 | W176: 0 | X176: 0 | Y176: 0 | Z176: 10001 | AA176: 0 | AB176: 0 | AC176: 0 | AD176: 0 | AE176: 0 | AF176: 0 | AG176: 0 | AH176: 0 | AI176: 0 | AK176: 0 | AL176: 0 | AM176: 1 | AN176: 0 | AO176: 0 | AP176: 0 | AQ176: 0 | AR176: 0 | AS176: 1 | AT176: 0 | AU176: 0 | AV176: 0 | AW176: 0 | AX176: 0 | AY176: 0 | AZ176: 0 | BA176: 0 | BB176: 0 | BD176: 0 | BE176: 0 | BF176: 0 | BG176: 0 | BH176: 0 | BI176: 0 | BJ176: 0 | BK176: 0 | BL176: 0 | BM176: 0 | BN176: 0 | BO176: 0 | BP176: 0 | BQ176: 0 | BR176: 0 | BS176: 0 | BT176: 0 | BU176: 0 | BW176: 0 | BX176: 0 | BY176: 1 | BZ176: 0 | CA176: 0 | CB176: 0 | CC176: 0 | CD176: 0 | CE176: 1 | CF176: 0 | CG176: 0 | CH176: 0 | CI176: 0 | CJ176: 0 | CK176: 0 | CL176: 0 | CM176: 0 | CN176: 0 | CP176: 0 | CQ176: 0 | CR176: 1 | CS176: 0 | CT176: 0 | CU176: 0 | CV176: 0 | CW176: 0 | CX176: 2 | CY176: 0 | CZ176: 0 | DA176: 0 | DB176: 0 | DC176: 0 | DD176: 0 | DE176: 0 | DF176: 0 | DG176: 0 | DH176: 23 | DI176: 21 | DJ176: 40 | DK176: 107:149 | DL176: 1 : 2
B177: 1. FC Köln1. FSV Mainz 05 | C177: 1. FC Köln | D177: - | E177: 1. FSV Mainz 05 | F177: 0 | G177: : | H177: 0 | J177: 1 | K177: : | L177: 1 | N177: 0 | P177: 0 | R177: 0 | S177: 0 | T177: 0 | U177: 0 | V177: 0 | W177: 10000 | X177: 0 | Y177: 0 | Z177: 0 | AA177: 0 | AB177: 0 | AC177: 0 | AD177: 0 | AE177: 10000 | AF177: 0 | AG177: 0 | AH177: 0 | AI177: 0 | AK177: 0 | AL177: 0 | AM177: 0 | AN177: 0 | AO177: 0 | AP177: 1 | AQ177: 0 | AR177: 0 | AS177: 0 | AT177: 0 | AU177: 0 | AV177: 0 | AW177: 0 | AX177: 1 | AY177: 0 | AZ177: 0 | BA177: 0 | BB177: 0 | BD177: 0 | BE177: 0 | BF177: 0 | BG177: 0 | BH177: 0 | BI177: 0 | BJ177: 0 | BK177: 0 | BL177: 0 | BM177: 0 | BN177: 0 | BO177: 0 | BP177: 0 | BQ177: 0 | BR177: 0 | BS177: 0 | BT177: 0 | BU177: 0 | BW177: 0 | BX177: 0 | BY177: 0 | BZ177: 0 | CA177: 0 | CB177: 0 | CC177: 0 | CD177: 0 | CE177: 0 | CF177: 0 | CG177: 0 | CH177: 0 | CI177: 0 | CJ177: 0 | CK177: 0 | CL177: 0 | CM177: 0 | CN177: 0 | CP177: 0 | CQ177: 0 | CR177: 0 | CS177: 0 | CT177: 0 | CU177: 1 | CV177: 0 | CW177: 0 | CX177: 0 | CY177: 0 | CZ177: 0 | DA177: 0 | DB177: 0 | DC177: 2 | DD177: 0 | DE177: 0 | DF177: 0 | DG177: 0 | DH177: 10 | DI177: 10 | DJ177: 12 | DK177: 35:47 | DL177: 1 : 1
B178: Borussia DortmundRB Leipzig | C178: Borussia Dortmund | D178: - | E178: RB Leipzig | F178: 2 | G178: : | H178: 3 | J178: 0 | K178: : | L178: 3 | N178: -1 | P178: 1 | R178: 0 | S178: 0 | T178: 0 | U178: 0 | V178: -98 | W178: 0 | X178: 0 | Y178: 0 | Z178: 0 | AA178: 30103 | AB178: 0 | AC178: 0 | AD178: 0 | AE178: 0 | AF178: 0 | AG178: 0 | AH178: 0 | AI178: 0 | AK178: 0 | AL178: 0 | AM178: 0 | AN178: 0 | AO178: 0 | AP178: 0 | AQ178: 0 | AR178: 0 | AS178: 0 | AT178: 3 | AU178: 0 | AV178: 0 | AW178: 0 | AX178: 0 | AY178: 0 | AZ178: 0 | BA178: 0 | BB178: 0 | BD178: 0 | BE178: 0 | BF178: 0 | BG178: 0 | BH178: -1 | BI178: 0 | BJ178: 0 | BK178: 0 | BL178: 0 | BM178: 1 | BN178: 0 | BO178: 0 | BP178: 0 | BQ178: 0 | BR178: 0 | BS178: 0 | BT178: 0 | BU178: 0 | BW178: 0 | BX178: 0 | BY178: 0 | BZ178: 0 | CA178: 2 | CB178: 0 | CC178: 0 | CD178: 0 | CE178: 0 | CF178: 3 | CG178: 0 | CH178: 0 | CI178: 0 | CJ178: 0 | CK178: 0 | CL178: 0 | CM178: 0 | CN178: 0 | CP178: 0 | CQ178: 0 | CR178: 0 | CS178: 0 | CT178: 1 | CU178: 0 | CV178: 0 | CW178: 0 | CX178: 0 | CY178: 2 | CZ178: 0 | DA178: 0 | DB178: 0 | DC178: 0 | DD178: 0 | DE178: 0 | DF178: 0 | DG178: 0 | DH178: 7 | DI178: 2 | DJ178: 5 | DK178: 24:22 | DL178: 2 : 2
B179: Eintracht FrankfurtFC Bayern München | C179: Eintracht Frankfurt | D179: - | E179: FC Bayern München | F179: 5 | G179: : | H179: 1 | J179: 3 | K179: : | L179: 0 | N179: 4 | P179: -4 | R179: 0 | S179: -399 | T179: 0 | U179: 0 | V179: 0 | W179: 0 | X179: 30405 | Y179: 0 | Z179: 0 | AA179: 0 | AB179: 0 | AC179: 0 | AD179: 0 | AE179: 0 | AF179: 0 | AG179: 0 | AH179: 0 | AI179: 0 | AK179: 0 | AL179: 0 | AM179: 0 | AN179: 0 | AO179: 0 | AP179: 0 | AQ179: 3 | AR179: 0 | AS179: 0 | AT179: 0 | AU179: 0 | AV179: 0 | AW179: 0 | AX179: 0 | AY179: 0 | AZ179: 0 | BA179: 0 | BB179: 0 | BD179: 0 | BE179: -4 | BF179: 0 | BG179: 0 | BH179: 0 | BI179: 0 | BJ179: 4 | BK179: 0 | BL179: 0 | BM179: 0 | BN179: 0 | BO179: 0 | BP179: 0 | BQ179: 0 | BR179: 0 | BS179: 0 | BT179: 0 | BU179: 0 | BW179: 0 | BX179: 1 | BY179: 0 | BZ179: 0 | CA179: 0 | CB179: 0 | CC179: 5 | CD179: 0 | CE179: 0 | CF179: 0 | CG179: 0 | CH179: 0 | CI179: 0 | CJ179: 0 | CK179: 0 | CL179: 0 | CM179: 0 | CN179: 0 | CP179: 0 | CQ179: 2 | CR179: 0 | CS179: 0 | CT179: 0 | CU179: 0 | CV179: 1 | CW179: 0 | CX179: 0 | CY179: 0 | CZ179: 0 | DA179: 0 | DB179: 0 | DC179: 0 | DD179: 0 | DE179: 0 | DF179: 0 | DG179: 0 | DH179: 24 | DI179: 23 | DJ179: 57 | DK179: 127:212 | DL179: 1 : 2
B180: VfL WolfsburgSport-Club Freiburg | C180: VfL Wolfsburg | D180: - | E180: Sport-Club Freiburg | F180: 0 | G180: : | H180: 1 | J180: 0 | K180: : | L180: 3 | N180: -1 | P180: 1 | R180: 0 | S180: 0 | T180: 0 | U180: 0 | V180: 0 | W180: 0 | X180: 0 | Y180: 0 | Z180: 0 | AA180: 0 | AB180: -100 | AC180: 0 | AD180: 0 | AE180: 0 | AF180: 0 | AG180: 0 | AH180: 0 | AI180: 30101 | AK180: 0 | AL180: 0 | AM180: 0 | AN180: 0 | AO180: 0 | AP180: 0 | AQ180: 0 | AR180: 0 | AS180: 0 | AT180: 0 | AU180: 0 | AV180: 0 | AW180: 0 | AX180: 0 | AY180: 0 | AZ180: 0 | BA180: 0 | BB180: 3 | BD180: 0 | BE180: 0 | BF180: 0 | BG180: 0 | BH180: 0 | BI180: 0 | BJ180: 0 | BK180: 0 | BL180: 0 | BM180: 0 | BN180: -1 | BO180: 0 | BP180: 0 | BQ180: 0 | BR180: 0 | BS180: 0 | BT180: 0 | BU180: 1 | BW180: 0 | BX180: 0 | BY180: 0 | BZ180: 0 | CA180: 0 | CB180: 0 | CC180: 0 | CD180: 0 | CE180: 0 | CF180: 0 | CG180: 0 | CH180: 0 | CI180: 0 | CJ180: 0 | CK180: 0 | CL180: 0 | CM180: 0 | CN180: 1 | CP180: 0 | CQ180: 0 | CR180: 0 | CS180: 0 | CT180: 0 | CU180: 0 | CV180: 0 | CW180: 0 | CX180: 0 | CY180: 0 | CZ180: 1 | DA180: 0 | DB180: 0 | DC180: 0 | DD180: 0 | DE180: 0 | DF180: 0 | DG180: 2 | DH180: 14 | DI180: 11 | DJ180: 15 | DK180: 68:56 | DL180: 2 : 1
B181: 1. FC Union BerlinBorussia Mönchengladbach | C181: 1. FC Union Berlin | D181: - | E181: Borussia Mönchengladbach | F181: 3 | G181: : | H181: 1 | J181: 3 | K181: : | L181: 0 | N181: 2 | P181: -2 | R181: 0 | S181: 0 | T181: 0 | U181: 0 | V181: 0 | W181: 0 | X181: 0 | Y181: 0 | Z181: 0 | AA181: 0 | AB181: 0 | AC181: 0 | AD181: 30203 | AE181: 0 | AF181: 0 | AG181: -199 | AH181: 0 | AI181: 0 | AK181: 0 | AL181: 0 | AM181: 0 | AN181: 0 | AO181: 0 | AP181: 0 | AQ181: 0 | AR181: 0 | AS181: 0 | AT181: 0 | AU181: 0 | AV181: 0 | AW181: 3 | AX181: 0 | AY181: 0 | AZ181: 0 | BA181: 0 | BB181: 0 | BD181: 0 | BE181: 0 | BF181: 0 | BG181: 0 | BH181: 0 | BI181: 0 | BJ181: 0 | BK181: 0 | BL181: 0 | BM181: 0 | BN181: 0 | BO181: 0 | BP181: 2 | BQ181: 0 | BR181: 0 | BS181: -2 | BT181: 0 | BU181: 0 | BW181: 0 | BX181: 0 | BY181: 0 | BZ181: 0 | CA181: 0 | CB181: 0 | CC181: 0 | CD181: 0 | CE181: 0 | CF181: 0 | CG181: 0 | CH181: 0 | CI181: 3 | CJ181: 0 | CK181: 0 | CL181: 1 | CM181: 0 | CN181: 0 | CP181: 0 | CQ181: 0 | CR181: 0 | CS181: 0 | CT181: 0 | CU181: 0 | CV181: 0 | CW181: 0 | CX181: 0 | CY181: 0 | CZ181: 0 | DA181: 0 | DB181: 1 | DC181: 0 | DD181: 0 | DE181: 2 | DF181: 0 | DG181: 0 | DH181: 5 | DI181: 2 | DJ181: 1 | DK181: 12:9 | DL181: 2 : 1
B182: TSG HoffenheimVfL Bochum 1848 | C182: TSG Hoffenheim | D182: - | E182: VfL Bochum 1848 | F182: 3 | G182: : | H182: 1 | J182: 3 | K182: : | L182: 0 | N182: 2 | P182: -2 | R182: 0 | S182: 0 | T182: 0 | U182: -199 | V182: 0 | W182: 0 | X182: 0 | Y182: 0 | Z182: 0 | AA182: 0 | AB182: 0 | AC182: 0 | AD182: 0 | AE182: 0 | AF182: 0 | AG182: 0 | AH182: 30203 | AI182: 0 | AK182: 0 | AL182: 0 | AM182: 0 | AN182: 0 | AO182: 0 | AP182: 0 | AQ182: 0 | AR182: 0 | AS182: 0 | AT182: 0 | AU182: 0 | AV182: 0 | AW182: 0 | AX182: 0 | AY182: 0 | AZ182: 0 | BA182: 3 | BB182: 0 | BD182: 0 | BE182: 0 | BF182: 0 | BG182: -2 | BH182: 0 | BI182: 0 | BJ182: 0 | BK182: 0 | BL182: 0 | BM182: 0 | BN182: 0 | BO182: 0 | BP182: 0 | BQ182: 0 | BR182: 0 | BS182: 0 | BT182: 2 | BU182: 0 | BW182: 0 | BX182: 0 | BY182: 0 | BZ182: 1 | CA182: 0 | CB182: 0 | CC182: 0 | CD182: 0 | CE182: 0 | CF182: 0 | CG182: 0 | CH182: 0 | CI182: 0 | CJ182: 0 | CK182: 0 | CL182: 0 | CM182: 3 | CN182: 0 | CP182: 0 | CQ182: 0 | CR182: 0 | CS182: 2 | CT182: 0 | CU182: 0 | CV182: 0 | CW182: 0 | CX182: 0 | CY182: 0 | CZ182: 0 | DA182: 0 | DB182: 0 | DC182: 0 | DD182: 0 | DE182: 0 | DF182: 1 | DG182: 0 | DH182: 3 | DI182: 0 | DJ182: 5 | DK182: 13:17 | DL182: 2 : 2
B183: 1. FC Heidenheim 1846SV Darmstadt 98 | C183: 1. FC Heidenheim 1846 | D183: - | E183: SV Darmstadt 98 | F183: 3 | G183: : | H183: 2 | J183: 3 | K183: : | L183: 0 | N183: 1 | P183: -1 | R183: 0 | S183: 0 | T183: 0 | U183: 0 | V183: 0 | W183: 0 | X183: 0 | Y183: -98 | Z183: 0 | AA183: 0 | AB183: 0 | AC183: 30103 | AD183: 0 | AE183: 0 | AF183: 0 | AG183: 0 | AH183: 0 | AI183: 0 | AK183: 0 | AL183: 0 | AM183: 0 | AN183: 0 | AO183: 0 | AP183: 0 | AQ183: 0 | AR183: 0 | AS183: 0 | AT183: 0 | AU183: 0 | AV183: 3 | AW183: 0 | AX183: 0 | AY183: 0 | AZ183: 0 | BA183: 0 | BB183: 0 | BD183: 0 | BE183: 0 | BF183: 0 | BG183: 0 | BH183: 0 | BI183: 0 | BJ183: 0 | BK183: -1 | BL183: 0 | BM183: 0 | BN183: 0 | BO183: 1 | BP183: 0 | BQ183: 0 | BR183: 0 | BS183: 0 | BT183: 0 | BU183: 0 | BW183: 0 | BX183: 0 | BY183: 0 | BZ183: 0 | CA183: 0 | CB183: 0 | CC183: 0 | CD183: 2 | CE183: 0 | CF183: 0 | CG183: 0 | CH183: 3 | CI183: 0 | CJ183: 0 | CK183: 0 | CL183: 0 | CM183: 0 | CN183: 0 | CP183: 0 | CQ183: 0 | CR183: 0 | CS183: 0 | CT183: 0 | CU183: 0 | CV183: 0 | CW183: 2 | CX183: 0 | CY183: 0 | CZ183: 0 | DA183: 1 | DB183: 0 | DC183: 0 | DD183: 0 | DE183: 0 | DF183: 0 | DG183: 0 | DH183: 5 | DI183: 5 | DJ183: 4 | DK183: 19:20 | DL183: 1 : 1
R184: =SUM(R175:R183)+R171 -> 139320 | S184: 353145 | T184: 311834 | U184: 128615 | V184: 250528 | W184: 98610 | X184: 210824 | Y184: 88017 | Z184: 362739 | AA184: 291934 | AB184: 159318 | AC184: 139121 | AD184: 98615 | AE184: 88612 | AF184: 169623 | AG184: 159728 | AH184: 230428 | AI184: 209417 | AK184: =SUM(AK175:AK183)+AK171 -> 14 | AL184: 35 | AM184: 31 | AN184: 13 | AO184: 25 | AP184: 10 | AQ184: 21 | AR184: 9 | AS184: 36 | AT184: 29 | AU184: 16 | AV184: 14 | AW184: 10 | AX184: 9 | AY184: 17 | AZ184: 16 | BA184: 23 | BB184: 21 | BD184: =SUM(BD175:BD183)+BD171 -> -7 | BE184: 31 | BF184: 18 | BG184: -14 | BH184: 5 | BI184: -14 | BJ184: 8 | BK184: -20 | BL184: 27 | BM184: 19 | BN184: -7 | BO184: -9 | BP184: -14 | BQ184: -14 | BR184: -4 | BS184: -3 | BT184: 4 | BU184: -6 | BW184: =SUM(BW175:BW183)+BW171 -> 20 | BX184: 45 | BY184: 34 | BZ184: 15 | CA184: 28 | CB184: 10 | CC184: 24 | CD184: 17 | CE184: 39 | CF184: 34 | CG184: 18 | CH184: 21 | CI184: 15 | CJ184: 12 | CK184: 23 | CL184: 28 | CM184: 28 | CN184: 17 | CO184: x | CP184: =IF(CP185<=$CO$3,SUMIF(CP175:CP183,1,$J175:$J183)+SUMIF(CP175:CP183,2,$L175:$L183),0) -> 0 | CQ184: 0 | CR184: 0 | CS184: 0 | CT184: 0 | CU184: 0 | CV184: 0 | CW184: 0 | CX184: 0 | CY184: 0 | CZ184: 0 | DA184: 0 | DB184: 0 | DC184: 0 | DD184: 0 | DE184: 0 | DF184: 0 | DG184: 0
R185: =RANK(R184,$R184:$AI184,0) -> 12 | S185: 2 | T185: 3 | U185: 14 | V185: 5 | W185: 16 | X185: 7 | Y185: 18 | Z185: 1 | AA185: 4 | AB185: 11 | AC185: 13 | AD185: 15 | AE185: 17 | AF185: 9 | AG185: 10 | AH185: 6 | AI185: 8 | CP185: =IF(SUM(CP175:CP183)>0,IF(CP198=0,1,CP198+1),IF(CP198<>0,CP198,0)) -> 21 | CQ185: 21 | CR185: 21 | CS185: 21 | CT185: 21 | CU185: 21 | CV185: 21 | CW185: 21 | CX185: 21 | CY185: 21 | CZ185: 21 | DA185: 21 | DB185: 21 | DC185: 21 | DD185: 21 | DE185: 21 | DF185: 21 | DG185: 21
C186: 15. Spieltag
A187: =IF(SUM(J188:L196)>0,1,"Z") -> 1 | C187: 15.-17.12.2023
B188: =C188&E188 -> FC Bayern MünchenVfB Stuttgart | C188: FC Bayern München | D188: - | E188: VfB Stuttgart | F188: 3 | G188: : | H188: 0 | J188: =IF(F188>H188,3,IF(F188<H188,0,IF(AND(H188<>"",F188=H188),1,0))) -> 3 | K188: : | L188: =IF(F188>H188,0,IF(F188<H188,3,IF(AND(H188<>"",F188=H188),1,0))) -> 0 | N188: =F188-H188 -> 3 | P188: =H188-F188 -> -3 | R188: =(AK188*10000+BD188*100+BW188) -> 0 | S188: =(AL188*10000+BE188*100+BX188) -> 30303 | T188: =(AM188*10000+BF188*100+BY188) -> -300 | U188: =(AN188*10000+BG188*100+BZ188) -> 0 | V188: =(AO188*10000+BH188*100+CA188) -> 0 | W188: =(AP188*10000+BI188*100+CB188) -> 0 | X188: =(AQ188*10000+BJ188*100+CC188) -> 0 | Y188: =(AR188*10000+BK188*100+CD188) -> 0 | Z188: =(AS188*10000+BL188*100+CE188) -> 0 | AA188: =(AT188*10000+BM188*100+CF188) -> 0 | AB188: =(AU188*10000+BN188*100+CG188) -> 0 | AC188: =(AV188*10000+BO188*100+CH188) -> 0 | AD188: =(AW188*10000+BP188*100+CI188) -> 0 | AE188: =(AX188*10000+BQ188*100+CJ188) -> 0 | AF188: =(AY188*10000+BR188*100+CK188) -> 0 | AG188: =(AZ188*10000+BS188*100+CL188) -> 0 | AH188: =(BA188*10000+BT188*100+CM188) -> 0 | AI188: =(BB188*10000+BU188*100+CN188) -> 0 | AK188: =IF($C188=AK$1,$J188,IF($E188=AK$1,$L188,0)) -> 0 | AL188: 3 | AM188: 0 | AN188: 0 | AO188: 0 | AP188: 0 | AQ188: 0 | AR188: 0 | AS188: 0 | AT188: 0 | AU188: =IF($C188=AU$1,$J188,IF($E188=AU$1,$L188,0)) -> 0 | AV188: 0 | AW188: 0 | AX188: 0 | AY188: 0 | AZ188: 0 | BA188: 0 | BB188: 0 | BD188: =IF($C188=BD$1,$F188-$H188,IF($E188=BD$1,$H188-$F188,0)) -> 0 | BE188: 3 | BF188: -3 | BG188: 0 | BH188: 0 | BI188: 0 | BJ188: 0 | BK188: 0 | BL188: 0 | BM188: 0 | BN188: =IF($C188=BN$1,$F188-$H188,IF($E188=BN$1,$H188-$F188,0)) -> 0 | BO188: 0 | BP188: 0 | BQ188: 0 | BR188: 0 | BS188: 0 | BT188: 0 | BU188: 0 | BW188: =IF($C188=BW$1,$F188,IF($E188=BW$1,$H188,0)) -> 0 | BX188: 3 | BY188: 0 | BZ188: 0 | CA188: 0 | CB188: 0 | CC188: 0 | CD188: 0 | CE188: 0 | CF188: 0 | CG188: =IF($C188=CG$1,$F188,IF($E188=CG$1,$H188,0)) -> 0 | CH188: 0 | CI188: 0 | CJ188: 0 | CK188: 0 | CL188: 0 | CM188: 0 | CN188: 0 | CP188: =IF($C188=CP$1,IF($F188<>"",1,0),IF($E188=CP$1,IF($H188<>"",2,0),0)) -> 0 | CQ188: 1 | CR188: 2 | CS188: 0 | CT188: 0 | CU188: 0 | CV188: 0 | CW188: 0 | CX188: 0 | CY188: 0 | CZ188: =IF($C188=CZ$1,IF($F188<>"",1,0),IF($E188=CZ$1,IF($H188<>"",2,0),0)) -> 0 | DA188: 0 | DB188: 0 | DC188: 0 | DD188: 0 | DE188: 0 | DF188: 0 | DG188: 0 | DH188: 68 | DI188: 22 | DJ188: 18 | DK188: 227:121 | DL188: =IFERROR(ROUND(MID(DK188,1,SEARCH(":",DK188,1)-1)/SUM(DH188:DJ188),$DL$2)&" : "&ROUND(MID(DK188,SEARCH(":",DK188,1)+1,99)/SUM(DH188:DJ188),$DL$2),"") -> 2 : 1
B189: Borussia MönchengladbachSV Werder Bremen | C189: Borussia Mönchengladbach | D189: - | E189: SV Werder Bremen | F189: 2 | G189: : | H189: 2 | J189: 1 | K189: : | L189: 1 | N189: =F189-H189 -> 0 | P189: =H189-F189 -> 0 | R189: 10002 | S189: 0 | T189: 0 | U189: 0 | V189: 0 | W189: 0 | X189: 0 | Y189: 0 | Z189: 0 | AA189: 0 | AB189: 0 | AC189: 0 | AD189: 0 | AE189: 0 | AF189: 0 | AG189: 10002 | AH189: 0 | AI189: 0 | AK189: 1 | AL189: 0 | AM189: 0 | AN189: 0 | AO189: 0 | AP189: 0 | AQ189: 0 | AR189: 0 | AS189: 0 | AT189: 0 | AU189: 0 | AV189: 0 | AW189: 0 | AX189: 0 | AY189: 0 | AZ189: 1 | BA189: 0 | BB189: 0 | BD189: 0 | BE189: 0 | BF189: 0 | BG189: 0 | BH189: 0 | BI189: 0 | BJ189: 0 | BK189: 0 | BL189: 0 | BM189: 0 | BN189: 0 | BO189: 0 | BP189: 0 | BQ189: 0 | BR189: 0 | BS189: 0 | BT189: 0 | BU189: 0 | BW189: 2 | BX189: 0 | BY189: 0 | BZ189: 0 | CA189: 0 | CB189: 0 | CC189: 0 | CD189: 0 | CE189: 0 | CF189: 0 | CG189: 0 | CH189: 0 | CI189: 0 | CJ189: 0 | CK189: 0 | CL189: 2 | CM189: 0 | CN189: 0 | CP189: 2 | CQ189: 0 | CR189: 0 | CS189: 0 | CT189: 0 | CU189: 0 | CV189: 0 | CW189: 0 | CX189: 0 | CY189: 0 | CZ189: 0 | DA189: 0 | DB189: 0 | DC189: 0 | DD189: 0 | DE189: 1 | DF189: 0 | DG189: 0 | DH189: 41 | DI189: 26 | DJ189: 39 | DK189: 180:163 | DL189: 2 : 2
B190: VfL Bochum 18481. FC Union Berlin | C190: VfL Bochum 1848 | D190: - | E190: 1. FC Union Berlin | F190: 3 | G190: : | H190: 0 | J190: 3 | K190: : | L190: 0 | N190: 3 | P190: -3 | R190: 0 | S190: 0 | T190: 0 | U190: 30303 | V190: 0 | W190: 0 | X190: 0 | Y190: 0 | Z190: 0 | AA190: 0 | AB190: 0 | AC190: 0 | AD190: -300 | AE190: 0 | AF190: 0 | AG190: 0 | AH190: 0 | AI190: 0 | AK190: 0 | AL190: 0 | AM190: 0 | AN190: 3 | AO190: 0 | AP190: 0 | AQ190: 0 | AR190: 0 | AS190: 0 | AT190: 0 | AU190: 0 | AV190: 0 | AW190: 0 | AX190: 0 | AY190: 0 | AZ190: 0 | BA190: 0 | BB190: 0 | BD190: 0 | BE190: 0 | BF190: 0 | BG190: 3 | BH190: 0 | BI190: 0 | BJ190: 0 | BK190: 0 | BL190: 0 | BM190: 0 | BN190: 0 | BO190: 0 | BP190: -3 | BQ190: 0 | BR190: 0 | BS190: 0 | BT190: 0 | BU190: 0 | BW190: 0 | BX190: 0 | BY190: 0 | BZ190: 3 | CA190: 0 | CB190: 0 | CC190: 0 | CD190: 0 | CE190: 0 | CF190: 0 | CG190: 0 | CH190: 0 | CI190: 0 | CJ190: 0 | CK190: 0 | CL190: 0 | CM190: 0 | CN190: 0 | CP190: 0 | CQ190: 0 | CR190: 0 | CS190: 1 | CT190: 0 | CU190: 0 | CV190: 0 | CW190: 0 | CX190: 0 | CY190: 0 | CZ190: 0 | DA190: 0 | DB190: 2 | DC190: 0 | DD190: 0 | DE190: 0 | DF190: 0 | DG190: 0 | DH190: 8 | DI190: 4 | DJ190: 12 | DK190: 31:37 | DL190: 1 : 2
B191: Bayer 04 LeverkusenEintracht Frankfurt | C191: Bayer 04 Leverkusen | D191: - | E191: Eintracht Frankfurt | F191: 3 | G191: : | H191: 0 | J191: 3 | K191: : | L191: 0 | N191: 3 | P191: -3 | R191: 0 | S191: 0 | T191: 0 | U191: 0 | V191: 0 | W191: 0 | X191: -300 | Y191: 0 | Z191: 30303 | AA191: 0 | AB191: 0 | AC191: 0 | AD191: 0 | AE191: 0 | AF191: 0 | AG191: 0 | AH191: 0 | AI191: 0 | AK191: 0 | AL191: 0 | AM191: 0 | AN191: 0 | AO191: 0 | AP191: 0 | AQ191: 0 | AR191: 0 | AS191: 3 | AT191: 0 | AU191: 0 | AV191: 0 | AW191: 0 | AX191: 0 | AY191: 0 | AZ191: 0 | BA191: 0 | BB191: 0 | BD191: 0 | BE191: 0 | BF191: 0 | BG191: 0 | BH191: 0 | BI191: 0 | BJ191: -3 | BK191: 0 | BL191: 3 | BM191: 0 | BN191: 0 | BO191: 0 | BP191: 0 | BQ191: 0 | BR191: 0 | BS191: 0 | BT191: 0 | BU191: 0 | BW191: 0 | BX191: 0 | BY191: 0 | BZ191: 0 | CA191: 0 | CB191: 0 | CC191: 0 | CD191: 0 | CE191: 3 | CF191: 0 | CG191: 0 | CH191: 0 | CI191: 0 | CJ191: 0 | CK191: 0 | CL191: 0 | CM191: 0 | CN191: 0 | CP191: 0 | CQ191: 0 | CR191: 0 | CS191: 0 | CT191: 0 | CU191: 0 | CV191: 2 | CW191: 0 | CX191: 1 | CY191: 0 | CZ191: 0 | DA191: 0 | DB191: 0 | DC191: 0 | DD191: 0 | DE191: 0 | DF191: 0 | DG191: 0 | DH191: 35 | DI191: 13 | DJ191: 28 | DK191: 136:111 | DL191: 2 : 1
B192: Sport-Club Freiburg1. FC Köln | C192: Sport-Club Freiburg | D192: - | E192: 1. FC Köln | F192: 2 | G192: : | H192: 0 | J192: 3 | K192: : | L192: 0 | N192: 2 | P192: -2 | R192: 0 | S192: 0 | T192: 0 | U192: 0 | V192: 0 | W192: -200 | X192: 0 | Y192: 0 | Z192: 0 | AA192: 0 | AB192: 0 | AC192: 0 | AD192: 0 | AE192: 0 | AF192: 0 | AG192: 0 | AH192: 0 | AI192: 30202 | AK192: 0 | AL192: 0 | AM192: 0 | AN192: 0 | AO192: 0 | AP192: 0 | AQ192: 0 | AR192: 0 | AS192: 0 | AT192: 0 | AU192: 0 | AV192: 0 | AW192: 0 | AX192: 0 | AY192: 0 | AZ192: 0 | BA192: 0 | BB192: 3 | BD192: 0 | BE192: 0 | BF192: 0 | BG192: 0 | BH192: 0 | BI192: -2 | BJ192: 0 | BK192: 0 | BL192: 0 | BM192: 0 | BN192: 0 | BO192: 0 | BP192: 0 | BQ192: 0 | BR192: 0 | BS192: 0 | BT192: 0 | BU192: 2 | BW192: 0 | BX192: 0 | BY192: 0 | BZ192: 0 | CA192: 0 | CB192: 0 | CC192: 0 | CD192: 0 | CE192: 0 | CF192: 0 | CG192: 0 | CH192: 0 | CI192: 0 | CJ192: 0 | CK192: 0 | CL192: 0 | CM192: 0 | CN192: 2 | CP192: 0 | CQ192: 0 | CR192: 0 | CS192: 0 | CT192: 0 | CU192: 2 | CV192: 0 | CW192: 0 | CX192: 0 | CY192: 0 | CZ192: 0 | DA192: 0 | DB192: 0 | DC192: 0 | DD192: 0 | DE192: 0 | DF192: 0 | DG192: 1 | DH192: 19 | DI192: 7 | DJ192: 14 | DK192: 58:48 | DL192: 1 : 1
B193: 1. FSV Mainz 051. FC Heidenheim 1846 | C193: 1. FSV Mainz 05 | D193: - | E193: 1. FC Heidenheim 1846 | F193: 0 | G193: : | H193: 1 | J193: 0 | K193: : | L193: 3 | N193: -1 | P193: 1 | R193: 0 | S193: 0 | T193: 0 | U193: 0 | V193: 0 | W193: 0 | X193: 0 | Y193: 0 | Z193: 0 | AA193: 0 | AB193: 0 | AC193: 30101 | AD193: 0 | AE193: -100 | AF193: 0 | AG193: 0 | AH193: 0 | AI193: 0 | AK193: 0 | AL193: 0 | AM193: 0 | AN193: 0 | AO193: 0 | AP193: 0 | AQ193: 0 | AR193: 0 | AS193: 0 | AT193: 0 | AU193: 0 | AV193: 3 | AW193: 0 | AX193: 0 | AY193: 0 | AZ193: 0 | BA193: 0 | BB193: 0 | BD193: 0 | BE193: 0 | BF193: 0 | BG193: 0 | BH193: 0 | BI193: 0 | BJ193: 0 | BK193: 0 | BL193: 0 | BM193: 0 | BN193: 0 | BO193: 1 | BP193: 0 | BQ193: -1 | BR193: 0 | BS193: 0 | BT193: 0 | BU193: 0 | BW193: 0 | BX193: 0 | BY193: 0 | BZ193: 0 | CA193: 0 | CB193: 0 | CC193: 0 | CD193: 0 | CE193: 0 | CF193: 0 | CG193: 0 | CH193: 1 | CI193: 0 | CJ193: 0 | CK193: 0 | CL193: 0 | CM193: 0 | CN193: 0 | CP193: 0 | CQ193: 0 | CR193: 0 | CS193: 0 | CT193: 0 | CU193: 0 | CV193: 0 | CW193: 0 | CX193: 0 | CY193: 0 | CZ193: 0 | DA193: 2 | DB193: 0 | DC193: 1 | DD193: 0 | DE193: 0 | DF193: 0 | DG193: 0 | DH193: - | DI193: - | DJ193: - | DK193: -
B194: SV Darmstadt 98VfL Wolfsburg | C194: SV Darmstadt 98 | D194: - | E194: VfL Wolfsburg | F194: 0 | G194: : | H194: 1 | J194: 0 | K194: : | L194: 3 | N194: -1 | P194: 1 | R194: 0 | S194: 0 | T194: 0 | U194: 0 | V194: 0 | W194: 0 | X194: 0 | Y194: -100 | Z194: 0 | AA194: 0 | AB194: 30101 | AC194: 0 | AD194: 0 | AE194: 0 | AF194: 0 | AG194: 0 | AH194: 0 | AI194: 0 | AK194: 0 | AL194: 0 | AM194: 0 | AN194: 0 | AO194: 0 | AP194: 0 | AQ194: 0 | AR194: 0 | AS194: 0 | AT194: 0 | AU194: 3 | AV194: 0 | AW194: 0 | AX194: 0 | AY194: 0 | AZ194: 0 | BA194: 0 | BB194: 0 | BD194: 0 | BE194: 0 | BF194: 0 | BG194: 0 | BH194: 0 | BI194: 0 | BJ194: 0 | BK194: -1 | BL194: 0 | BM194: 0 | BN194: 1 | BO194: 0 | BP194: 0 | BQ194: 0 | BR194: 0 | BS194: 0 | BT194: 0 | BU194: 0 | BW194: 0 | BX194: 0 | BY194: 0 | BZ194: 0 | CA194: 0 | CB194: 0 | CC194: 0 | CD194: 0 | CE194: 0 | CF194: 0 | CG194: 1 | CH194: 0 | CI194: 0 | CJ194: 0 | CK194: 0 | CL194: 0 | CM194: 0 | CN194: 0 | CP194: 0 | CQ194: 0 | CR194: 0 | CS194: 0 | CT194: 0 | CU194: 0 | CV194: 0 | CW194: 1 | CX194: 0 | CY194: 0 | CZ194: 2 | DA194: 0 | DB194: 0 | DC194: 0 | DD194: 0 | DE194: 0 | DF194: 0 | DG194: 0 | DH194: 2 | DI194: 1 | DJ194: 3 | DK194: 8:7 | DL194: 1 : 1
B195: FC AugsburgBorussia Dortmund | C195: FC Augsburg | D195: - | E195: Borussia Dortmund | F195: 1 | G195: : | H195: 1 | J195: 1 | K195: : | L195: 1 | N195: 0 | P195: 0 | R195: 0 | S195: 0 | T195: 0 | U195: 0 | V195: 10001 | W195: 0 | X195: 0 | Y195: 0 | Z195: 0 | AA195: 0 | AB195: 0 | AC195: 0 | AD195: 0 | AE195: 0 | AF195: 10001 | AG195: 0 | AH195: 0 | AI195: 0 | AK195: 0 | AL195: 0 | AM195: 0 | AN195: 0 | AO195: 1 | AP195: 0 | AQ195: 0 | AR195: 0 | AS195: 0 | AT195: 0 | AU195: 0 | AV195: 0 | AW195: 0 | AX195: 0 | AY195: 1 | AZ195: 0 | BA195: 0 | BB195: 0 | BD195: 0 | BE195: 0 | BF195: 0 | BG195: 0 | BH195: 0 | BI195: 0 | BJ195: 0 | BK195: 0 | BL195: 0 | BM195: 0 | BN195: 0 | BO195: 0 | BP195: 0 | BQ195: 0 | BR195: 0 | BS195: 0 | BT195: 0 | BU195: 0 | BW195: 0 | BX195: 0 | BY195: 0 | BZ195: 0 | CA195: 1 | CB195: 0 | CC195: 0 | CD195: 0 | CE195: 0 | CF195: 0 | CG195: 0 | CH195: 0 | CI195: 0 | CJ195: 0 | CK195: 1 | CL195: 0 | CM195: 0 | CN195: 0 | CP195: 0 | CQ195: 0 | CR195: 0 | CS195: 0 | CT195: 2 | CU195: 0 | CV195: 0 | CW195: 0 | CX195: 0 | CY195: 0 | CZ195: 0 | DA195: 0 | DB195: 0 | DC195: 0 | DD195: 1 | DE195: 0 | DF195: 0 | DG195: 0 | DH195: 3 | DI195: 6 | DJ195: 15 | DK195: 31:61 | DL195: 1 : 3
B196: RB LeipzigTSG Hoffenheim | C196: RB Leipzig | D196: - | E196: TSG Hoffenheim | F196: 3 | G196: : | H196: 1 | J196: 3 | K196: : | L196: 0 | N196: 2 | P196: -2 | R196: 0 | S196: 0 | T196: 0 | U196: 0 | V196: 0 | W196: 0 | X196: 0 | Y196: 0 | Z196: 0 | AA196: 30203 | AB196: 0 | AC196: 0 | AD196: 0 | AE196: 0 | AF196: 0 | AG196: 0 | AH196: -199 | AI196: 0 | AK196: 0 | AL196: 0 | AM196: 0 | AN196: 0 | AO196: 0 | AP196: 0 | AQ196: 0 | AR196: 0 | AS196: 0 | AT196: 3 | AU196: 0 | AV196: 0 | AW196: 0 | AX196: 0 | AY196: 0 | AZ196: 0 | BA196: 0 | BB196: 0 | BD196: 0 | BE196: 0 | BF196: 0 | BG196: 0 | BH196: 0 | BI196: 0 | BJ196: 0 | BK196: 0 | BL196: 0 | BM196: 2 | BN196: 0 | BO196: 0 | BP196: 0 | BQ196: 0 | BR196: 0 | BS196: 0 | BT196: -2 | BU196: 0 | BW196: 0 | BX196: 0 | BY196: 0 | BZ196: 0 | CA196: 0 | CB196: 0 | CC196: 0 | CD196: 0 | CE196: 0 | CF196: 3 | CG196: 0 | CH196: 0 | CI196: 0 | CJ196: 0 | CK196: 0 | CL196: 0 | CM196: 1 | CN196: 0 | CP196: 0 | CQ196: 0 | CR196: 0 | CS196: 0 | CT196: 0 | CU196: 0 | CV196: 0 | CW196: 0 | CX196: 0 | CY196: 1 | CZ196: 0 | DA196: 0 | DB196: 0 | DC196: 0 | DD196: 0 | DE196: 0 | DF196: 2 | DG196: 0 | DH196: 8 | DI196: 3 | DJ196: 3 | DK196: 22:18 | DL196: 2 : 1
R197: =SUM(R188:R196)+R184 -> 149322 | S197: 383448 | T197: 311534 | U197: 158918 | V197: 260529 | W197: 98410 | X197: 210524 | Y197: 87917 | Z197: 393042 | AA197: 322137 | AB197: 189419 | AC197: 169222 | AD197: 98315 | AE197: 88512 | AF197: 179624 | AG197: 169730 | AH197: 230229 | AI197: 239619 | AK197: =SUM(AK188:AK196)+AK184 -> 15 | AL197: 38 | AM197: 31 | AN197: 16 | AO197: 26 | AP197: 10 | AQ197: 21 | AR197: 9 | AS197: 39 | AT197: 32 | AU197: 19 | AV197: 17 | AW197: 10 | AX197: 9 | AY197: 18 | AZ197: 17 | BA197: 23 | BB197: 24 | BD197: =SUM(BD188:BD196)+BD184 -> -7 | BE197: 34 | BF197: 15 | BG197: -11 | BH197: 5 | BI197: -16 | BJ197: 5 | BK197: -21 | BL197: 30 | BM197: 21 | BN197: -6 | BO197: -8 | BP197: -17 | BQ197: -15 | BR197: -4 | BS197: -3 | BT197: 2 | BU197: -4 | BW197: =SUM(BW188:BW196)+BW184 -> 22 | BX197: 48 | BY197: 34 | BZ197: 18 | CA197: 29 | CB197: 10 | CC197: 24 | CD197: 17 | CE197: 42 | CF197: 37 | CG197: 19 | CH197: 22 | CI197: 15 | CJ197: 12 | CK197: 24 | CL197: 30 | CM197: 29 | CN197: 19 | CO197: x | CP197: =IF(CP198<=$CO$3,SUMIF(CP188:CP196,1,$J188:$J196)+SUMIF(CP188:CP196,2,$L188:$L196),0) -> 0 | CQ197: 0 | CR197: 0 | CS197: 0 | CT197: 0 | CU197: 0 | CV197: 0 | CW197: 0 | CX197: 0 | CY197: 0 | CZ197: 0 | DA197: 0 | DB197: 0 | DC197: 0 | DD197: 0 | DE197: 0 | DF197: 0 | DG197: 0
R198: =RANK(R197,$R197:$AI197,0) -> 14 | S198: 2 | T198: 4 | U198: 13 | V198: 5 | W198: 15 | X198: 8 | Y198: 18 | Z198: 1 | AA198: 3 | AB198: 9 | AC198: 12 | AD198: 16 | AE198: 17 | AF198: 10 | AG198: 11 | AH198: 7 | AI198: 6 | CP198: =IF(SUM(CP188:CP196)>0,IF(CP211=0,1,CP211+1),IF(CP211<>0,CP211,0)) -> 20 | CQ198: 20 | CR198: 20 | CS198: 20 | CT198: 20 | CU198: 20 | CV198: 20 | CW198: 20 | CX198: 20 | CY198: 20 | CZ198: 20 | DA198: 20 | DB198: 20 | DC198: 20 | DD198: 20 | DE198: 20 | DF198: 20 | DG198: 20
C199: 16. Spieltag
A200: =IF(SUM(J201:L209)>0,1,"Z") -> 1 | C200: 19./20.12.2023
... 249 more rows

Sheet Spiele
B1: Deutsche Bundesliga | K1: 2023 / 2024
C2: ='1. Liga'!$Z$1 -> Bayer 04 Leverkusen | D2: ='1. Liga'!$T$1 -> VfB Stuttgart | E2: ='1. Liga'!$S$1 -> FC Bayern München | F2: ='1. Liga'!$AA$1 -> RB Leipzig | G2: ='1. Liga'!$V$1 -> Borussia Dortmund | H2: ='1. Liga'!$X$1 -> Eintracht Frankfurt | I2: ='1. Liga'!$AH$1 -> TSG Hoffenheim | J2: ='1. Liga'!$AC$1 -> 1. FC Heidenheim 1846 | K2: ='1. Liga'!$R$1 -> SV Werder Bremen | L2: ='1. Liga'!$AI$1 -> Sport-Club Freiburg | M2: ='1. Liga'!$AF$1 -> FC Augsburg | N2: ='1. Liga'!$AB$1 -> VfL Wolfsburg | O2: ='1. Liga'!$AE$1 -> 1. FSV Mainz 05 | P2: ='1. Liga'!$AG$1 -> Borussia Mönchengladbach | Q2: ='1. Liga'!$AD$1 -> 1. FC Union Berlin | R2: ='1. Liga'!$U$1 -> VfL Bochum 1848 | S2: ='1. Liga'!$W$1 -> 1. FC Köln | T2: ='1. Liga'!$Y$1 -> SV Darmstadt 98
B3: =Tabelle!A1 -> 34 | C3: ='1. Liga'!$Z$3 -> 1 | D3: ='1. Liga'!$T$3 -> 2 | E3: ='1. Liga'!$S$3 -> 3 | F3: ='1. Liga'!$AA$3 -> 4 | G3: ='1. Liga'!$V$3 -> 5 | H3: ='1. Liga'!$X$3 -> 6 | I3: ='1. Liga'!$AH$3 -> 7 | J3: ='1. Liga'!$AC$3 -> 8 | K3: ='1. Liga'!$R$3 -> 9 | L3: ='1. Liga'!$AI$3 -> 10 | M3: ='1. Liga'!$AF$3 -> 11 | N3: ='1. Liga'!$AB$3 -> 12 | O3: ='1. Liga'!$AE$3 -> 13 | P3: ='1. Liga'!$AG$3 -> 14 | Q3: ='1. Liga'!$AD$3 -> 15 | R3: ='1. Liga'!$U$3 -> 16 | S3: ='1. Liga'!$W$3 -> 17 | T3: ='1. Liga'!$Y$3 -> 18
A4: ='1. Liga'!$Z$3 -> 1 | B4: ='1. Liga'!$Z$1 -> Bayer 04 Leverkusen | C4: B | D4: =VLOOKUP($B4&D$2,'1. Liga'!$B$6:$H$443,5,FALSE)&":"&VLOOKUP($B4&D$2,'1. Liga'!$B$6:$H$443,7,FALSE) -> 2:2 | E4: =VLOOKUP($B4&E$2,'1. Liga'!$B$6:$H$443,5,FALSE)&":"&VLOOKUP($B4&E$2,'1. Liga'!$B$6:$H$443,7,FALSE) -> 3:0 | F4: =VLOOKUP($B4&F$2,'1. Liga'!$B$6:$H$443,5,FALSE)&":"&VLOOKUP($B4&F$2,'1. Liga'!$B$6:$H$443,7,FALSE) -> 3:2 | G4: =VLOOKUP($B4&G$2,'1. Liga'!$B$6:$H$443,5,FALSE)&":"&VLOOKUP($B4&G$2,'1. Liga'!$B$6:$H$443,7,FALSE) -> 1:1 | H4: =VLOOKUP($B4&H$2,'1. Liga'!$B$6:$H$443,5,FALSE)&":"&VLOOKUP($B4&H$2,'1. Liga'!$B$6:$H$443,7,FALSE) -> 3:0 | I4: =VLOOKUP($B4&I$2,'1. Liga'!$B$6:$H$443,5,FALSE)&":"&VLOOKUP($B4&I$2,'1. Liga'!$B$6:$H$443,7,FALSE) -> 2:1 | J4: =VLOOKUP($B4&J$2,'1. Liga'!$B$6:$H$443,5,FALSE)&":"&VLOOKUP($B4&J$2,'1. Liga'!$B$6:$H$443,7,FALSE) -> 4:1 | K4: =VLOOKUP($B4&K$2,'1. Liga'!$B$6:$H$443,5,FALSE)&":"&VLOOKUP($B4&K$2,'1. Liga'!$B$6:$H$443,7,FALSE) -> 5:0 | L4: =VLOOKUP($B4&L$2,'1. Liga'!$B$6:$H$443,5,FALSE)&":"&VLOOKUP($B4&L$2,'1. Liga'!$B$6:$H$443,7,FALSE) -> 2:1 | M4: =VLOOKUP($B4&M$2,'1. Liga'!$B$6:$H$443,5,FALSE)&":"&VLOOKUP($B4&M$2,'1. Liga'!$B$6:$H$443,7,FALSE) -> 2:1 | N4: =VLOOKUP($B4&N$2,'1. Liga'!$B$6:$H$443,5,FALSE)&":"&VLOOKUP($B4&N$2,'1. Liga'!$B$6:$H$443,7,FALSE) -> 2:0 | O4: =VLOOKUP($B4&O$2,'1. Liga'!$B$6:$H$443,5,FALSE)&":"&VLOOKUP($B4&O$2,'1. Liga'!$B$6:$H$443,7,FALSE) -> 2:1 | P4: =VLOOKUP($B4&P$2,'1. Liga'!$B$6:$H$443,5,FALSE)&":"&VLOOKUP($B4&P$2,'1. Liga'!$B$6:$H$443,7,FALSE) -> 0:0 | Q4: =VLOOKUP($B4&Q$2,'1. Liga'!$B$6:$H$443,5,FALSE)&":"&VLOOKUP($B4&Q$2,'1. Liga'!$B$6:$H$443,7,FALSE) -> 4:0 | R4: =VLOOKUP($B4&R$2,'1. Liga'!$B$6:$H$443,5,FALSE)&":"&VLOOKUP($B4&R$2,'1. Liga'!$B$6:$H$443,7,FALSE) -> 4:0 | S4: =VLOOKUP($B4&S$2,'1. Liga'!$B$6:$H$443,5,FALSE)&":"&VLOOKUP($B4&S$2,'1. Liga'!$B$6:$H$443,7,FALSE) -> 3:0 | T4: =VLOOKUP($B4&T$2,'1. Liga'!$B$6:$H$443,5,FALSE)&":"&VLOOKUP($B4&T$2,'1. Liga'!$B$6:$H$443,7,FALSE) -> 5:1
A5: ='1. Liga'!$T$3 -> 2 | B5: ='1. Liga'!$T$1 -> VfB Stuttgart | C5: =VLOOKUP($B5&C$2,'1. Liga'!$B$6:$H$443,5,FALSE)&":"&VLOOKUP($B5&C$2,'1. Liga'!$B$6:$H$443,7,FALSE) -> 1:1 | D5: U | E5: =VLOOKUP($B5&E$2,'1. Liga'!$B$6:$H$443,5,FALSE)&":"&VLOOKUP($B5&E$2,'1. Liga'!$B$6:$H$443,7,FALSE) -> 3:1 | F5: =VLOOKUP($B5&F$2,'1. Liga'!$B$6:$H$443,5,FALSE)&":"&VLOOKUP($B5&F$2,'1. Liga'!$B$6:$H$443,7,FALSE) -> 5:2 | G5: =VLOOKUP($B5&G$2,'1. Liga'!$B$6:$H$443,5,FALSE)&":"&VLOOKUP($B5&G$2,'1. Liga'!$B$6:$H$443,7,FALSE) -> 2:1 | H5: =VLOOKUP($B5&H$2,'1. Liga'!$B$6:$H$443,5,FALSE)&":"&VLOOKUP($B5&H$2,'1. Liga'!$B$6:$H$443,7,FALSE) -> 3:0 | I5: =VLOOKUP($B5&I$2,'1. Liga'!$B$6:$H$443,5,FALSE)&":"&VLOOKUP($B5&I$2,'1. Liga'!$B$6:$H$443,7,FALSE) -> 2:3 | J5: =VLOOKUP($B5&J$2,'1. Liga'!$B$6:$H$443,5,FALSE)&":"&VLOOKUP($B5&J$2,'1. Liga'!$B$6:$H$443,7,FALSE) -> 3:3 | K5: =VLOOKUP($B5&K$2,'1. Liga'!$B$6:$H$443,5,FALSE)&":"&VLOOKUP($B5&K$2,'1. Liga'!$B$6:$H$443,7,FALSE) -> 2:0 | L5: =VLOOKUP($B5&L$2,'1. Liga'!$B$6:$H$443,5,FALSE)&":"&VLOOKUP($B5&L$2,'1. Liga'!$B$6:$H$443,7,FALSE) -> 5:0 | M5: =VLOOKUP($B5&M$2,'1. Liga'!$B$6:$H$443,5,FALSE)&":"&VLOOKUP($B5&M$2,'1. Liga'!$B$6:$H$443,7,FALSE) -> 3:0 | N5: =VLOOKUP($B5&N$2,'1. Liga'!$B$6:$H$443,5,FALSE)&":"&VLOOKUP($B5&N$2,'1. Liga'!$B$6:$H$443,7,FALSE) -> 3:1 | O5: =VLOOKUP($B5&O$2,'1. Liga'!$B$6:$H$443,5,FALSE)&":"&VLOOKUP($B5&O$2,'1. Liga'!$B$6:$H$443,7,FALSE) -> 3:1 | P5: =VLOOKUP($B5&P$2,'1. Liga'!$B$6:$H$443,5,FALSE)&":"&VLOOKUP($B5&P$2,'1. Liga'!$B$6:$H$443,7,FALSE) -> 4:0 | Q5: =VLOOKUP($B5&Q$2,'1. Liga'!$B$6:$H$443,5,FALSE)&":"&VLOOKUP($B5&Q$2,'1. Liga'!$B$6:$H$443,7,FALSE) -> 2:0 | R5: =VLOOKUP($B5&R$2,'1. Liga'!$B$6:$H$443,5,FALSE)&":"&VLOOKUP($B5&R$2,'1. Liga'!$B$6:$H$443,7,FALSE) -> 5:0 | S5: =VLOOKUP($B5&S$2,'1. Liga'!$B$6:$H$443,5,FALSE)&":"&VLOOKUP($B5&S$2,'1. Liga'!$B$6:$H$443,7,FALSE) -> 1:1 | T5: =VLOOKUP($B5&T$2,'1. Liga'!$B$6:$H$443,5,FALSE)&":"&VLOOKUP($B5&T$2,'1. Liga'!$B$6:$H$443,7,FALSE) -> 3:1
A6: ='1. Liga'!$S$3 -> 3 | B6: ='1. Liga'!$S$1 -> FC Bayern München | C6: =VLOOKUP($B6&C$2,'1. Liga'!$B$6:$H$443,5,FALSE)&":"&VLOOKUP($B6&C$2,'1. Liga'!$B$6:$H$443,7,FALSE) -> 2:2 | D6: =VLOOKUP($B6&D$2,'1. Liga'!$B$6:$H$443,5,FALSE)&":"&VLOOKUP($B6&D$2,'1. Liga'!$B$6:$H$443,7,FALSE) -> 3:0 | E6: N | F6: =VLOOKUP($B6&F$2,'1. Liga'!$B$6:$H$443,5,FALSE)&":"&VLOOKUP($B6&F$2,'1. Liga'!$B$6:$H$443,7,FALSE) -> 2:1 | G6: =VLOOKUP($B6&G$2,'1. Liga'!$B$6:$H$443,5,FALSE)&":"&VLOOKUP($B6&G$2,'1. Liga'!$B$6:$H$443,7,FALSE) -> 0:2 | H6: =VLOOKUP($B6&H$2,'1. Liga'!$B$6:$H$443,5,FALSE)&":"&VLOOKUP($B6&H$2,'1. Liga'!$B$6:$H$443,7,FALSE) -> 2:1 | I6: =VLOOKUP($B6&I$2,'1. Liga'!$B$6:$H$443,5,FALSE)&":"&VLOOKUP($B6&I$2,'1. Liga'!$B$6:$H$443,7,FALSE) -> 3:0 | J6: =VLOOKUP($B6&J$2,'1. Liga'!$B$6:$H$443,5,FALSE)&":"&VLOOKUP($B6&J$2,'1. Liga'!$B$6:$H$443,7,FALSE) -> 4:2 | K6: =VLOOKUP($B6&K$2,'1. Liga'!$B$6:$H$443,5,FALSE)&":"&VLOOKUP($B6&K$2,'1. Liga'!$B$6:$H$443,7,FALSE) -> 0:1 | L6: =VLOOKUP($B6&L$2,'1. Liga'!$B$6:$H$443,5,FALSE)&":"&VLOOKUP($B6&L$2,'1. Liga'!$B$6:$H$443,7,FALSE) -> 3:0 | M6: =VLOOKUP($B6&M$2,'1. Liga'!$B$6:$H$443,5,FALSE)&":"&VLOOKUP($B6&M$2,'1. Liga'!$B$6:$H$443,7,FALSE) -> 3:1 | N6: =VLOOKUP($B6&N$2,'1. Liga'!$B$6:$H$443,5,FALSE)&":"&VLOOKUP($B6&N$2,'1. Liga'!$B$6:$H$443,7,FALSE) -> 2:0 | O6: =VLOOKUP($B6&O$2,'1. Liga'!$B$6:$H$443,5,FALSE)&":"&VLOOKUP($B6&O$2,'1. Liga'!$B$6:$H$443,7,FALSE) -> 8:1 | P6: =VLOOKUP($B6&P$2,'1. Liga'!$B$6:$H$443,5,FALSE)&":"&VLOOKUP($B6&P$2,'1. Liga'!$B$6:$H$443,7,FALSE) -> 3:1 | Q6: =VLOOKUP($B6&Q$2,'1. Liga'!$B$6:$H$443,5,FALSE)&":"&VLOOKUP($B6&Q$2,'1. Liga'!$B$6:$H$443,7,FALSE) -> 1:0 | R6: =VLOOKUP($B6&R$2,'1. Liga'!$B$6:$H$443,5,FALSE)&":"&VLOOKUP($B6&R$2,'1. Liga'!$B$6:$H$443,7,FALSE) -> 7:0 | S6: =VLOOKUP($B6&S$2,'1. Liga'!$B$6:$H$443,5,FALSE)&":"&VLOOKUP($B6&S$2,'1. Liga'!$B$6:$H$443,7,FALSE) -> 2:0 | T6: =VLOOKUP($B6&T$2,'1. Liga'!$B$6:$H$443,5,FALSE)&":"&VLOOKUP($B6&T$2,'1. Liga'!$B$6:$H$443,7,FALSE) -> 8:0
A7: ='1. Liga'!$AA$3 -> 4 | B7: ='1. Liga'!$AA$1 -> RB Leipzig | C7: =VLOOKUP($B7&C$2,'1. Liga'!$B$6:$H$443,5,FALSE)&":"&VLOOKUP($B7&C$2,'1. Liga'!$B$6:$H$443,7,FALSE) -> 2:3 | D7: =VLOOKUP($B7&D$2,'1. Liga'!$B$6:$H$443,5,FALSE)&":"&VLOOKUP($B7&D$2,'1. Liga'!$B$6:$H$443,7,FALSE) -> 5:1 | E7: =VLOOKUP($B7&E$2,'1. Liga'!$B$6:$H$443,5,FALSE)&":"&VLOOKUP($B7&E$2,'1. Liga'!$B$6:$H$443,7,FALSE) -> 2:2 | F7: D | G7: =VLOOKUP($B7&G$2,'1. Liga'!$B$6:$H$443,5,FALSE)&":"&VLOOKUP($B7&G$2,'1. Liga'!$B$6:$H$443,7,FALSE) -> 4:1 | H7: =VLOOKUP($B7&H$2,'1. Liga'!$B$6:$H$443,5,FALSE)&":"&VLOOKUP($B7&H$2,'1. Liga'!$B$6:$H$443,7,FALSE) -> 0:1 | I7: =VLOOKUP($B7&I$2,'1. Liga'!$B$6:$H$443,5,FALSE)&":"&VLOOKUP($B7&I$2,'1. Liga'!$B$6:$H$443,7,FALSE) -> 3:1 | J7: =VLOOKUP($B7&J$2,'1. Liga'!$B$6:$H$443,5,FALSE)&":"&VLOOKUP($B7&J$2,'1. Liga'!$B$6:$H$443,7,FALSE) -> 2:1 | K7: =VLOOKUP($B7&K$2,'1. Liga'!$B$6:$H$443,5,FALSE)&":"&VLOOKUP($B7&K$2,'1. Liga'!$B$6:$H$443,7,FALSE) -> 1:1 | L7: =VLOOKUP($B7&L$2,'1. Liga'!$B$6:$H$443,5,FALSE)&":"&VLOOKUP($B7&L$2,'1. Liga'!$B$6:$H$443,7,FALSE) -> 3:1 | M7: =VLOOKUP($B7&M$2,'1. Liga'!$B$6:$H$443,5,FALSE)&":"&VLOOKUP($B7&M$2,'1. Liga'!$B$6:$H$443,7,FALSE) -> 3:0 | N7: =VLOOKUP($B7&N$2,'1. Liga'!$B$6:$H$443,5,FALSE)&":"&VLOOKUP($B7&N$2,'1. Liga'!$B$6:$H$443,7,FALSE) -> 3:0 | O7: =VLOOKUP($B7&O$2,'1. Liga'!$B$6:$H$443,5,FALSE)&":"&VLOOKUP($B7&O$2,'1. Liga'!$B$6:$H$443,7,FALSE) -> 0:0 | P7: =VLOOKUP($B7&P$2,'1. Liga'!$B$6:$H$443,5,FALSE)&":"&VLOOKUP($B7&P$2,'1. Liga'!$B$6:$H$443,7,FALSE) -> 2:0 | Q7: =VLOOKUP($B7&Q$2,'1. Liga'!$B$6:$H$443,5,FALSE)&":"&VLOOKUP($B7&Q$2,'1. Liga'!$B$6:$H$443,7,FALSE) -> 2:0 | R7: =VLOOKUP($B7&R$2,'1. Liga'!$B$6:$H$443,5,FALSE)&":"&VLOOKUP($B7&R$2,'1. Liga'!$B$6:$H$443,7,FALSE) -> 0:0 | S7: =VLOOKUP($B7&S$2,'1. Liga'!$B$6:$H$443,5,FALSE)&":"&VLOOKUP($B7&S$2,'1. Liga'!$B$6:$H$443,7,FALSE) -> 6:0 | T7: =VLOOKUP($B7&T$2,'1. Liga'!$B$6:$H$443,5,FALSE)&":"&VLOOKUP($B7&T$2,'1. Liga'!$B$6:$H$443,7,FALSE) -> 2:0
A8: ='1. Liga'!$V$3 -> 5 | B8: ='1. Liga'!$V$1 -> Borussia Dortmund | C8: =VLOOKUP($B8&C$2,'1. Liga'!$B$6:$H$443,5,FALSE)&":"&VLOOKUP($B8&C$2,'1. Liga'!$B$6:$H$443,7,FALSE) -> 1:1 | D8: =VLOOKUP($B8&D$2,'1. Liga'!$B$6:$H$443,5,FALSE)&":"&VLOOKUP($B8&D$2,'1. Liga'!$B$6:$H$443,7,FALSE) -> 0:1 | E8: =VLOOKUP($B8&E$2,'1. Liga'!$B$6:$H$443,5,FALSE)&":"&VLOOKUP($B8&E$2,'1. Liga'!$B$6:$H$443,7,FALSE) -> 0:4 | F8: =VLOOKUP($B8&F$2,'1. Liga'!$B$6:$H$443,5,FALSE)&":"&VLOOKUP($B8&F$2,'1. Liga'!$B$6:$H$443,7,FALSE) -> 2:3 | G8: E | H8: =VLOOKUP($B8&H$2,'1. Liga'!$B$6:$H$443,5,FALSE)&":"&VLOOKUP($B8&H$2,'1. Liga'!$B$6:$H$443,7,FALSE) -> 3:1 | I8: =VLOOKUP($B8&I$2,'1. Liga'!$B$6:$H$443,5,FALSE)&":"&VLOOKUP($B8&I$2,'1. Liga'!$B$6:$H$443,7,FALSE) -> 2:3 | J8: =VLOOKUP($B8&J$2,'1. Liga'!$B$6:$H$443,5,FALSE)&":"&VLOOKUP($B8&J$2,'1. Liga'!$B$6:$H$443,7,FALSE) -> 2:2 | K8: =VLOOKUP($B8&K$2,'1. Liga'!$B$6:$H$443,5,FALSE)&":"&VLOOKUP($B8&K$2,'1. Liga'!$B$6:$H$443,7,FALSE) -> 1:0 | L8: =VLOOKUP($B8&L$2,'1. Liga'!$B$6:$H$443,5,FALSE)&":"&VLOOKUP($B8&L$2,'1. Liga'!$B$6:$H$443,7,FALSE) -> 3:0 | M8: =VLOOKUP($B8&M$2,'1. Liga'!$B$6:$H$443,5,FALSE)&":"&VLOOKUP($B8&M$2,'1. Liga'!$B$6:$H$443,7,FALSE) -> 5:1 | N8: =VLOOKUP($B8&N$2,'1. Liga'!$B$6:$H$443,5,FALSE)&":"&VLOOKUP($B8&N$2,'1. Liga'!$B$6:$H$443,7,FALSE) -> 1:0 | O8: =VLOOKUP($B8&O$2,'1. Liga'!$B$6:$H$443,5,FALSE)&":"&VLOOKUP($B8&O$2,'1. Liga'!$B$6:$H$443,7,FALSE) -> 1:1 | P8: =VLOOKUP($B8&P$2,'1. Liga'!$B$6:$H$443,5,FALSE)&":"&VLOOKUP($B8&P$2,'1. Liga'!$B$6:$H$443,7,FALSE) -> 4:2 | Q8: =VLOOKUP($B8&Q$2,'1. Liga'!$B$6:$H$443,5,FALSE)&":"&VLOOKUP($B8&Q$2,'1. Liga'!$B$6:$H$443,7,FALSE) -> 4:2 | R8: =VLOOKUP($B8&R$2,'1. Liga'!$B$6:$H$443,5,FALSE)&":"&VLOOKUP($B8&R$2,'1. Liga'!$B$6:$H$443,7,FALSE) -> 3:1 | S8: =VLOOKUP($B8&S$2,'1. Liga'!$B$6:$H$443,5,FALSE)&":"&VLOOKUP($B8&S$2,'1. Liga'!$B$6:$H$443,7,FALSE) -> 1:0 | T8: =VLOOKUP($B8&T$2,'1. Liga'!$B$6:$H$443,5,FALSE)&":"&VLOOKUP($B8&T$2,'1. Liga'!$B$6:$H$443,7,FALSE) -> 4:0
A9: ='1. Liga'!$X$3 -> 6 | B9: ='1. Liga'!$X$1 -> Eintracht Frankfurt | C9: =VLOOKUP($B9&C$2,'1. Liga'!$B$6:$H$443,5,FALSE)&":"&VLOOKUP($B9&C$2,'1. Liga'!$B$6:$H$443,7,FALSE) -> 1:5 | D9: =VLOOKUP($B9&D$2,'1. Liga'!$B$6:$H$443,5,FALSE)&":"&VLOOKUP($B9&D$2,'1. Liga'!$B$6:$H$443,7,FALSE) -> 1:2 | E9: =VLOOKUP($B9&E$2,'1. Liga'!$B$6:$H$443,5,FALSE)&":"&VLOOKUP($B9&E$2,'1. Liga'!$B$6:$H$443,7,FALSE) -> 5:1 | F9: =VLOOKUP($B9&F$2,'1. Liga'!$B$6:$H$443,5,FALSE)&":"&VLOOKUP($B9&F$2,'1. Liga'!$B$6:$H$443,7,FALSE) -> 2:2 | G9: =VLOOKUP($B9&G$2,'1. Liga'!$B$6:$H$443,5,FALSE)&":"&VLOOKUP($B9&G$2,'1. Liga'!$B$6:$H$443,7,FALSE) -> 3:3 | H9: S | I9: =VLOOKUP($B9&I$2,'1. Liga'!$B$6:$H$443,5,FALSE)&":"&VLOOKUP($B9&I$2,'1. Liga'!$B$6:$H$443,7,FALSE) -> 3:1 | J9: =VLOOKUP($B9&J$2,'1. Liga'!$B$6:$H$443,5,FALSE)&":"&VLOOKUP($B9&J$2,'1. Liga'!$B$6:$H$443,7,FALSE) -> 2:0 | K9: =VLOOKUP($B9&K$2,'1. Liga'!$B$6:$H$443,5,FALSE)&":"&VLOOKUP($B9&K$2,'1. Liga'!$B$6:$H$443,7,FALSE) -> 1:1 | L9: =VLOOKUP($B9&L$2,'1. Liga'!$B$6:$H$443,5,FALSE)&":"&VLOOKUP($B9&L$2,'1. Liga'!$B$6:$H$443,7,FALSE) -> 0:0 | M9: =VLOOKUP($B9&M$2,'1. Liga'!$B$6:$H$443,5,FALSE)&":"&VLOOKUP($B9&M$2,'1. Liga'!$B$6:$H$443,7,FALSE) -> 3:1 | N9: =VLOOKUP($B9&N$2,'1. Liga'!$B$6:$H$443,5,FALSE)&":"&VLOOKUP($B9&N$2,'1. Liga'!$B$6:$H$443,7,FALSE) -> 2:2 | O9: =VLOOKUP($B9&O$2,'1. Liga'!$B$6:$H$443,5,FALSE)&":"&VLOOKUP($B9&O$2,'1. Liga'!$B$6:$H$443,7,FALSE) -> 1:0 | P9: =VLOOKUP($B9&P$2,'1. Liga'!$B$6:$H$443,5,FALSE)&":"&VLOOKUP($B9&P$2,'1. Liga'!$B$6:$H$443,7,FALSE) -> 2:1 | Q9: =VLOOKUP($B9&Q$2,'1. Liga'!$B$6:$H$443,5,FALSE)&":"&VLOOKUP($B9&Q$2,'1. Liga'!$B$6:$H$443,7,FALSE) -> 0:0 | R9: =VLOOKUP($B9&R$2,'1. Liga'!$B$6:$H$443,5,FALSE)&":"&VLOOKUP($B9&R$2,'1. Liga'!$B$6:$H$443,7,FALSE) -> 1:1 | S9: =VLOOKUP($B9&S$2,'1. Liga'!$B$6:$H$443,5,FALSE)&":"&VLOOKUP($B9&S$2,'1. Liga'!$B$6:$H$443,7,FALSE) -> 1:1 | T9: =VLOOKUP($B9&T$2,'1. Liga'!$B$6:$H$443,5,FALSE)&":"&VLOOKUP($B9&T$2,'1. Liga'!$B$6:$H$443,7,FALSE) -> 1:0
A10: ='1. Liga'!$AH$3 -> 7 | B10: ='1. Liga'!$AH$1 -> TSG Hoffenheim | C10: =VLOOKUP($B10&C$2,'1. Liga'!$B$6:$H$443,5,FALSE)&":"&VLOOKUP($B10&C$2,'1. Liga'!$B$6:$H$443,7,FALSE) -> 2:3 | D10: =VLOOKUP($B10&D$2,'1. Liga'!$B$6:$H$443,5,FALSE)&":"&VLOOKUP($B10&D$2,'1. Liga'!$B$6:$H$443,7,FALSE) -> 0:3 | E10: =VLOOKUP($B10&E$2,'1. Liga'!$B$6:$H$443,5,FALSE)&":"&VLOOKUP($B10&E$2,'1. Liga'!$B$6:$H$443,7,FALSE) -> 4:2 | F10: =VLOOKUP($B10&F$2,'1. Liga'!$B$6:$H$443,5,FALSE)&":"&VLOOKUP($B10&F$2,'1. Liga'!$B$6:$H$443,7,FALSE) -> 1:1 | G10: =VLOOKUP($B10&G$2,'1. Liga'!$B$6:$H$443,5,FALSE)&":"&VLOOKUP($B10&G$2,'1. Liga'!$B$6:$H$443,7,FALSE) -> 1:3 | H10: =VLOOKUP($B10&H$2,'1. Liga'!$B$6:$H$443,5,FALSE)&":"&VLOOKUP($B10&H$2,'1. Liga'!$B$6:$H$443,7,FALSE) -> 1:3 | I10: L | J10: =VLOOKUP($B10&J$2,'1. Liga'!$B$6:$H$443,5,FALSE)&":"&VLOOKUP($B10&J$2,'1. Liga'!$B$6:$H$443,7,FALSE) -> 1:1 | K10: =VLOOKUP($B10&K$2,'1. Liga'!$B$6:$H$443,5,FALSE)&":"&VLOOKUP($B10&K$2,'1. Liga'!$B$6:$H$443,7,FALSE) -> 2:1 | L10: =VLOOKUP($B10&L$2,'1. Liga'!$B$6:$H$443,5,FALSE)&":"&VLOOKUP($B10&L$2,'1. Liga'!$B$6:$H$443,7,FALSE) -> 1:2 | M10: =VLOOKUP($B10&M$2,'1. Liga'!$B$6:$H$443,5,FALSE)&":"&VLOOKUP($B10&M$2,'1. Liga'!$B$6:$H$443,7,FALSE) -> 3:1 | N10: =VLOOKUP($B10&N$2,'1. Liga'!$B$6:$H$443,5,FALSE)&":"&VLOOKUP($B10&N$2,'1. Liga'!$B$6:$H$443,7,FALSE) -> 3:1 | O10: =VLOOKUP($B10&O$2,'1. Liga'!$B$6:$H$443,5,FALSE)&":"&VLOOKUP($B10&O$2,'1. Liga'!$B$6:$H$443,7,FALSE) -> 1:1 | P10: =VLOOKUP($B10&P$2,'1. Liga'!$B$6:$H$443,5,FALSE)&":"&VLOOKUP($B10&P$2,'1. Liga'!$B$6:$H$443,7,FALSE) -> 4:3 | Q10: =VLOOKUP($B10&Q$2,'1. Liga'!$B$6:$H$443,5,FALSE)&":"&VLOOKUP($B10&Q$2,'1. Liga'!$B$6:$H$443,7,FALSE) -> 0:1 | R10: =VLOOKUP($B10&R$2,'1. Liga'!$B$6:$H$443,5,FALSE)&":"&VLOOKUP($B10&R$2,'1. Liga'!$B$6:$H$443,7,FALSE) -> 3:1 | S10: =VLOOKUP($B10&S$2,'1. Liga'!$B$6:$H$443,5,FALSE)&":"&VLOOKUP($B10&S$2,'1. Liga'!$B$6:$H$443,7,FALSE) -> 1:1 | T10: =VLOOKUP($B10&T$2,'1. Liga'!$B$6:$H$443,5,FALSE)&":"&VLOOKUP($B10&T$2,'1. Liga'!$B$6:$H$443,7,FALSE) -> 3:3
A11: ='1. Liga'!$AC$3 -> 8 | B11: ='1. Liga'!$AC$1 -> 1. FC Heidenheim 1846 | C11: =VLOOKUP($B11&C$2,'1. Liga'!$B$6:$H$443,5,FALSE)&":"&VLOOKUP($B11&C$2,'1. Liga'!$B$6:$H$443,7,FALSE) -> 1:2 | D11: =VLOOKUP($B11&D$2,'1. Liga'!$B$6:$H$443,5,FALSE)&":"&VLOOKUP($B11&D$2,'1. Liga'!$B$6:$H$443,7,FALSE) -> 2:0 | E11: =VLOOKUP($B11&E$2,'1. Liga'!$B$6:$H$443,5,FALSE)&":"&VLOOKUP($B11&E$2,'1. Liga'!$B$6:$H$443,7,FALSE) -> 3:2 | F11: =VLOOKUP($B11&F$2,'1. Liga'!$B$6:$H$443,5,FALSE)&":"&VLOOKUP($B11&F$2,'1. Liga'!$B$6:$H$443,7,FALSE) -> 1:2 | G11: =VLOOKUP($B11&G$2,'1. Liga'!$B$6:$H$443,5,FALSE)&":"&VLOOKUP($B11&G$2,'1. Liga'!$B$6:$H$443,7,FALSE) -> 0:0 | H11: =VLOOKUP($B11&H$2,'1. Liga'!$B$6:$H$443,5,FALSE)&":"&VLOOKUP($B11&H$2,'1. Liga'!$B$6:$H$443,7,FALSE) -> 1:2 | I11: =VLOOKUP($B11&I$2,'1. Liga'!$B$6:$H$443,5,FALSE)&":"&VLOOKUP($B11&I$2,'1. Liga'!$B$6:$H$443,7,FALSE) -> 2:3 | J11: I | K11: =VLOOKUP($B11&K$2,'1. Liga'!$B$6:$H$443,5,FALSE)&":"&VLOOKUP($B11&K$2,'1. Liga'!$B$6:$H$443,7,FALSE) -> 4:2 | L11: =VLOOKUP($B11&L$2,'1. Liga'!$B$6:$H$443,5,FALSE)&":"&VLOOKUP($B11&L$2,'1. Liga'!$B$6:$H$443,7,FALSE) -> 3:2 | M11: =VLOOKUP($B11&M$2,'1. Liga'!$B$6:$H$443,5,FALSE)&":"&VLOOKUP($B11&M$2,'1. Liga'!$B$6:$H$443,7,FALSE) -> 2:5 | N11: =VLOOKUP($B11&N$2,'1. Liga'!$B$6:$H$443,5,FALSE)&":"&VLOOKUP($B11&N$2,'1. Liga'!$B$6:$H$443,7,FALSE) -> 1:1 | O11: =VLOOKUP($B11&O$2,'1. Liga'!$B$6:$H$443,5,FALSE)&":"&VLOOKUP($B11&O$2,'1. Liga'!$B$6:$H$443,7,FALSE) -> 1:1 | P11: =VLOOKUP($B11&P$2,'1. Liga'!$B$6:$H$443,5,FALSE)&":"&VLOOKUP($B11&P$2,'1. Liga'!$B$6:$H$443,7,FALSE) -> 1:1 | Q11: =VLOOKUP($B11&Q$2,'1. Liga'!$B$6:$H$443,5,FALSE)&":"&VLOOKUP($B11&Q$2,'1. Liga'!$B$6:$H$443,7,FALSE) -> 1:0 | R11: =VLOOKUP($B11&R$2,'1. Liga'!$B$6:$H$443,5,FALSE)&":"&VLOOKUP($B11&R$2,'1. Liga'!$B$6:$H$443,7,FALSE) -> 0:0 | S11: =VLOOKUP($B11&S$2,'1. Liga'!$B$6:$H$443,5,FALSE)&":"&VLOOKUP($B11&S$2,'1. Liga'!$B$6:$H$443,7,FALSE) -> 4:1 | T11: =VLOOKUP($B11&T$2,'1. Liga'!$B$6:$H$443,5,FALSE)&":"&VLOOKUP($B11&T$2,'1. Liga'!$B$6:$H$443,7,FALSE) -> 3:2
A12: ='1. Liga'!$R$3 -> 9 | B12: ='1. Liga'!$R$1 -> SV Werder Bremen | C12: =VLOOKUP($B12&C$2,'1. Liga'!$B$6:$H$443,5,FALSE)&":"&VLOOKUP($B12&C$2,'1. Liga'!$B$6:$H$443,7,FALSE) -> 0:3 | D12: =VLOOKUP($B12&D$2,'1. Liga'!$B$6:$H$443,5,FALSE)&":"&VLOOKUP($B12&D$2,'1. Liga'!$B$6:$H$443,7,FALSE) -> 2:1 | E12: =VLOOKUP($B12&E$2,'1. Liga'!$B$6:$H$443,5,FALSE)&":"&VLOOKUP($B12&E$2,'1. Liga'!$B$6:$H$443,7,FALSE) -> 0:4 | F12: =VLOOKUP($B12&F$2,'1. Liga'!$B$6:$H$443,5,FALSE)&":"&VLOOKUP($B12&F$2,'1. Liga'!$B$6:$H$443,7,FALSE) -> 1:1 | G12: =VLOOKUP($B12&G$2,'1. Liga'!$B$6:$H$443,5,FALSE)&":"&VLOOKUP($B12&G$2,'1. Liga'!$B$6:$H$443,7,FALSE) -> 1:2 | H12: =VLOOKUP($B12&H$2,'1. Liga'!$B$6:$H$443,5,FALSE)&":"&VLOOKUP($B12&H$2,'1. Liga'!$B$6:$H$443,7,FALSE) -> 2:2 | I12: =VLOOKUP($B12&I$2,'1. Liga'!$B$6:$H$443,5,FALSE)&":"&VLOOKUP($B12&I$2,'1. Liga'!$B$6:$H$443,7,FALSE) -> 2:3 | J12: =VLOOKUP($B12&J$2,'1. Liga'!$B$6:$H$443,5,FALSE)&":"&VLOOKUP($B12&J$2,'1. Liga'!$B$6:$H$443,7,FALSE) -> 1:2 | K12: G | L12: =VLOOKUP($B12&L$2,'1. Liga'!$B$6:$H$443,5,FALSE)&":"&VLOOKUP($B12&L$2,'1. Liga'!$B$6:$H$443,7,FALSE) -> 3:1 | M12: =VLOOKUP($B12&M$2,'1. Liga'!$B$6:$H$443,5,FALSE)&":"&VLOOKUP($B12&M$2,'1. Liga'!$B$6:$H$443,7,FALSE) -> 2:0 | N12: =VLOOKUP($B12&N$2,'1. Liga'!$B$6:$H$443,5,FALSE)&":"&VLOOKUP($B12&N$2,'1. Liga'!$B$6:$H$443,7,FALSE) -> 0:2 | O12: =VLOOKUP($B12&O$2,'1. Liga'!$B$6:$H$443,5,FALSE)&":"&VLOOKUP($B12&O$2,'1. Liga'!$B$6:$H$443,7,FALSE) -> 4:0 | P12: =VLOOKUP($B12&P$2,'1. Liga'!$B$6:$H$443,5,FALSE)&":"&VLOOKUP($B12&P$2,'1. Liga'!$B$6:$H$443,7,FALSE) -> 2:2 | Q12: =VLOOKUP($B12&Q$2,'1. Liga'!$B$6:$H$443,5,FALSE)&":"&VLOOKUP($B12&Q$2,'1. Liga'!$B$6:$H$443,7,FALSE) -> 2:0 | R12: =VLOOKUP($B12&R$2,'1. Liga'!$B$6:$H$443,5,FALSE)&":"&VLOOKUP($B12&R$2,'1. Liga'!$B$6:$H$443,7,FALSE) -> 4:1 | S12: =VLOOKUP($B12&S$2,'1. Liga'!$B$6:$H$443,5,FALSE)&":"&VLOOKUP($B12&S$2,'1. Liga'!$B$6:$H$443,7,FALSE) -> 2:1 | T12: =VLOOKUP($B12&T$2,'1. Liga'!$B$6:$H$443,5,FALSE)&":"&VLOOKUP($B12&T$2,'1. Liga'!$B$6:$H$443,7,FALSE) -> 1:1
A13: ='1. Liga'!$AI$3 -> 10 | B13: ='1. Liga'!$AI$1 -> Sport-Club Freiburg | C13: =VLOOKUP($B13&C$2,'1. Liga'!$B$6:$H$443,5,FALSE)&":"&VLOOKUP($B13&C$2,'1. Liga'!$B$6:$H$443,7,FALSE) -> 2:3 | D13: =VLOOKUP($B13&D$2,'1. Liga'!$B$6:$H$443,5,FALSE)&":"&VLOOKUP($B13&D$2,'1. Liga'!$B$6:$H$443,7,FALSE) -> 1:3 | E13: =VLOOKUP($B13&E$2,'1. Liga'!$B$6:$H$443,5,FALSE)&":"&VLOOKUP($B13&E$2,'1. Liga'!$B$6:$H$443,7,FALSE) -> 2:2 | F13: =VLOOKUP($B13&F$2,'1. Liga'!$B$6:$H$443,5,FALSE)&":"&VLOOKUP($B13&F$2,'1. Liga'!$B$6:$H$443,7,FALSE) -> 1:4 | G13: =VLOOKUP($B13&G$2,'1. Liga'!$B$6:$H$443,5,FALSE)&":"&VLOOKUP($B13&G$2,'1. Liga'!$B$6:$H$443,7,FALSE) -> 2:4 | H13: =VLOOKUP($B13&H$2,'1. Liga'!$B$6:$H$443,5,FALSE)&":"&VLOOKUP($B13&H$2,'1. Liga'!$B$6:$H$443,7,FALSE) -> 3:3 | I13: =VLOOKUP($B13&I$2,'1. Liga'!$B$6:$H$443,5,FALSE)&":"&VLOOKUP($B13&I$2,'1. Liga'!$B$6:$H$443,7,FALSE) -> 3:2 | J13: =VLOOKUP($B13&J$2,'1. Liga'!$B$6:$H$443,5,FALSE)&":"&VLOOKUP($B13&J$2,'1. Liga'!$B$6:$H$443,7,FALSE) -> 1:1 | K13: =VLOOKUP($B13&K$2,'1. Liga'!$B$6:$H$443,5,FALSE)&":"&VLOOKUP($B13&K$2,'1. Liga'!$B$6:$H$443,7,FALSE) -> 1:0 | L13: A | M13: =VLOOKUP($B13&M$2,'1. Liga'!$B$6:$H$443,5,FALSE)&":"&VLOOKUP($B13&M$2,'1. Liga'!$B$6:$H$443,7,FALSE) -> 2:0 | N13: =VLOOKUP($B13&N$2,'1. Liga'!$B$6:$H$443,5,FALSE)&":"&VLOOKUP($B13&N$2,'1. Liga'!$B$6:$H$443,7,FALSE) -> 1:2 | O13: =VLOOKUP($B13&O$2,'1. Liga'!$B$6:$H$443,5,FALSE)&":"&VLOOKUP($B13&O$2,'1. Liga'!$B$6:$H$443,7,FALSE) -> 1:1 | P13: =VLOOKUP($B13&P$2,'1. Liga'!$B$6:$H$443,5,FALSE)&":"&VLOOKUP($B13&P$2,'1. Liga'!$B$6:$H$443,7,FALSE) -> 3:3 | Q13: =VLOOKUP($B13&Q$2,'1. Liga'!$B$6:$H$443,5,FALSE)&":"&VLOOKUP($B13&Q$2,'1. Liga'!$B$6:$H$443,7,FALSE) -> 0:0 | R13: =VLOOKUP($B13&R$2,'1. Liga'!$B$6:$H$443,5,FALSE)&":"&VLOOKUP($B13&R$2,'1. Liga'!$B$6:$H$443,7,FALSE) -> 2:1 | S13: =VLOOKUP($B13&S$2,'1. Liga'!$B$6:$H$443,5,FALSE)&":"&VLOOKUP($B13&S$2,'1. Liga'!$B$6:$H$443,7,FALSE) -> 2:0 | T13: =VLOOKUP($B13&T$2,'1. Liga'!$B$6:$H$443,5,FALSE)&":"&VLOOKUP($B13&T$2,'1. Liga'!$B$6:$H$443,7,FALSE) -> 1:1
A14: ='1. Liga'!$AF$3 -> 11 | B14: ='1. Liga'!$AF$1 -> FC Augsburg | C14: =VLOOKUP($B14&C$2,'1. Liga'!$B$6:$H$443,5,FALSE)&":"&VLOOKUP($B14&C$2,'1. Liga'!$B$6:$H$443,7,FALSE) -> 0:1 | D14: =VLOOKUP($B14&D$2,'1. Liga'!$B$6:$H$443,5,FALSE)&":"&VLOOKUP($B14&D$2,'1. Liga'!$B$6:$H$443,7,FALSE) -> 0:1 | E14: =VLOOKUP($B14&E$2,'1. Liga'!$B$6:$H$443,5,FALSE)&":"&VLOOKUP($B14&E$2,'1. Liga'!$B$6:$H$443,7,FALSE) -> 2:3 | F14: =VLOOKUP($B14&F$2,'1. Liga'!$B$6:$H$443,5,FALSE)&":"&VLOOKUP($B14&F$2,'1. Liga'!$B$6:$H$443,7,FALSE) -> 2:2 | G14: =VLOOKUP($B14&G$2,'1. Liga'!$B$6:$H$443,5,FALSE)&":"&VLOOKUP($B14&G$2,'1. Liga'!$B$6:$H$443,7,FALSE) -> 1:1 | H14: =VLOOKUP($B14&H$2,'1. Liga'!$B$6:$H$443,5,FALSE)&":"&VLOOKUP($B14&H$2,'1. Liga'!$B$6:$H$443,7,FALSE) -> 2:1 | I14: =VLOOKUP($B14&I$2,'1. Liga'!$B$6:$H$443,5,FALSE)&":"&VLOOKUP($B14&I$2,'1. Liga'!$B$6:$H$443,7,FALSE) -> 1:1 | J14: =VLOOKUP($B14&J$2,'1. Liga'!$B$6:$H$443,5,FALSE)&":"&VLOOKUP($B14&J$2,'1. Liga'!$B$6:$H$443,7,FALSE) -> 1:0 | K14: =VLOOKUP($B14&K$2,'1. Liga'!$B$6:$H$443,5,FALSE)&":"&VLOOKUP($B14&K$2,'1. Liga'!$B$6:$H$443,7,FALSE) -> 0:3 | L14: =VLOOKUP($B14&L$2,'1. Liga'!$B$6:$H$443,5,FALSE)&":"&VLOOKUP($B14&L$2,'1. Liga'!$B$6:$H$443,7,FALSE) -> 2:1 | M14: 2 | N14: =VLOOKUP($B14&N$2,'1. Liga'!$B$6:$H$443,5,FALSE)&":"&VLOOKUP($B14&N$2,'1. Liga'!$B$6:$H$443,7,FALSE) -> 3:2 | O14: =VLOOKUP($B14&O$2,'1. Liga'!$B$6:$H$443,5,FALSE)&":"&VLOOKUP($B14&O$2,'1. Liga'!$B$6:$H$443,7,FALSE) -> 2:1 | P14: =VLOOKUP($B14&P$2,'1. Liga'!$B$6:$H$443,5,FALSE)&":"&VLOOKUP($B14&P$2,'1. Liga'!$B$6:$H$443,7,FALSE) -> 4:4 | Q14: =VLOOKUP($B14&Q$2,'1. Liga'!$B$6:$H$443,5,FALSE)&":"&VLOOKUP($B14&Q$2,'1. Liga'!$B$6:$H$443,7,FALSE) -> 2:0 | R14: =VLOOKUP($B14&R$2,'1. Liga'!$B$6:$H$443,5,FALSE)&":"&VLOOKUP($B14&R$2,'1. Liga'!$B$6:$H$443,7,FALSE) -> 2:2 | S14: =VLOOKUP($B14&S$2,'1. Liga'!$B$6:$H$443,5,FALSE)&":"&VLOOKUP($B14&S$2,'1. Liga'!$B$6:$H$443,7,FALSE) -> 1:1 | T14: =VLOOKUP($B14&T$2,'1. Liga'!$B$6:$H$443,5,FALSE)&":"&VLOOKUP($B14&T$2,'1. Liga'!$B$6:$H$443,7,FALSE) -> 1:2
A15: ='1. Liga'!$AB$3 -> 12 | B15: ='1. Liga'!$AB$1 -> VfL Wolfsburg | C15: =VLOOKUP($B15&C$2,'1. Liga'!$B$6:$H$443,5,FALSE)&":"&VLOOKUP($B15&C$2,'1. Liga'!$B$6:$H$443,7,FALSE) -> 1:2 | D15: =VLOOKUP($B15&D$2,'1. Liga'!$B$6:$H$443,5,FALSE)&":"&VLOOKUP($B15&D$2,'1. Liga'!$B$6:$H$443,7,FALSE) -> 2:3 | E15: =VLOOKUP($B15&E$2,'1. Liga'!$B$6:$H$443,5,FALSE)&":"&VLOOKUP($B15&E$2,'1. Liga'!$B$6:$H$443,7,FALSE) -> 1:2 | F15: =VLOOKUP($B15&F$2,'1. Liga'!$B$6:$H$443,5,FALSE)&":"&VLOOKUP($B15&F$2,'1. Liga'!$B$6:$H$443,7,FALSE) -> 2:1 | G15: =VLOOKUP($B15&G$2,'1. Liga'!$B$6:$H$443,5,FALSE)&":"&VLOOKUP($B15&G$2,'1. Liga'!$B$6:$H$443,7,FALSE) -> 1:1 | H15: =VLOOKUP($B15&H$2,'1. Liga'!$B$6:$H$443,5,FALSE)&":"&VLOOKUP($B15&H$2,'1. Liga'!$B$6:$H$443,7,FALSE) -> 2:0 | I15: =VLOOKUP($B15&I$2,'1. Liga'!$B$6:$H$443,5,FALSE)&":"&VLOOKUP($B15&I$2,'1. Liga'!$B$6:$H$443,7,FALSE) -> 2:2 | J15: =VLOOKUP($B15&J$2,'1. Liga'!$B$6:$H$443,5,FALSE)&":"&VLOOKUP($B15&J$2,'1. Liga'!$B$6:$H$443,7,FALSE) -> 2:0 | K15: =VLOOKUP($B15&K$2,'1. Liga'!$B$6:$H$443,5,FALSE)&":"&VLOOKUP($B15&K$2,'1. Liga'!$B$6:$H$443,7,FALSE) -> 2:2 | L15: =VLOOKUP($B15&L$2,'1. Liga'!$B$6:$H$443,5,FALSE)&":"&VLOOKUP($B15&L$2,'1. Liga'!$B$6:$H$443,7,FALSE) -> 0:1 | M15: =VLOOKUP($B15&M$2,'1. Liga'!$B$6:$H$443,5,FALSE)&":"&VLOOKUP($B15&M$2,'1. Liga'!$B$6:$H$443,7,FALSE) -> 1:3 | N15: 0 | O15: =VLOOKUP($B15&O$2,'1. Liga'!$B$6:$H$443,5,FALSE)&":"&VLOOKUP($B15&O$2,'1. Liga'!$B$6:$H$443,7,FALSE) -> 1:3 | P15: =VLOOKUP($B15&P$2,'1. Liga'!$B$6:$H$443,5,FALSE)&":"&VLOOKUP($B15&P$2,'1. Liga'!$B$6:$H$443,7,FALSE) -> 1:3 | Q15: =VLOOKUP($B15&Q$2,'1. Liga'!$B$6:$H$443,5,FALSE)&":"&VLOOKUP($B15&Q$2,'1. Liga'!$B$6:$H$443,7,FALSE) -> 2:1 | R15: =VLOOKUP($B15&R$2,'1. Liga'!$B$6:$H$443,5,FALSE)&":"&VLOOKUP($B15&R$2,'1. Liga'!$B$6:$H$443,7,FALSE) -> 1:0 | S15: =VLOOKUP($B15&S$2,'1. Liga'!$B$6:$H$443,5,FALSE)&":"&VLOOKUP($B15&S$2,'1. Liga'!$B$6:$H$443,7,FALSE) -> 1:1 | T15: =VLOOKUP($B15&T$2,'1. Liga'!$B$6:$H$443,5,FALSE)&":"&VLOOKUP($B15&T$2,'1. Liga'!$B$6:$H$443,7,FALSE) -> 3:0
A16: ='1. Liga'!$AE$3 -> 13 | B16: ='1. Liga'!$AE$1 -> 1. FSV Mainz 05 | C16: =VLOOKUP($B16&C$2,'1. Liga'!$B$6:$H$443,5,FALSE)&":"&VLOOKUP($B16&C$2,'1. Liga'!$B$6:$H$443,7,FALSE) -> 0:3 | D16: =VLOOKUP($B16&D$2,'1. Liga'!$B$6:$H$443,5,FALSE)&":"&VLOOKUP($B16&D$2,'1. Liga'!$B$6:$H$443,7,FALSE) -> 1:3 | E16: =VLOOKUP($B16&E$2,'1. Liga'!$B$6:$H$443,5,FALSE)&":"&VLOOKUP($B16&E$2,'1. Liga'!$B$6:$H$443,7,FALSE) -> 1:3 | F16: =VLOOKUP($B16&F$2,'1. Liga'!$B$6:$H$443,5,FALSE)&":"&VLOOKUP($B16&F$2,'1. Liga'!$B$6:$H$443,7,FALSE) -> 2:0 | G16: =VLOOKUP($B16&G$2,'1. Liga'!$B$6:$H$443,5,FALSE)&":"&VLOOKUP($B16&G$2,'1. Liga'!$B$6:$H$443,7,FALSE) -> 3:0 | H16: =VLOOKUP($B16&H$2,'1. Liga'!$B$6:$H$443,5,FALSE)&":"&VLOOKUP($B16&H$2,'1. Liga'!$B$6:$H$443,7,FALSE) -> 1:1 | I16: =VLOOKUP($B16&I$2,'1. Liga'!$B$6:$H$443,5,FALSE)&":"&VLOOKUP($B16&I$2,'1. Liga'!$B$6:$H$443,7,FALSE) -> 4:1 | J16: =VLOOKUP($B16&J$2,'1. Liga'!$B$6:$H$443,5,FALSE)&":"&VLOOKUP($B16&J$2,'1. Liga'!$B$6:$H$443,7,FALSE) -> 0:1 | K16: =VLOOKUP($B16&K$2,'1. Liga'!$B$6:$H$443,5,FALSE)&":"&VLOOKUP($B16&K$2,'1. Liga'!$B$6:$H$443,7,FALSE) -> 0:1 | L16: =VLOOKUP($B16&L$2,'1. Liga'!$B$6:$H$443,5,FALSE)&":"&VLOOKUP($B16&L$2,'1. Liga'!$B$6:$H$443,7,FALSE) -> 0:1 | M16: =VLOOKUP($B16&M$2,'1. Liga'!$B$6:$H$443,5,FALSE)&":"&VLOOKUP($B16&M$2,'1. Liga'!$B$6:$H$443,7,FALSE) -> 1:0 | N16: =VLOOKUP($B16&N$2,'1. Liga'!$B$6:$H$443,5,FALSE)&":"&VLOOKUP($B16&N$2,'1. Liga'!$B$6:$H$443,7,FALSE) -> 1:1 | O16: 2 | P16: =VLOOKUP($B16&P$2,'1. Liga'!$B$6:$H$443,5,FALSE)&":"&VLOOKUP($B16&P$2,'1. Liga'!$B$6:$H$443,7,FALSE) -> 1:1 | Q16: =VLOOKUP($B16&Q$2,'1. Liga'!$B$6:$H$443,5,FALSE)&":"&VLOOKUP($B16&Q$2,'1. Liga'!$B$6:$H$443,7,FALSE) -> 1:1 | R16: =VLOOKUP($B16&R$2,'1. Liga'!$B$6:$H$443,5,FALSE)&":"&VLOOKUP($B16&R$2,'1. Liga'!$B$6:$H$443,7,FALSE) -> 2:0 | S16: =VLOOKUP($B16&S$2,'1. Liga'!$B$6:$H$443,5,FALSE)&":"&VLOOKUP($B16&S$2,'1. Liga'!$B$6:$H$443,7,FALSE) -> 1:1 | T16: =VLOOKUP($B16&T$2,'1. Liga'!$B$6:$H$443,5,FALSE)&":"&VLOOKUP($B16&T$2,'1. Liga'!$B$6:$H$443,7,FALSE) -> 4:0
A17: ='1. Liga'!$AG$3 -> 14 | B17: ='1. Liga'!$AG$1 -> Borussia Mönchengladbach | C17: =VLOOKUP($B17&C$2,'1. Liga'!$B$6:$H$443,5,FALSE)&":"&VLOOKUP($B17&C$2,'1. Liga'!$B$6:$H$443,7,FALSE) -> 0:3 | D17: =VLOOKUP($B17&D$2,'1. Liga'!$B$6:$H$443,5,FALSE)&":"&VLOOKUP($B17&D$2,'1. Liga'!$B$6:$H$443,7,FALSE) -> 3:1 | E17: =VLOOKUP($B17&E$2,'1. Liga'!$B$6:$H$443,5,FALSE)&":"&VLOOKUP($B17&E$2,'1. Liga'!$B$6:$H$443,7,FALSE) -> 1:2 | F17: =VLOOKUP($B17&F$2,'1. Liga'!$B$6:$H$443,5,FALSE)&":"&VLOOKUP($B17&F$2,'1. Liga'!$B$6:$H$443,7,FALSE) -> 0:1 | G17: =VLOOKUP($B17&G$2,'1. Liga'!$B$6:$H$443,5,FALSE)&":"&VLOOKUP($B17&G$2,'1. Liga'!$B$6:$H$443,7,FALSE) -> 1:2 | H17: =VLOOKUP($B17&H$2,'1. Liga'!$B$6:$H$443,5,FALSE)&":"&VLOOKUP($B17&H$2,'1. Liga'!$B$6:$H$443,7,FALSE) -> 1:1 | I17: =VLOOKUP($B17&I$2,'1. Liga'!$B$6:$H$443,5,FALSE)&":"&VLOOKUP($B17&I$2,'1. Liga'!$B$6:$H$443,7,FALSE) -> 2:1 | J17: =VLOOKUP($B17&J$2,'1. Liga'!$B$6:$H$443,5,FALSE)&":"&VLOOKUP($B17&J$2,'1. Liga'!$B$6:$H$443,7,FALSE) -> 2:1 | K17: =VLOOKUP($B17&K$2,'1. Liga'!$B$6:$H$443,5,FALSE)&":"&VLOOKUP($B17&K$2,'1. Liga'!$B$6:$H$443,7,FALSE) -> 2:2 | L17: =VLOOKUP($B17&L$2,'1. Liga'!$B$6:$H$443,5,FALSE)&":"&VLOOKUP($B17&L$2,'1. Liga'!$B$6:$H$443,7,FALSE) -> 0:3 | M17: =VLOOKUP($B17&M$2,'1. Liga'!$B$6:$H$443,5,FALSE)&":"&VLOOKUP($B17&M$2,'1. Liga'!$B$6:$H$443,7,FALSE) -> 1:2 | N17: =VLOOKUP($B17&N$2,'1. Liga'!$B$6:$H$443,5,FALSE)&":"&VLOOKUP($B17&N$2,'1. Liga'!$B$6:$H$443,7,FALSE) -> 4:0 | O17: =VLOOKUP($B17&O$2,'1. Liga'!$B$6:$H$443,5,FALSE)&":"&VLOOKUP($B17&O$2,'1. Liga'!$B$6:$H$443,7,FALSE) -> 2:2 | P17: 3 | Q17: =VLOOKUP($B17&Q$2,'1. Liga'!$B$6:$H$443,5,FALSE)&":"&VLOOKUP($B17&Q$2,'1. Liga'!$B$6:$H$443,7,FALSE) -> 0:0 | R17: =VLOOKUP($B17&R$2,'1. Liga'!$B$6:$H$443,5,FALSE)&":"&VLOOKUP($B17&R$2,'1. Liga'!$B$6:$H$443,7,FALSE) -> 5:2 | S17: =VLOOKUP($B17&S$2,'1. Liga'!$B$6:$H$443,5,FALSE)&":"&VLOOKUP($B17&S$2,'1. Liga'!$B$6:$H$443,7,FALSE) -> 3:3 | T17: =VLOOKUP($B17&T$2,'1. Liga'!$B$6:$H$443,5,FALSE)&":"&VLOOKUP($B17&T$2,'1. Liga'!$B$6:$H$443,7,FALSE) -> 0:0
A18: ='1. Liga'!$AD$3 -> 15 | B18: ='1. Liga'!$AD$1 -> 1. FC Union Berlin | C18: =VLOOKUP($B18&C$2,'1. Liga'!$B$6:$H$443,5,FALSE)&":"&VLOOKUP($B18&C$2,'1. Liga'!$B$6:$H$443,7,FALSE) -> 0:1 | D18: =VLOOKUP($B18&D$2,'1. Liga'!$B$6:$H$443,5,FALSE)&":"&VLOOKUP($B18&D$2,'1. Liga'!$B$6:$H$443,7,FALSE) -> 0:3 | E18: =VLOOKUP($B18&E$2,'1. Liga'!$B$6:$H$443,5,FALSE)&":"&VLOOKUP($B18&E$2,'1. Liga'!$B$6:$H$443,7,FALSE) -> 1:5 | F18: =VLOOKUP($B18&F$2,'1. Liga'!$B$6:$H$443,5,FALSE)&":"&VLOOKUP($B18&F$2,'1. Liga'!$B$6:$H$443,7,FALSE) -> 0:3 | G18: =VLOOKUP($B18&G$2,'1. Liga'!$B$6:$H$443,5,FALSE)&":"&VLOOKUP($B18&G$2,'1. Liga'!$B$6:$H$443,7,FALSE) -> 0:2 | H18: =VLOOKUP($B18&H$2,'1. Liga'!$B$6:$H$443,5,FALSE)&":"&VLOOKUP($B18&H$2,'1. Liga'!$B$6:$H$443,7,FALSE) -> 0:3 | I18: =VLOOKUP($B18&I$2,'1. Liga'!$B$6:$H$443,5,FALSE)&":"&VLOOKUP($B18&I$2,'1. Liga'!$B$6:$H$443,7,FALSE) -> 0:2 | J18: =VLOOKUP($B18&J$2,'1. Liga'!$B$6:$H$443,5,FALSE)&":"&VLOOKUP($B18&J$2,'1. Liga'!$B$6:$H$443,7,FALSE) -> 2:2 | K18: =VLOOKUP($B18&K$2,'1. Liga'!$B$6:$H$443,5,FALSE)&":"&VLOOKUP($B18&K$2,'1. Liga'!$B$6:$H$443,7,FALSE) -> 2:1 | L18: =VLOOKUP($B18&L$2,'1. Liga'!$B$6:$H$443,5,FALSE)&":"&VLOOKUP($B18&L$2,'1. Liga'!$B$6:$H$443,7,FALSE) -> 2:1 | M18: =VLOOKUP($B18&M$2,'1. Liga'!$B$6:$H$443,5,FALSE)&":"&VLOOKUP($B18&M$2,'1. Liga'!$B$6:$H$443,7,FALSE) -> 1:1 | N18: =VLOOKUP($B18&N$2,'1. Liga'!$B$6:$H$443,5,FALSE)&":"&VLOOKUP($B18&N$2,'1. Liga'!$B$6:$H$443,7,FALSE) -> 1:0 | O18: =VLOOKUP($B18&O$2,'1. Liga'!$B$6:$H$443,5,FALSE)&":"&VLOOKUP($B18&O$2,'1. Liga'!$B$6:$H$443,7,FALSE) -> 4:1 | P18: =VLOOKUP($B18&P$2,'1. Liga'!$B$6:$H$443,5,FALSE)&":"&VLOOKUP($B18&P$2,'1. Liga'!$B$6:$H$443,7,FALSE) -> 3:1 | Q18: 2 | R18: =VLOOKUP($B18&R$2,'1. Liga'!$B$6:$H$443,5,FALSE)&":"&VLOOKUP($B18&R$2,'1. Liga'!$B$6:$H$443,7,FALSE) -> 3:4 | S18: =VLOOKUP($B18&S$2,'1. Liga'!$B$6:$H$443,5,FALSE)&":"&VLOOKUP($B18&S$2,'1. Liga'!$B$6:$H$443,7,FALSE) -> 2:0 | T18: =VLOOKUP($B18&T$2,'1. Liga'!$B$6:$H$443,5,FALSE)&":"&VLOOKUP($B18&T$2,'1. Liga'!$B$6:$H$443,7,FALSE) -> 1:0
A19: ='1. Liga'!$U$3 -> 16 | B19: ='1. Liga'!$U$1 -> VfL Bochum 1848 | C19: =VLOOKUP($B19&C$2,'1. Liga'!$B$6:$H$443,5,FALSE)&":"&VLOOKUP($B19&C$2,'1. Liga'!$B$6:$H$443,7,FALSE) -> 0:5 | D19: =VLOOKUP($B19&D$2,'1. Liga'!$B$6:$H$443,5,FALSE)&":"&VLOOKUP($B19&D$2,'1. Liga'!$B$6:$H$443,7,FALSE) -> 1:0 | E19: =VLOOKUP($B19&E$2,'1. Liga'!$B$6:$H$443,5,FALSE)&":"&VLOOKUP($B19&E$2,'1. Liga'!$B$6:$H$443,7,FALSE) -> 3:2 | F19: =VLOOKUP($B19&F$2,'1. Liga'!$B$6:$H$443,5,FALSE)&":"&VLOOKUP($B19&F$2,'1. Liga'!$B$6:$H$443,7,FALSE) -> 1:4 | G19: =VLOOKUP($B19&G$2,'1. Liga'!$B$6:$H$443,5,FALSE)&":"&VLOOKUP($B19&G$2,'1. Liga'!$B$6:$H$443,7,FALSE) -> 1:1 | H19: =VLOOKUP($B19&H$2,'1. Liga'!$B$6:$H$443,5,FALSE)&":"&VLOOKUP($B19&H$2,'1. Liga'!$B$6:$H$443,7,FALSE) -> 1:1 | I19: =VLOOKUP($B19&I$2,'1. Liga'!$B$6:$H$443,5,FALSE)&":"&VLOOKUP($B19&I$2,'1. Liga'!$B$6:$H$443,7,FALSE) -> 3:2 | J19: =VLOOKUP($B19&J$2,'1. Liga'!$B$6:$H$443,5,FALSE)&":"&VLOOKUP($B19&J$2,'1. Liga'!$B$6:$H$443,7,FALSE) -> 1:1 | K19: =VLOOKUP($B19&K$2,'1. Liga'!$B$6:$H$443,5,FALSE)&":"&VLOOKUP($B19&K$2,'1. Liga'!$B$6:$H$443,7,FALSE) -> 1:1 | L19: =VLOOKUP($B19&L$2,'1. Liga'!$B$6:$H$443,5,FALSE)&":"&VLOOKUP($B19&L$2,'1. Liga'!$B$6:$H$443,7,FALSE) -> 1:2 | M19: =VLOOKUP($B19&M$2,'1. Liga'!$B$6:$H$443,5,FALSE)&":"&VLOOKUP($B19&M$2,'1. Liga'!$B$6:$H$443,7,FALSE) -> 1:1 | N19: =VLOOKUP($B19&N$2,'1. Liga'!$B$6:$H$443,5,FALSE)&":"&VLOOKUP($B19&N$2,'1. Liga'!$B$6:$H$443,7,FALSE) -> 3:1 | O19: =VLOOKUP($B19&O$2,'1. Liga'!$B$6:$H$443,5,FALSE)&":"&VLOOKUP($B19&O$2,'1. Liga'!$B$6:$H$443,7,FALSE) -> 2:2 | P19: =VLOOKUP($B19&P$2,'1. Liga'!$B$6:$H$443,5,FALSE)&":"&VLOOKUP($B19&P$2,'1. Liga'!$B$6:$H$443,7,FALSE) -> 1:3 | Q19: =VLOOKUP($B19&Q$2,'1. Liga'!$B$6:$H$443,5,FALSE)&":"&VLOOKUP($B19&Q$2,'1. Liga'!$B$6:$H$443,7,FALSE) -> 3:0 | R19: 0 | S19: =VLOOKUP($B19&S$2,'1. Liga'!$B$6:$H$443,5,FALSE)&":"&VLOOKUP($B19&S$2,'1. Liga'!$B$6:$H$443,7,FALSE) -> 1:1 | T19: =VLOOKUP($B19&T$2,'1. Liga'!$B$6:$H$443,5,FALSE)&":"&VLOOKUP($B19&T$2,'1. Liga'!$B$6:$H$443,7,FALSE) -> 2:2
A20: ='1. Liga'!$W$3 -> 17 | B20: ='1. Liga'!$W$1 -> 1. FC Köln | C20: =VLOOKUP($B20&C$2,'1. Liga'!$B$6:$H$443,5,FALSE)&":"&VLOOKUP($B20&C$2,'1. Liga'!$B$6:$H$443,7,FALSE) -> 0:2 | D20: =VLOOKUP($B20&D$2,'1. Liga'!$B$6:$H$443,5,FALSE)&":"&VLOOKUP($B20&D$2,'1. Liga'!$B$6:$H$443,7,FALSE) -> 0:2 | E20: =VLOOKUP($B20&E$2,'1. Liga'!$B$6:$H$443,5,FALSE)&":"&VLOOKUP($B20&E$2,'1. Liga'!$B$6:$H$443,7,FALSE) -> 0:1 | F20: =VLOOKUP($B20&F$2,'1. Liga'!$B$6:$H$443,5,FALSE)&":"&VLOOKUP($B20&F$2,'1. Liga'!$B$6:$H$443,7,FALSE) -> 1:5 | G20: =VLOOKUP($B20&G$2,'1. Liga'!$B$6:$H$443,5,FALSE)&":"&VLOOKUP($B20&G$2,'1. Liga'!$B$6:$H$443,7,FALSE) -> 0:4 | H20: =VLOOKUP($B20&H$2,'1. Liga'!$B$6:$H$443,5,FALSE)&":"&VLOOKUP($B20&H$2,'1. Liga'!$B$6:$H$443,7,FALSE) -> 2:0 | I20: =VLOOKUP($B20&I$2,'1. Liga'!$B$6:$H$443,5,FALSE)&":"&VLOOKUP($B20&I$2,'1. Liga'!$B$6:$H$443,7,FALSE) -> 1:3 | J20: =VLOOKUP($B20&J$2,'1. Liga'!$B$6:$H$443,5,FALSE)&":"&VLOOKUP($B20&J$2,'1. Liga'!$B$6:$H$443,7,FALSE) -> 1:1 | K20: =VLOOKUP($B20&K$2,'1. Liga'!$B$6:$H$443,5,FALSE)&":"&VLOOKUP($B20&K$2,'1. Liga'!$B$6:$H$443,7,FALSE) -> 0:1 | L20: =VLOOKUP($B20&L$2,'1. Liga'!$B$6:$H$443,5,FALSE)&":"&VLOOKUP($B20&L$2,'1. Liga'!$B$6:$H$443,7,FALSE) -> 0:0 | M20: =VLOOKUP($B20&M$2,'1. Liga'!$B$6:$H$443,5,FALSE)&":"&VLOOKUP($B20&M$2,'1. Liga'!$B$6:$H$443,7,FALSE) -> 1:1 | N20: =VLOOKUP($B20&N$2,'1. Liga'!$B$6:$H$443,5,FALSE)&":"&VLOOKUP($B20&N$2,'1. Liga'!$B$6:$H$443,7,FALSE) -> 1:2 | O20: =VLOOKUP($B20&O$2,'1. Liga'!$B$6:$H$443,5,FALSE)&":"&VLOOKUP($B20&O$2,'1. Liga'!$B$6:$H$443,7,FALSE) -> 0:0 | P20: =VLOOKUP($B20&P$2,'1. Liga'!$B$6:$H$443,5,FALSE)&":"&VLOOKUP($B20&P$2,'1. Liga'!$B$6:$H$443,7,FALSE) -> 3:1 | Q20: =VLOOKUP($B20&Q$2,'1. Liga'!$B$6:$H$443,5,FALSE)&":"&VLOOKUP($B20&Q$2,'1. Liga'!$B$6:$H$443,7,FALSE) -> 3:2 | R20: =VLOOKUP($B20&R$2,'1. Liga'!$B$6:$H$443,5,FALSE)&":"&VLOOKUP($B20&R$2,'1. Liga'!$B$6:$H$443,7,FALSE) -> 2:1 | S20: 2 | T20: =VLOOKUP($B20&T$2,'1. Liga'!$B$6:$H$443,5,FALSE)&":"&VLOOKUP($B20&T$2,'1. Liga'!$B$6:$H$443,7,FALSE) -> 0:2
A21: ='1. Liga'!$Y$3 -> 18 | B21: ='1. Liga'!$Y$1 -> SV Darmstadt 98 | C21: =VLOOKUP($B21&C$2,'1. Liga'!$B$6:$H$443,5,FALSE)&":"&VLOOKUP($B21&C$2,'1. Liga'!$B$6:$H$443,7,FALSE) -> 0:2 | D21: =VLOOKUP($B21&D$2,'1. Liga'!$B$6:$H$443,5,FALSE)&":"&VLOOKUP($B21&D$2,'1. Liga'!$B$6:$H$443,7,FALSE) -> 1:2 | E21: =VLOOKUP($B21&E$2,'1. Liga'!$B$6:$H$443,5,FALSE)&":"&VLOOKUP($B21&E$2,'1. Liga'!$B$6:$H$443,7,FALSE) -> 2:5 | F21: =VLOOKUP($B21&F$2,'1. Liga'!$B$6:$H$443,5,FALSE)&":"&VLOOKUP($B21&F$2,'1. Liga'!$B$6:$H$443,7,FALSE) -> 1:3 | G21: =VLOOKUP($B21&G$2,'1. Liga'!$B$6:$H$443,5,FALSE)&":"&VLOOKUP($B21&G$2,'1. Liga'!$B$6:$H$443,7,FALSE) -> 0:3 | H21: =VLOOKUP($B21&H$2,'1. Liga'!$B$6:$H$443,5,FALSE)&":"&VLOOKUP($B21&H$2,'1. Liga'!$B$6:$H$443,7,FALSE) -> 2:2 | I21: =VLOOKUP($B21&I$2,'1. Liga'!$B$6:$H$443,5,FALSE)&":"&VLOOKUP($B21&I$2,'1. Liga'!$B$6:$H$443,7,FALSE) -> 0:6 | J21: =VLOOKUP($B21&J$2,'1. Liga'!$B$6:$H$443,5,FALSE)&":"&VLOOKUP($B21&J$2,'1. Liga'!$B$6:$H$443,7,FALSE) -> 0:1 | K21: =VLOOKUP($B21&K$2,'1. Liga'!$B$6:$H$443,5,FALSE)&":"&VLOOKUP($B21&K$2,'1. Liga'!$B$6:$H$443,7,FALSE) -> 4:2 | L21: =VLOOKUP($B21&L$2,'1. Liga'!$B$6:$H$443,5,FALSE)&":"&VLOOKUP($B21&L$2,'1. Liga'!$B$6:$H$443,7,FALSE) -> 0:1 | M21: =VLOOKUP($B21&M$2,'1. Liga'!$B$6:$H$443,5,FALSE)&":"&VLOOKUP($B21&M$2,'1. Liga'!$B$6:$H$443,7,FALSE) -> 0:6 | N21: =VLOOKUP($B21&N$2,'1. Liga'!$B$6:$H$443,5,FALSE)&":"&VLOOKUP($B21&N$2,'1. Liga'!$B$6:$H$443,7,FALSE) -> 0:1 | O21: =VLOOKUP($B21&O$2,'1. Liga'!$B$6:$H$443,5,FALSE)&":"&VLOOKUP($B21&O$2,'1. Liga'!$B$6:$H$443,7,FALSE) -> 0:0 | P21: =VLOOKUP($B21&P$2,'1. Liga'!$B$6:$H$443,5,FALSE)&":"&VLOOKUP($B21&P$2,'1. Liga'!$B$6:$H$443,7,FALSE) -> 3:3 | Q21: =VLOOKUP($B21&Q$2,'1. Liga'!$B$6:$H$443,5,FALSE)&":"&VLOOKUP($B21&Q$2,'1. Liga'!$B$6:$H$443,7,FALSE) -> 1:4 | R21: =VLOOKUP($B21&R$2,'1. Liga'!$B$6:$H$443,5,FALSE)&":"&VLOOKUP($B21&R$2,'1. Liga'!$B$6:$H$443,7,FALSE) -> 1:2 | S21: =VLOOKUP($B21&S$2,'1. Liga'!$B$6:$H$443,5,FALSE)&":"&VLOOKUP($B21&S$2,'1. Liga'!$B$6:$H$443,7,FALSE) -> 0:1 | T21: 4
K22: Senkrecht: Auswärtsresultate | P22: Waagrecht: Heimresultate
A29: Bundesliga-Tipp 2023/2024

Sheet Tabelle
A1: ='1. Liga'!Q1:Q3 -> 34 | H1: ="Stand letzte "&'1. Liga'!$CO$3&" Spiele" -> Stand letzte 6 Spiele | K1: Mittelwert | O1: Vorjahr | S1: Quoten- Dummy | W1: Kicker Experten | AA1: Hedwig Berning (19-5-24-10-21-12-8-15-24-12-33) | AE1: Egon Lümkemann (15-7-11-16-8-16-2-23-2-12-17) | AI1: Wilfried Franke (22-20-5-15-19-7-9-11-11-5-31) | AM1: Ellen Flöttmann (10-2-6-9-5-19-7-19-23-10-7) | AQ1: Dietmar Gallach (25-10-21-17-6-27-9-11-6-15-4) | AU1: Sabine Gallach (4-14-17-14-10-23-12-17-19-31-13) | AY1: Siegbert Ruwwe (20-23-22-24-22-21-14-23-13-34-X) | BC1: Anita Meesker (3-19-2-23-9-14-X-X-X-X-X) | BG1: Heinrich Gralla (12-4-9-3-2-25-4-10-12-2-19) | BK1: Marcus Tischel (17-3-16-4-3-28-24-13-21-14-26) | BO1: Gregor Tischel (6-18-12-7-1-1-13-5-14-17-19) | BS1: Neo Steinfurth (8-X-X-X-X-X-X-X-X-X-X) | BW1: Dejn Dakovic (X-X-8-X-27-18-28-X-26-26-19) | CW1: Form-Rechner | CX1: Spieltag von: | CY1: Spieltag bis: | CZ1: =VLOOKUP(CX2,Index!$B$3:$D$36,2,FALSE) -> 227 | DA1: =VLOOKUP(CY2,Index!$B$3:$D$36,3,FALSE) -> 274 | DC1: Ludwig Spengler (30-8-10-27-X-X-X-X-21-X-X-X-X-X-X-X-X-X-X) | DD1: Mering | DF1: Marc Beenen (25-X-31-X-X-29-1-6-X-X-X-10-30-36-X-X-X-X-X) | DG1: München
B2: Platz | C2: Punkte | D2: Tordiff. | G2: Trend | H2: Platz | I2: Punkte | K2: Platz | L2: Punkte | M2: Absteiger-Punkte | N2: EURO- Punkte | O2: Platz | P2: Punkte | Q2: Absteiger-Punkte | R2: EURO- Punkte | S2: Platz | T2: Punkte | U2: Absteiger-Punkte | V2: EURO- Punkte | W2: Platz | X2: Punkte | Y2: Absteiger-Punkte | Z2: EURO- Punkte | AA2: Platz | AB2: Punkte | AC2: Absteiger-Punkte | AD2: EURO- Punkte | AE2: Platz | AF2: Punkte | AG2: Absteiger-Punkte | AH2: EURO- Punkte | AI2: Platz | AJ2: Punkte | AK2: Absteiger-Punkte | AL2: EURO- Punkte | AM2: Platz | AN2: Punkte | AO2: Absteiger-Punkte | AP2: EURO- Punkte | AQ2: Platz | AR2: Punkte | AS2: Absteiger-Punkte | AT2: EURO- Punkte | AU2: Platz | AV2: Punkte | AW2: Absteiger-Punkte | AX2: EURO- Punkte | AY2: Platz | AZ2: Punkte | BA2: Absteiger-Punkte | BB2: EURO- Punkte | BC2: Platz | BD2: Punkte | BE2: Absteiger-Punkte | BF2: EURO- Punkte | BG2: Platz | BH2: Punkte | BI2: Absteiger-Punkte | BJ2: EURO- Punkte | BK2: Platz | BL2: Punkte | BM2: Absteiger-Punkte | BN2: EURO- Punkte | BO2: Platz | BP2: Punkte | BQ2: Absteiger-Punkte | BR2: EURO- Punkte | BS2: Platz | BT2: Punkte | BU2: Absteiger-Punkte | BV2: EURO- Punkte | BW2: Platz | BX2: Punkte | BY2: Absteiger-Punkte | BZ2: EURO- Punkte | CA2: Platz | CB2: Punkte | CC2: Absteiger-Punkte | CD2: EURO- Punkte | CE2: Platz | CF2: Punkte | CG2: Absteiger-Punkte | CH2: EURO- Punkte | CI2: Platz | CJ2: Punkte | CK2: Absteiger-Punkte | CL2: EURO- Punkte | CM2: Platz | CN2: Punkte | CO2: Absteiger-Punkte | CP2: EURO- Punkte | CQ2: Platz | CR2: Punkte | CS2: Absteiger-Punkte | CT2: EURO- Punkte | CX2: 18 | CY2: 21
A3: ='1. Liga'!$AS$1 -> Bayer 04 Leverkusen | B3: ='1. Liga'!$Z$3 -> 1 | C3: ='1. Liga'!$AS$3 -> 90 | D3: ='1. Liga'!$BL$3 -> 65 | E3: ='1. Liga'!$CE$3 -> 89 | F3: =E3-D3 -> 24 | G3: =IF(B3-H3>2,"ññ",IF(B3-H3<-2,"òò",IF(B3-H3>0,"ñ",IF(B3-H3<0,"ò","ó")))) -> ó | H3: ='1. Liga'!$CX$2 -> 1 | I3: ='1. Liga'!$CX$3 -> 14 | J3: =(W3+AA3+AE3+AI3+AM3+AQ3+AU3+AY3+BC3+BG3+BK3+BO3+BS3+BW3+CA3+CE3+CI3+W31+AA31+AE31+AI31+AM31+AQ31+AU31+AY31+BC31+BG31+BK31+BO31+BS31+BW31+CA31+CE31+CI31)/32 -> 3.25 | K3: =RANK(J3,J$3:J$20,1) -> 4 | L3: =IF(K3>0,(ABS(K3-$B3)*(ABS(K3-$B3)+1))/'1. Liga'!$D$450,0) -> 6 | M3: =IF(AND(OR($B3=16,$B3=17,$B3=18),OR(K3=16,K3=17,K3=18)),10,0) -> 0 | N3: =IF(AND(OR(K3=1,K3=2,K3=3,K3=4,K3=5,K3=5,K3=6,K3=7),OR($B3=1,$B3=2,$B3=3,$B3=4,$B3=5,$B3=5,$B3=6,$B3=7)),10,0) -> 10 | O3: 6 | P3: =IF(O3>0,(ABS(O3-$B3)*(ABS(O3-$B3)+1))/'1. Liga'!$D$450,0) -> 15 | Q3: =IF(AND(OR($B3=16,$B3=17,$B3=18),OR(O3=16,O3=17,O3=18)),10,0) -> 0 | R3: =IF(AND(OR(O3=1,O3=2,O3=3,O3=4,O3=5,O3=5,O3=6,O3=7),OR($B3=1,$B3=2,$B3=3,$B3=4,$B3=5,$B3=5,$B3=6,$B3=7)),10,0) -> 10 | T3: =IF(S3>0,(ABS(S3-$B3)*(ABS(S3-$B3)+1))/'1. Liga'!$D$450,0) -> 0 | U3: =IF(AND(OR($B3=16,$B3=17,$B3=18),OR(S3=16,S3=17,S3=18)),10,0) -> 0 | V3: =IF(AND(OR(S3=1,S3=2,S3=3,S3=4,S3=5,S3=5,S3=6,S3=7),OR($B3=1,$B3=2,$B3=3,$B3=4,$B3=5,$B3=5,$B3=6,$B3=7)),10,0) -> 0 | X3: =IF(W3>0,(ABS(W3-$B3)*(ABS(W3-$B3)+1))/'1. Liga'!$D$450,0) -> 0 | Y3: =IF(AND(OR($B3=16,$B3=17,$B3=18),OR(W3=16,W3=17,W3=18)),10,0) -> 0 | Z3: =IF(AND(OR(W3=1,W3=2,W3=3,W3=4,W3=5,W3=5,W3=6,W3=7),OR($B3=1,$B3=2,$B3=3,$B3=4,$B3=5,$B3=5,$B3=6,$B3=7)),10,0) -> 0 | AA3: 4 | AB3: =IF(AA3>0,(ABS(AA3-$B3)*(ABS(AA3-$B3)+1))/'1. Liga'!$D$450,0) -> 6 | AC3: =IF(AND(OR($B3=16,$B3=17,$B3=18),OR(AA3=16,AA3=17,AA3=18)),10,0) -> 0 | AD3: =IF(AND(OR(AA3=1,AA3=2,AA3=3,AA3=4,AA3=5,AA3=5,AA3=6,AA3=7),OR($B3=1,$B3=2,$B3=3,$B3=4,$B3=5,$B3=5,$B3=6,$B3=7)),10,0) -> 10 | AE3: 4 | AF3: =IF(AE3>0,(ABS(AE3-$B3)*(ABS(AE3-$B3)+1))/'1. Liga'!$D$450,0) -> 6 | AG3: =IF(AND(OR($B3=16,$B3=17,$B3=18),OR(AE3=16,AE3=17,AE3=18)),10,0) -> 0 | AH3: =IF(AND(OR(AE3=1,AE3=2,AE3=3,AE3=4,AE3=5,AE3=5,AE3=6,AE3=7),OR($B3=1,$B3=2,$B3=3,$B3=4,$B3=5,$B3=5,$B3=6,$B3=7)),10,0) -> 10 | AI3: 4 | AJ3: =IF(AI3>0,(ABS(AI3-$B3)*(ABS(AI3-$B3)+1))/'1. Liga'!$D$450,0) -> 6 | AK3: =IF(AND(OR($B3=16,$B3=17,$B3=18),OR(AI3=16,AI3=17,AI3=18)),10,0) -> 0 | AL3: =IF(AND(OR(AI3=1,AI3=2,AI3=3,AI3=4,AI3=5,AI3=5,AI3=6,AI3=7),OR($B3=1,$B3=2,$B3=3,$B3=4,$B3=5,$B3=5,$B3=6,$B3=7)),10,0) -> 10 | AM3: 4 | AN3: =IF(AM3>0,(ABS(AM3-$B3)*(ABS(AM3-$B3)+1))/'1. Liga'!$D$450,0) -> 6 | AO3: =IF(AND(OR($B3=16,$B3=17,$B3=18),OR(AM3=16,AM3=17,AM3=18)),10,0) -> 0 | AP3: =IF(AND(OR(AM3=1,AM3=2,AM3=3,AM3=4,AM3=5,AM3=5,AM3=6,AM3=7),OR($B3=1,$B3=2,$B3=3,$B3=4,$B3=5,$B3=5,$B3=6,$B3=7)),10,0) -> 10 | AQ3: 4 | AR3: =IF(AQ3>0,(ABS(AQ3-$B3)*(ABS(AQ3-$B3)+1))/'1. Liga'!$D$450,0) -> 6 | AS3: =IF(AND(OR($B3=16,$B3=17,$B3=18),OR(AQ3=16,AQ3=17,AQ3=18)),10,0) -> 0 | AT3: =IF(AND(OR(AQ3=1,AQ3=2,AQ3=3,AQ3=4,AQ3=5,AQ3=5,AQ3=6,AQ3=7),OR($B3=1,$B3=2,$B3=3,$B3=4,$B3=5,$B3=5,$B3=6,$B3=7)),10,0) -> 10 | AU3: 7 | AV3: =IF(AU3>0,(ABS(AU3-$B3)*(ABS(AU3-$B3)+1))/'1. Liga'!$D$450,0) -> 21 | AW3: =IF(AND(OR($B3=16,$B3=17,$B3=18),OR(AU3=16,AU3=17,AU3=18)),10,0) -> 0 | AX3: =IF(AND(OR(AU3=1,AU3=2,AU3=3,AU3=4,AU3=5,AU3=5,AU3=6,AU3=7),OR($B3=1,$B3=2,$B3=3,$B3=4,$B3=5,$B3=5,$B3=6,$B3=7)),10,0) -> 10 | AY3: 3 | AZ3: =IF(AY3>0,(ABS(AY3-$B3)*(ABS(AY3-$B3)+1))/'1. Liga'!$D$450,0) -> 3 | BA3: =IF(AND(OR($B3=16,$B3=17,$B3=18),OR(AY3=16,AY3=17,AY3=18)),10,0) -> 0 | BB3: =IF(AND(OR(AY3=1,AY3=2,AY3=3,AY3=4,AY3=5,AY3=5,AY3=6,AY3=7),OR($B3=1,$B3=2,$B3=3,$B3=4,$B3=5,$B3=5,$B3=6,$B3=7)),10,0) -> 10 | BC3: 4 | BD3: =IF(BC3>0,(ABS(BC3-$B3)*(ABS(BC3-$B3)+1))/'1. Liga'!$D$450,0) -> 6 | BE3: =IF(AND(OR($B3=16,$B3=17,$B3=18),OR(BC3=16,BC3=17,BC3=18)),10,0) -> 0 | BF3: =IF(AND(OR(BC3=1,BC3=2,BC3=3,BC3=4,BC3=5,BC3=5,BC3=6,BC3=7),OR($B3=1,$B3=2,$B3=3,$B3=4,$B3=5,$B3=5,$B3=6,$B3=7)),10,0) -> 10 | BG3: 4 | BH3: =IF(BG3>0,(ABS(BG3-$B3)*(ABS(BG3-$B3)+1))/'1. Liga'!$D$450,0) -> 6 | BI3: =IF(AND(OR($B3=16,$B3=17,$B3=18),OR(BG3=16,BG3=17,BG3=18)),10,0) -> 0 | BJ3: =IF(AND(OR(BG3=1,BG3=2,BG3=3,BG3=4,BG3=5,BG3=5,BG3=6,BG3=7),OR($B3=1,$B3=2,$B3=3,$B3=4,$B3=5,$B3=5,$B3=6,$B3=7)),10,0) -> 10 | BK3: 4 | BL3: =IF(BK3>0,(ABS(BK3-$B3)*(ABS(BK3-$B3)+1))/'1. Liga'!$D$450,0) -> 6 | BM3: =IF(AND(OR($B3=16,$B3=17,$B3=18),OR(BK3=16,BK3=17,BK3=18)),10,0) -> 0 | BN3: =IF(AND(OR(BK3=1,BK3=2,BK3=3,BK3=4,BK3=5,BK3=5,BK3=6,BK3=7),OR($B3=1,$B3=2,$B3=3,$B3=4,$B3=5,$B3=5,$B3=6,$B3=7)),10,0) -> 10 | BO3: 4 | BP3: =IF(BO3>0,(ABS(BO3-$B3)*(ABS(BO3-$B3)+1))/'1. Liga'!$D$450,0) -> 6 | BQ3: =IF(AND(OR($B3=16,$B3=17,$B3=18),OR(BO3=16,BO3=17,BO3=18)),10,0) -> 0 | BR3: =IF(AND(OR(BO3=1,BO3=2,BO3=3,BO3=4,BO3=5,BO3=5,BO3=6,BO3=7),OR($B3=1,$B3=2,$B3=3,$B3=4,$B3=5,$B3=5,$B3=6,$B3=7)),10,0) -> 10 | BS3: 6 | BT3: =IF(BS3>0,(ABS(BS3-$B3)*(ABS(BS3-$B3)+1))/'1. Liga'!$D$450,0) -> 15 | BU3: =IF(AND(OR($B3=16,$B3=17,$B3=18),OR(BS3=16,BS3=17,BS3=18)),10,0) -> 0 | BV3: =IF(AND(OR(BS3=1,BS3=2,BS3=3,BS3=4,BS3=5,BS3=5,BS3=6,BS3=7),OR($B3=1,$B3=2,$B3=3,$B3=4,$B3=5,$B3=5,$B3=6,$B3=7)),10,0) -> 10 | BW3: 3 | BX3: =IF(BW3>0,(ABS(BW3-$B3)*(ABS(BW3-$B3)+1))/'1. Liga'!$D$450,0) -> 3 | BY3: =IF(AND(OR($B3=16,$B3=17,$B3=18),OR(BW3=16,BW3=17,BW3=18)),10,0) -> 0 | BZ3: =IF(AND(OR(BW3=1,BW3=2,BW3=3,BW3=4,BW3=5,BW3=5,BW3=6,BW3=7),OR($B3=1,$B3=2,$B3=3,$B3=4,$B3=5,$B3=5,$B3=6,$B3=7)),10,0) -> 10 | CB3: =IF(CA3>0,(ABS(CA3-$B3)*(ABS(CA3-$B3)+1))/'1. Liga'!$D$450,0) -> 0 | CC3: =IF(AND(OR($B3=16,$B3=17,$B3=18),OR(CA3=16,CA3=17,CA3=18)),10,0) -> 0 | CD3: =IF(AND(OR(CA3=1,CA3=2,CA3=3,CA3=4,CA3=5,CA3=5,CA3=6,CA3=7),OR($B3=1,$B3=2,$B3=3,$B3=4,$B3=5,$B3=5,$B3=6,$B3=7)),10,0) -> 0 | CF3: =IF(CE3>0,(ABS(CE3-$B3)*(ABS(CE3-$B3)+1))/'1. Liga'!$D$450,0) -> 0 | CG3: =IF(AND(OR($B3=16,$B3=17,$B3=18),OR(CE3=16,CE3=17,CE3=18)),10,0) -> 0 | CH3: =IF(AND(OR(CE3=1,CE3=2,CE3=3,CE3=4,CE3=5,CE3=5,CE3=6,CE3=7),OR($B3=1,$B3=2,$B3=3,$B3=4,$B3=5,$B3=5,$B3=6,$B3=7)),10,0) -> 0 | CJ3: =IF(CI3>0,(ABS(CI3-$B3)*(ABS(CI3-$B3)+1))/'1. Liga'!$D$450,0) -> 0 | CK3: =IF(AND(OR($B3=16,$B3=17,$B3=18),OR(CI3=16,CI3=17,CI3=18)),10,0) -> 0 | CL3: =IF(AND(OR(CI3=1,CI3=2,CI3=3,CI3=4,CI3=5,CI3=5,CI3=6,CI3=7),OR($B3=1,$B3=2,$B3=3,$B3=4,$B3=5,$B3=5,$B3=6,$B3=7)),10,0) -> 0 | CN3: =IF(CM3>0,(ABS(CM3-$B3)*(ABS(CM3-$B3)+1))/'1. Liga'!$D$450,0) -> 0 | CO3: =IF(AND(OR($B3=16,$B3=17,$B3=18),OR(CM3=16,CM3=17,CM3=18)),10,0) -> 0 | CP3: =IF(AND(OR(CM3=1,CM3=2,CM3=3,CM3=4,CM3=5,CM3=5,CM3=6,CM3=7),OR($B3=1,$B3=2,$B3=3,$B3=4,$B3=5,$B3=5,$B3=6,$B3=7)),10,0) -> 0 | CR3: =IF(CQ3>0,(ABS(CQ3-$B3)*(ABS(CQ3-$B3)+1))/'1. Liga'!$D$450,0) -> 0 | CS3: =IF(AND(OR($B3=16,$B3=17,$B3=18),OR(CQ3=16,CQ3=17,CQ3=18)),10,0) -> 0 | CT3: =IF(AND(OR(CQ3=1,CQ3=2,CQ3=3,CQ3=4,CQ3=5,CQ3=5,CQ3=6,CQ3=7),OR($B3=1,$B3=2,$B3=3,$B3=4,$B3=5,$B3=5,$B3=6,$B3=7)),10,0) -> 0 | CW3: =RANK(CZ3,CZ$3:CZ$20) -> 1 | CX3: =SUMPRODUCT((INDIRECT("'1. Liga'!$G"&CZ$1):INDIRECT("'1. Liga'!$G"&DA$1)=$A3)*(INDIRECT("'1. Liga'!$N"&CZ$1):INDIRECT("'1. Liga'!$N"&DA$1)))+SUMPRODUCT((INDIRECT("'1. Liga'!$I"&CZ$1):INDIRECT("'1. Liga'!$I"&DA$1)=$A3)*(INDIRECT("'1. Liga'!$P"&CZ$1):INDIRECT("'1. Liga'!$P"&DA$1))) -> 0 | CY3: =SUMPRODUCT((INDIRECT("'1. Liga'!$g"&CZ$1):INDIRECT("'1. Liga'!$g"&DA$1)=$A3)*(INDIRECT("'1. Liga'!$r"&CZ$1):INDIRECT("'1. Liga'!$r"&DA$1)))+SUMPRODUCT((INDIRECT("'1. Liga'!$i"&CZ$1):INDIRECT("'1. Liga'!$i"&DA$1)=$A3)*(INDIRECT("'1. Liga'!$t"&CZ$1):INDIRECT("'1. Liga'!$t"&DA$1))) -> 0 | CZ3: =CX3+CY3*0.001 -> 0
A4: ='1. Liga'!$AM$1 -> VfB Stuttgart | B4: ='1. Liga'!$T$3 -> 2 | C4: ='1. Liga'!$AM$3 -> 73 | D4: ='1. Liga'!$BF$3 -> 39 | E4: ='1. Liga'!$BY$3 -> 78 | F4: 39 | G4: ó | H4: ='1. Liga'!$CR$2 -> 2 | I4: ='1. Liga'!$CR$3 -> 13 | J4: 10.21875 | K4: 14 | L4: =IF(K4>0,(ABS(K4-$B4)*(ABS(K4-$B4)+1))/'1. Liga'!$D$450,0) -> 78 | M4: 0 | N4: 0 | O4: 16 | P4: =IF(O4>0,(ABS(O4-$B4)*(ABS(O4-$B4)+1))/'1. Liga'!$D$450,0) -> 105 | Q4: 0 | R4: 0 | T4: =IF(S4>0,(ABS(S4-$B4)*(ABS(S4-$B4)+1))/'1. Liga'!$D$450,0) -> 0 | U4: 0 | V4: 0 | X4: =IF(W4>0,(ABS(W4-$B4)*(ABS(W4-$B4)+1))/'1. Liga'!$D$450,0) -> 0 | Y4: 0 | Z4: 0 | AA4: 14 | AB4: =IF(AA4>0,(ABS(AA4-$B4)*(ABS(AA4-$B4)+1))/'1. Liga'!$D$450,0) -> 78 | AC4: 0 | AD4: 0 | AE4: 14 | AF4: =IF(AE4>0,(ABS(AE4-$B4)*(ABS(AE4-$B4)+1))/'1. Liga'!$D$450,0) -> 78 | AG4: 0 | AH4: 0 | AI4: 14 | AJ4: =IF(AI4>0,(ABS(AI4-$B4)*(ABS(AI4-$B4)+1))/'1. Liga'!$D$450,0) -> 78 | AK4: 0 | AL4: 0 | AM4: 9 | AN4: =IF(AM4>0,(ABS(AM4-$B4)*(ABS(AM4-$B4)+1))/'1. Liga'!$D$450,0) -> 28 | AO4: 0 | AP4: 0 | AQ4: 13 | AR4: =IF(AQ4>0,(ABS(AQ4-$B4)*(ABS(AQ4-$B4)+1))/'1. Liga'!$D$450,0) -> 66 | AS4: 0 | AT4: 0 | AU4: 14 | AV4: =IF(AU4>0,(ABS(AU4-$B4)*(ABS(AU4-$B4)+1))/'1. Liga'!$D$450,0) -> 78 | AW4: 0 | AX4: 0 | AY4: 13 | AZ4: =IF(AY4>0,(ABS(AY4-$B4)*(ABS(AY4-$B4)+1))/'1. Liga'!$D$450,0) -> 66 | BA4: 0 | BB4: 0 | BC4: 11 | BD4: =IF(BC4>0,(ABS(BC4-$B4)*(ABS(BC4-$B4)+1))/'1. Liga'!$D$450,0) -> 45 | BE4: 0 | BF4: 0 | BG4: 9 | BH4: =IF(BG4>0,(ABS(BG4-$B4)*(ABS(BG4-$B4)+1))/'1. Liga'!$D$450,0) -> 28 | BI4: 0 | BJ4: 0 | BK4: 15 | BL4: =IF(BK4>0,(ABS(BK4-$B4)*(ABS(BK4-$B4)+1))/'1. Liga'!$D$450,0) -> 91 | BM4: 0 | BN4: 0 | BO4: 14 | BP4: =IF(BO4>0,(ABS(BO4-$B4)*(ABS(BO4-$B4)+1))/'1. Liga'!$D$450,0) -> 78 | BQ4: 0 | BR4: 0 | BS4: 16 | BT4: =IF(BS4>0,(ABS(BS4-$B4)*(ABS(BS4-$B4)+1))/'1. Liga'!$D$450,0) -> 105 | BU4: 0 | BV4: 0 | BW4: 8 | BX4: =IF(BW4>0,(ABS(BW4-$B4)*(ABS(BW4-$B4)+1))/'1. Liga'!$D$450,0) -> 21 | BY4: 0 | BZ4: 0 | CB4: =IF(CA4>0,(ABS(CA4-$B4)*(ABS(CA4-$B4)+1))/'1. Liga'!$D$450,0) -> 0 | CC4: 0 | CD4: 0 | CF4: =IF(CE4>0,(ABS(CE4-$B4)*(ABS(CE4-$B4)+1))/'1. Liga'!$D$450,0) -> 0 | CG4: 0 | CH4: 0 | CJ4: =IF(CI4>0,(ABS(CI4-$B4)*(ABS(CI4-$B4)+1))/'1. Liga'!$D$450,0) -> 0 | CK4: 0 | CL4: 0 | CN4: =IF(CM4>0,(ABS(CM4-$B4)*(ABS(CM4-$B4)+1))/'1. Liga'!$D$450,0) -> 0 | CO4: 0 | CP4: 0 | CR4: =IF(CQ4>0,(ABS(CQ4-$B4)*(ABS(CQ4-$B4)+1))/'1. Liga'!$D$450,0) -> 0 | CS4: 0 | CT4: 0 | CW4: 1 | CX4: =SUMPRODUCT((INDIRECT("'1. Liga'!$G"&CZ$1):INDIRECT("'1. Liga'!$G"&DA$1)=$A4)*(INDIRECT("'1. Liga'!$N"&CZ$1):INDIRECT("'1. Liga'!$N"&DA$1)))+SUMPRODUCT((INDIRECT("'1. Liga'!$I"&CZ$1):INDIRECT("'1. Liga'!$I"&DA$1)=$A4)*(INDIRECT("'1. Liga'!$P"&CZ$1):INDIRECT("'1. Liga'!$P"&DA$1))) -> 0 | CY4: =SUMPRODUCT((INDIRECT("'1. Liga'!$g"&CZ$1):INDIRECT("'1. Liga'!$g"&DA$1)=$A4)*(INDIRECT("'1. Liga'!$r"&CZ$1):INDIRECT("'1. Liga'!$r"&DA$1)))+SUMPRODUCT((INDIRECT("'1. Liga'!$i"&CZ$1):INDIRECT("'1. Liga'!$i"&DA$1)=$A4)*(INDIRECT("'1. Liga'!$t"&CZ$1):INDIRECT("'1. Liga'!$t"&DA$1))) -> 0 | CZ4: 0
A5: ='1. Liga'!$AL$1 -> FC Bayern München | B5: ='1. Liga'!$S$3 -> 3 | C5: ='1. Liga'!$AL$3 -> 72 | D5: ='1. Liga'!$BE$3 -> 49 | E5: ='1. Liga'!$BX$3 -> 94 | F5: 45 | G5: ó | H5: ='1. Liga'!$CQ$2 -> 3 | I5: ='1. Liga'!$CQ$3 -> 12 | J5: 1.1875 | K5: 1 | L5: =IF(K5>0,(ABS(K5-$B5)*(ABS(K5-$B5)+1))/'1. Liga'!$D$450,0) -> 3 | M5: 0 | N5: 10 | O5: 1 | P5: =IF(O5>0,(ABS(O5-$B5)*(ABS(O5-$B5)+1))/'1. Liga'!$D$450,0) -> 3 | Q5: 0 | R5: 10 | T5: =IF(S5>0,(ABS(S5-$B5)*(ABS(S5-$B5)+1))/'1. Liga'!$D$450,0) -> 0 | U5: 0 | V5: 0 | X5: =IF(W5>0,(ABS(W5-$B5)*(ABS(W5-$B5)+1))/'1. Liga'!$D$450,0) -> 0 | Y5: 0 | Z5: 0 | AA5: 3 | AB5: =IF(AA5>0,(ABS(AA5-$B5)*(ABS(AA5-$B5)+1))/'1. Liga'!$D$450,0) -> 0 | AC5: 0 | AD5: 10 | AE5: 1 | AF5: =IF(AE5>0,(ABS(AE5-$B5)*(ABS(AE5-$B5)+1))/'1. Liga'!$D$450,0) -> 3 | AG5: 0 | AH5: 10 | AI5: 3 | AJ5: =IF(AI5>0,(ABS(AI5-$B5)*(ABS(AI5-$B5)+1))/'1. Liga'!$D$450,0) -> 0 | AK5: 0 | AL5: 10 | AM5: 2 | AN5: =IF(AM5>0,(ABS(AM5-$B5)*(ABS(AM5-$B5)+1))/'1. Liga'!$D$450,0) -> 1 | AO5: 0 | AP5: 10 | AQ5: 2 | AR5: =IF(AQ5>0,(ABS(AQ5-$B5)*(ABS(AQ5-$B5)+1))/'1. Liga'!$D$450,0) -> 1 | AS5: 0 | AT5: 10 | AU5: 3 | AV5: =IF(AU5>0,(ABS(AU5-$B5)*(ABS(AU5-$B5)+1))/'1. Liga'!$D$450,0) -> 0 | AW5: 0 | AX5: 10 | AY5: 2 | AZ5: =IF(AY5>0,(ABS(AY5-$B5)*(ABS(AY5-$B5)+1))/'1. Liga'!$D$450,0) -> 1 | BA5: 0 | BB5: 10 | BC5: 1 | BD5: =IF(BC5>0,(ABS(BC5-$B5)*(ABS(BC5-$B5)+1))/'1. Liga'!$D$450,0) -> 3 | BE5: 0 | BF5: 10 | BG5: 1 | BH5: =IF(BG5>0,(ABS(BG5-$B5)*(ABS(BG5-$B5)+1))/'1. Liga'!$D$450,0) -> 3 | BI5: 0 | BJ5: 10 | BK5: 2 | BL5: =IF(BK5>0,(ABS(BK5-$B5)*(ABS(BK5-$B5)+1))/'1. Liga'!$D$450,0) -> 1 | BM5: 0 | BN5: 10 | BO5: 1 | BP5: =IF(BO5>0,(ABS(BO5-$B5)*(ABS(BO5-$B5)+1))/'1. Liga'!$D$450,0) -> 3 | BQ5: 0 | BR5: 10 | BS5: 1 | BT5: =IF(BS5>0,(ABS(BS5-$B5)*(ABS(BS5-$B5)+1))/'1. Liga'!$D$450,0) -> 3 | BU5: 0 | BV5: 10 | BW5: 2 | BX5: =IF(BW5>0,(ABS(BW5-$B5)*(ABS(BW5-$B5)+1))/'1. Liga'!$D$450,0) -> 1 | BY5: 0 | BZ5: 10 | CB5: =IF(CA5>0,(ABS(CA5-$B5)*(ABS(CA5-$B5)+1))/'1. Liga'!$D$450,0) -> 0 | CC5: 0 | CD5: 0 | CF5: =IF(CE5>0,(ABS(CE5-$B5)*(ABS(CE5-$B5)+1))/'1. Liga'!$D$450,0) -> 0 | CG5: 0 | CH5: 0 | CJ5: =IF(CI5>0,(ABS(CI5-$B5)*(ABS(CI5-$B5)+1))/'1. Liga'!$D$450,0) -> 0 | CK5: 0 | CL5: 0 | CN5: =IF(CM5>0,(ABS(CM5-$B5)*(ABS(CM5-$B5)+1))/'1. Liga'!$D$450,0) -> 0 | CO5: 0 | CP5: 0 | CR5: =IF(CQ5>0,(ABS(CQ5-$B5)*(ABS(CQ5-$B5)+1))/'1. Liga'!$D$450,0) -> 0 | CS5: 0 | CT5: 0 | CW5: 1 | CX5: =SUMPRODUCT((INDIRECT("'1. Liga'!$G"&CZ$1):INDIRECT("'1. Liga'!$G"&DA$1)=$A5)*(INDIRECT("'1. Liga'!$N"&CZ$1):INDIRECT("'1. Liga'!$N"&DA$1)))+SUMPRODUCT((INDIRECT("'1. Liga'!$I"&CZ$1):INDIRECT("'1. Liga'!$I"&DA$1)=$A5)*(INDIRECT("'1. Liga'!$P"&CZ$1):INDIRECT("'1. Liga'!$P"&DA$1))) -> 0 | CY5: =SUMPRODUCT((INDIRECT("'1. Liga'!$g"&CZ$1):INDIRECT("'1. Liga'!$g"&DA$1)=$A5)*(INDIRECT("'1. Liga'!$r"&CZ$1):INDIRECT("'1. Liga'!$r"&DA$1)))+SUMPRODUCT((INDIRECT("'1. Liga'!$i"&CZ$1):INDIRECT("'1. Liga'!$i"&DA$1)=$A5)*(INDIRECT("'1. Liga'!$t"&CZ$1):INDIRECT("'1. Liga'!$t"&DA$1))) -> 0 | CZ5: 0
A6: ='1. Liga'!$AT$1 -> RB Leipzig | B6: ='1. Liga'!$AA$3 -> 4 | C6: ='1. Liga'!$AT$3 -> 65 | D6: ='1. Liga'!$BM$3 -> 38 | E6: ='1. Liga'!$CF$3 -> 77 | F6: 39 | G6: ñ | H6: ='1. Liga'!$CY$2 -> 3 | I6: ='1. Liga'!$CY$3 -> 12 | J6: 2.28125 | K6: 3 | L6: =IF(K6>0,(ABS(K6-$B6)*(ABS(K6-$B6)+1))/'1. Liga'!$D$450,0) -> 1 | M6: 0 | N6: 10 | O6: 3 | P6: =IF(O6>0,(ABS(O6-$B6)*(ABS(O6-$B6)+1))/'1. Liga'!$D$450,0) -> 1 | Q6: 0 | R6: 10 | T6: =IF(S6>0,(ABS(S6-$B6)*(ABS(S6-$B6)+1))/'1. Liga'!$D$450,0) -> 0 | U6: 0 | V6: 0 | X6: =IF(W6>0,(ABS(W6-$B6)*(ABS(W6-$B6)+1))/'1. Liga'!$D$450,0) -> 0 | Y6: 0 | Z6: 0 | AA6: 1 | AB6: =IF(AA6>0,(ABS(AA6-$B6)*(ABS(AA6-$B6)+1))/'1. Liga'!$D$450,0) -> 6 | AC6: 0 | AD6: 10 | AE6: 2 | AF6: =IF(AE6>0,(ABS(AE6-$B6)*(ABS(AE6-$B6)+1))/'1. Liga'!$D$450,0) -> 3 | AG6: 0 | AH6: 10 | AI6: 1 | AJ6: =IF(AI6>0,(ABS(AI6-$B6)*(ABS(AI6-$B6)+1))/'1. Liga'!$D$450,0) -> 6 | AK6: 0 | AL6: 10 | AM6: 3 | AN6: =IF(AM6>0,(ABS(AM6-$B6)*(ABS(AM6-$B6)+1))/'1. Liga'!$D$450,0) -> 1 | AO6: 0 | AP6: 10 | AQ6: 3 | AR6: =IF(AQ6>0,(ABS(AQ6-$B6)*(ABS(AQ6-$B6)+1))/'1. Liga'!$D$450,0) -> 1 | AS6: 0 | AT6: 10 | AU6: 2 | AV6: =IF(AU6>0,(ABS(AU6-$B6)*(ABS(AU6-$B6)+1))/'1. Liga'!$D$450,0) -> 3 | AW6: 0 | AX6: 10 | AY6: 5 | AZ6: =IF(AY6>0,(ABS(AY6-$B6)*(ABS(AY6-$B6)+1))/'1. Liga'!$D$450,0) -> 1 | BA6: 0 | BB6: 10 | BC6: 5 | BD6: =IF(BC6>0,(ABS(BC6-$B6)*(ABS(BC6-$B6)+1))/'1. Liga'!$D$450,0) -> 1 | BE6: 0 | BF6: 10 | BG6: 2 | BH6: =IF(BG6>0,(ABS(BG6-$B6)*(ABS(BG6-$B6)+1))/'1. Liga'!$D$450,0) -> 3 | BI6: 0 | BJ6: 10 | BK6: 3 | BL6: =IF(BK6>0,(ABS(BK6-$B6)*(ABS(BK6-$B6)+1))/'1. Liga'!$D$450,0) -> 1 | BM6: 0 | BN6: 10 | BO6: 2 | BP6: =IF(BO6>0,(ABS(BO6-$B6)*(ABS(BO6-$B6)+1))/'1. Liga'!$D$450,0) -> 3 | BQ6: 0 | BR6: 10 | BS6: 3 | BT6: =IF(BS6>0,(ABS(BS6-$B6)*(ABS(BS6-$B6)+1))/'1. Liga'!$D$450,0) -> 1 | BU6: 0 | BV6: 10 | BW6: 5 | BX6: =IF(BW6>0,(ABS(BW6-$B6)*(ABS(BW6-$B6)+1))/'1. Liga'!$D$450,0) -> 1 | BY6: 0 | BZ6: 10 | CB6: =IF(CA6>0,(ABS(CA6-$B6)*(ABS(CA6-$B6)+1))/'1. Liga'!$D$450,0) -> 0 | CC6: 0 | CD6: 0 | CF6: =IF(CE6>0,(ABS(CE6-$B6)*(ABS(CE6-$B6)+1))/'1. Liga'!$D$450,0) -> 0 | CG6: 0 | CH6: 0 | CJ6: =IF(CI6>0,(ABS(CI6-$B6)*(ABS(CI6-$B6)+1))/'1. Liga'!$D$450,0) -> 0 | CK6: 0 | CL6: 0 | CN6: =IF(CM6>0,(ABS(CM6-$B6)*(ABS(CM6-$B6)+1))/'1. Liga'!$D$450,0) -> 0 | CO6: 0 | CP6: 0 | CR6: =IF(CQ6>0,(ABS(CQ6-$B6)*(ABS(CQ6-$B6)+1))/'1. Liga'!$D$450,0) -> 0 | CS6: 0 | CT6: 0 | CW6: 1 | CX6: =SUMPRODUCT((INDIRECT("'1. Liga'!$G"&CZ$1):INDIRECT("'1. Liga'!$G"&DA$1)=$A6)*(INDIRECT("'1. Liga'!$N"&CZ$1):INDIRECT("'1. Liga'!$N"&DA$1)))+SUMPRODUCT((INDIRECT("'1. Liga'!$I"&CZ$1):INDIRECT("'1. Liga'!$I"&DA$1)=$A6)*(INDIRECT("'1. Liga'!$P"&CZ$1):INDIRECT("'1. Liga'!$P"&DA$1))) -> 0 | CY6: =SUMPRODUCT((INDIRECT("'1. Liga'!$g"&CZ$1):INDIRECT("'1. Liga'!$g"&DA$1)=$A6)*(INDIRECT("'1. Liga'!$r"&CZ$1):INDIRECT("'1. Liga'!$r"&DA$1)))+SUMPRODUCT((INDIRECT("'1. Liga'!$i"&CZ$1):INDIRECT("'1. Liga'!$i"&DA$1)=$A6)*(INDIRECT("'1. Liga'!$t"&CZ$1):INDIRECT("'1. Liga'!$t"&DA$1))) -> 0 | CZ6: 0
A7: ='1. Liga'!$AO$1 -> Borussia Dortmund | B7: ='1. Liga'!$V$3 -> 5 | C7: ='1. Liga'!$AO$3 -> 63 | D7: ='1. Liga'!$BH$3 -> 25 | E7: ='1. Liga'!$CA$3 -> 68 | F7: 43 | G7: ò | H7: ='1. Liga'!$CT$2 -> 7 | I7: ='1. Liga'!$CT$3 -> 10 | J7: 1.5625 | K7: 2 | L7: =IF(K7>0,(ABS(K7-$B7)*(ABS(K7-$B7)+1))/'1. Liga'!$D$450,0) -> 6 | M7: 0 | N7: 10 | O7: 2 | P7: =IF(O7>0,(ABS(O7-$B7)*(ABS(O7-$B7)+1))/'1. Liga'!$D$450,0) -> 6 | Q7: 0 | R7: 10 | T7: =IF(S7>0,(ABS(S7-$B7)*(ABS(S7-$B7)+1))/'1. Liga'!$D$450,0) -> 0 | U7: 0 | V7: 0 | X7: =IF(W7>0,(ABS(W7-$B7)*(ABS(W7-$B7)+1))/'1. Liga'!$D$450,0) -> 0 | Y7: 0 | Z7: 0 | AA7: 2 | AB7: =IF(AA7>0,(ABS(AA7-$B7)*(ABS(AA7-$B7)+1))/'1. Liga'!$D$450,0) -> 6 | AC7: 0 | AD7: 10 | AE7: 3 | AF7: =IF(AE7>0,(ABS(AE7-$B7)*(ABS(AE7-$B7)+1))/'1. Liga'!$D$450,0) -> 3 | AG7: 0 | AH7: 10 | AI7: 2 | AJ7: =IF(AI7>0,(ABS(AI7-$B7)*(ABS(AI7-$B7)+1))/'1. Liga'!$D$450,0) -> 6 | AK7: 0 | AL7: 10 | AM7: 1 | AN7: =IF(AM7>0,(ABS(AM7-$B7)*(ABS(AM7-$B7)+1))/'1. Liga'!$D$450,0) -> 10 | AO7: 0 | AP7: 10 | AQ7: 1 | AR7: =IF(AQ7>0,(ABS(AQ7-$B7)*(ABS(AQ7-$B7)+1))/'1. Liga'!$D$450,0) -> 10 | AS7: 0 | AT7: 10 | AU7: 1 | AV7: =IF(AU7>0,(ABS(AU7-$B7)*(ABS(AU7-$B7)+1))/'1. Liga'!$D$450,0) -> 10 | AW7: 0 | AX7: 10 | AY7: 1 | AZ7: =IF(AY7>0,(ABS(AY7-$B7)*(ABS(AY7-$B7)+1))/'1. Liga'!$D$450,0) -> 10 | BA7: 0 | BB7: 10 | BC7: 2 | BD7: =IF(BC7>0,(ABS(BC7-$B7)*(ABS(BC7-$B7)+1))/'1. Liga'!$D$450,0) -> 6 | BE7: 0 | BF7: 10 | BG7: 3 | BH7: =IF(BG7>0,(ABS(BG7-$B7)*(ABS(BG7-$B7)+1))/'1. Liga'!$D$450,0) -> 3 | BI7: 0 | BJ7: 10 | BK7: 1 | BL7: =IF(BK7>0,(ABS(BK7-$B7)*(ABS(BK7-$B7)+1))/'1. Liga'!$D$450,0) -> 10 | BM7: 0 | BN7: 10 | BO7: 3 | BP7: =IF(BO7>0,(ABS(BO7-$B7)*(ABS(BO7-$B7)+1))/'1. Liga'!$D$450,0) -> 3 | BQ7: 0 | BR7: 10 | BS7: 2 | BT7: =IF(BS7>0,(ABS(BS7-$B7)*(ABS(BS7-$B7)+1))/'1. Liga'!$D$450,0) -> 6 | BU7: 0 | BV7: 10 | BW7: 1 | BX7: =IF(BW7>0,(ABS(BW7-$B7)*(ABS(BW7-$B7)+1))/'1. Liga'!$D$450,0) -> 10 | BY7: 0 | BZ7: 10 | CB7: =IF(CA7>0,(ABS(CA7-$B7)*(ABS(CA7-$B7)+1))/'1. Liga'!$D$450,0) -> 0 | CC7: 0 | CD7: 0 | CF7: =IF(CE7>0,(ABS(CE7-$B7)*(ABS(CE7-$B7)+1))/'1. Liga'!$D$450,0) -> 0 | CG7: 0 | CH7: 0 | CJ7: =IF(CI7>0,(ABS(CI7-$B7)*(ABS(CI7-$B7)+1))/'1. Liga'!$D$450,0) -> 0 | CK7: 0 | CL7: 0 | CN7: =IF(CM7>0,(ABS(CM7-$B7)*(ABS(CM7-$B7)+1))/'1. Liga'!$D$450,0) -> 0 | CO7: 0 | CP7: 0 | CR7: =IF(CQ7>0,(ABS(CQ7-$B7)*(ABS(CQ7-$B7)+1))/'1. Liga'!$D$450,0) -> 0 | CS7: 0 | CT7: 0 | CW7: 1 | CX7: =SUMPRODUCT((INDIRECT("'1. Liga'!$G"&CZ$1):INDIRECT("'1. Liga'!$G"&DA$1)=$A7)*(INDIRECT("'1. Liga'!$N"&CZ$1):INDIRECT("'1. Liga'!$N"&DA$1)))+SUMPRODUCT((INDIRECT("'1. Liga'!$I"&CZ$1):INDIRECT("'1. Liga'!$I"&DA$1)=$A7)*(INDIRECT("'1. Liga'!$P"&CZ$1):INDIRECT("'1. Liga'!$P"&DA$1))) -> 0 | CY7: =SUMPRODUCT((INDIRECT("'1. Liga'!$g"&CZ$1):INDIRECT("'1. Liga'!$g"&DA$1)=$A7)*(INDIRECT("'1. Liga'!$r"&CZ$1):INDIRECT("'1. Liga'!$r"&DA$1)))+SUMPRODUCT((INDIRECT("'1. Liga'!$i"&CZ$1):INDIRECT("'1. Liga'!$i"&DA$1)=$A7)*(INDIRECT("'1. Liga'!$t"&CZ$1):INDIRECT("'1. Liga'!$t"&DA$1))) -> 0 | CZ7: 0
A8: ='1. Liga'!$AQ$1 -> Eintracht Frankfurt | B8: ='1. Liga'!$X$3 -> 6 | C8: ='1. Liga'!$AQ$3 -> 47 | D8: ='1. Liga'!$BJ$3 -> 1 | E8: ='1. Liga'!$CC$3 -> 51 | F8: 50 | G8: òò | H8: ='1. Liga'!$CV$2 -> 13 | I8: ='1. Liga'!$CV$3 -> 5 | J8: 5.375 | K8: 6 | L8: =IF(K8>0,(ABS(K8-$B8)*(ABS(K8-$B8)+1))/'1. Liga'!$D$450,0) -> 0 | M8: 0 | N8: 10 | O8: 7 | P8: =IF(O8>0,(ABS(O8-$B8)*(ABS(O8-$B8)+1))/'1. Liga'!$D$450,0) -> 1 | Q8: 0 | R8: 10 | T8: =IF(S8>0,(ABS(S8-$B8)*(ABS(S8-$B8)+1))/'1. Liga'!$D$450,0) -> 0 | U8: 0 | V8: 0 | X8: =IF(W8>0,(ABS(W8-$B8)*(ABS(W8-$B8)+1))/'1. Liga'!$D$450,0) -> 0 | Y8: 0 | Z8: 0 | AA8: 5 | AB8: =IF(AA8>0,(ABS(AA8-$B8)*(ABS(AA8-$B8)+1))/'1. Liga'!$D$450,0) -> 1 | AC8: 0 | AD8: 10 | AE8: 7 | AF8: =IF(AE8>0,(ABS(AE8-$B8)*(ABS(AE8-$B8)+1))/'1. Liga'!$D$450,0) -> 1 | AG8: 0 | AH8: 10 | AI8: 11 | AJ8: =IF(AI8>0,(ABS(AI8-$B8)*(ABS(AI8-$B8)+1))/'1. Liga'!$D$450,0) -> 15 | AK8: 0 | AL8: 0 | AM8: 5 | AN8: =IF(AM8>0,(ABS(AM8-$B8)*(ABS(AM8-$B8)+1))/'1. Liga'!$D$450,0) -> 1 | AO8: 0 | AP8: 10 | AQ8: 6 | AR8: =IF(AQ8>0,(ABS(AQ8-$B8)*(ABS(AQ8-$B8)+1))/'1. Liga'!$D$450,0) -> 0 | AS8: 0 | AT8: 10 | AU8: 6 | AV8: =IF(AU8>0,(ABS(AU8-$B8)*(ABS(AU8-$B8)+1))/'1. Liga'!$D$450,0) -> 0 | AW8: 0 | AX8: 10 | AY8: 6 | AZ8: =IF(AY8>0,(ABS(AY8-$B8)*(ABS(AY8-$B8)+1))/'1. Liga'!$D$450,0) -> 0 | BA8: 0 | BB8: 10 | BC8: 9 | BD8: =IF(BC8>0,(ABS(BC8-$B8)*(ABS(BC8-$B8)+1))/'1. Liga'!$D$450,0) -> 6 | BE8: 0 | BF8: 0 | BG8: 8 | BH8: =IF(BG8>0,(ABS(BG8-$B8)*(ABS(BG8-$B8)+1))/'1. Liga'!$D$450,0) -> 3 | BI8: 0 | BJ8: 0 | BK8: 6 | BL8: =IF(BK8>0,(ABS(BK8-$B8)*(ABS(BK8-$B8)+1))/'1. Liga'!$D$450,0) -> 0 | BM8: 0 | BN8: 10 | BO8: 5 | BP8: =IF(BO8>0,(ABS(BO8-$B8)*(ABS(BO8-$B8)+1))/'1. Liga'!$D$450,0) -> 1 | BQ8: 0 | BR8: 10 | BS8: 7 | BT8: =IF(BS8>0,(ABS(BS8-$B8)*(ABS(BS8-$B8)+1))/'1. Liga'!$D$450,0) -> 1 | BU8: 0 | BV8: 10 | BW8: 12 | BX8: =IF(BW8>0,(ABS(BW8-$B8)*(ABS(BW8-$B8)+1))/'1. Liga'!$D$450,0) -> 21 | BY8: 0 | BZ8: 0 | CB8: =IF(CA8>0,(ABS(CA8-$B8)*(ABS(CA8-$B8)+1))/'1. Liga'!$D$450,0) -> 0 | CC8: 0 | CD8: 0 | CF8: =IF(CE8>0,(ABS(CE8-$B8)*(ABS(CE8-$B8)+1))/'1. Liga'!$D$450,0) -> 0 | CG8: 0 | CH8: 0 | CJ8: =IF(CI8>0,(ABS(CI8-$B8)*(ABS(CI8-$B8)+1))/'1. Liga'!$D$450,0) -> 0 | CK8: 0 | CL8: 0 | CN8: =IF(CM8>0,(ABS(CM8-$B8)*(ABS(CM8-$B8)+1))/'1. Liga'!$D$450,0) -> 0 | CO8: 0 | CP8: 0 | CR8: =IF(CQ8>0,(ABS(CQ8-$B8)*(ABS(CQ8-$B8)+1))/'1. Liga'!$D$450,0) -> 0 | CS8: 0 | CT8: 0 | CW8: 1 | CX8: =SUMPRODUCT((INDIRECT("'1. Liga'!$G"&CZ$1):INDIRECT("'1. Liga'!$G"&DA$1)=$A8)*(INDIRECT("'1. Liga'!$N"&CZ$1):INDIRECT("'1. Liga'!$N"&DA$1)))+SUMPRODUCT((INDIRECT("'1. Liga'!$I"&CZ$1):INDIRECT("'1. Liga'!$I"&DA$1)=$A8)*(INDIRECT("'1. Liga'!$P"&CZ$1):INDIRECT("'1. Liga'!$P"&DA$1))) -> 0 | CY8: =SUMPRODUCT((INDIRECT("'1. Liga'!$g"&CZ$1):INDIRECT("'1. Liga'!$g"&DA$1)=$A8)*(INDIRECT("'1. Liga'!$r"&CZ$1):INDIRECT("'1. Liga'!$r"&DA$1)))+SUMPRODUCT((INDIRECT("'1. Liga'!$i"&CZ$1):INDIRECT("'1. Liga'!$i"&DA$1)=$A8)*(INDIRECT("'1. Liga'!$t"&CZ$1):INDIRECT("'1. Liga'!$t"&DA$1))) -> 0 | CZ8: 0
A9: ='1. Liga'!$BA$1 -> TSG Hoffenheim | B9: ='1. Liga'!$AH$3 -> 7 | C9: ='1. Liga'!$BA$3 -> 46 | D9: ='1. Liga'!$BT$3 -> 0 | E9: ='1. Liga'!$CM$3 -> 66 | F9: 66 | G9: ó | H9: ='1. Liga'!$DF$2 -> 7 | I9: ='1. Liga'!$DF$3 -> 10 | J9: 9.15625 | K9: 13 | L9: =IF(K9>0,(ABS(K9-$B9)*(ABS(K9-$B9)+1))/'1. Liga'!$D$450,0) -> 21 | M9: 0 | N9: 0 | O9: 12 | P9: =IF(O9>0,(ABS(O9-$B9)*(ABS(O9-$B9)+1))/'1. Liga'!$D$450,0) -> 15 | Q9: 0 | R9: 0 | T9: =IF(S9>0,(ABS(S9-$B9)*(ABS(S9-$B9)+1))/'1. Liga'!$D$450,0) -> 0 | U9: 0 | V9: 0 | X9: =IF(W9>0,(ABS(W9-$B9)*(ABS(W9-$B9)+1))/'1. Liga'!$D$450,0) -> 0 | Y9: 0 | Z9: 0 | AA9: 11 | AB9: =IF(AA9>0,(ABS(AA9-$B9)*(ABS(AA9-$B9)+1))/'1. Liga'!$D$450,0) -> 10 | AC9: 0 | AD9: 0 | AE9: 12 | AF9: =IF(AE9>0,(ABS(AE9-$B9)*(ABS(AE9-$B9)+1))/'1. Liga'!$D$450,0) -> 15 | AG9: 0 | AH9: 0 | AI9: 10 | AJ9: =IF(AI9>0,(ABS(AI9-$B9)*(ABS(AI9-$B9)+1))/'1. Liga'!$D$450,0) -> 6 | AK9: 0 | AL9: 0 | AM9: 13 | AN9: =IF(AM9>0,(ABS(AM9-$B9)*(ABS(AM9-$B9)+1))/'1. Liga'!$D$450,0) -> 21 | AO9: 0 | AP9: 0 | AQ9: 14 | AR9: =IF(AQ9>0,(ABS(AQ9-$B9)*(ABS(AQ9-$B9)+1))/'1. Liga'!$D$450,0) -> 28 | AS9: 0 | AT9: 0 | AU9: 12 | AV9: =IF(AU9>0,(ABS(AU9-$B9)*(ABS(AU9-$B9)+1))/'1. Liga'!$D$450,0) -> 15 | AW9: 0 | AX9: 0 | AY9: 9 | AZ9: =IF(AY9>0,(ABS(AY9-$B9)*(ABS(AY9-$B9)+1))/'1. Liga'!$D$450,0) -> 3 | BA9: 0 | BB9: 0 | BC9: 16 | BD9: =IF(BC9>0,(ABS(BC9-$B9)*(ABS(BC9-$B9)+1))/'1. Liga'!$D$450,0) -> 45 | BE9: 0 | BF9: 0 | BG9: 10 | BH9: =IF(BG9>0,(ABS(BG9-$B9)*(ABS(BG9-$B9)+1))/'1. Liga'!$D$450,0) -> 6 | BI9: 0 | BJ9: 0 | BK9: 12 | BL9: =IF(BK9>0,(ABS(BK9-$B9)*(ABS(BK9-$B9)+1))/'1. Liga'!$D$450,0) -> 15 | BM9: 0 | BN9: 0 | BO9: 13 | BP9: =IF(BO9>0,(ABS(BO9-$B9)*(ABS(BO9-$B9)+1))/'1. Liga'!$D$450,0) -> 21 | BQ9: 0 | BR9: 0 | BS9: 13 | BT9: =IF(BS9>0,(ABS(BS9-$B9)*(ABS(BS9-$B9)+1))/'1. Liga'!$D$450,0) -> 21 | BU9: 0 | BV9: 0 | BW9: 11 | BX9: =IF(BW9>0,(ABS(BW9-$B9)*(ABS(BW9-$B9)+1))/'1. Liga'!$D$450,0) -> 10 | BY9: 0 | BZ9: 0 | CB9: =IF(CA9>0,(ABS(CA9-$B9)*(ABS(CA9-$B9)+1))/'1. Liga'!$D$450,0) -> 0 | CC9: 0 | CD9: 0 | CF9: =IF(CE9>0,(ABS(CE9-$B9)*(ABS(CE9-$B9)+1))/'1. Liga'!$D$450,0) -> 0 | CG9: 0 | CH9: 0 | CJ9: =IF(CI9>0,(ABS(CI9-$B9)*(ABS(CI9-$B9)+1))/'1. Liga'!$D$450,0) -> 0 | CK9: 0 | CL9: 0 | CN9: =IF(CM9>0,(ABS(CM9-$B9)*(ABS(CM9-$B9)+1))/'1. Liga'!$D$450,0) -> 0 | CO9: 0 | CP9: 0 | CR9: =IF(CQ9>0,(ABS(CQ9-$B9)*(ABS(CQ9-$B9)+1))/'1. Liga'!$D$450,0) -> 0 | CS9: 0 | CT9: 0 | CW9: 1 | CX9: =SUMPRODUCT((INDIRECT("'1. Liga'!$G"&CZ$1):INDIRECT("'1. Liga'!$G"&DA$1)=$A9)*(INDIRECT("'1. Liga'!$N"&CZ$1):INDIRECT("'1. Liga'!$N"&DA$1)))+SUMPRODUCT((INDIRECT("'1. Liga'!$I"&CZ$1):INDIRECT("'1. Liga'!$I"&DA$1)=$A9)*(INDIRECT("'1. Liga'!$P"&CZ$1):INDIRECT("'1. Liga'!$P"&DA$1))) -> 0 | CY9: =SUMPRODUCT((INDIRECT("'1. Liga'!$g"&CZ$1):INDIRECT("'1. Liga'!$g"&DA$1)=$A9)*(INDIRECT("'1. Liga'!$r"&CZ$1):INDIRECT("'1. Liga'!$r"&DA$1)))+SUMPRODUCT((INDIRECT("'1. Liga'!$i"&CZ$1):INDIRECT("'1. Liga'!$i"&DA$1)=$A9)*(INDIRECT("'1. Liga'!$t"&CZ$1):INDIRECT("'1. Liga'!$t"&DA$1))) -> 0 | CZ9: 0
A10: ='1. Liga'!$AV$1 -> 1. FC Heidenheim 1846 | B10: ='1. Liga'!$AC$3 -> 8 | C10: ='1. Liga'!$AV$3 -> 42 | D10: ='1. Liga'!$BO$3 -> -5 | E10: ='1. Liga'!$CH$3 -> 50 | F10: 55 | G10: ò | H10: ='1. Liga'!$DA$2 -> 9 | I10: ='1. Liga'!$DA$3 -> 9 | J10: 13.0625 | K10: 17 | L10: =IF(K10>0,(ABS(K10-$B10)*(ABS(K10-$B10)+1))/'1. Liga'!$D$450,0) -> 45 | M10: 0 | N10: 0 | O10: 17 | P10: =IF(O10>0,(ABS(O10-$B10)*(ABS(O10-$B10)+1))/'1. Liga'!$D$450,0) -> 45 | Q10: 0 | R10: 0 | T10: =IF(S10>0,(ABS(S10-$B10)*(ABS(S10-$B10)+1))/'1. Liga'!$D$450,0) -> 0 | U10: 0 | V10: 0 | X10: =IF(W10>0,(ABS(W10-$B10)*(ABS(W10-$B10)+1))/'1. Liga'!$D$450,0) -> 0 | Y10: 0 | Z10: 0 | AA10: 15 | AB10: =IF(AA10>0,(ABS(AA10-$B10)*(ABS(AA10-$B10)+1))/'1. Liga'!$D$450,0) -> 28 | AC10: 0 | AD10: 0 | AE10: 16 | AF10: =IF(AE10>0,(ABS(AE10-$B10)*(ABS(AE10-$B10)+1))/'1. Liga'!$D$450,0) -> 36 | AG10: 0 | AH10: 0 | AI10: 16 | AJ10: =IF(AI10>0,(ABS(AI10-$B10)*(ABS(AI10-$B10)+1))/'1. Liga'!$D$450,0) -> 36 | AK10: 0 | AL10: 0 | AM10: 18 | AN10: =IF(AM10>0,(ABS(AM10-$B10)*(ABS(AM10-$B10)+1))/'1. Liga'!$D$450,0) -> 55 | AO10: 0 | AP10: 0 | AQ10: 18 | AR10: =IF(AQ10>0,(ABS(AQ10-$B10)*(ABS(AQ10-$B10)+1))/'1. Liga'!$D$450,0) -> 55 | AS10: 0 | AT10: 0 | AU10: 18 | AV10: =IF(AU10>0,(ABS(AU10-$B10)*(ABS(AU10-$B10)+1))/'1. Liga'!$D$450,0) -> 55 | AW10: 0 | AX10: 0 | AY10: 18 | AZ10: =IF(AY10>0,(ABS(AY10-$B10)*(ABS(AY10-$B10)+1))/'1. Liga'!$D$450,0) -> 55 | BA10: 0 | BB10: 0 | BC10: 15 | BD10: =IF(BC10>0,(ABS(BC10-$B10)*(ABS(BC10-$B10)+1))/'1. Liga'!$D$450,0) -> 28 | BE10: 0 | BF10: 0 | BG10: 16 | BH10: =IF(BG10>0,(ABS(BG10-$B10)*(ABS(BG10-$B10)+1))/'1. Liga'!$D$450,0) -> 36 | BI10: 0 | BJ10: 0 | BK10: 13 | BL10: =IF(BK10>0,(ABS(BK10-$B10)*(ABS(BK10-$B10)+1))/'1. Liga'!$D$450,0) -> 15 | BM10: 0 | BN10: 0 | BO10: 15 | BP10: =IF(BO10>0,(ABS(BO10-$B10)*(ABS(BO10-$B10)+1))/'1. Liga'!$D$450,0) -> 28 | BQ10: 0 | BR10: 0 | BS10: 17 | BT10: =IF(BS10>0,(ABS(BS10-$B10)*(ABS(BS10-$B10)+1))/'1. Liga'!$D$450,0) -> 45 | BU10: 0 | BV10: 0 | BW10: 16 | BX10: =IF(BW10>0,(ABS(BW10-$B10)*(ABS(BW10-$B10)+1))/'1. Liga'!$D$450,0) -> 36 | BY10: 0 | BZ10: 0 | CB10: =IF(CA10>0,(ABS(CA10-$B10)*(ABS(CA10-$B10)+1))/'1. Liga'!$D$450,0) -> 0 | CC10: 0 | CD10: 0 | CF10: =IF(CE10>0,(ABS(CE10-$B10)*(ABS(CE10-$B10)+1))/'1. Liga'!$D$450,0) -> 0 | CG10: 0 | CH10: 0 | CJ10: =IF(CI10>0,(ABS(CI10-$B10)*(ABS(CI10-$B10)+1))/'1. Liga'!$D$450,0) -> 0 | CK10: 0 | CL10: 0 | CN10: =IF(CM10>0,(ABS(CM10-$B10)*(ABS(CM10-$B10)+1))/'1. Liga'!$D$450,0) -> 0 | CO10: 0 | CP10: 0 | CR10: =IF(CQ10>0,(ABS(CQ10-$B10)*(ABS(CQ10-$B10)+1))/'1. Liga'!$D$450,0) -> 0 | CS10: 0 | CT10: 0 | CW10: 1 | CX10: =SUMPRODUCT((INDIRECT("'1. Liga'!$G"&CZ$1):INDIRECT("'1. Liga'!$G"&DA$1)=$A10)*(INDIRECT("'1. Liga'!$N"&CZ$1):INDIRECT("'1. Liga'!$N"&DA$1)))+SUMPRODUCT((INDIRECT("'1. Liga'!$I"&CZ$1):INDIRECT("'1. Liga'!$I"&DA$1)=$A10)*(INDIRECT("'1. Liga'!$P"&CZ$1):INDIRECT("'1. Liga'!$P"&DA$1))) -> 0 | CY10: =SUMPRODUCT((INDIRECT("'1. Liga'!$g"&CZ$1):INDIRECT("'1. Liga'!$g"&DA$1)=$A10)*(INDIRECT("'1. Liga'!$r"&CZ$1):INDIRECT("'1. Liga'!$r"&DA$1)))+SUMPRODUCT((INDIRECT("'1. Liga'!$i"&CZ$1):INDIRECT("'1. Liga'!$i"&DA$1)=$A10)*(INDIRECT("'1. Liga'!$t"&CZ$1):INDIRECT("'1. Liga'!$t"&DA$1))) -> 0 | CZ10: 0
A11: ='1. Liga'!$AK$1 -> SV Werder Bremen | B11: ='1. Liga'!$R$3 -> 9 | C11: ='1. Liga'!$AK$3 -> 42 | D11: ='1. Liga'!$BD$3 -> -6 | E11: ='1. Liga'!$BW$3 -> 48 | F11: 54 | G11: ññ | H11: ='1. Liga'!$CP$2 -> 6 | I11: ='1. Liga'!$CP$3 -> 11 | J11: 9.09375 | K11: 12 | L11: =IF(K11>0,(ABS(K11-$B11)*(ABS(K11-$B11)+1))/'1. Liga'!$D$450,0) -> 6 | M11: 0 | N11: 0 | O11: 13 | P11: =IF(O11>0,(ABS(O11-$B11)*(ABS(O11-$B11)+1))/'1. Liga'!$D$450,0) -> 10 | Q11: 0 | R11: 0 | T11: =IF(S11>0,(ABS(S11-$B11)*(ABS(S11-$B11)+1))/'1. Liga'!$D$450,0) -> 0 | U11: 0 | V11: 0 | X11: =IF(W11>0,(ABS(W11-$B11)*(ABS(W11-$B11)+1))/'1. Liga'!$D$450,0) -> 0 | Y11: 0 | Z11: 0 | AA11: 9 | AB11: =IF(AA11>0,(ABS(AA11-$B11)*(ABS(AA11-$B11)+1))/'1. Liga'!$D$450,0) -> 0 | AC11: 0 | AD11: 0 | AE11: 13 | AF11: =IF(AE11>0,(ABS(AE11-$B11)*(ABS(AE11-$B11)+1))/'1. Liga'!$D$450,0) -> 10 | AG11: 0 | AH11: 0 | AI11: 8 | AJ11: =IF(AI11>0,(ABS(AI11-$B11)*(ABS(AI11-$B11)+1))/'1. Liga'!$D$450,0) -> 1 | AK11: 0 | AL11: 0 | AM11: 10 | AN11: =IF(AM11>0,(ABS(AM11-$B11)*(ABS(AM11-$B11)+1))/'1. Liga'!$D$450,0) -> 1 | AO11: 0 | AP11: 0 | AQ11: 11 | AR11: =IF(AQ11>0,(ABS(AQ11-$B11)*(ABS(AQ11-$B11)+1))/'1. Liga'!$D$450,0) -> 3 | AS11: 0 | AT11: 0 | AU11: 10 | AV11: =IF(AU11>0,(ABS(AU11-$B11)*(ABS(AU11-$B11)+1))/'1. Liga'!$D$450,0) -> 1 | AW11: 0 | AX11: 0 | AY11: 14 | AZ11: =IF(AY11>0,(ABS(AY11-$B11)*(ABS(AY11-$B11)+1))/'1. Liga'!$D$450,0) -> 15 | BA11: 0 | BB11: 0 | BC11: 13 | BD11: =IF(BC11>0,(ABS(BC11-$B11)*(ABS(BC11-$B11)+1))/'1. Liga'!$D$450,0) -> 10 | BE11: 0 | BF11: 0 | BG11: 12 | BH11: =IF(BG11>0,(ABS(BG11-$B11)*(ABS(BG11-$B11)+1))/'1. Liga'!$D$450,0) -> 6 | BI11: 0 | BJ11: 0 | BK11: 14 | BL11: =IF(BK11>0,(ABS(BK11-$B11)*(ABS(BK11-$B11)+1))/'1. Liga'!$D$450,0) -> 15 | BM11: 0 | BN11: 0 | BO11: 10 | BP11: =IF(BO11>0,(ABS(BO11-$B11)*(ABS(BO11-$B11)+1))/'1. Liga'!$D$450,0) -> 1 | BQ11: 0 | BR11: 0 | BS11: 12 | BT11: =IF(BS11>0,(ABS(BS11-$B11)*(ABS(BS11-$B11)+1))/'1. Liga'!$D$450,0) -> 6 | BU11: 0 | BV11: 0 | BW11: 13 | BX11: =IF(BW11>0,(ABS(BW11-$B11)*(ABS(BW11-$B11)+1))/'1. Liga'!$D$450,0) -> 10 | BY11: 0 | BZ11: 0 | CB11: =IF(CA11>0,(ABS(CA11-$B11)*(ABS(CA11-$B11)+1))/'1. Liga'!$D$450,0) -> 0 | CC11: 0 | CD11: 0 | CF11: =IF(CE11>0,(ABS(CE11-$B11)*(ABS(CE11-$B11)+1))/'1. Liga'!$D$450,0) -> 0 | CG11: 0 | CH11: 0 | CJ11: =IF(CI11>0,(ABS(CI11-$B11)*(ABS(CI11-$B11)+1))/'1. Liga'!$D$450,0) -> 0 | CK11: 0 | CL11: 0 | CN11: =IF(CM11>0,(ABS(CM11-$B11)*(ABS(CM11-$B11)+1))/'1. Liga'!$D$450,0) -> 0 | CO11: 0 | CP11: 0 | CR11: =IF(CQ11>0,(ABS(CQ11-$B11)*(ABS(CQ11-$B11)+1))/'1. Liga'!$D$450,0) -> 0 | CS11: 0 | CT11: 0 | CW11: 1 | CX11: =SUMPRODUCT((INDIRECT("'1. Liga'!$G"&CZ$1):INDIRECT("'1. Liga'!$G"&DA$1)=$A11)*(INDIRECT("'1. Liga'!$N"&CZ$1):INDIRECT("'1. Liga'!$N"&DA$1)))+SUMPRODUCT((INDIRECT("'1. Liga'!$I"&CZ$1):INDIRECT("'1. Liga'!$I"&DA$1)=$A11)*(INDIRECT("'1. Liga'!$P"&CZ$1):INDIRECT("'1. Liga'!$P"&DA$1))) -> 0 | CY11: =SUMPRODUCT((INDIRECT("'1. Liga'!$g"&CZ$1):INDIRECT("'1. Liga'!$g"&DA$1)=$A11)*(INDIRECT("'1. Liga'!$r"&CZ$1):INDIRECT("'1. Liga'!$r"&DA$1)))+SUMPRODUCT((INDIRECT("'1. Liga'!$i"&CZ$1):INDIRECT("'1. Liga'!$i"&DA$1)=$A11)*(INDIRECT("'1. Liga'!$t"&CZ$1):INDIRECT("'1. Liga'!$t"&DA$1))) -> 0 | CZ11: 0
A12: ='1. Liga'!$BB$1 -> Sport-Club Freiburg | B12: ='1. Liga'!$AI$3 -> 10 | C12: ='1. Liga'!$BB$3 -> 42 | D12: ='1. Liga'!$BU$3 -> -13 | E12: ='1. Liga'!$CN$3 -> 45 | F12: 58 | G12: ò | H12: ='1. Liga'!$DG$2 -> 12 | I12: ='1. Liga'!$DG$3 -> 6 | J12: 5.75 | K12: 8 | L12: =IF(K12>0,(ABS(K12-$B12)*(ABS(K12-$B12)+1))/'1. Liga'!$D$450,0) -> 3 | M12: 0 | N12: 0 | O12: 5 | P12: =IF(O12>0,(ABS(O12-$B12)*(ABS(O12-$B12)+1))/'1. Liga'!$D$450,0) -> 15 | Q12: 0 | R12: 0 | T12: =IF(S12>0,(ABS(S12-$B12)*(ABS(S12-$B12)+1))/'1. Liga'!$D$450,0) -> 0 | U12: 0 | V12: 0 | X12: =IF(W12>0,(ABS(W12-$B12)*(ABS(W12-$B12)+1))/'1. Liga'!$D$450,0) -> 0 | Y12: 0 | Z12: 0 | AA12: 7 | AB12: =IF(AA12>0,(ABS(AA12-$B12)*(ABS(AA12-$B12)+1))/'1. Liga'!$D$450,0) -> 6 | AC12: 0 | AD12: 0 | AE12: 8 | AF12: =IF(AE12>0,(ABS(AE12-$B12)*(ABS(AE12-$B12)+1))/'1. Liga'!$D$450,0) -> 3 | AG12: 0 | AH12: 0 | AI12: 7 | AJ12: =IF(AI12>0,(ABS(AI12-$B12)*(ABS(AI12-$B12)+1))/'1. Liga'!$D$450,0) -> 6 | AK12: 0 | AL12: 0 | AM12: 6 | AN12: =IF(AM12>0,(ABS(AM12-$B12)*(ABS(AM12-$B12)+1))/'1. Liga'!$D$450,0) -> 10 | AO12: 0 | AP12: 0 | AQ12: 7 | AR12: =IF(AQ12>0,(ABS(AQ12-$B12)*(ABS(AQ12-$B12)+1))/'1. Liga'!$D$450,0) -> 6 | AS12: 0 | AT12: 0 | AU12: 5 | AV12: =IF(AU12>0,(ABS(AU12-$B12)*(ABS(AU12-$B12)+1))/'1. Liga'!$D$450,0) -> 15 | AW12: 0 | AX12: 0 | AY12: 11 | AZ12: =IF(AY12>0,(ABS(AY12-$B12)*(ABS(AY12-$B12)+1))/'1. Liga'!$D$450,0) -> 1 | BA12: 0 | BB12: 0 | BC12: 10 | BD12: =IF(BC12>0,(ABS(BC12-$B12)*(ABS(BC12-$B12)+1))/'1. Liga'!$D$450,0) -> 0 | BE12: 0 | BF12: 0 | BG12: 7 | BH12: =IF(BG12>0,(ABS(BG12-$B12)*(ABS(BG12-$B12)+1))/'1. Liga'!$D$450,0) -> 6 | BI12: 0 | BJ12: 0 | BK12: 8 | BL12: =IF(BK12>0,(ABS(BK12-$B12)*(ABS(BK12-$B12)+1))/'1. Liga'!$D$450,0) -> 3 | BM12: 0 | BN12: 0 | BO12: 8 | BP12: =IF(BO12>0,(ABS(BO12-$B12)*(ABS(BO12-$B12)+1))/'1. Liga'!$D$450,0) -> 3 | BQ12: 0 | BR12: 0 | BS12: 4 | BT12: =IF(BS12>0,(ABS(BS12-$B12)*(ABS(BS12-$B12)+1))/'1. Liga'!$D$450,0) -> 21 | BU12: 0 | BV12: 0 | BW12: 4 | BX12: =IF(BW12>0,(ABS(BW12-$B12)*(ABS(BW12-$B12)+1))/'1. Liga'!$D$450,0) -> 21 | BY12: 0 | BZ12: 0 | CB12: =IF(CA12>0,(ABS(CA12-$B12)*(ABS(CA12-$B12)+1))/'1. Liga'!$D$450,0) -> 0 | CC12: 0 | CD12: 0 | CF12: =IF(CE12>0,(ABS(CE12-$B12)*(ABS(CE12-$B12)+1))/'1. Liga'!$D$450,0) -> 0 | CG12: 0 | CH12: 0 | CJ12: =IF(CI12>0,(ABS(CI12-$B12)*(ABS(CI12-$B12)+1))/'1. Liga'!$D$450,0) -> 0 | CK12: 0 | CL12: 0 | CN12: =IF(CM12>0,(ABS(CM12-$B12)*(ABS(CM12-$B12)+1))/'1. Liga'!$D$450,0) -> 0 | CO12: 0 | CP12: 0 | CR12: =IF(CQ12>0,(ABS(CQ12-$B12)*(ABS(CQ12-$B12)+1))/'1. Liga'!$D$450,0) -> 0 | CS12: 0 | CT12: 0 | CW12: 1 | CX12: =SUMPRODUCT((INDIRECT("'1. Liga'!$G"&CZ$1):INDIRECT("'1. Liga'!$G"&DA$1)=$A12)*(INDIRECT("'1. Liga'!$N"&CZ$1):INDIRECT("'1. Liga'!$N"&DA$1)))+SUMPRODUCT((INDIRECT("'1. Liga'!$I"&CZ$1):INDIRECT("'1. Liga'!$I"&DA$1)=$A12)*(INDIRECT("'1. Liga'!$P"&CZ$1):INDIRECT("'1. Liga'!$P"&DA$1))) -> 0 | CY12: =SUMPRODUCT((INDIRECT("'1. Liga'!$g"&CZ$1):INDIRECT("'1. Liga'!$g"&DA$1)=$A12)*(INDIRECT("'1. Liga'!$r"&CZ$1):INDIRECT("'1. Liga'!$r"&DA$1)))+SUMPRODUCT((INDIRECT("'1. Liga'!$i"&CZ$1):INDIRECT("'1. Liga'!$i"&DA$1)=$A12)*(INDIRECT("'1. Liga'!$t"&CZ$1):INDIRECT("'1. Liga'!$t"&DA$1))) -> 0 | CZ12: 0
A13: ='1. Liga'!$AY$1 -> FC Augsburg | B13: ='1. Liga'!$AF$3 -> 11 | C13: ='1. Liga'!$AY$3 -> 39 | D13: ='1. Liga'!$BR$3 -> -10 | E13: ='1. Liga'!$CK$3 -> 50 | F13: 60 | G13: òò | H13: ='1. Liga'!$DD$2 -> 16 | I13: ='1. Liga'!$DD$3 -> 3 | J13: 11.96875 | K13: 15 | L13: =IF(K13>0,(ABS(K13-$B13)*(ABS(K13-$B13)+1))/'1. Liga'!$D$450,0) -> 10 | M13: 0 | N13: 0 | O13: 15 | P13: =IF(O13>0,(ABS(O13-$B13)*(ABS(O13-$B13)+1))/'1. Liga'!$D$450,0) -> 10 | Q13: 0 | R13: 0 | T13: =IF(S13>0,(ABS(S13-$B13)*(ABS(S13-$B13)+1))/'1. Liga'!$D$450,0) -> 0 | U13: 0 | V13: 0 | X13: =IF(W13>0,(ABS(W13-$B13)*(ABS(W13-$B13)+1))/'1. Liga'!$D$450,0) -> 0 | Y13: 0 | Z13: 0 | AA13: 18 | AB13: =IF(AA13>0,(ABS(AA13-$B13)*(ABS(AA13-$B13)+1))/'1. Liga'!$D$450,0) -> 28 | AC13: 0 | AD13: 0 | AE13: 17 | AF13: =IF(AE13>0,(ABS(AE13-$B13)*(ABS(AE13-$B13)+1))/'1. Liga'!$D$450,0) -> 21 | AG13: 0 | AH13: 0 | AI13: 17 | AJ13: =IF(AI13>0,(ABS(AI13-$B13)*(ABS(AI13-$B13)+1))/'1. Liga'!$D$450,0) -> 21 | AK13: 0 | AL13: 0 | AM13: 15 | AN13: =IF(AM13>0,(ABS(AM13-$B13)*(ABS(AM13-$B13)+1))/'1. Liga'!$D$450,0) -> 10 | AO13: 0 | AP13: 0 | AQ13: 15 | AR13: =IF(AQ13>0,(ABS(AQ13-$B13)*(ABS(AQ13-$B13)+1))/'1. Liga'!$D$450,0) -> 10 | AS13: 0 | AT13: 0 | AU13: 16 | AV13: =IF(AU13>0,(ABS(AU13-$B13)*(ABS(AU13-$B13)+1))/'1. Liga'!$D$450,0) -> 15 | AW13: 0 | AX13: 0 | AY13: 16 | AZ13: =IF(AY13>0,(ABS(AY13-$B13)*(ABS(AY13-$B13)+1))/'1. Liga'!$D$450,0) -> 15 | BA13: 0 | BB13: 0 | BC13: 17 | BD13: =IF(BC13>0,(ABS(BC13-$B13)*(ABS(BC13-$B13)+1))/'1. Liga'!$D$450,0) -> 21 | BE13: 0 | BF13: 0 | BG13: 17 | BH13: =IF(BG13>0,(ABS(BG13-$B13)*(ABS(BG13-$B13)+1))/'1. Liga'!$D$450,0) -> 21 | BI13: 0 | BJ13: 0 | BK13: 16 | BL13: =IF(BK13>0,(ABS(BK13-$B13)*(ABS(BK13-$B13)+1))/'1. Liga'!$D$450,0) -> 15 | BM13: 0 | BN13: 0 | BO13: 16 | BP13: =IF(BO13>0,(ABS(BO13-$B13)*(ABS(BO13-$B13)+1))/'1. Liga'!$D$450,0) -> 15 | BQ13: 0 | BR13: 0 | BS13: 14 | BT13: =IF(BS13>0,(ABS(BS13-$B13)*(ABS(BS13-$B13)+1))/'1. Liga'!$D$450,0) -> 6 | BU13: 0 | BV13: 0 | BW13: 15 | BX13: =IF(BW13>0,(ABS(BW13-$B13)*(ABS(BW13-$B13)+1))/'1. Liga'!$D$450,0) -> 10 | BY13: 0 | BZ13: 0 | CB13: =IF(CA13>0,(ABS(CA13-$B13)*(ABS(CA13-$B13)+1))/'1. Liga'!$D$450,0) -> 0 | CC13: 0 | CD13: 0 | CF13: =IF(CE13>0,(ABS(CE13-$B13)*(ABS(CE13-$B13)+1))/'1. Liga'!$D$450,0) -> 0 | CG13: 0 | CH13: 0 | CJ13: =IF(CI13>0,(ABS(CI13-$B13)*(ABS(CI13-$B13)+1))/'1. Liga'!$D$450,0) -> 0 | CK13: 0 | CL13: 0 | CN13: =IF(CM13>0,(ABS(CM13-$B13)*(ABS(CM13-$B13)+1))/'1. Liga'!$D$450,0) -> 0 | CO13: 0 | CP13: 0 | CR13: =IF(CQ13>0,(ABS(CQ13-$B13)*(ABS(CQ13-$B13)+1))/'1. Liga'!$D$450,0) -> 0 | CS13: 0 | CT13: 0 | CW13: 1 | CX13: =SUMPRODUCT((INDIRECT("'1. Liga'!$G"&CZ$1):INDIRECT("'1. Liga'!$G"&DA$1)=$A13)*(INDIRECT("'1. Liga'!$N"&CZ$1):INDIRECT("'1. Liga'!$N"&DA$1)))+SUMPRODUCT((INDIRECT("'1. Liga'!$I"&CZ$1):INDIRECT("'1. Liga'!$I"&DA$1)=$A13)*(INDIRECT("'1. Liga'!$P"&CZ$1):INDIRECT("'1. Liga'!$P"&DA$1))) -> 0 | CY13: =SUMPRODUCT((INDIRECT("'1. Liga'!$g"&CZ$1):INDIRECT("'1. Liga'!$g"&DA$1)=$A13)*(INDIRECT("'1. Liga'!$r"&CZ$1):INDIRECT("'1. Liga'!$r"&DA$1)))+SUMPRODUCT((INDIRECT("'1. Liga'!$i"&CZ$1):INDIRECT("'1. Liga'!$i"&DA$1)=$A13)*(INDIRECT("'1. Liga'!$t"&CZ$1):INDIRECT("'1. Liga'!$t"&DA$1))) -> 0 | CZ13: 0
A14: ='1. Liga'!$AU$1 -> VfL Wolfsburg | B14: ='1. Liga'!$AB$3 -> 12 | C14: ='1. Liga'!$AU$3 -> 37 | D14: ='1. Liga'!$BN$3 -> -15 | E14: ='1. Liga'!$CG$3 -> 41 | F14: 56 | G14: ññ | H14: ='1. Liga'!$CZ$2 -> 9 | I14: ='1. Liga'!$CZ$3 -> 9 | J14: 5.625 | K14: 7 | L14: =IF(K14>0,(ABS(K14-$B14)*(ABS(K14-$B14)+1))/'1. Liga'!$D$450,0) -> 15 | M14: 0 | N14: 0 | O14: 8 | P14: =IF(O14>0,(ABS(O14-$B14)*(ABS(O14-$B14)+1))/'1. Liga'!$D$450,0) -> 10 | Q14: 0 | R14: 0 | T14: =IF(S14>0,(ABS(S14-$B14)*(ABS(S14-$B14)+1))/'1. Liga'!$D$450,0) -> 0 | U14: 0 | V14: 0 | X14: =IF(W14>0,(ABS(W14-$B14)*(ABS(W14-$B14)+1))/'1. Liga'!$D$450,0) -> 0 | Y14: 0 | Z14: 0 | AA14: 10 | AB14: =IF(AA14>0,(ABS(AA14-$B14)*(ABS(AA14-$B14)+1))/'1. Liga'!$D$450,0) -> 3 | AC14: 0 | AD14: 0 | AE14: 5 | AF14: =IF(AE14>0,(ABS(AE14-$B14)*(ABS(AE14-$B14)+1))/'1. Liga'!$D$450,0) -> 28 | AG14: 0 | AH14: 0 | AI14: 5 | AJ14: =IF(AI14>0,(ABS(AI14-$B14)*(ABS(AI14-$B14)+1))/'1. Liga'!$D$450,0) -> 28 | AK14: 0 | AL14: 0 | AM14: 8 | AN14: =IF(AM14>0,(ABS(AM14-$B14)*(ABS(AM14-$B14)+1))/'1. Liga'!$D$450,0) -> 10 | AO14: 0 | AP14: 0 | AQ14: 9 | AR14: =IF(AQ14>0,(ABS(AQ14-$B14)*(ABS(AQ14-$B14)+1))/'1. Liga'!$D$450,0) -> 6 | AS14: 0 | AT14: 0 | AU14: 11 | AV14: =IF(AU14>0,(ABS(AU14-$B14)*(ABS(AU14-$B14)+1))/'1. Liga'!$D$450,0) -> 1 | AW14: 0 | AX14: 0 | AY14: 4 | AZ14: =IF(AY14>0,(ABS(AY14-$B14)*(ABS(AY14-$B14)+1))/'1. Liga'!$D$450,0) -> 36 | BA14: 0 | BB14: 0 | BC14: 6 | BD14: =IF(BC14>0,(ABS(BC14-$B14)*(ABS(BC14-$B14)+1))/'1. Liga'!$D$450,0) -> 21 | BE14: 0 | BF14: 0 | BG14: 6 | BH14: =IF(BG14>0,(ABS(BG14-$B14)*(ABS(BG14-$B14)+1))/'1. Liga'!$D$450,0) -> 21 | BI14: 0 | BJ14: 0 | BK14: 5 | BL14: =IF(BK14>0,(ABS(BK14-$B14)*(ABS(BK14-$B14)+1))/'1. Liga'!$D$450,0) -> 28 | BM14: 0 | BN14: 0 | BO14: 7 | BP14: =IF(BO14>0,(ABS(BO14-$B14)*(ABS(BO14-$B14)+1))/'1. Liga'!$D$450,0) -> 15 | BQ14: 0 | BR14: 0 | BS14: 8 | BT14: =IF(BS14>0,(ABS(BS14-$B14)*(ABS(BS14-$B14)+1))/'1. Liga'!$D$450,0) -> 10 | BU14: 0 | BV14: 0 | BW14: 9 | BX14: =IF(BW14>0,(ABS(BW14-$B14)*(ABS(BW14-$B14)+1))/'1. Liga'!$D$450,0) -> 6 | BY14: 0 | BZ14: 0 | CB14: =IF(CA14>0,(ABS(CA14-$B14)*(ABS(CA14-$B14)+1))/'1. Liga'!$D$450,0) -> 0 | CC14: 0 | CD14: 0 | CF14: =IF(CE14>0,(ABS(CE14-$B14)*(ABS(CE14-$B14)+1))/'1. Liga'!$D$450,0) -> 0 | CG14: 0 | CH14: 0 | CJ14: =IF(CI14>0,(ABS(CI14-$B14)*(ABS(CI14-$B14)+1))/'1. Liga'!$D$450,0) -> 0 | CK14: 0 | CL14: 0 | CN14: =IF(CM14>0,(ABS(CM14-$B14)*(ABS(CM14-$B14)+1))/'1. Liga'!$D$450,0) -> 0 | CO14: 0 | CP14: 0 | CR14: =IF(CQ14>0,(ABS(CQ14-$B14)*(ABS(CQ14-$B14)+1))/'1. Liga'!$D$450,0) -> 0 | CS14: 0 | CT14: 0 | CW14: 1 | CX14: =SUMPRODUCT((INDIRECT("'1. Liga'!$G"&CZ$1):INDIRECT("'1. Liga'!$G"&DA$1)=$A14)*(INDIRECT("'1. Liga'!$N"&CZ$1):INDIRECT("'1. Liga'!$N"&DA$1)))+SUMPRODUCT((INDIRECT("'1. Liga'!$I"&CZ$1):INDIRECT("'1. Liga'!$I"&DA$1)=$A14)*(INDIRECT("'1. Liga'!$P"&CZ$1):INDIRECT("'1. Liga'!$P"&DA$1))) -> 0 | CY14: =SUMPRODUCT((INDIRECT("'1. Liga'!$g"&CZ$1):INDIRECT("'1. Liga'!$g"&DA$1)=$A14)*(INDIRECT("'1. Liga'!$r"&CZ$1):INDIRECT("'1. Liga'!$r"&DA$1)))+SUMPRODUCT((INDIRECT("'1. Liga'!$i"&CZ$1):INDIRECT("'1. Liga'!$i"&DA$1)=$A14)*(INDIRECT("'1. Liga'!$t"&CZ$1):INDIRECT("'1. Liga'!$t"&DA$1))) -> 0 | CZ14: 0
A15: ='1. Liga'!$AX$1 -> 1. FSV Mainz 05 | B15: ='1. Liga'!$AE$3 -> 13 | C15: ='1. Liga'!$AX$3 -> 35 | D15: ='1. Liga'!$BQ$3 -> -12 | E15: ='1. Liga'!$CJ$3 -> 39 | F15: 51 | G15: ññ | H15: ='1. Liga'!$DC$2 -> 3 | I15: ='1. Liga'!$DC$3 -> 12 | J15: 8.40625 | K15: 10 | L15: =IF(K15>0,(ABS(K15-$B15)*(ABS(K15-$B15)+1))/'1. Liga'!$D$450,0) -> 6 | M15: 0 | N15: 0 | O15: 9 | P15: =IF(O15>0,(ABS(O15-$B15)*(ABS(O15-$B15)+1))/'1. Liga'!$D$450,0) -> 10 | Q15: 0 | R15: 0 | T15: =IF(S15>0,(ABS(S15-$B15)*(ABS(S15-$B15)+1))/'1. Liga'!$D$450,0) -> 0 | U15: 0 | V15: 0 | X15: =IF(W15>0,(ABS(W15-$B15)*(ABS(W15-$B15)+1))/'1. Liga'!$D$450,0) -> 0 | Y15: 0 | Z15: 0 | AA15: 8 | AB15: =IF(AA15>0,(ABS(AA15-$B15)*(ABS(AA15-$B15)+1))/'1. Liga'!$D$450,0) -> 15 | AC15: 0 | AD15: 0 | AE15: 11 | AF15: =IF(AE15>0,(ABS(AE15-$B15)*(ABS(AE15-$B15)+1))/'1. Liga'!$D$450,0) -> 3 | AG15: 0 | AH15: 0 | AI15: 12 | AJ15: =IF(AI15>0,(ABS(AI15-$B15)*(ABS(AI15-$B15)+1))/'1. Liga'!$D$450,0) -> 1 | AK15: 0 | AL15: 0 | AM15: 12 | AN15: =IF(AM15>0,(ABS(AM15-$B15)*(ABS(AM15-$B15)+1))/'1. Liga'!$D$450,0) -> 1 | AO15: 0 | AP15: 0 | AQ15: 12 | AR15: =IF(AQ15>0,(ABS(AQ15-$B15)*(ABS(AQ15-$B15)+1))/'1. Liga'!$D$450,0) -> 1 | AS15: 0 | AT15: 0 | AU15: 13 | AV15: =IF(AU15>0,(ABS(AU15-$B15)*(ABS(AU15-$B15)+1))/'1. Liga'!$D$450,0) -> 0 | AW15: 0 | AX15: 0 | AY15: 10 | AZ15: =IF(AY15>0,(ABS(AY15-$B15)*(ABS(AY15-$B15)+1))/'1. Liga'!$D$450,0) -> 6 | BA15: 0 | BB15: 0 | BC15: 7 | BD15: =IF(BC15>0,(ABS(BC15-$B15)*(ABS(BC15-$B15)+1))/'1. Liga'!$D$450,0) -> 21 | BE15: 0 | BF15: 0 | BG15: 14 | BH15: =IF(BG15>0,(ABS(BG15-$B15)*(ABS(BG15-$B15)+1))/'1. Liga'!$D$450,0) -> 1 | BI15: 0 | BJ15: 0 | BK15: 11 | BL15: =IF(BK15>0,(ABS(BK15-$B15)*(ABS(BK15-$B15)+1))/'1. Liga'!$D$450,0) -> 3 | BM15: 0 | BN15: 0 | BO15: 11 | BP15: =IF(BO15>0,(ABS(BO15-$B15)*(ABS(BO15-$B15)+1))/'1. Liga'!$D$450,0) -> 3 | BQ15: 0 | BR15: 0 | BS15: 10 | BT15: =IF(BS15>0,(ABS(BS15-$B15)*(ABS(BS15-$B15)+1))/'1. Liga'!$D$450,0) -> 6 | BU15: 0 | BV15: 0 | BW15: 7 | BX15: =IF(BW15>0,(ABS(BW15-$B15)*(ABS(BW15-$B15)+1))/'1. Liga'!$D$450,0) -> 21 | BY15: 0 | BZ15: 0 | CB15: =IF(CA15>0,(ABS(CA15-$B15)*(ABS(CA15-$B15)+1))/'1. Liga'!$D$450,0) -> 0 | CC15: 0 | CD15: 0 | CF15: =IF(CE15>0,(ABS(CE15-$B15)*(ABS(CE15-$B15)+1))/'1. Liga'!$D$450,0) -> 0 | CG15: 0 | CH15: 0 | CJ15: =IF(CI15>0,(ABS(CI15-$B15)*(ABS(CI15-$B15)+1))/'1. Liga'!$D$450,0) -> 0 | CK15: 0 | CL15: 0 | CN15: =IF(CM15>0,(ABS(CM15-$B15)*(ABS(CM15-$B15)+1))/'1. Liga'!$D$450,0) -> 0 | CO15: 0 | CP15: 0 | CR15: =IF(CQ15>0,(ABS(CQ15-$B15)*(ABS(CQ15-$B15)+1))/'1. Liga'!$D$450,0) -> 0 | CS15: 0 | CT15: 0 | CW15: 1 | CX15: =SUMPRODUCT((INDIRECT("'1. Liga'!$G"&CZ$1):INDIRECT("'1. Liga'!$G"&DA$1)=$A15)*(INDIRECT("'1. Liga'!$N"&CZ$1):INDIRECT("'1. Liga'!$N"&DA$1)))+SUMPRODUCT((INDIRECT("'1. Liga'!$I"&CZ$1):INDIRECT("'1. Liga'!$I"&DA$1)=$A15)*(INDIRECT("'1. Liga'!$P"&CZ$1):INDIRECT("'1. Liga'!$P"&DA$1))) -> 0 | CY15: =SUMPRODUCT((INDIRECT("'1. Liga'!$g"&CZ$1):INDIRECT("'1. Liga'!$g"&DA$1)=$A15)*(INDIRECT("'1. Liga'!$r"&CZ$1):INDIRECT("'1. Liga'!$r"&DA$1)))+SUMPRODUCT((INDIRECT("'1. Liga'!$i"&CZ$1):INDIRECT("'1. Liga'!$i"&DA$1)=$A15)*(INDIRECT("'1. Liga'!$t"&CZ$1):INDIRECT("'1. Liga'!$t"&DA$1))) -> 0 | CZ15: 0
A16: ='1. Liga'!$AZ$1 -> Borussia Mönchengladbach | B16: ='1. Liga'!$AG$3 -> 14 | C16: ='1. Liga'!$AZ$3 -> 34 | D16: ='1. Liga'!$BS$3 -> -11 | E16: ='1. Liga'!$CL$3 -> 56 | F16: 67 | G16: ò | H16: ='1. Liga'!$DE$2 -> 16 | I16: ='1. Liga'!$DE$3 -> 3 | J16: 7.625 | K16: 9 | L16: =IF(K16>0,(ABS(K16-$B16)*(ABS(K16-$B16)+1))/'1. Liga'!$D$450,0) -> 15 | M16: 0 | N16: 0 | O16: 10 | P16: =IF(O16>0,(ABS(O16-$B16)*(ABS(O16-$B16)+1))/'1. Liga'!$D$450,0) -> 10 | Q16: 0 | R16: 0 | T16: =IF(S16>0,(ABS(S16-$B16)*(ABS(S16-$B16)+1))/'1. Liga'!$D$450,0) -> 0 | U16: 0 | V16: 0 | X16: =IF(W16>0,(ABS(W16-$B16)*(ABS(W16-$B16)+1))/'1. Liga'!$D$450,0) -> 0 | Y16: 0 | Z16: 0 | AA16: 12 | AB16: =IF(AA16>0,(ABS(AA16-$B16)*(ABS(AA16-$B16)+1))/'1. Liga'!$D$450,0) -> 3 | AC16: 0 | AD16: 0 | AE16: 9 | AF16: =IF(AE16>0,(ABS(AE16-$B16)*(ABS(AE16-$B16)+1))/'1. Liga'!$D$450,0) -> 15 | AG16: 0 | AH16: 0 | AI16: 13 | AJ16: =IF(AI16>0,(ABS(AI16-$B16)*(ABS(AI16-$B16)+1))/'1. Liga'!$D$450,0) -> 1 | AK16: 0 | AL16: 0 | AM16: 11 | AN16: =IF(AM16>0,(ABS(AM16-$B16)*(ABS(AM16-$B16)+1))/'1. Liga'!$D$450,0) -> 6 | AO16: 0 | AP16: 0 | AQ16: 10 | AR16: =IF(AQ16>0,(ABS(AQ16-$B16)*(ABS(AQ16-$B16)+1))/'1. Liga'!$D$450,0) -> 10 | AS16: 0 | AT16: 0 | AU16: 9 | AV16: =IF(AU16>0,(ABS(AU16-$B16)*(ABS(AU16-$B16)+1))/'1. Liga'!$D$450,0) -> 15 | AW16: 0 | AX16: 0 | AY16: 8 | AZ16: =IF(AY16>0,(ABS(AY16-$B16)*(ABS(AY16-$B16)+1))/'1. Liga'!$D$450,0) -> 21 | BA16: 0 | BB16: 0 | BC16: 8 | BD16: =IF(BC16>0,(ABS(BC16-$B16)*(ABS(BC16-$B16)+1))/'1. Liga'!$D$450,0) -> 21 | BE16: 0 | BF16: 0 | BG16: 15 | BH16: =IF(BG16>0,(ABS(BG16-$B16)*(ABS(BG16-$B16)+1))/'1. Liga'!$D$450,0) -> 1 | BI16: 0 | BJ16: 0 | BK16: 7 | BL16: =IF(BK16>0,(ABS(BK16-$B16)*(ABS(BK16-$B16)+1))/'1. Liga'!$D$450,0) -> 28 | BM16: 0 | BN16: 0 | BO16: 9 | BP16: =IF(BO16>0,(ABS(BO16-$B16)*(ABS(BO16-$B16)+1))/'1. Liga'!$D$450,0) -> 15 | BQ16: 0 | BR16: 0 | BS16: 11 | BT16: =IF(BS16>0,(ABS(BS16-$B16)*(ABS(BS16-$B16)+1))/'1. Liga'!$D$450,0) -> 6 | BU16: 0 | BV16: 0 | BW16: 10 | BX16: =IF(BW16>0,(ABS(BW16-$B16)*(ABS(BW16-$B16)+1))/'1. Liga'!$D$450,0) -> 10 | BY16: 0 | BZ16: 0 | CB16: =IF(CA16>0,(ABS(CA16-$B16)*(ABS(CA16-$B16)+1))/'1. Liga'!$D$450,0) -> 0 | CC16: 0 | CD16: 0 | CF16: =IF(CE16>0,(ABS(CE16-$B16)*(ABS(CE16-$B16)+1))/'1. Liga'!$D$450,0) -> 0 | CG16: 0 | CH16: 0 | CJ16: =IF(CI16>0,(ABS(CI16-$B16)*(ABS(CI16-$B16)+1))/'1. Liga'!$D$450,0) -> 0 | CK16: 0 | CL16: 0 | CN16: =IF(CM16>0,(ABS(CM16-$B16)*(ABS(CM16-$B16)+1))/'1. Liga'!$D$450,0) -> 0 | CO16: 0 | CP16: 0 | CR16: =IF(CQ16>0,(ABS(CQ16-$B16)*(ABS(CQ16-$B16)+1))/'1. Liga'!$D$450,0) -> 0 | CS16: 0 | CT16: 0 | CW16: 1 | CX16: =SUMPRODUCT((INDIRECT("'1. Liga'!$G"&CZ$1):INDIRECT("'1. Liga'!$G"&DA$1)=$A16)*(INDIRECT("'1. Liga'!$N"&CZ$1):INDIRECT("'1. Liga'!$N"&DA$1)))+SUMPRODUCT((INDIRECT("'1. Liga'!$I"&CZ$1):INDIRECT("'1. Liga'!$I"&DA$1)=$A16)*(INDIRECT("'1. Liga'!$P"&CZ$1):INDIRECT("'1. Liga'!$P"&DA$1))) -> 0 | CY16: =SUMPRODUCT((INDIRECT("'1. Liga'!$g"&CZ$1):INDIRECT("'1. Liga'!$g"&DA$1)=$A16)*(INDIRECT("'1. Liga'!$r"&CZ$1):INDIRECT("'1. Liga'!$r"&DA$1)))+SUMPRODUCT((INDIRECT("'1. Liga'!$i"&CZ$1):INDIRECT("'1. Liga'!$i"&DA$1)=$A16)*(INDIRECT("'1. Liga'!$t"&CZ$1):INDIRECT("'1. Liga'!$t"&DA$1))) -> 0 | CZ16: 0
